Workbook

Sheet Table 3_L (hidden)
A1: Table 3. Ranges of values of basin characteristics used to develop regional regression equations.
A2: [A, contributing drainage area, in square miles; P, mean annual precipitation, in inches; SLP50, percent of basin with slope greater than 50 percent; Min, minimum; Max, maximum; --, not used in regression equations for indicated region]
B3: A | D3: P | F3: SLP50
A4: Hydrologic region (ordered clockwise from northwestern Montana) | B4: Min | C4: Max | D4: Min | E4: Max | F4: Min | G4: Max
A5: West | B5: =MIN('Table 1-2_Lookup'!F6:F58) -> 6.4 | C5: =MAX('Table 1-2_Lookup'!F6:F58) -> 2516 | D5: -- | E5: -- | F5: =MIN('Table 1-2_Lookup'!H6:H58) -> 1.869 | G5: =MAX('Table 1-2_Lookup'!H6:H58) -> 67.474
A6: Northwest | B6: =MIN('Table 1-2_Lookup'!F60:F85) -> 7.74 | C6: =MAX('Table 1-2_Lookup'!F60:F85) -> 1556 | D6: =MIN('Table 1-2_Lookup'!G60:G85) -> 20.742 | E6: =MAX('Table 1-2_Lookup'!G60:G85) -> 83.156 | F6: =MIN('Table 1-2_Lookup'!H60:H85) -> 0.057 | G6: =MAX('Table 1-2_Lookup'!H60:H85) -> 65.94
A7: Upper Yellowstone-Central Mountain | B7: =MIN('Table 1-2_Lookup'!F87:F135) -> 28.1 | C7: =MAX('Table 1-2_Lookup'!F87:F135) -> 2616 | D7: =MIN('Table 1-2_Lookup'!G87:G135) -> 16.454 | E7: =MAX('Table 1-2_Lookup'!G87:G135) -> 38.847 | F7: -- | G7: --
A8: Southwest | B8: =MIN('Table 1-2_Lookup'!F137:F160) -> 24.4 | C8: =MAX('Table 1-2_Lookup'!F137:F160) -> 2472 | D8: =MIN('Table 1-2_Lookup'!G137:G160) -> 16.738 | E8: =MAX('Table 1-2_Lookup'!G137:G160) -> 37.018 | F8: =MIN('Table 1-2_Lookup'!H137:H160) -> 0.962 | G8: =MAX('Table 1-2_Lookup'!H137:H160) -> 22.553

Sheet Table 1-1_Lookup (hidden)
A1: Table 1–2. Streamflow characteristics for streamflow-gaging stations used in developing the regional regression equations.
A2: [NR, not reported]
A3: Map number (fig. 1) | B3: Station identification | C3: Station name | D3: Analysis period of record, in water years | E3: Streamflow for inidcated streamflow characteristic (Q), in cubic feet per second
E4: QAL7Q10 | F4: QS214Q5 | G4: QA0.2 | H4: QA0.5 | I4: QA0.8 | J4: QAMEAN | K4: QJAN0.2 | L4: QJAN0.5 | M4: QJAN0.8 | N4: QJANMEAN | O4: QFEB0.2 | P4: QFEB0.5 | Q4: QFEB0.8 | R4: QFEBMEAN | S4: QMAR0.2 | T4: QMAR0.5 | U4: QMAR0.8 | V4: QMARMEAN | W4: QAPR0.2 | X4: QAPR0.5 | Y4: QAPR0.8 | Z4: QAPRMEAN | AA4: QMAY0.2 | AB4: QMAY0.5 | AC4: QMAY0.8 | AD4: QMAYMEAN | AE4: QJUN0.2 | AF4: QJUN0.5 | AG4: QJUN0.8 | AH4: QJUNMEAN | AI4: QJUL0.2 | AJ4: QJUL0.5 | AK4: QJUL0.8 | AL4: QJULMEAN | AM4: QAUG0.2 | AN4: QAUG0.5 | AO4: QAUG0.8 | AP4: QAUGMEAN | AQ4: QSEP0.2 | AR4: QSEP0.5 | AS4: QSEP0.8 | AT4: QSEPMEAN | AU4: QOCT0.2 | AV4: QOCT0.5 | AW4: QOCT0.8 | AX4: QOCTMEAN | AY4: QNOV0.2 | AZ4: QNOV0.5 | BA4: QNOV0.8 | BB4: QNOVMEAN | BC4: QDEC0.2 | BD4: QDEC0.5 | BE4: QDEC0.8 | BF4: QDECMEAN
E6: =RIGHT(E4,LEN(E4)-1) -> AL7Q10 | F6: =RIGHT(F4,LEN(F4)-1) -> S214Q5 | G6: =RIGHT(G4,LEN(G4)-1) -> A0.2 | H6: A0.5 | I6: A0.8 | J6: AMEAN | K6: =RIGHT(K4,LEN(K4)-1) -> JAN0.2 | L6: JAN0.5 | M6: JAN0.8 | N6: JANMEAN | O6: FEB0.2 | P6: FEB0.5 | Q6: FEB0.8 | R6: FEBMEAN | S6: MAR0.2 | T6: MAR0.5 | U6: MAR0.8 | V6: MARMEAN | W6: APR0.2 | X6: APR0.5 | Y6: APR0.8 | Z6: APRMEAN | AA6: =RIGHT(AA4,LEN(AA4)-1) -> MAY0.2 | AB6: MAY0.5 | AC6: MAY0.8 | AD6: MAYMEAN | AE6: JUN0.2 | AF6: JUN0.5 | AG6: JUN0.8 | AH6: JUNMEAN | AI6: JUL0.2 | AJ6: JUL0.5 | AK6: JUL0.8 | AL6: JULMEAN | AM6: AUG0.2 | AN6: AUG0.5 | AO6: AUG0.8 | AP6: AUGMEAN | AQ6: =RIGHT(AQ4,LEN(AQ4)-1) -> SEP0.2 | AR6: SEP0.5 | AS6: SEP0.8 | AT6: SEPMEAN | AU6: OCT0.2 | AV6: OCT0.5 | AW6: OCT0.8 | AX6: OCTMEAN | AY6: NOV0.2 | AZ6: NOV0.5 | BA6: NOV0.8 | BB6: NOVMEAN | BC6: DEC0.2 | BD6: DEC0.5 | BE6: DEC0.8 | BF6: DECMEAN
E7: 18 | F7: 119 | G7: 230 | H7: 227 | I7: 224 | J7: 415 | K7: 245 | L7: 242 | M7: 239 | N7: 416 | O7: 260 | P7: 257 | Q7: 254 | R7: 417 | S7: 275 | T7: 272 | U7: 269 | V7: 418 | W7: 290 | X7: 287 | Y7: 284 | Z7: 419 | AA7: 305 | AB7: 302 | AC7: 299 | AD7: 420 | AE7: 320 | AF7: 317 | AG7: 314 | AH7: 421 | AI7: 335 | AJ7: 332 | AK7: 329 | AL7: 422 | AM7: 350 | AN7: 347 | AO7: 344 | AP7: 423 | AQ7: 365 | AR7: 362 | AS7: 359 | AT7: 424 | AU7: 380 | AV7: 377 | AW7: 374 | AX7: 425 | AY7: 395 | AZ7: 392 | BA7: 389 | BB7: 426 | BC7: 410 | BD7: 407 | BE7: 404 | BF7: 427
A8: West hydrologic region
A9: 596 | B9: 12301300 | C9: Tobacco River near Eureka, Montana | D9: 1959–2009 | E9: 37.595 | F9: 56.111 | G9: 415 | H9: 147 | I9: 66 | J9: 263 | K9: 130 | L9: 90 | M9: 63 | N9: 102 | O9: 130 | P9: 97 | Q9: 57 | R9: 109 | S9: 191 | T9: 124 | U9: 87 | V9: 156 | W9: 599 | X9: 340 | Y9: 186 | Z9: 415 | AA9: 1020 | AB9: 687 | AC9: 471 | AD9: 756 | AE9: 980 | AF9: 700 | AG9: 433 | AH9: 727 | AI9: 443 | AJ9: 253 | AK9: 149 | AL9: 298 | AM9: 170 | AN9: 114 | AO9: 71 | AP9: 122 | AQ9: 137 | AR9: 102 | AS9: 70 | AT9: 107 | AU9: 139 | AV9: 103 | AW9: 76 | AX9: 112 | AY9: 157 | AZ9: 110 | BA9: 81 | BB9: 131 | BC9: 137 | BD9: 96 | BE9: 71 | BF9: 113
A10: 605 | B10: 12301999 | C10: Wolf Creek near Libby, Montana | D10: 1968–77 | G10: 75 | H10: 33 | I10: 15 | J10: 70 | K10: 19 | L10: 11 | M10: 5.7 | N10: 22 | O10: 37 | P10: 14 | Q10: 6.6 | R10: 27 | S10: 69 | T10: 33 | U10: 16 | V10: 69 | W10: 479 | X10: 136 | Y10: 51 | Z10: 263 | AA10: 463 | AB10: 262 | AC10: 117 | AD10: 296 | AE10: 122 | AF10: 65 | AG10: 37 | AH10: 82 | AI10: 36 | AJ10: 22 | AK10: 11 | AL10: 30 | AM10: 14 | AN10: 12 | AO10: 7.4 | AP10: 11 | AQ10: 12 | AR10: 9.2 | AS10: 6.9 | AT10: 9.2 | AU10: 12 | AV10: 10 | AW10: 8.6 | AX10: 11 | AY10: 13 | AZ10: 11 | BA10: 8.6 | BB10: 11 | BC10: 15 | BD10: 9.6 | BE10: 7.9 | BF10: 12
A11: 607 | B11: 12302055 | C11: Fisher River near Libby, Montana | D11: 1968–2009 | E11: 57.314 | F11: 73.902 | G11: 735 | H11: 255 | I11: 121 | J11: 468 | K11: 323 | L11: 201 | M11: 99 | N11: 248 | O11: 351 | P11: 224 | Q11: 117 | R11: 327 | S11: 758 | T11: 379 | U11: 187 | V11: 570 | W11: 1740 | X11: 940 | Y11: 532 | Z11: 1180 | AA11: 1930 | AB11: 1190 | AC11: 731 | AD11: 1380 | AE11: 1160 | AF11: 745 | AG11: 354 | AH11: 799 | AI11: 402 | AJ11: 236 | AK11: 142 | AL11: 281 | AM11: 176 | AN11: 128 | AO11: 86 | AP11: 134 | AQ11: 140 | AR11: 112 | AS11: 81 | AT11: 114 | AU11: 155 | AV11: 117 | AW11: 93 | AX11: 131 | AY11: 273 | AZ11: 161 | BA11: 89 | BB11: 223 | BC11: 283 | BD11: 160 | BE11: 87 | BF11: 234
A12: 609 | B12: 12302500 | C12: Granite Creek near Libby, Montana | D12: 1933, 1937–43, 1961–69 | E12: 5.371 | F12: 6.459 | G12: 115 | H12: 53 | I12: 24 | J12: 71 | K12: 26 | L12: 19 | M12: 13 | N12: 20 | O12: 35 | P12: 17 | Q12: 9.3 | R12: 26 | S12: 42 | T12: 23 | U12: 15 | V12: 31 | W12: 153 | X12: 84 | Y12: 44 | Z12: 116 | AA12: 325 | AB12: 216 | AC12: 135 | AD12: 234 | AE12: 306 | AF12: 210 | AG12: 125 | AH12: 224 | AI12: 104 | AJ12: 57 | AK12: 34 | AL12: 72 | AM12: 29 | AN12: 21 | AO12: 12 | AP12: 22 | AQ12: 24 | AR12: 13 | AS12: 7.5 | AT12: 18 | AU12: 41 | AV12: 19 | AW12: 8.6 | AX12: 27 | AY12: 46 | AZ12: 25 | BA12: 12 | BB12: 33 | BC12: 47 | BD12: 31 | BE12: 15 | BF12: 39
A13: 611 | B13: 12303100 | C13: Flower Creek near Libby, Montana | D13: 1961–92 | E13: 3.837 | F13: 4.917 | G13: 37 | H13: 13 | I13: 6.9 | J13: 26 | K13: 14 | L13: 9.8 | M13: 5.7 | N13: 9.1 | O13: 12 | P13: 7.3 | Q13: 4.7 | R13: 9.3 | S13: 15 | T13: 9 | U13: 5.4 | V13: 11 | W13: 43 | X13: 22 | Y13: 12 | Z13: 31 | AA13: 123 | AB13: 73 | AC13: 41 | AD13: 84 | AE13: 125 | AF13: 81 | AG13: 46 | AH13: 88 | AI13: 43 | AJ13: 23 | AK13: 13 | AL13: 29 | AM13: 13 | AN13: 9.6 | AO13: 6.8 | AP13: 10 | AQ13: 9.8 | AR13: 7.7 | AS13: 6.1 | AT13: 8.4 | AU13: 12 | AV13: 8 | AW13: 5.5 | AX13: 9.1 | AY13: 16 | AZ13: 8.8 | BA13: 5.2 | BB13: 13 | BC13: 14 | BD13: 10 | BE13: 6 | BF13: 10
A14: 614 | B14: 12303500 | C14: Lake Creek at Troy, Montana | D14: 1945–57, 1983–96 | E14: 76.084 | F14: 102.337 | G14: 649 | H14: 258 | I14: 131 | J14: 428 | K14: 331 | L14: 188 | M14: 113 | N14: 232 | O14: 364 | P14: 203 | Q14: 114 | R14: 286 | S14: 451 | T14: 266 | U14: 166 | V14: 305 | W14: 850 | X14: 559 | Y14: 312 | Z14: 611 | AA14: 1590 | AB14: 1120 | AC14: 722 | AD14: 1190 | AE14: 1460 | AF14: 966 | AG14: 551 | AH14: 1030 | AI14: 607 | AJ14: 352 | AK14: 233 | AL14: 438 | AM14: 255 | AN14: 197 | AO14: 151 | AP14: 206 | AQ14: 175 | AR14: 148 | AS14: 123 | AT14: 148 | AU14: 212 | AV14: 143 | AW14: 106 | AX14: 177 | AY14: 358 | AZ14: 216 | BA14: 112 | BB14: 270 | BC14: 382 | BD14: 207 | BE14: 124 | BF14: 280
A15: 615 | B15: 12304040 | C15: Basin Creek near Yaak, Montana | D15: 1990–2000 | F15: 6.48 | G15: 47 | H15: 16 | I15: 8.4 | J15: 32 | K15: 11 | L15: 7.2 | M15: 4.9 | N15: 9.7 | O15: 13 | P15: 8.1 | Q15: 5.4 | R15: 12 | S15: 20 | T15: 12 | U15: 7.4 | V15: 15 | W15: 83 | X15: 36 | Y15: 22 | Z15: 53 | AA15: 178 | AB15: 101 | AC15: 64 | AD15: 122 | AE15: 133 | AF15: 72 | AG15: 38 | AH15: 85 | AI15: 43 | AJ15: 26 | AK15: 17 | AL15: 30 | AM15: 17 | AN15: 13 | AO15: 8.8 | AP15: 14 | AQ15: 11 | AR15: 8.8 | AS15: 7.1 | AT15: 9.5 | AU15: 12 | AV15: 8.4 | AW15: 6.8 | AX15: 9.4 | AY15: 16 | AZ15: 10 | BA15: 6.5 | BB15: 16 | BC15: 17 | BD15: 8.7 | BE15: 5.4 | BF15: 16
A16: 621 | B16: 12304500 | C16: Yaak River near Troy, Montana | D16: 1956–2009 | E16: 68.603 | F16: 93.624 | G16: 1260 | H16: 376 | I16: 177 | J16: 836 | K16: 386 | L16: 242 | M16: 127 | N16: 291 | O16: 469 | P16: 254 | Q16: 134 | R16: 344 | S16: 845 | T16: 421 | U16: 202 | V16: 601 | W16: 2750 | X16: 1540 | Y16: 821 | Z16: 1900 | AA16: 4780 | AB16: 3070 | AC16: 1950 | AD16: 3450 | AE16: 2830 | AF16: 1580 | AG16: 817 | AH16: 1870 | AI16: 683 | AJ16: 394 | AK16: 240 | AL16: 479 | AM16: 250 | AN16: 178 | AO16: 121 | AP16: 190 | AQ16: 195 | AR16: 143 | AS16: 103 | AT16: 157 | AU16: 225 | AV16: 158 | AW16: 114 | AX16: 192 | AY16: 414 | AZ16: 216 | BA16: 116 | BB16: 312 | BC16: 412 | BD16: 228 | BE16: 118 | BF16: 311
A17: 624 | B17: 12323240 | C17: Blacktail Creek at Butte, Montana | D17: 1989–2009 | E17: 4.754 | F17: 5.541 | G17: 17 | H17: 9.7 | I17: 6.1 | J17: 13 | K17: 9.9 | L17: 8.1 | M17: 7.2 | N17: 8.6 | O17: 12 | P17: 9.3 | Q17: 6.9 | R17: 10 | S17: 17 | T17: 12 | U17: 8.4 | V17: 14 | W17: 23 | X17: 15 | Y17: 11 | Z17: 18 | AA17: 29 | AB17: 18 | AC17: 11 | AD17: 21 | AE17: 32 | AF17: 16 | AG17: 9.2 | AH17: 23 | AI17: 14 | AJ17: 8.9 | AK17: 6.8 | AL17: 12 | AM17: 12 | AN17: 8.4 | AO17: 6.2 | AP17: 9.4 | AQ17: 11 | AR17: 8.3 | AS17: 6.4 | AT17: 8.9 | AU17: 12 | AV17: 9.9 | AW17: 7.5 | AX17: 10 | AY17: 12 | AZ17: 9.6 | BA17: 7.7 | BB17: 10 | BC17: 11 | BD17: 8.4 | BE17: 7.2 | BF17: 8.9
A18: 627 | B18: 12323500 | C18: German Gulch Creek near Ramsay, Montana | D18: 1956–69 | E18: 3.674 | F18: 6.833 | G18: 24 | H18: 11 | I18: 5.7 | J18: 21 | K18: 7.9 | L18: 6.4 | M18: 5.4 | N18: 6.6 | O18: 8.1 | P18: 6.4 | Q18: 5.2 | R18: 6.8 | S18: 9.8 | T18: 7.1 | U18: 5.1 | V18: 8.5 | W18: 25 | X18: 14 | Y18: 9.7 | Z18: 18 | AA18: 95 | AB18: 56 | AC18: 34 | AD18: 65 | AE18: 112 | AF18: 66 | AG18: 39 | AH18: 76 | AI18: 32 | AJ18: 19 | AK18: 13 | AL18: 23 | AM18: 14 | AN18: 11 | AO18: 7.9 | AP18: 11 | AQ18: 11 | AR18: 9.3 | AS18: 7.6 | AT18: 9.6 | AU18: 12 | AV18: 8.7 | AW18: 7.4 | AX18: 9.4 | AY18: 9.9 | AZ18: 8 | BA18: 6.7 | BB18: 8.1 | BC18: 9.6 | BD18: 7 | BE18: 5.8 | BF18: 7.5
A19: 628 | B19: 12323600 | C19: Silver Bow Creek at Opportunity, Montana | D19: 1988–2009 | E19: 12.337 | F19: 13.983 | G19: 66 | H19: 41 | I19: 22 | J19: 51 | K19: 42 | L19: 30 | M19: 24 | N19: 34 | O19: 57 | P19: 43 | Q19: 28 | R19: 45 | S19: 63 | T19: 43 | U19: 32 | V19: 52 | W19: 83 | X19: 56 | Y19: 42 | Z19: 65 | AA19: 127 | AB19: 85 | AC19: 48 | AD19: 98 | AE19: 143 | AF19: 79 | AG19: 40 | AH19: 100 | AI19: 65 | AJ19: 33 | AK19: 21 | AL19: 43 | AM19: 39 | AN19: 22 | AO19: 15 | AP19: 28 | AQ19: 39 | AR19: 27 | AS19: 21 | AT19: 30 | AU19: 44 | AV19: 34 | AW19: 26 | AX19: 35 | AY19: 46 | AZ19: 34 | BA19: 26 | BB19: 35 | BC19: 41 | BD19: 28 | BE19: 23 | BF19: 32
A20: 633 | B20: 12324100 | C20: Racetrack Creek below Granite Creek, near Anaconda, Montana | D20: 1958–72 | E20: 14.489 | F20: 23.992 | G20: 88 | H20: 33 | I20: 16 | J20: 61 | K20: 23 | L20: 20 | M20: 17 | N20: 20 | O20: 23 | P20: 20 | Q20: 18 | R20: 20 | S20: 22 | T20: 19 | U20: 17 | V20: 20 | W20: 32 | X20: 23 | Y20: 20 | Z20: 27 | AA20: 162 | AB20: 87 | AC20: 42 | AD20: 103 | AE20: 289 | AF20: 226 | AG20: 155 | AH20: 230 | AI20: 130 | AJ20: 98 | AK20: 79 | AL20: 108 | AM20: 88 | AN20: 70 | AO20: 53 | AP20: 71 | AQ20: 55 | AR20: 43 | AS20: 33 | AT20: 44 | AU20: 41 | AV20: 29 | AW20: 26 | AX20: 33 | AY20: 30 | AZ20: 24 | BA20: 21 | BB20: 25 | BC20: 25 | BD20: 21 | BE20: 17 | BF20: 22
A21: 634 | B21: 12324200 | C21: Clark Fork at Deer Lodge, Montana | D21: 1979–2009 | E21: 25.716 | F21: 34.196 | G21: 330 | H21: 218 | I21: 128 | J21: 251 | K21: 267 | L21: 206 | M21: 157 | N21: 217 | O21: 278 | P21: 214 | Q21: 167 | R21: 235 | S21: 310 | T21: 234 | U21: 192 | V21: 255 | W21: 336 | X21: 256 | Y21: 194 | Z21: 272 | AA21: 516 | AB21: 329 | AC21: 191 | AD21: 383 | AE21: 781 | AF21: 379 | AG21: 176 | AH21: 493 | AI21: 354 | AJ21: 135 | AK21: 59 | AL21: 209 | AM21: 145 | AN21: 82 | AO21: 41 | AP21: 102 | AQ21: 234 | AR21: 143 | AS21: 96 | AT21: 165 | AU21: 299 | AV21: 214 | AW21: 156 | AX21: 230 | AY21: 310 | AZ21: 229 | BA21: 179 | BB21: 243 | BC21: 271 | BD21: 207 | BE21: 161 | BF21: 217
A22: 636 | B22: 12324590 | C22: Little Blackfoot River near Garrison, Montana | D22: 1973–2009 | E22: 12.986 | F22: 18.925 | G22: 225 | H22: 143 | I22: 61 | J22: 152 | K22: 76 | L22: 58 | M22: 36 | N22: 62 | O22: 93 | P22: 65 | Q22: 37 | R22: 81 | S22: 145 | T22: 89 | U22: 63 | V22: 118 | W22: 336 | X22: 171 | Y22: 110 | Z22: 228 | AA22: 711 | AB22: 401 | AC22: 194 | AD22: 481 | AE22: 597 | AF22: 298 | AG22: 131 | AH22: 390 | AI22: 187 | AJ22: 105 | AK22: 58 | AL22: 131 | AM22: 85 | AN22: 49 | AO22: 26 | AP22: 60 | AQ22: 75 | AR22: 48 | AS22: 29 | AT22: 55 | AU22: 91 | AV22: 68 | AW22: 47 | AX22: 71 | AY22: 89 | AZ22: 65 | BA22: 53 | BB22: 71 | BC22: 72 | BD22: 56 | BE22: 36 | BF22: 63
A23: 642 | B23: 12330000 | C23: Boulder Creek at Maxville, Montana | D23: 1939–2009 | E23: 5.31 | F23: 6.991 | G23: 51 | H23: 29 | I23: 13 | J23: 45 | K23: 22 | L23: 18 | M23: 15 | N23: 19 | O23: 21 | P23: 19 | Q23: 15 | R23: 18 | S23: 21 | T23: 18 | U23: 15 | V23: 19 | W23: 35 | X23: 22 | Y23: 17 | Z23: 28 | AA23: 173 | AB23: 89 | AC23: 45 | AD23: 116 | AE23: 256 | AF23: 155 | AG23: 82 | AH23: 173 | AI23: 82 | AJ23: 45 | AK23: 22 | AL23: 58 | AM23: 29 | AN23: 17 | AO23: 11 | AP23: 21 | AQ23: 24 | AR23: 16 | AS23: 9.3 | AT23: 18 | AU23: 30 | AV23: 22 | AW23: 14 | AX23: 23 | AY23: 28 | AZ23: 22 | BA23: 18 | BB23: 24 | BC23: 25 | BD23: 21 | BE23: 16 | BF23: 21
A24: 646 | B24: 12331800 | C24: Clark Fork near Drummond, Montana | D24: 1993–2009 | E24: 122.36 | F24: 152.538 | G24: 885 | H24: 561 | I24: 379 | J24: 694 | K24: 604 | L24: 473 | M24: 365 | N24: 491 | O24: 683 | P24: 533 | Q24: 332 | R24: 569 | S24: 784 | T24: 586 | U24: 460 | V24: 669 | W24: 1040 | X24: 664 | Y24: 540 | Z24: 803 | AA24: 1600 | AB24: 1050 | AC24: 642 | AD24: 1200 | AE24: 2350 | AF24: 1270 | AG24: 697 | AH24: 1550 | AI24: 1010 | AJ24: 484 | AK24: 299 | AL24: 679 | AM24: 506 | AN24: 279 | AO24: 189 | AP24: 355 | AQ24: 579 | AR24: 370 | AS24: 249 | AT24: 424 | AU24: 708 | AV24: 561 | AW24: 464 | AX24: 580 | AY24: 709 | AZ24: 560 | BA24: 476 | BB24: 585 | BC24: 605 | BD24: 480 | BE24: 402 | BF24: 497
A25: 648 | B25: 12332000 | C25: Middle Fork Rock Creek near Philipsburg, Montana | D25: 1938–2009 | E25: 14.352 | F25: 34.484 | G25: 149 | H25: 49 | I25: 23 | J25: 118 | K25: 39 | L25: 31 | M25: 24 | N25: 32 | O25: 39 | P25: 32 | Q25: 24 | R25: 33 | S25: 43 | T25: 34 | U25: 27 | V25: 36 | W25: 100 | X25: 55 | Y25: 36 | Z25: 74 | AA25: 497 | AB25: 274 | AC25: 147 | AD25: 337 | AE25: 673 | AF25: 426 | AG25: 258 | AH25: 474 | AI25: 239 | AJ25: 144 | AK25: 87 | AL25: 174 | AM25: 89 | AN25: 65 | AO25: 47 | AP25: 69 | AQ25: 62 | AR25: 49 | AS25: 39 | AT25: 52 | AU25: 55 | AV25: 45 | AW25: 37 | AX25: 49 | AY25: 50 | AZ25: 40 | BA25: 33 | BB25: 43 | BC25: 43 | BD25: 34 | BE25: 27 | BF25: 36
A26: 649 | B26: 12334510 | C26: Rock Creek near Clinton, Montana | D26: 1973–2009 | E26: 73.402 | F26: 163.09 | G26: 657 | H26: 284 | I26: 128 | J26: 517 | K26: 222 | L26: 170 | M26: 124 | N26: 184 | O26: 215 | P26: 177 | Q26: 137 | R26: 189 | S26: 299 | T26: 214 | U26: 173 | V26: 244 | W26: 738 | X26: 388 | Y26: 247 | Z26: 508 | AA26: 2120 | AB26: 1210 | AC26: 763 | AD26: 1500 | AE26: 2500 | AF26: 1440 | AG26: 777 | AH26: 1680 | AI26: 897 | AJ26: 544 | AK26: 340 | AL26: 657 | AM26: 414 | AN26: 284 | AO26: 195 | AP26: 308 | AQ26: 330 | AR26: 261 | AS26: 179 | AT26: 261 | AU26: 291 | AV26: 242 | AW26: 192 | AX26: 248 | AY26: 265 | AZ26: 216 | BA26: 178 | BB26: 228 | BC26: 232 | BD26: 181 | BE26: 137 | BF26: 196
A27: 653 | B27: 12335500 | C27: Nevada Creek above reservoir, near Helmville, Montana | D27: 1939–2009 | E27: 3.094 | F27: 4.933 | G27: 46 | H27: 30 | I27: 13 | J27: 35 | K27: 19 | L27: 12 | M27: 6 | N27: 12 | O27: 25 | P27: 16 | Q27: 7.6 | R27: 16 | S27: 44 | T27: 21 | U27: 11 | V27: 34 | W27: 92 | X27: 47 | Y27: 20 | Z27: 66 | AA27: 171 | AB27: 84 | AC27: 37 | AD27: 110 | AE27: 136 | AF27: 65 | AG27: 27 | AH27: 88 | AI27: 36 | AJ27: 23 | AK27: 12 | AL27: 27 | AM27: 20 | AN27: 12 | AO27: 7.3 | AP27: 14 | AQ27: 14 | AR27: 9.1 | AS27: 6 | AT27: 10 | AU27: 18 | AV27: 13 | AW27: 8.6 | AX27: 14 | AY27: 18 | AZ27: 14 | BA27: 10 | BB27: 15 | BC27: 17 | BD27: 12 | BE27: 5.7 | BF27: 12
A28: 654 | B28: 12338300 | C28: North Fork Blackfoot River above Dry Gulch, near Ovando, Montana | D28: 1998–2009 | E28: 73.515 | F28: 131.538 | G28: 481 | H28: 175 | I28: 108 | J28: 369 | K28: 122 | L28: 102 | M28: 92 | N28: 109 | O28: 115 | P28: 93 | Q28: 84 | R28: 101 | S28: 129 | T28: 100 | U28: 82 | V28: 113 | W28: 538 | X28: 232 | Y28: 129 | Z28: 354 | AA28: 1710 | AB28: 1060 | AC28: 724 | AD28: 1300 | AE28: 1650 | AF28: 1060 | AG28: 720 | AH28: 1190 | AI28: 512 | AJ28: 349 | AK28: 268 | AL28: 418 | AM28: 253 | AN28: 213 | AO28: 183 | AP28: 219 | AQ28: 197 | AR28: 170 | AS28: 155 | AT28: 174 | AU28: 176 | AV28: 151 | AW28: 137 | AX28: 155 | AY28: 176 | AZ28: 138 | BA28: 110 | BB28: 159 | BC28: 147 | BD28: 117 | BE28: 102 | BF28: 127
A29: 655 | B29: 12338500 | C29: Blackfoot River near Ovando, Montana | D29: 1941–63 | E29: 154.409 | F29: 306.282 | G29: 1060 | H29: 454 | I29: 236 | J29: 855 | K29: 329 | L29: 269 | M29: 219 | N29: 274 | O29: 328 | P29: 267 | Q29: 223 | R29: 287 | S29: 361 | T29: 295 | U29: 239 | V29: 341 | W29: 1060 | X29: 545 | Y29: 316 | Z29: 721 | AA29: 3790 | AB29: 2110 | AC29: 973 | AD29: 2460 | AE29: 4150 | AF29: 2780 | AG29: 1560 | AH29: 3000 | AI29: 1540 | AJ29: 941 | AK29: 623 | AL29: 1140 | AM29: 651 | AN29: 488 | AO29: 390 | AP29: 526 | AQ29: 463 | AR29: 383 | AS29: 325 | AT29: 397 | AU29: 449 | AV29: 365 | AW29: 309 | AX29: 395 | AY29: 439 | AZ29: 355 | BA29: 297 | BB29: 377 | BC29: 388 | BD29: 301 | BE29: 252 | BF29: 324
A30: 659 | B30: 12338690 | C30: Monture Creek near Ovando, Montana | D30: 1974–83 | G30: 269 | H30: 74 | I30: 40 | J30: 192 | K30: 64 | L30: 36 | M30: 30 | N30: 47 | O30: 62 | P30: 37 | Q30: 30 | R30: 44 | S30: 70 | T30: 50 | U30: 30 | V30: 56 | W30: 331 | X30: 130 | Y30: 66 | Z30: 211 | AA30: 984 | AB30: 586 | AC30: 328 | AD30: 668 | AE30: 1090 | AF30: 670 | AG30: 401 | AH30: 746 | AI30: 335 | AJ30: 193 | AK30: 112 | AL30: 247 | AM30: 103 | AN30: 81 | AO30: 64 | AP30: 83 | AQ30: 67 | AR30: 56 | AS30: 43 | AT30: 55 | AU30: 51 | AV30: 45 | AW30: 39 | AX30: 46 | AY30: 46 | AZ30: 41 | BA30: 37 | BB30: 46 | BC30: 42 | BD30: 38 | BE30: 33 | BF30: 45
A31: 661 | B31: 12339450 | C31: Clearwater River near Clearwater, Montana | D31: 1975–92 | E31: 25.153 | F31: 31.473 | G31: 449 | H31: 109 | I31: 52 | J31: 281 | K31: 114 | L31: 79 | M31: 62 | N31: 92 | O31: 114 | P31: 76 | Q31: 59 | R31: 86 | S31: 194 | T31: 123 | U31: 68 | V31: 160 | W31: 1030 | X31: 529 | Y31: 200 | Z31: 648 | AA31: 1410 | AB31: 904 | AC31: 612 | AD31: 1010 | AE31: 1030 | AF31: 703 | AG31: 344 | AH31: 701 | AI31: 364 | AJ31: 182 | AK31: 91 | AL31: 233 | AM31: 111 | AN31: 70 | AO31: 40 | AP31: 76 | AQ31: 85 | AR31: 54 | AS31: 36 | AT31: 65 | AU31: 102 | AV31: 71 | AW31: 52 | AX31: 80 | AY31: 140 | AZ31: 80 | BA31: 62 | BB31: 100 | BC31: 123 | BD31: 80 | BE31: 67 | BF31: 105
A32: 663 | B32: 12340000 | C32: Blackfoot River near Bonner, Montana | D32: 1900–01, 1903–05, 1940–2009 | E32: 285.186 | F32: 472.318 | G32: 2150 | H32: 740 | I32: 393 | J32: 1560 | K32: 672 | L32: 529 | M32: 414 | N32: 555 | O32: 680 | P32: 530 | Q32: 414 | R32: 595 | S32: 966 | T32: 647 | U32: 498 | V32: 786 | W32: 3060 | X32: 1580 | Y32: 907 | Z32: 2060 | AA32: 7040 | AB32: 4180 | AC32: 2730 | AD32: 4850 | AE32: 6650 | AF32: 4340 | AG32: 2470 | AH32: 4710 | AI32: 2380 | AJ32: 1460 | AK32: 930 | AL32: 1730 | AM32: 1010 | AN32: 782 | AO32: 565 | AP32: 804 | AQ32: 791 | AR32: 655 | AS32: 494 | AT32: 654 | AU32: 734 | AV32: 616 | AW32: 494 | AX32: 643 | AY32: 759 | AZ32: 605 | BA32: 504 | BB32: 652 | BC32: 711 | BD32: 547 | BE32: 440 | BF32: 603
A33: 669 | B33: 12343400 | C33: East Fork Bitterroot River near Conner, Montana | D33: 1956–72, 2001–4 | E33: 41.182 | F33: 76.345 | G33: 336 | H33: 126 | I33: 64 | J33: 281 | K33: 101 | L33: 79 | M33: 65 | N33: 84 | O33: 102 | P33: 80 | Q33: 69 | R33: 89 | S33: 142 | T33: 95 | U33: 76 | V33: 112 | W33: 342 | X33: 206 | Y33: 133 | Z33: 257 | AA33: 1380 | AB33: 793 | AC33: 486 | AD33: 940 | AE33: 1570 | AF33: 1010 | AG33: 541 | AH33: 1080 | AI33: 398 | AJ33: 244 | AK33: 168 | AL33: 293 | AM33: 160 | AN33: 119 | AO33: 95 | AP33: 127 | AQ33: 136 | AR33: 107 | AS33: 87 | AT33: 113 | AU33: 134 | AV33: 106 | AW33: 86 | AX33: 113 | AY33: 121 | AZ33: 100 | BA33: 81 | BB33: 102 | BC33: 108 | BD33: 85 | BE33: 63 | BF33: 89
A34: 675 | B34: 12346500 | C34: Skalkaho Creek near Hamilton, Montana | D34: 1949–53, 1958–79, 2001–3 | E34: 16.517 | F34: 31.676 | G34: 114 | H34: 42 | I34: 24 | J34: 91 | K34: 31 | L34: 25 | M34: 21 | N34: 26 | O34: 28 | P34: 25 | Q34: 21 | R34: 25 | S34: 29 | T34: 25 | U34: 21 | V34: 26 | W34: 73 | X34: 39 | Y34: 27 | Z34: 52 | AA34: 367 | AB34: 187 | AC34: 96 | AD34: 232 | AE34: 490 | AF34: 386 | AG34: 214 | AH34: 373 | AI34: 190 | AJ34: 121 | AK34: 84 | AL34: 147 | AM34: 83 | AN34: 63 | AO34: 50 | AP34: 67 | AQ34: 56 | AR34: 45 | AS34: 37 | AT34: 47 | AU34: 47 | AV34: 39 | AW34: 32 | AX34: 41 | AY34: 41 | AZ34: 34 | BA34: 29 | BB34: 35 | BC34: 34 | BD34: 28 | BE34: 24 | BF34: 29
A35: 676 | B35: 12347500 | C35: Blodgett Creek near Corvallis, Montana | D35: 1947–69 | E35: 2.368 | F35: 3.708 | G35: 109 | H35: 24 | I35: 10 | J35: 70 | K35: 22 | L35: 11 | M35: 7.2 | N35: 15 | O35: 20 | P35: 13 | Q35: 7.7 | R35: 15 | S35: 21 | T35: 15 | U35: 9.6 | V35: 18 | W35: 112 | X35: 50 | Y35: 27 | Z35: 75 | AA35: 360 | AB35: 241 | AC35: 127 | AD35: 254 | AE35: 362 | AF35: 258 | AG35: 168 | AH35: 269 | AI35: 143 | AJ35: 70 | AK35: 35 | AL35: 91 | AM35: 29 | AN35: 20 | AO35: 10 | AP35: 21 | AQ35: 23 | AR35: 11 | AS35: 5.6 | AT35: 17 | AU35: 41 | AV35: 17 | AW35: 6.5 | AX35: 27 | AY35: 40 | AZ35: 18 | BA35: 9.4 | BB35: 26 | BC35: 32 | BD35: 17 | BE35: 8.1 | BF35: 22
A36: 678 | B36: 12350000 | C36: Bear Creek near Victor, Montana | D36: 1938–54, 1958–59 | E36: 1.435 | F36: 2.337 | G36: 101 | H36: 25 | I36: 10 | J36: 66 | K36: 17 | L36: 12 | M36: 6.6 | N36: 13 | O36: 16 | P36: 11 | Q36: 6.8 | R36: 12 | S36: 17 | T36: 12 | U36: 9.2 | V36: 16 | W36: 123 | X36: 60 | Y36: 25 | Z36: 81 | AA36: 363 | AB36: 228 | AC36: 120 | AD36: 252 | AE36: 344 | AF36: 217 | AG36: 134 | AH36: 243 | AI36: 130 | AJ36: 56 | AK36: 24 | AL36: 84 | AM36: 18 | AN36: 10 | AO36: 5.9 | AP36: 13 | AQ36: 14 | AR36: 6.4 | AS36: 2.9 | AT36: 11 | AU36: 34 | AV36: 14 | AW36: 6.5 | AX36: 22 | AY36: 33 | AZ36: 15 | BA36: 7.8 | BB36: 22 | BC36: 31 | BD36: 13 | BE36: 6.1 | BF36: 19
A37: 681 | B37: 12350500 | C37: Kootenai Creek near Stevensville, Montana | D37: 1949–53, 1958–63 | G37: 124 | H37: 28 | I37: 12 | J37: 79 | K37: 17 | L37: 12 | M37: 8.6 | N37: 13 | O37: 26 | P37: 13 | Q37: 8.8 | R37: 19 | S37: 22 | T37: 18 | U37: 12 | V37: 19 | W37: 126 | X37: 61 | Y37: 31 | Z37: 84 | AA37: 360 | AB37: 209 | AC37: 120 | AD37: 246 | AE37: 413 | AF37: 287 | AG37: 186 | AH37: 309 | AI37: 184 | AJ37: 99 | AK37: 51 | AL37: 125 | AM37: 34 | AN37: 19 | AO37: 11 | AP37: 24 | AQ37: 24 | AR37: 13 | AS37: 7.7 | AT37: 18 | AU37: 61 | AV37: 27 | AW37: 11 | AX37: 40 | AY37: 51 | AZ37: 24 | BA37: 12 | BB37: 33 | BC37: 32 | BD37: 15 | BE37: 9.9 | BF37: 21
A38: 682 | B38: 12351000 | C38: Burnt Fork Bitterroot River near Stevensville, Montana | D38: 1920, 1939–62 | E38: 7.183 | F38: 15.085 | G38: 60 | H38: 22 | I38: 9.8 | J38: 48 | K38: 19 | L38: 17 | M38: 14 | N38: 17 | O38: 20 | P38: 16 | Q38: 13 | R38: 16 | S38: 19 | T38: 16 | U38: 13 | V38: 17 | W38: 63 | X38: 31 | Y38: 18 | Z38: 42 | AA38: 214 | AB38: 108 | AC38: 62 | AD38: 141 | AE38: 251 | AF38: 166 | AG38: 95 | AH38: 180 | AI38: 87 | AJ38: 50 | AK38: 35 | AL38: 66 | AM38: 37 | AN38: 29 | AO38: 21 | AP38: 30 | AQ38: 25 | AR38: 22 | AS38: 18 | AT38: 22 | AU38: 25 | AV38: 20 | AW38: 17 | AX38: 22 | AY38: 26 | AZ38: 20 | BA38: 17 | BB38: 22 | BC38: 24 | BD38: 19 | BE38: 16 | BF38: 20
A39: 683 | B39: 12351200 | C39: Bitterroot River near Florence, Montana | D39: 1958–65, 2003–9 | E39: 397.228 | F39: 443.71 | G39: 2750 | H39: 944 | I39: 523 | J39: 2130 | K39: 1050 | L39: 706 | M39: 584 | N39: 807 | O39: 1070 | P39: 774 | Q39: 654 | R39: 883 | S39: 1180 | T39: 838 | U39: 701 | V39: 1000 | W39: 2800 | X39: 1890 | Y39: 1160 | Z39: 2220 | AA39: 9060 | AB39: 5160 | AC39: 3160 | AD39: 6270 | AE39: 10900 | AF39: 7600 | AG39: 4260 | AH39: 7780 | AI39: 2870 | AJ39: 1400 | AK39: 690 | AL39: 1960 | AM39: 887 | AN39: 620 | AO39: 516 | AP39: 715 | AQ39: 1120 | AR39: 735 | AS39: 554 | AT39: 918 | AU39: 1190 | AV39: 868 | AW39: 636 | AX39: 1040 | AY39: 1380 | AZ39: 942 | BA39: 628 | BB39: 1120 | BC39: 1180 | BD39: 811 | BE39: 619 | BF39: 937
A40: 685 | B40: 12352000 | C40: Lolo Creek above Sleeman Creek, near Lolo, Montana | D40: 1951–60 | K40: 119 | L40: 60 | M40: 46 | N40: 77 | O40: 108 | P40: 70 | Q40: 53 | R40: 91 | S40: 128 | T40: 88 | U40: 57 | V40: 101 | W40: 535 | X40: 302 | Y40: 134 | Z40: 372 | AA40: 1070 | AB40: 816 | AC40: 516 | AD40: 838 | AE40: 864 | AF40: 638 | AG40: 395 | AH40: 652 | AI40: 321 | AJ40: 175 | AK40: 87 | AL40: 211 | AM40: 72 | AN40: 48 | AO40: 24 | AP40: 50 | AQ40: 59 | AR40: 39 | AS40: 18 | AT40: 43 | AY40: 134 | AZ40: 74 | BA40: 40 | BB40: 89 | BC40: 120 | BD40: 65 | BE40: 45 | BF40: 87
A41: 690 | B41: 12353280 | C41: Ninemile Creek near Huson, Montana | D41: 1974–83 | G41: 195 | H41: 56 | I41: 29 | J41: 132 | K41: 60 | L41: 42 | M41: 24 | N41: 54 | O41: 59 | P41: 34 | Q41: 25 | R41: 48 | S41: 146 | T41: 84 | U41: 36 | V41: 109 | W41: 435 | X41: 224 | Y41: 95 | Z41: 271 | AA41: 677 | AB41: 458 | AC41: 257 | AD41: 479 | AE41: 504 | AF41: 296 | AG41: 170 | AH41: 339 | AI41: 144 | AJ41: 95 | AK41: 61 | AL41: 104 | AM41: 53 | AN41: 39 | AO41: 28 | AP41: 42 | AQ41: 40 | AR41: 34 | AS41: 25 | AT41: 33 | AU41: 35 | AV41: 31 | AW41: 26 | AX41: 31 | AY41: 36 | AZ41: 31 | BA41: 27 | BB41: 32 | BC41: 53 | BD41: 31 | BE41: 25 | BF41: 43
A42: 695 | B42: 12354000 | C42: St. Regis River near St. Regis, Montana | D42: 1911–14, 1959–75, 2002–9 | E42: 64.314 | F42: 80.762 | G42: 850 | H42: 282 | I42: 137 | J42: 541 | K42: 343 | L42: 231 | M42: 119 | N42: 259 | O42: 368 | P42: 204 | Q42: 135 | R42: 277 | S42: 574 | T42: 312 | U42: 183 | V42: 421 | W42: 1620 | X42: 1050 | Y42: 601 | Z42: 1190 | AA42: 2890 | AB42: 1810 | AC42: 1180 | AD42: 2090 | AE42: 2160 | AF42: 1200 | AG42: 585 | AH42: 1420 | AI42: 497 | AJ42: 291 | AK42: 191 | AL42: 378 | AM42: 184 | AN42: 146 | AO42: 108 | AP42: 150 | AQ42: 141 | AR42: 112 | AS42: 91 | AT42: 117 | AU42: 154 | AV42: 113 | AW42: 93 | AX42: 132 | AY42: 252 | AZ42: 142 | BA42: 89 | BB42: 199 | BC42: 287 | BD42: 145 | BE42: 81 | BF42: 205
A43: 698 | B43: 12355000 | C43: Flathead River at Flathead, British Columbia | D43: 1929–39, 1941–95, 2000–9 | E43: 85.245 | F43: 167.53 | G43: 1200 | H43: 414 | I43: 199 | J43: 889 | K43: 248 | L43: 158 | M43: 120 | N43: 192 | O43: 216 | P43: 154 | Q43: 114 | R43: 174 | S43: 236 | T43: 178 | U43: 120 | V43: 208 | W43: 1390 | X43: 552 | Y43: 228 | Z43: 896 | AA43: 4990 | AB43: 3100 | AC43: 1830 | AD43: 3460 | AE43: 4470 | AF43: 2660 | AG43: 1500 | AH43: 3020 | AI43: 1330 | AJ43: 769 | AK43: 480 | AL43: 949 | AM43: 478 | AN43: 343 | AO43: 251 | AP43: 376 | AQ43: 347 | AR43: 254 | AS43: 195 | AT43: 289 | AU43: 405 | AV43: 241 | AW43: 158 | AX43: 329 | AY43: 476 | AZ43: 259 | BA43: 144 | BB43: 348 | BC43: 294 | BD43: 197 | BE43: 143 | BF43: 236
A44: 718 | B44: 12363920 | C44: Stillwater River at Olney, Montana | D44: 1973–82 | G44: 228 | H44: 75 | I44: 44 | J44: 148 | K44: 62 | L44: 40 | M44: 32 | N44: 51 | O44: 64 | P44: 42 | Q44: 34 | R44: 48 | S44: 76 | T44: 49 | U44: 40 | V44: 59 | W44: 258 | X44: 139 | Y44: 78 | Z44: 180 | AA44: 562 | AB44: 396 | AC44: 278 | AD44: 421 | AE44: 600 | AF44: 446 | AG44: 259 | AH44: 473 | AI44: 282 | AJ44: 193 | AK44: 109 | AL44: 210 | AM44: 141 | AN44: 98 | AO44: 63 | AP44: 99 | AQ44: 86 | AR44: 71 | AS44: 45 | AT44: 70 | AU44: 64 | AV44: 58 | AW44: 43 | AX44: 55 | AY44: 68 | AZ44: 54 | BA44: 45 | BB44: 57 | BC44: 64 | BD44: 48 | BE44: 42 | BF44: 53
A45: 720 | B45: 12365000 | C45: Stillwater River near Whitefish, Montana | D45: 1931–50, 1973–2006 | E45: 47.402 | F45: 67.276 | G45: 539 | H45: 159 | I45: 73 | J45: 355 | K45: 143 | L45: 97 | M45: 72 | N45: 123 | O45: 144 | P45: 102 | Q45: 74 | R45: 124 | S45: 215 | T45: 128 | U45: 89 | V45: 163 | W45: 1010 | X45: 492 | Y45: 230 | Z45: 660 | AA45: 1590 | AB45: 1050 | AC45: 590 | AD45: 1150 | AE45: 1220 | AF45: 784 | AG45: 430 | AH45: 857 | AI45: 539 | AJ45: 318 | AK45: 179 | AL45: 372 | AM45: 241 | AN45: 165 | AO45: 92 | AP45: 174 | AQ45: 164 | AR45: 124 | AS45: 76 | AT45: 125 | AU45: 138 | AV45: 109 | AW45: 74 | AX45: 113 | AY45: 153 | AZ45: 114 | BA45: 82 | BB45: 127 | BC45: 142 | BD45: 97 | BE45: 74 | BF45: 121
A46: 722 | B46: 12366000 | C46: Whitefish River near Kalispell, Montana | D46: 1929–50, 1973–2006 | E46: 23.332 | F46: 28.413 | G46: 294 | H46: 104 | I46: 47 | J46: 190 | K46: 94 | L46: 58 | M46: 43 | N46: 72 | O46: 90 | P46: 59 | Q46: 42 | R46: 70 | S46: 127 | T46: 84 | U46: 58 | V46: 97 | W46: 329 | X46: 188 | Y46: 112 | Z46: 227 | AA46: 705 | AB46: 490 | AC46: 357 | AD46: 527 | AE46: 805 | AF46: 598 | AG46: 375 | AH46: 606 | AI46: 392 | AJ46: 228 | AK46: 132 | AL46: 272 | AM46: 151 | AN46: 103 | AO46: 64 | AP46: 109 | AQ46: 111 | AR46: 78 | AS46: 50 | AT46: 81 | AU46: 92 | AV46: 66 | AW46: 43 | AX46: 70 | AY46: 88 | AZ46: 69 | BA46: 47 | BB46: 72 | BC46: 96 | BD46: 59 | BE46: 45 | BF46: 72
A47: 724 | B47: 12367500 | C47: Ashley Creek near Kalispell, Montana | D47: 1931–32, 1934–50, 1973–74 | E47: 0 | F47: 0 | G47: 42 | H47: 17 | I47: 4.9 | J47: 34 | K47: 12 | L47: 4.1 | M47: 0.71 | N47: 8 | O47: 16 | P47: 2.9 | Q47: 0.23 | R47: 7.4 | S47: 26 | T47: 14 | U47: 3.1 | V47: 18 | W47: 121 | X47: 34 | Y47: 17 | Z47: 67 | AA47: 178 | AB47: 54 | AC47: 27 | AD47: 109 | AE47: 142 | AF47: 44 | AG47: 26 | AH47: 78 | AI47: 53 | AJ47: 26 | AK47: 14 | AL47: 36 | AM47: 22 | AN47: 9.5 | AO47: 1.7 | AP47: 14 | AQ47: 14 | AR47: 4.4 | AS47: 0.39 | AT47: 7.2 | AU47: 12 | AV47: 4 | AW47: 0.46 | AX47: 6.3 | AY47: 13 | AZ47: 5 | BA47: 0.98 | BB47: 7.3 | BC47: 11 | BD47: 3.7 | BE47: 0.45 | BF47: 6
A48: 725 | B48: 12369200 | C48: Swan River near Condon, Montana | D48: 1973–92 | E48: 21.591 | F48: 29.696 | G48: 271 | H48: 77 | I48: 39 | J48: 159 | K48: 64 | L48: 45 | M48: 32 | N48: 52 | O48: 59 | P48: 44 | Q48: 33 | R48: 49 | S48: 91 | T48: 58 | U48: 37 | V48: 72 | W48: 309 | X48: 176 | Y48: 76 | Z48: 209 | AA48: 552 | AB48: 384 | AC48: 248 | AD48: 414 | AE48: 644 | AF48: 440 | AG48: 318 | AH48: 486 | AI48: 393 | AJ48: 236 | AK48: 119 | AL48: 269 | AM48: 145 | AN48: 87 | AO48: 57 | AP48: 100 | AQ48: 88 | AR48: 61 | AS48: 41 | AT48: 69 | AU48: 77 | AV48: 52 | AW48: 34 | AX48: 58 | AY48: 89 | AZ48: 56 | BA48: 40 | BB48: 69 | BC48: 75 | BD48: 48 | BE48: 38 | BF48: 62
A49: 728 | B49: 12370000 | C49: Swan River near Bigfork, Montana | D49: 1922–2009 | E49: 272.47 | F49: 347.547 | G49: 1770 | H49: 682 | I49: 370 | J49: 1130 | K49: 593 | L49: 442 | M49: 357 | N49: 496 | O49: 594 | P49: 436 | Q49: 339 | R49: 496 | S49: 826 | T49: 538 | U49: 391 | V49: 637 | W49: 2080 | X49: 1300 | Y49: 792 | Z49: 1500 | AA49: 3670 | AB49: 2600 | AC49: 1780 | AD49: 2800 | AE49: 4210 | AF49: 3120 | AG49: 2200 | AH49: 3270 | AI49: 2260 | AJ49: 1400 | AK49: 891 | AL49: 1610 | AM49: 891 | AN49: 644 | AO49: 470 | AP49: 687 | AQ49: 643 | AR49: 495 | AS49: 380 | AT49: 531 | AU49: 644 | AV49: 500 | AW49: 375 | AX49: 545 | AY49: 713 | AZ49: 536 | BA49: 403 | BB49: 595 | BC49: 670 | BD49: 492 | BE49: 382 | BF49: 562
A50: 731 | B50: 12371100 | C50: Hell Roaring Creek near Polson, Montana | D50: 1917–32 | E50: 2.344 | F50: 3.232 | G50: 7 | H50: 5 | I50: 3.7 | J50: 6.7 | K50: 5.4 | L50: 4.5 | M50: 3.6 | N50: 4.7 | O50: 5.4 | P50: 4.4 | Q50: 3.7 | R50: 4.5 | S50: 5.2 | T50: 4 | U50: 3.3 | V50: 4.3 | W50: 9 | X50: 5.2 | Y50: 3.7 | Z50: 7.2 | AA50: 21 | AB50: 8.7 | AC50: 5.1 | AD50: 13 | AE50: 24 | AF50: 10 | AG50: 5.1 | AH50: 14 | AI50: 9 | AJ50: 5.6 | AK50: 4 | AL50: 7.3 | AM50: 7.2 | AN50: 5.6 | AO50: 4.3 | AP50: 5.8 | AQ50: 6.5 | AR50: 5.2 | AS50: 4.1 | AT50: 5.3 | AU50: 6.5 | AV50: 4.7 | AW50: 3.8 | AX50: 5 | AY50: 6.1 | AZ50: 5.1 | BA50: 4.2 | BB50: 5.2 | BC50: 6 | BD50: 5 | BE50: 4.2 | BF50: 5.3
A51: 733 | B51: 12374250 | C51: Mill Creek above Bassoo Creek, near Niarada, Montana | D51: 1983–2009 | E51: 1.383 | F51: 1.72 | G51: 11 | H51: 5 | I51: 2.5 | J51: 7.9 | K51: 3.9 | L51: 2.5 | M51: 1.5 | N51: 3.4 | O51: 4.1 | P51: 2.7 | Q51: 1.7 | R51: 3.6 | S51: 8.9 | T51: 3.9 | U51: 2.4 | V51: 6.9 | W51: 29 | X51: 12 | Y51: 6.5 | Z51: 20 | AA51: 34 | AB51: 19 | AC51: 12 | AD51: 26 | AE51: 21 | AF51: 12 | AG51: 6.5 | AH51: 15 | AI51: 7.1 | AJ51: 4.5 | AK51: 3 | AL51: 5.4 | AM51: 3.8 | AN51: 2.8 | AO51: 2.1 | AP51: 3 | AQ51: 2.9 | AR51: 2.4 | AS51: 1.9 | AT51: 2.4 | AU51: 2.9 | AV51: 2.4 | AW51: 2 | AX51: 2.5 | AY51: 3.8 | AZ51: 2.7 | BA51: 1.9 | BB51: 3.4 | BC51: 3.7 | BD51: 2.6 | BE51: 1.8 | BF51: 3.4
A52: 738 | B52: 12377150 | C52: Mission Creek above reservoir, near St. Ignatius, Montana | D52: 1983–2009 | E52: 6.62 | F52: 15.506 | G52: 76 | H52: 22 | I52: 11 | J52: 48 | K52: 12 | L52: 10 | M52: 8.7 | N52: 11 | O52: 11 | P52: 8.9 | Q52: 7.7 | R52: 9.2 | S52: 13 | T52: 9.9 | U52: 8.3 | V52: 10 | W52: 34 | X52: 18 | Y52: 10 | Z52: 24 | AA52: 153 | AB52: 83 | AC52: 36 | AD52: 101 | AE52: 229 | AF52: 158 | AG52: 115 | AH52: 174 | AI52: 155 | AJ52: 102 | AK52: 64 | AL52: 113 | AM52: 60 | AN52: 43 | AO52: 30 | AP52: 48 | AQ52: 37 | AR52: 27 | AS52: 20 | AT52: 30 | AU52: 32 | AV52: 24 | AW52: 17 | AX52: 25 | AY52: 25 | AZ52: 18 | BA52: 14 | BB52: 20 | BC52: 16 | BD52: 13 | BE52: 10 | BF52: 13
A53: 739 | B53: 12378000 | C53: Mission Creek near St. Ignatius, Montana | D53: 1907–17 | F53: 28.875 | O53: 17 | P53: 13 | Q53: 11 | R53: 14 | S53: 16 | T53: 14 | U53: 11 | V53: 14 | W53: 37 | X53: 21 | Y53: 14 | Z53: 29 | AA53: 133 | AB53: 77 | AC53: 36 | AD53: 88 | AE53: 311 | AF53: 228 | AG53: 152 | AH53: 273 | AI53: 284 | AJ53: 202 | AK53: 118 | AL53: 204 | AM53: 110 | AN53: 83 | AO53: 57 | AP53: 88 | AQ53: 73 | AR53: 53 | AS53: 39 | AT53: 55 | AU53: 51 | AV53: 45 | AW53: 34 | AX53: 44 | AY53: 44 | AZ53: 32 | BA53: 26 | BB53: 34 | BC53: 31 | BD53: 25 | BE53: 18 | BF53: 24
A54: 740 | B54: 12381400 | C54: South Fork Jocko River near Arlee, Montana | D54: 1983–2009 | E54: 3.756 | F54: 16.067 | G54: 83 | H54: 30 | I54: 13 | J54: 58 | K54: 17 | L54: 11 | M54: 7.6 | N54: 13 | O54: 15 | P54: 11 | Q54: 7.4 | R54: 11 | S54: 21 | T54: 14 | U54: 9 | V54: 17 | W54: 90 | X54: 40 | Y54: 18 | Z54: 56 | AA54: 281 | AB54: 171 | AC54: 105 | AD54: 201 | AE54: 284 | AF54: 180 | AG54: 113 | AH54: 201 | AI54: 99 | AJ54: 71 | AK54: 49 | AL54: 78 | AM54: 47 | AN54: 38 | AO54: 28 | AP54: 38 | AQ54: 32 | AR54: 26 | AS54: 20 | AT54: 27 | AU54: 25 | AV54: 20 | AW54: 17 | AX54: 21 | AY54: 22 | AZ54: 17 | BA54: 13 | BB54: 19 | BC54: 19 | BD54: 13 | BE54: 8.9 | BF54: 15
A55: 741 | B55: 12383500 | C55: Big Knife Creek near Arlee , Montana | D55: 1911, 1913, 1915, 1983–2009 | E55: 2.924 | F55: 6.66 | G55: 14 | H55: 7.6 | I55: 4.9 | J55: 10 | K55: 5.9 | L55: 5 | M55: 4.2 | N55: 5 | O55: 5.1 | P55: 4.4 | Q55: 3.9 | R55: 4.5 | S55: 5.2 | T55: 4.3 | U55: 3.8 | V55: 4.5 | W55: 8 | X55: 5.3 | Y55: 4.2 | Z55: 6.1 | AA55: 23 | AB55: 13 | AC55: 8 | AD55: 16 | AE55: 37 | AF55: 27 | AG55: 18 | AH55: 28 | AI55: 25 | AJ55: 18 | AK55: 14 | AL55: 20 | AM55: 15 | AN55: 12 | AO55: 11 | AP55: 13 | AQ55: 12 | AR55: 10 | AS55: 8.4 | AT55: 10 | AU55: 9.4 | AV55: 8.2 | AW55: 6.9 | AX55: 8.1 | AY55: 7.8 | AZ55: 6.9 | BA55: 5.7 | BB55: 6.8 | BC55: 6.8 | BD55: 5.7 | BE55: 4.9 | BF55: 5.8
A56: 742 | B56: 12387450 | C56: Valley Creek near Arlee, Montana | D56: 1983–2008 | F56: 6.643 | W56: 19 | X56: 11 | Y56: 7.5 | Z56: 14 | AA56: 43 | AB56: 27 | AC56: 20 | AD56: 32 | AE56: 38 | AF56: 24 | AG56: 15 | AH56: 28 | AI56: 17 | AJ56: 13 | AK56: 9.6 | AL56: 14 | AM56: 12 | AN56: 9.9 | AO56: 7.6 | AP56: 10 | AQ56: 10 | AR56: 9 | AS56: 7 | AT56: 8.9 | AU56: 9.5 | AV56: 8.3 | AW56: 6.7 | AX56: 8.3
A57: 743 | B57: 12388200 | C57: Jocko River at Dixon, Montana | D57: 1990–2009 | E57: 87.664 | F57: 138.895 | G57: 251 | H57: 182 | I57: 112 | J57: 232 | K57: 158 | L57: 129 | M57: 115 | N57: 138 | O57: 153 | P57: 124 | Q57: 111 | R57: 134 | S57: 171 | T57: 136 | U57: 119 | V57: 150 | W57: 298 | X57: 184 | Y57: 142 | Z57: 225 | AA57: 632 | AB57: 339 | AC57: 216 | AD57: 438 | AE57: 868 | AF57: 489 | AG57: 264 | AH57: 581 | AI57: 324 | AJ57: 205 | AK57: 159 | AL57: 259 | AM57: 199 | AN57: 172 | AO57: 143 | AP57: 174 | AQ57: 205 | AR57: 185 | AS57: 153 | AT57: 183 | AU57: 208 | AV57: 183 | AW57: 155 | AX57: 184 | AY57: 204 | AZ57: 174 | BA57: 147 | BB57: 181 | BC57: 181 | BD57: 149 | BE57: 129 | BF57: 158
A58: 744 | B58: 12388400 | C58: Revais Creek below West Fork, near Dixon, Montana | D58: 1983–2009 | E58: 3.15 | F58: 4.292 | G58: 23 | H58: 10 | I58: 5.4 | J58: 18 | K58: 6.8 | L58: 4.8 | M58: 3.8 | N58: 5.5 | O58: 6.3 | P58: 4.7 | Q58: 3.8 | R58: 5.6 | S58: 9.8 | T58: 5.8 | U58: 4.3 | V58: 8.1 | W58: 34 | X58: 16 | Y58: 7.8 | Z58: 22 | AA58: 95 | AB58: 54 | AC58: 34 | AD58: 69 | AE58: 81 | AF58: 47 | AG58: 26 | AH58: 55 | AI58: 20 | AJ58: 14 | AK58: 10 | AL58: 16 | AM58: 9.4 | AN58: 7.7 | AO58: 6.3 | AP58: 7.9 | AQ58: 7.5 | AR58: 6 | AS58: 4.8 | AT58: 6.2 | AU58: 7.5 | AV58: 5.7 | AW58: 4.6 | AX58: 6.2 | AY58: 8.1 | AZ58: 5.9 | BA58: 4.7 | BB58: 6.7 | BC58: 7.2 | BD58: 5.3 | BE58: 3.9 | BF58: 6.5
A59: 748 | B59: 12389500 | C59: Thompson River near Thompson Falls, Montana | D59: 1911, 1956–2009 | E59: 90.599 | F59: 135.082 | G59: 604 | H59: 231 | I59: 122 | J59: 433 | K59: 268 | L59: 164 | M59: 102 | N59: 202 | O59: 304 | P59: 180 | Q59: 108 | R59: 242 | S59: 428 | T59: 269 | U59: 180 | V59: 345 | W59: 1120 | X59: 622 | Y59: 358 | Z59: 774 | AA59: 1790 | AB59: 1150 | AC59: 706 | AD59: 1310 | AE59: 1420 | AF59: 902 | AG59: 474 | AH59: 996 | AI59: 523 | AJ59: 360 | AK59: 240 | AL59: 396 | AM59: 289 | AN59: 231 | AO59: 166 | AP59: 233 | AQ59: 231 | AR59: 191 | AS59: 143 | AT59: 190 | AU59: 207 | AV59: 175 | AW59: 138 | AX59: 178 | AY59: 232 | AZ59: 174 | BA59: 136 | BB59: 195 | BC59: 244 | BD59: 173 | BE59: 130 | BF59: 201
A60: 749 | B60: 12390700 | C60: Prospect Creek at Thompson Falls, Montana | D60: 1956–2009 | E60: 30.553 | F60: 39.33 | G60: 369 | H60: 154 | I60: 75 | J60: 234 | K60: 186 | L60: 124 | M60: 63 | N60: 117 | O60: 199 | P60: 122 | Q60: 62 | R60: 154 | S60: 300 | T60: 165 | U60: 90 | V60: 220 | W60: 690 | X60: 405 | Y60: 230 | Z60: 485 | AA60: 1120 | AB60: 697 | AC60: 448 | AD60: 794 | AE60: 789 | AF60: 462 | AG60: 225 | AH60: 526 | AI60: 200 | AJ60: 133 | AK60: 97 | AL60: 158 | AM60: 99 | AN60: 82 | AO60: 64 | AP60: 82 | AQ60: 73 | AR60: 63 | AS60: 48 | AT60: 61 | AU60: 62 | AV60: 51 | AW60: 40 | AX60: 53 | AY60: 134 | AZ60: 93 | BA60: 52 | BB60: 79 | BC60: 144 | BD60: 87 | BE60: 49 | BF60: 110
A61: 755 | B61: 12391550 | C61: Bull River near Noxon, Montana | D61: 1973–82 | G61: 610 | H61: 210 | I61: 101 | J61: 389 | K61: 300 | L61: 171 | M61: 92 | N61: 261 | O61: 275 | P61: 171 | Q61: 104 | R61: 246 | S61: 380 | T61: 256 | U61: 187 | V61: 300 | W61: 736 | X61: 435 | Y61: 272 | Z61: 531 | AA61: 1470 | AB61: 1010 | AC61: 697 | AD61: 1080 | AE61: 1430 | AF61: 893 | AG61: 535 | AH61: 1030 | AI61: 598 | AJ61: 322 | AK61: 183 | AL61: 396 | AM61: 205 | AN61: 148 | AO61: 106 | AP61: 155 | AQ61: 140 | AR61: 117 | AS61: 93 | AT61: 118 | AU61: 120 | AV61: 102 | AW61: 88 | AX61: 103 | AY61: 198 | AZ61: 120 | BA61: 92 | BB61: 157 | BC61: 369 | BD61: 189 | BE61: 93 | BF61: 282
A62: Northwest hydrologic region
A63: 2 | B63: 5011000 | C63: Belly River near Mountain View, Alberta | D63: 1912–78 | E63: 22.178 | F63: 67.142 | G63: 515 | H63: 283 | I63: 117 | J63: 314 | K63: 85 | L63: 61 | M63: 45 | N63: 68 | O63: 82 | P63: 62 | Q63: 36 | R63: 68 | S63: 82 | T63: 59 | U63: 41 | V63: 69 | W63: 299 | X63: 143 | Y63: 79 | Z63: 207 | AA63: 1150 | AB63: 710 | AC63: 405 | AD63: 786 | AE63: 1490 | AF63: 1010 | AG63: 669 | AH63: 1120 | AI63: 822 | AJ63: 535 | AK63: 346 | AL63: 603 | AM63: 340 | AN63: 246 | AO63: 159 | AP63: 260 | AQ63: 232 | AR63: 149 | AS63: 98 | AT63: 177 | AU63: 245 | AV63: 142 | AW63: 85 | AX63: 178 | AY63: 173 | AZ63: 117 | BA63: 73 | BB63: 128 | BC63: 108 | BD63: 80 | BE63: 53 | BF63: 86
A64: 3 | B64: 5011500 | C64: Waterton River near international boundary | D64: 1947–63 | F64: 36.795 | G64: 417 | H64: 91 | I64: 41 | J64: 274 | K64: 44 | L64: 31 | M64: 23 | N64: 36 | O64: 40 | P64: 25 | Q64: 18 | R64: 32 | S64: 35 | T64: 24 | U64: 17 | V64: 27 | W64: 192 | X64: 58 | Y64: 27 | Z64: 129 | AA64: 1250 | AB64: 786 | AC64: 337 | AD64: 820 | AE64: 1500 | AF64: 1050 | AG64: 720 | AH64: 1140 | AI64: 796 | AJ64: 402 | AK64: 219 | AL64: 520 | AM64: 173 | AN64: 116 | AO64: 81 | AP64: 130 | AQ64: 121 | AR64: 73 | AS64: 52 | AT64: 99 | AU64: 239 | AV64: 110 | AW64: 43 | AX64: 161 | AY64: 130 | AZ64: 77 | BA64: 43 | BB64: 94 | BC64: 82 | BD64: 46 | BE64: 31 | BF64: 59
A65: 4 | B65: 5012500 | C65: Boundary Creek at international boundary | D65: 1948–63 | F65: 12.949 | G65: 123 | H65: 30 | I65: 14 | J65: 78 | K65: 21 | L65: 13 | M65: 8.8 | N65: 15 | O65: 16 | P65: 11 | Q65: 7.3 | R65: 13 | S65: 14 | T65: 12 | U65: 6.8 | V65: 11 | W65: 60 | X65: 24 | Y65: 11 | Z65: 41 | AA65: 325 | AB65: 201 | AC65: 100 | AD65: 212 | AE65: 368 | AF65: 279 | AG65: 188 | AH65: 284 | AI65: 192 | AJ65: 108 | AK65: 73 | AL65: 137 | AM65: 61 | AN65: 43 | AO65: 31 | AP65: 47 | AQ65: 42 | AR65: 26 | AS65: 19 | AT65: 35 | AU65: 73 | AV65: 34 | AW65: 16 | AX65: 50 | AY65: 44 | AZ65: 28 | BA65: 17 | BB65: 32 | BC65: 26 | BD65: 18 | BE65: 12 | BF65: 21
A66: 6 | B66: 5013700 | C66: St. Mary River above Swiftcurrent Creek, near Babb, Montana | D66: 1902–15 | F66: 179.808 | W66: 326 | X66: 161 | Y66: 97 | Z66: 237 | AA66: 1440 | AB66: 900 | AC66: 512 | AD66: 1000 | AE66: 2530 | AF66: 1770 | AG66: 1240 | AH66: 1980 | AI66: 1680 | AJ66: 1140 | AK66: 834 | AL66: 1300 | AM66: 760 | AN66: 627 | AO66: 463 | AP66: 633 | AQ66: 578 | AR66: 345 | AS66: 270 | AT66: 406 | AU66: 505 | AV66: 282 | AW66: 210 | AX66: 345 | AY66: 414 | AZ66: 216 | BA66: 134 | BB66: 269
A67: 9 | B67: 5014500 | C67: Swiftcurrent Creek at Many Glacier, Montana | D67: 1913, 1915–34, 1936–2009 | E67: 8.058 | F67: 29.81 | G67: 236 | H67: 104 | I67: 42 | J67: 140 | K67: 42 | L67: 24 | M67: 14 | N67: 33 | O67: 35 | P67: 22 | Q67: 14 | R67: 27 | S67: 42 | T67: 23 | U67: 12 | V67: 32 | W67: 154 | X67: 70 | Y67: 31 | Z67: 104 | AA67: 559 | AB67: 337 | AC67: 172 | AD67: 375 | AE67: 657 | AF67: 452 | AG67: 302 | AH67: 485 | AI67: 348 | AJ67: 224 | AK67: 151 | AL67: 257 | AM67: 150 | AN67: 105 | AO67: 75 | AP67: 115 | AQ67: 106 | AR67: 70 | AS67: 48 | AT67: 84 | AU67: 110 | AV67: 62 | AW67: 32 | AX67: 84 | AY67: 95 | AZ67: 59 | BA67: 24 | BB67: 74 | BC67: 49 | BD67: 31 | BE67: 17 | BF67: 37
A68: 10 | B68: 5015000 | C68: Canyon Creek near Many Glacier, Montana | D68: 1918, 1921–23, 1925, 1928–34, 1936 | F68: 5.476 | AA68: 91 | AB68: 52 | AC68: 27 | AD68: 60 | AE68: 98 | AF68: 67 | AG68: 44 | AH68: 74 | AI68: 51 | AJ68: 34 | AK68: 23 | AL68: 38 | AM68: 24 | AN68: 18 | AO68: 13 | AP68: 19 | AQ68: 19 | AR68: 12 | AS68: 7.6 | AT68: 13 | AU68: 17 | AV68: 11 | AW68: 7.1 | AX68: 16
A69: 14 | B69: 5020500 | C69: St. Mary River at international boundary | D69: 1903–10, 1912–16 | F69: 305.693 | W69: 939 | X69: 581 | Y69: 279 | Z69: 647 | AA69: 2650 | AB69: 1760 | AC69: 1200 | AD69: 1910 | AE69: 4900 | AF69: 3090 | AG69: 2210 | AH69: 3680 | AI69: 2780 | AJ69: 1900 | AK69: 1390 | AL69: 2140 | AM69: 1300 | AN69: 985 | AO69: 716 | AP69: 1030 | AQ69: 873 | AR69: 598 | AS69: 436 | AT69: 678 | AU69: 838 | AV69: 581 | AW69: 402 | AX69: 630 | AY69: 664 | AZ69: 416 | BA69: 282 | BB69: 476
A70: 112 | B70: 6073000 | C70: Dearborn River near Clemons, Montana | D70: 1921–23, 1929–32, 1934–53 | E70: 10.509 | F70: 11.587 | G70: 161 | H70: 79 | I70: 36 | J70: 131 | K70: 46 | L70: 29 | M70: 23 | N70: 33 | O70: 43 | P70: 31 | Q70: 23 | R70: 33 | S70: 43 | T70: 32 | U70: 24 | V70: 37 | W70: 197 | X70: 68 | Y70: 31 | Z70: 129 | AA70: 554 | AB70: 322 | AC70: 156 | AD70: 375 | AE70: 683 | AF70: 346 | AG70: 144 | AH70: 451 | AI70: 187 | AJ70: 82 | AK70: 31 | AL70: 123 | AM70: 68 | AN70: 35 | AO70: 18 | AP70: 47 | AQ70: 52 | AR70: 27 | AS70: 14 | AT70: 35 | AU70: 60 | AV70: 41 | AW70: 22 | AX70: 44 | AY70: 60 | AZ70: 37 | BA70: 28 | BB70: 46 | BC70: 55 | BD70: 33 | BE70: 25 | BF70: 41
A71: 129 | B71: 6078500 | C71: North Fork Sun River near Augusta, Montana | D71: 1946–68, 1989–92, 2008 | E71: 36.171 | F71: 80.329 | G71: 712 | H71: 455 | I71: 198 | J71: 363 | K71: 80 | L71: 64 | M71: 53 | N71: 66 | O71: 78 | P71: 63 | Q71: 52 | R71: 66 | S71: 80 | T71: 63 | U71: 52 | V71: 68 | W71: 383 | X71: 164 | Y71: 78 | Z71: 271 | AA71: 1900 | AB71: 1160 | AC71: 585 | AD71: 1270 | AE71: 2090 | AF71: 1350 | AG71: 757 | AH71: 1470 | AI71: 659 | AJ71: 371 | AK71: 241 | AL71: 487 | AM71: 212 | AN71: 162 | AO71: 128 | AP71: 172 | AQ71: 151 | AR71: 114 | AS71: 95 | AT71: 129 | AU71: 150 | AV71: 105 | AW71: 83 | AX71: 122 | AY71: 122 | AZ71: 91 | BA71: 73 | BB71: 100 | BC71: 102 | BD71: 74 | BE71: 60 | BF71: 82
A72: 131 | B72: 6080000 | C72: Sun River near Augusta, Montana | D72: 1905–22, 1924–25 | F72: 164.189 | O72: 281 | P72: 195 | Q72: 134 | R72: 224 | S72: 356 | T72: 185 | U72: 132 | V72: 239 | W72: 1180 | X72: 473 | Y72: 239 | Z72: 742 | AA72: 3730 | AB72: 2330 | AC72: 1370 | AD72: 2650 | AE72: 5240 | AF72: 3050 | AG72: 1700 | AH72: 3660 | AI72: 1680 | AJ72: 979 | AK72: 569 | AL72: 1270 | AM72: 612 | AN72: 392 | AO72: 264 | AP72: 452 | AQ72: 443 | AR72: 316 | AS72: 243 | AT72: 344 | AU72: 386 | AV72: 316 | AW72: 208 | AX72: 305 | AY72: 414 | AZ72: 283 | BA72: 175 | BB72: 310 | BC72: 300 | BD72: 227 | BE72: 146 | BF72: 231
A73: 133 | B73: 6081500 | C73: Willow Creek near Augusta, Montana | D73: 1905–25 | E73: 1.233 | F73: 4.635 | G73: 41 | H73: 26 | I73: 10 | J73: 36 | K73: 15 | L73: 8.7 | M73: 5.1 | N73: 12 | O73: 25 | P73: 16 | Q73: 6.8 | R73: 19 | S73: 21 | T73: 13 | U73: 5.5 | V73: 16 | W73: 35 | X73: 20 | Y73: 11 | Z73: 24 | AA73: 79 | AB73: 48 | AC73: 22 | AD73: 67 | AE73: 124 | AF73: 58 | AG73: 22 | AH73: 99 | AI73: 56 | AJ73: 26 | AK73: 9.5 | AL73: 39 | AM73: 29 | AN73: 14 | AO73: 3 | AP73: 18 | AQ73: 20 | AR73: 10 | AS73: 4.7 | AT73: 13 | AU73: 22 | AV73: 14 | AW73: 7.6 | AX73: 15 | AY73: 18 | AZ73: 13 | BA73: 9.2 | BB73: 14 | BC73: 14 | BD73: 9.3 | BE73: 5.3 | BF73: 11
A74: 134 | B74: 6084500 | C74: Elk Creek at Augusta, Montana | D74: 1905–08, 1910–19, 1921–24 | F74: 4.356 | W74: 97 | X74: 58 | Y74: 33 | Z74: 69 | AA74: 386 | AB74: 178 | AC74: 55 | AD74: 262 | AE74: 552 | AF74: 238 | AG74: 86 | AH74: 385 | AI74: 167 | AJ74: 68 | AK74: 26 | AL74: 105 | AM74: 67 | AN74: 34 | AO74: 12 | AP74: 45 | AQ74: 61 | AR74: 31 | AS74: 9 | AT74: 34 | AU74: 68 | AV74: 42 | AW74: 23 | AX74: 48
A75: 149 | B75: 6092000 | C75: Two Medicine River near Browning, Montana | D75: 1910–11, 1913–24, 1951–77 | E75: 2.966 | F75: 9.399 | G75: 1130 | H75: 707 | I75: 284 | J75: 361 | K75: 110 | L75: 66 | M75: 36 | N75: 79 | O75: 114 | P75: 72 | Q75: 45 | R75: 88 | S75: 177 | T75: 92 | U75: 42 | V75: 135 | W75: 764 | X75: 345 | Y75: 152 | Z75: 475 | AA75: 1860 | AB75: 1250 | AC75: 808 | AD75: 1400 | AE75: 2200 | AF75: 1170 | AG75: 473 | AH75: 1450 | AI75: 599 | AJ75: 271 | AK75: 112 | AL75: 383 | AM75: 139 | AN75: 69 | AO75: 27 | AP75: 91 | AQ75: 142 | AR75: 65 | AS75: 24 | AT75: 101 | AU75: 205 | AV75: 92 | AW75: 40 | AX75: 131 | AY75: 171 | AZ75: 84 | BA75: 47 | BB75: 112 | BC75: 142 | BD75: 71 | BE75: 32 | BF75: 92
A76: 150 | B76: 6092500 | C76: Badger Creek near Browning, Montana | D76: 1951–73 | E76: 36.076 | F76: 93.884 | G76: 544 | H76: 348 | I76: 153 | J76: 229 | K76: 103 | L76: 85 | M76: 61 | N76: 83 | O76: 104 | P76: 90 | Q76: 70 | R76: 92 | S76: 109 | T76: 89 | U76: 73 | V76: 96 | W76: 233 | X76: 136 | Y76: 94 | Z76: 179 | AA76: 923 | AB76: 601 | AC76: 349 | AD76: 651 | AE76: 1090 | AF76: 649 | AG76: 373 | AH76: 753 | AI76: 369 | AJ76: 245 | AK76: 181 | AL76: 287 | AM76: 189 | AN76: 154 | AO76: 125 | AP76: 158 | AQ76: 147 | AR76: 123 | AS76: 105 | AT76: 128 | AU76: 157 | AV76: 122 | AW76: 109 | AX76: 132 | AY76: 136 | AZ76: 113 | BA76: 87 | BB76: 112 | BC76: 122 | BD76: 97 | BE76: 69 | BF76: 95
A77: 158 | B77: 6098500 | C77: Cut Bank Creek near Browning, Montana | D77: 1920, 1922, 1991–2007, 2009 | E77: 9.496 | F77: 16.102 | G77: 196 | H77: 91 | I77: 40 | J77: 123 | K77: 41 | L77: 28 | M77: 21 | N77: 34 | O77: 42 | P77: 27 | Q77: 19 | R77: 37 | S77: 70 | T77: 43 | U77: 24 | V77: 59 | W77: 196 | X77: 106 | Y77: 58 | Z77: 133 | AA77: 577 | AB77: 335 | AC77: 196 | AD77: 399 | AE77: 685 | AF77: 415 | AG77: 255 | AH77: 475 | AI77: 256 | AJ77: 141 | AK77: 75 | AL77: 172 | AM77: 85 | AN77: 49 | AO77: 23 | AP77: 55 | AQ77: 59 | AR77: 35 | AS77: 19 | AT77: 39 | AU77: 75 | AV77: 43 | AW77: 28 | AX77: 56 | AY77: 81 | AZ77: 58 | BA77: 34 | BB77: 69 | BC77: 48 | BD77: 33 | BE77: 24 | BF77: 41
A78: 178 | B78: 6102500 | C78: Teton River below South Fork, near Choteau, Montana | D78: 1948–54, 1998–2001, 2004–8 | F78: 57.679 | W78: 95 | X78: 66 | Y78: 49 | Z78: 78 | AA78: 457 | AB78: 245 | AC78: 130 | AD78: 312 | AE78: 630 | AF78: 333 | AG78: 210 | AH78: 447 | AI78: 302 | AJ78: 147 | AK78: 99 | AL78: 208 | AM78: 133 | AN78: 97 | AO78: 73 | AP78: 106 | AQ78: 98 | AR78: 79 | AS78: 63 | AT78: 82 | AU78: 87 | AV78: 73 | AW78: 58 | AX78: 75
A79: 268 | B79: 6132200 | C79: South Fork Milk River near Babb, Montana | D79: 1961–2007, 2009 | F79: 2.747 | S79: 38 | T79: 17 | U79: 7.5 | V79: 31 | W79: 89 | X79: 49 | Y79: 25 | Z79: 63 | AA79: 122 | AB79: 60 | AC79: 31 | AD79: 82 | AE79: 175 | AF79: 109 | AG79: 43 | AH79: 86 | AI79: 53 | AJ79: 27 | AK79: 10 | AL79: 35 | AM79: 26 | AN79: 14 | AO79: 4.5 | AP79: 17 | AQ79: 21 | AR79: 11 | AS79: 4.7 | AT79: 14 | AU79: 23 | AV79: 15 | AW79: 8.2 | AX79: 17
A80: 272 | B80: 6133500 | C80: North Fork Milk River above St. Mary Canal, near Browning, Montana | D80: 1929, 1931, 1933, 1936–37, 1939–46, 1950, 1952–53, 1956, 1961, 1965–2009 | F80: 6.45 | S80: 31 | T80: 21 | U80: 10 | V80: 23 | W80: 49 | X80: 32 | Y80: 15 | Z80: 36 | AA80: 46 | AB80: 30 | AC80: 13 | AD80: 33 | AE80: 39 | AF80: 25 | AG80: 12 | AH80: 30 | AI80: 26 | AJ80: 15 | AK80: 7.3 | AL80: 19 | AM80: 23 | AN80: 13 | AO80: 7.7 | AP80: 16 | AQ80: 25 | AR80: 14 | AS80: 6.3 | AT80: 17 | AU80: 24 | AV80: 15 | AW80: 10 | AX80: 17
A81: 651 | B81: 12335000 | C81: Blackfoot River near Helmville, Montana | D81: 1941–53 | E81: 71.613 | F81: 128.962 | G81: 430 | H81: 193 | I81: 104 | J81: 352 | K81: 139 | L81: 121 | M81: 95 | N81: 119 | O81: 138 | P81: 119 | Q81: 95 | R81: 121 | S81: 142 | T81: 116 | U81: 100 | V81: 125 | W81: 358 | X81: 174 | Y81: 113 | Z81: 271 | AA81: 1530 | AB81: 798 | AC81: 298 | AD81: 970 | AE81: 1790 | AF81: 1130 | AG81: 605 | AH81: 1260 | AI81: 676 | AJ81: 415 | AK81: 267 | AL81: 500 | AM81: 298 | AN81: 222 | AO81: 168 | AP81: 235 | AQ81: 206 | AR81: 171 | AS81: 144 | AT81: 173 | AU81: 191 | AV81: 161 | AW81: 123 | AX81: 159 | AY81: 178 | AZ81: 150 | BA81: 124 | BB81: 149 | BC81: 155 | BD81: 134 | BE81: 103 | BF81: 132
A82: 700 | B82: 12355500 | C82: North Fork Flathead River near Columbia Falls, Montana | D82: 1911–17, 1931–32, 1934–2009 | E82: 327.838 | F82: 667.264 | G82: 4550 | H82: 1710 | I82: 787 | J82: 2960 | K82: 982 | L82: 659 | M82: 476 | N82: 775 | O82: 876 | P82: 646 | Q82: 486 | R82: 737 | S82: 1160 | T82: 767 | U82: 504 | V82: 922 | W82: 4910 | X82: 2490 | Y82: 1150 | Z82: 3250 | AA82: 13400 | AB82: 8820 | AC82: 5680 | AD82: 9710 | AE82: 13800 | AF82: 9270 | AG82: 5620 | AH82: 9970 | AI82: 5520 | AJ82: 3350 | AK82: 2100 | AL82: 3990 | AM82: 2070 | AN82: 1460 | AO82: 1080 | AP82: 1600 | AQ82: 1410 | AR82: 1030 | AS82: 823 | AT82: 1150 | AU82: 1450 | AV82: 957 | AW82: 749 | AX82: 1160 | AY82: 1530 | AZ82: 1020 | BA82: 519 | BB82: 1230 | BC82: 1130 | BD82: 771 | BE82: 564 | BF82: 912
A83: 704 | B83: 12357000 | C83: Middle Fork Flathead River at Essex, Montana | D83: 1940–53, 1956–64 | E83: 84.693 | F83: 152.934 | G83: 1480 | H83: 897 | I83: 386 | J83: 1090 | K83: 287 | L83: 195 | M83: 127 | N83: 223 | O83: 303 | P83: 197 | Q83: 128 | R83: 238 | S83: 318 | T83: 209 | U83: 150 | V83: 251 | W83: 1970 | X83: 896 | Y83: 394 | Z83: 1320 | AA83: 6130 | AB83: 4080 | AC83: 2360 | AD83: 4350 | AE83: 5640 | AF83: 3240 | AG83: 1730 | AH83: 3790 | AI83: 1460 | AJ83: 744 | AK83: 447 | AL83: 1040 | AM83: 410 | AN83: 304 | AO83: 227 | AP83: 326 | AQ83: 285 | AR83: 225 | AS83: 189 | AT83: 244 | AU83: 500 | AV83: 243 | AW83: 165 | AX83: 357 | AY83: 492 | AZ83: 277 | BA83: 155 | BB83: 355 | BC83: 493 | BD83: 248 | BE83: 151 | BF83: 333
A84: 708 | B84: 12358500 | C84: Middle Fork Flathead River near West Glacier, Montana | D84: 1940–2000, 2005–9 | E84: 279.291 | F84: 469.908 | G84: 4640 | H84: 2380 | I84: 1050 | J84: 2890 | K84: 954 | L84: 615 | M84: 358 | N84: 736 | O84: 901 | P84: 578 | Q84: 370 | R84: 720 | S84: 1130 | T84: 688 | U84: 413 | V84: 893 | W84: 4750 | X84: 2390 | Y84: 1180 | Z84: 3190 | AA84: 13700 | AB84: 8750 | AC84: 5400 | AD84: 9630 | AE84: 13900 | AF84: 9340 | AG84: 5930 | AH84: 10000 | AI84: 5640 | AJ84: 3270 | AK84: 1950 | AL84: 3910 | AM84: 1760 | AN84: 1250 | AO84: 882 | AP84: 1350 | AQ84: 1170 | AR84: 809 | AS84: 613 | AT84: 934 | AU84: 1450 | AV84: 803 | AW84: 512 | AX84: 1070 | AY84: 1760 | AZ84: 949 | BA84: 481 | BB84: 1230 | BC84: 1240 | BD84: 725 | BE84: 389 | BF84: 938
A85: 711 | B85: 12359800 | C85: South Fork Flathead River above Twin Creek, near Hungry Horse, Montana | D85: 1965–82, 1985–2005, 2007–8 | E85: 178.882 | F85: 287.66 | G85: 3460 | H85: 925 | I85: 443 | J85: 2310 | K85: 610 | L85: 370 | M85: 216 | N85: 479 | O85: 628 | P85: 380 | Q85: 227 | R85: 520 | S85: 729 | T85: 473 | U85: 301 | V85: 588 | W85: 3890 | X85: 1830 | Y85: 853 | Z85: 2490 | AA85: 11100 | AB85: 6760 | AC85: 4010 | AD85: 7710 | AE85: 11800 | AF85: 7290 | AG85: 4380 | AH85: 8190 | AI85: 3900 | AJ85: 2000 | AK85: 1120 | AL85: 2630 | AM85: 1000 | AN85: 690 | AO85: 481 | AP85: 759 | AQ85: 652 | AR85: 456 | AS85: 338 | AT85: 559 | AU85: 715 | AV85: 469 | AW85: 302 | AX85: 573 | AY85: 975 | AZ85: 529 | BA85: 296 | BB85: 706 | BC85: 614 | BD85: 409 | BE85: 255 | BF85: 514
A86: 712 | B86: 12360000 | C86: Twin Creek near Hungry Horse, Montana | D86: 1949–56, 1965–67 | G86: 177 | H86: 52 | I86: 23 | J86: 124 | K86: 35 | L86: 20 | M86: 13 | N86: 23 | O86: 32 | P86: 21 | Q86: 15 | R86: 27 | S86: 38 | T86: 27 | U86: 14 | V86: 31 | W86: 323 | X86: 152 | Y86: 58 | Z86: 205 | AA86: 766 | AB86: 482 | AC86: 318 | AD86: 545 | AE86: 592 | AF86: 355 | AG86: 192 | AH86: 385 | AI86: 127 | AJ86: 65 | AK86: 38 | AL86: 87 | AM86: 29 | AN86: 22 | AO86: 16 | AP86: 23 | AQ86: 19 | AR86: 13 | AS86: 9.9 | AT86: 18 | AU86: 47 | AV86: 24 | AW86: 10 | AX86: 31 | AY86: 49 | AZ86: 31 | BA86: 12 | BB86: 35 | BC86: 44 | BD86: 27 | BE86: 14 | BF86: 36
A87: 713 | B87: 12361000 | C87: Sullivan Creek near Hungry Horse, Montana | D87: 1949–56, 1960–76 | E87: 17.726 | F87: 24.779 | G87: 338 | H87: 101 | I87: 46 | J87: 225 | K87: 88 | L87: 48 | M87: 26 | N87: 64 | O87: 86 | P87: 47 | Q87: 28 | R87: 69 | S87: 93 | T87: 54 | U87: 37 | V87: 75 | W87: 403 | X87: 199 | Y87: 97 | Z87: 272 | AA87: 1180 | AB87: 770 | AC87: 477 | AD87: 837 | AE87: 1130 | AF87: 725 | AG87: 454 | AH87: 797 | AI87: 282 | AJ87: 153 | AK87: 91 | AL87: 197 | AM87: 75 | AN87: 54 | AO87: 39 | AP87: 60 | AQ87: 68 | AR87: 40 | AS87: 27 | AT87: 59 | AU87: 129 | AV87: 54 | AW87: 29 | AX87: 89 | AY87: 143 | AZ87: 75 | BA87: 35 | BB87: 96 | BC87: 109 | BD87: 62 | BE87: 29 | BF87: 80
A88: 714 | B88: 12361500 | C88: Graves Creek near Hungry Horse, Montana | D88: 1949–56, 1965–67 | G88: 206 | H88: 60 | I88: 26 | J88: 135 | K88: 41 | L88: 27 | M88: 19 | N88: 31 | O88: 35 | P88: 24 | Q88: 15 | R88: 31 | S88: 36 | T88: 24 | U88: 19 | V88: 29 | W88: 175 | X88: 82 | Y88: 34 | Z88: 117 | AA88: 643 | AB88: 393 | AC88: 198 | AD88: 429 | AE88: 722 | AF88: 504 | AG88: 331 | AH88: 532 | AI88: 295 | AJ88: 146 | AK88: 71 | AL88: 193 | AM88: 51 | AN88: 34 | AO88: 24 | AP88: 41 | AQ88: 47 | AR88: 24 | AS88: 16 | AT88: 33 | AU88: 109 | AV88: 40 | AW88: 17 | AX88: 63 | AY88: 97 | AZ88: 53 | BA88: 23 | BB88: 60 | BC88: 66 | BD88: 42 | BE88: 21 | BF88: 54
A89: Upper Yellowstone-Central Mountain hydrologic region
A90: 77 | B90: 6043000 | C90: Taylor Creek near Grayling, Montana | D90: 1946–53, 1955–56, 1967 | F90: 23.573 | AA90: 398 | AB90: 195 | AC90: 75 | AD90: 243 | AE90: 550 | AF90: 404 | AG90: 280 | AH90: 422 | AI90: 275 | AJ90: 162 | AK90: 109 | AL90: 191 | AM90: 85 | AN90: 59 | AO90: 44 | AP90: 68 | AQ90: 49 | AR90: 38 | AS90: 32 | AT90: 40 | AU90: 38 | AV90: 30 | AW90: 24 | AX90: 33 | AY90: 29 | AZ90: 24 | BA90: 20 | BB90: 24
A91: 80 | B91: 6043500 | C91: Gallatin River near Gallatin Gateway, Montana | D91: 1930–69, 1972–81, 1985–2009 | E91: 203.845 | F91: 340.619 | G91: 1010 | H91: 424 | I91: 252 | J91: 805 | K91: 343 | L91: 292 | M91: 250 | N91: 298 | O91: 340 | P91: 288 | Q91: 251 | R91: 294 | S91: 351 | T91: 293 | U91: 257 | V91: 305 | W91: 621 | X91: 414 | Y91: 314 | Z91: 500 | AA91: 2640 | AB91: 1570 | AC91: 860 | AD91: 1800 | AE91: 3900 | AF91: 2720 | AG91: 1770 | AH91: 2890 | AI91: 1700 | AJ91: 1040 | AK91: 686 | AL91: 1260 | AM91: 726 | AN91: 556 | AO91: 449 | AP91: 595 | AQ91: 568 | AR91: 460 | AS91: 382 | AT91: 477 | AU91: 529 | AV91: 425 | AW91: 360 | AX91: 442 | AY91: 442 | AZ91: 364 | BA91: 298 | BB91: 371 | BC91: 362 | BD91: 303 | BE91: 255 | BF91: 309
A92: 84 | B92: 6048000 | C92: East Gallatin River at Bozeman, Montana | D92: 1940–61 | E92: 18.764 | F92: 27.697 | G92: 107 | H92: 49 | I92: 26 | J92: 85 | K92: 46 | L92: 38 | M92: 30 | N92: 39 | O92: 47 | P92: 40 | Q92: 31 | R92: 42 | S92: 69 | T92: 49 | U92: 35 | V92: 60 | W92: 209 | X92: 128 | Y92: 70 | Z92: 158 | AA92: 324 | AB92: 210 | AC92: 124 | AD92: 236 | AE92: 257 | AF92: 152 | AG92: 82 | AH92: 178 | AI92: 81 | AJ92: 55 | AK92: 38 | AL92: 63 | AM92: 54 | AN92: 39 | AO92: 28 | AP92: 42 | AQ92: 58 | AR92: 46 | AS92: 37 | AT92: 49 | AU92: 60 | AV92: 51 | AW92: 43 | AX92: 52 | AY92: 58 | AZ92: 50 | BA92: 42 | BB92: 50 | BC92: 52 | BD92: 45 | BE92: 36 | BF92: 46
A93: 85 | B93: 6048500 | C93: Bridger Creek near Bozeman, Montana | D93: 1946–69, 1971–72, 1987 | E93: 2.282 | F93: 5.286 | G93: 51 | H93: 19 | I93: 8.3 | J93: 37 | K93: 10 | L93: 6.2 | M93: 4.3 | N93: 7.2 | O93: 10 | P93: 7.4 | Q93: 4.2 | R93: 8.9 | S93: 19 | T93: 10 | U93: 5 | V93: 15 | W93: 89 | X93: 48 | Y93: 23 | Z93: 64 | AA93: 216 | AB93: 131 | AC93: 77 | AD93: 154 | AE93: 146 | AF93: 83 | AG93: 46 | AH93: 101 | AI93: 43 | AJ93: 26 | AK93: 16 | AL93: 31 | AM93: 18 | AN93: 12 | AO93: 7.5 | AP93: 13 | AQ93: 13 | AR93: 9.4 | AS93: 6.6 | AT93: 11 | AU93: 14 | AV93: 9.4 | AW93: 7.4 | AX93: 11 | AY93: 14 | AZ93: 9.3 | BA93: 7 | BB93: 10 | BC93: 13 | BD93: 7.4 | BE93: 5.2 | BF93: 8.8
A94: 87 | B94: 6050000 | C94: Hyalite Creek at Hyalite Ranger Station, near Bozeman, Montana | D94: 1935–50 | E94: 10.712 | F94: 22.675 | G94: 91 | H94: 35 | I94: 19 | J94: 62 | K94: 25 | L94: 20 | M94: 16 | N94: 21 | O94: 22 | P94: 20 | Q94: 16 | R94: 19 | S94: 21 | T94: 17 | U94: 14 | V94: 17 | W94: 63 | X94: 30 | Y94: 17 | Z94: 47 | AA94: 187 | AB94: 131 | AC94: 79 | AD94: 143 | AE94: 252 | AF94: 188 | AG94: 135 | AH94: 196 | AI94: 138 | AJ94: 85 | AK94: 51 | AL94: 97 | AM94: 57 | AN94: 41 | AO94: 32 | AP94: 44 | AQ94: 45 | AR94: 33 | AS94: 25 | AT94: 35 | AU94: 41 | AV94: 30 | AW94: 22 | AX94: 32 | AY94: 33 | AZ94: 26 | BA94: 19 | BB94: 26 | BC94: 26 | BD94: 20 | BE94: 15 | BF94: 21
A95: 88 | B95: 6052500 | C95: Gallatin River at Logan, Montana | D95: 1903–05, 1929–2009 | E95: 223.353 | F95: 268.5 | G95: 1230 | H95: 766 | I95: 514 | J95: 1060 | K95: 790 | L95: 680 | M95: 569 | N95: 681 | O95: 815 | P95: 680 | Q95: 549 | R95: 695 | S95: 922 | T95: 748 | U95: 618 | V95: 790 | W95: 1320 | X95: 952 | Y95: 712 | Z95: 1040 | AA95: 3020 | AB95: 1780 | AC95: 1090 | AD95: 2100 | AE95: 4270 | AF95: 2710 | AG95: 1380 | AH95: 2890 | AI95: 1550 | AJ95: 613 | AK95: 301 | AL95: 990 | AM95: 606 | AN95: 424 | AO95: 303 | AP95: 478 | AQ95: 823 | AR95: 580 | AS95: 404 | AT95: 629 | AU95: 987 | AV95: 758 | AW95: 561 | AX95: 774 | AY95: 984 | AZ95: 839 | BA95: 665 | BB95: 832 | BC95: 878 | BD95: 746 | BE95: 610 | BF95: 748
A96: 122 | B96: 6077000 | C96: Sheep Creek near White Sulphur Springs, Montana | D96: 1942–72 | E96: 4.875 | F96: 11.671 | G96: 42 | H96: 16 | I96: 8.2 | J96: 32 | K96: 12 | L96: 9.1 | M96: 7 | N96: 9.2 | O96: 11 | P96: 8.8 | Q96: 7.2 | R96: 9.1 | S96: 11 | T96: 8.7 | U96: 7 | V96: 9.3 | W96: 28 | X96: 14 | Y96: 9.7 | Z96: 21 | AA96: 140 | AB96: 79 | AC96: 41 | AD96: 95 | AE96: 156 | AF96: 98 | AG96: 62 | AH96: 115 | AI96: 57 | AJ96: 39 | AK96: 29 | AL96: 43 | AM96: 29 | AN96: 22 | AO96: 17 | AP96: 23 | AQ96: 22 | AR96: 17 | AS96: 14 | AT96: 18 | AU96: 18 | AV96: 15 | AW96: 12 | AX96: 16 | AY96: 15 | AZ96: 13 | BA96: 10 | BB96: 13 | BC96: 12 | BD96: 10 | BE96: 8 | BF96: 10
A97: 125 | B97: 6077500 | C97: Smith River near Eden, Montana | D97: 1951–69, 2006–8 | E97: 14.283 | F97: 49.012 | G97: 450 | H97: 249 | I97: 101 | J97: 338 | K97: 150 | L97: 82 | M97: 47 | N97: 99 | O97: 181 | P97: 120 | Q97: 72 | R97: 137 | S97: 252 | T97: 148 | U97: 91 | V97: 184 | W97: 532 | X97: 296 | Y97: 183 | Z97: 388 | AA97: 1360 | AB97: 790 | AC97: 419 | AD97: 938 | AE97: 1690 | AF97: 852 | AG97: 490 | AH97: 1140 | AI97: 524 | AJ97: 278 | AK97: 158 | AL97: 355 | AM97: 224 | AN97: 128 | AO97: 74 | AP97: 149 | AQ97: 177 | AR97: 113 | AS97: 72 | AT97: 145 | AU97: 185 | AV97: 136 | AW97: 95 | AX97: 163 | AY97: 185 | AZ97: 128 | BA97: 90 | BB97: 150 | BC97: 142 | BD97: 96 | BE97: 55 | BF97: 110
A98: 143 | B98: 6090500 | C98: Belt Creek near Monarch, Montana | D98: 1951–82 | E98: 5.385 | F98: 36.149 | G98: 340 | H98: 213 | I98: 86 | J98: 192 | K98: 39 | L98: 28 | M98: 18 | N98: 29 | O98: 42 | P98: 30 | Q98: 18 | R98: 31 | S98: 47 | T98: 30 | U98: 19 | V98: 36 | W98: 190 | X98: 77 | Y98: 36 | Z98: 127 | AA98: 991 | AB98: 559 | AC98: 292 | AD98: 697 | AE98: 1270 | AF98: 638 | AG98: 303 | AH98: 819 | AI98: 318 | AJ98: 179 | AK98: 103 | AL98: 226 | AM98: 125 | AN98: 82 | AO98: 58 | AP98: 91 | AQ98: 87 | AR98: 62 | AS98: 44 | AT98: 74 | AU98: 83 | AV98: 56 | AW98: 38 | AX98: 68 | AY98: 63 | AZ98: 45 | BA98: 31 | BB98: 50 | BC98: 47 | BD98: 33 | BE98: 20 | BF98: 35
A99: 190 | B99: 6109800 | C99: South Fork Judith River near Utica, Montana | D99: 1959–79 | E99: 2.015 | F99: 4.97 | G99: 34 | H99: 21 | I99: 9.1 | J99: 23 | K99: 4.8 | L99: 3.8 | M99: 3 | N99: 3.9 | O99: 4.5 | P99: 3.9 | Q99: 3.4 | R99: 4 | S99: 5.5 | T99: 4 | U99: 3.2 | V99: 5.1 | W99: 31 | X99: 12 | Y99: 5.8 | Z99: 21 | AA99: 159 | AB99: 79 | AC99: 38 | AD99: 104 | AE99: 103 | AF99: 53 | AG99: 24 | AH99: 73 | AI99: 32 | AJ99: 20 | AK99: 12 | AL99: 23 | AM99: 15 | AN99: 11 | AO99: 7.4 | AP99: 12 | AQ99: 10 | AR99: 8.2 | AS99: 5.7 | AT99: 8.4 | AU99: 8.2 | AV99: 6.6 | AW99: 5.1 | AX99: 6.8 | AY99: 6.4 | AZ99: 5.4 | BA99: 3.9 | BB99: 5.3 | BC99: 5.4 | BD99: 4.4 | BE99: 3.5 | BF99: 4.4
A100: 192 | B100: 6110000 | C100: Judith River near Utica, Montana | D100: 1920–29, 1934–75 | E100: 0.401 | F100: 4.745 | G100: 70 | H100: 39 | I100: 16 | J100: 57 | K100: 4.7 | L100: 3.1 | M100: 1.8 | N100: 3.3 | O100: 3.2 | P100: 2.1 | Q100: 1.2 | R100: 2.3 | S100: 3.6 | T100: 2.2 | U100: 0.89 | V100: 2.5 | W100: 27 | X100: 9.7 | Y100: 3.9 | Z100: 25 | AA100: 321 | AB100: 154 | AC100: 47 | AD100: 193 | AE100: 419 | AF100: 228 | AG100: 98 | AH100: 271 | AI100: 131 | AJ100: 66 | AK100: 26 | AL100: 85 | AM100: 44 | AN100: 23 | AO100: 11 | AP100: 29 | AQ100: 25 | AR100: 14 | AS100: 6.9 | AT100: 17 | AU100: 19 | AV100: 11 | AW100: 5.1 | AX100: 13 | AY100: 13 | AZ100: 8.9 | BA100: 4.7 | BB100: 10 | BC100: 8.3 | BD100: 5.5 | BE100: 3.2 | BF100: 6.3
A101: 193 | B101: 6111000 | C101: Ross Fork Creek near Hobson, Montana | D101: 1946–53, 1955–62 | F101: 0 | G101: 52 | H101: 28 | I101: 4.9 | J101: 14 | K101: 3 | L101: 1.6 | M101: 0.87 | N101: 2.1 | O101: 6.5 | P101: 3 | Q101: 1.1 | R101: 4.9 | S101: 73 | T101: 27 | U101: 11 | V101: 63 | W101: 61 | X101: 25 | Y101: 10 | Z101: 49 | AA101: 55 | AB101: 35 | AC101: 14 | AD101: 27 | AE101: 38 | AF101: 23 | AG101: 8.6 | AH101: 24 | AI101: 6.3 | AJ101: 2.9 | AK101: 0.74 | AL101: 3.9 | AM101: 1.7 | AN101: 0.5 | AO101: 0 | AP101: 1.1 | AQ101: 0.77 | AR101: 0.009044444444 | AS101: 0 | AT101: 0.44 | AU101: 2 | AV101: 0.65 | AW101: 0 | AX101: 0.97 | AY101: 3.3 | AZ101: 1.8 | BA101: 0.81 | BB101: 2.1 | BC101: 3.3 | BD101: 2.1 | BE101: 1.4 | BF101: 2.7
A102: 197 | B102: 6114500 | C102: Wolf Creek near Stanford, Montana | D102: 1950–53, 1955–58, 1960–62 | F102: 1.32 | S102: 3.8 | T102: 2.4 | U102: 1.2 | V102: 2.4 | W102: 5.1 | X102: 3.1 | Y102: 1.3 | Z102: 3.3 | AA102: 5.3 | AB102: 4 | AC102: 1.8 | AD102: 4.5 | AE102: 17 | AF102: 11 | AG102: 4.7 | AH102: 25 | AI102: 9.5 | AJ102: 6.6 | AK102: 2.4 | AL102: 6.9 | AM102: 7.7 | AN102: 4.9 | AO102: 2.2 | AP102: 5 | AQ102: 6.3 | AR102: 3.9 | AS102: 1.7 | AT102: 4 | AU102: 5.8 | AV102: 4.1 | AW102: 1.5 | AX102: 3.7 | AY102: 4.9 | AZ102: 3.3 | BA102: 1.4 | BB102: 3.2 | BC102: 4.1 | BD102: 2.2 | BE102: 1.4 | BF102: 2.7
A103: 205 | B103: 6115500 | C103: North Fork Musselshell River near Delpine, Montana | D103: 1940–78 | E103: 2.557 | F103: 3.474 | G103: 17 | H103: 8.5 | I103: 4.2 | J103: 12 | K103: 7.1 | L103: 5.5 | M103: 4.4 | N103: 5.7 | O103: 7.6 | P103: 5.7 | Q103: 4.3 | R103: 6.3 | S103: 11 | T103: 6.1 | U103: 3.5 | V103: 9.2 | W103: 26 | X103: 15 | Y103: 8.6 | Z103: 19 | AA103: 40 | AB103: 24 | AC103: 12 | AD103: 27 | AE103: 43 | AF103: 28 | AG103: 14 | AH103: 29 | AI103: 20 | AJ103: 13 | AK103: 7.5 | AL103: 14 | AM103: 13 | AN103: 8.7 | AO103: 4.9 | AP103: 9 | AQ103: 10 | AR103: 7.3 | AS103: 4 | AT103: 7.4 | AU103: 9.4 | AV103: 6.7 | AW103: 4.1 | AX103: 7 | AY103: 8.9 | AZ103: 7.2 | BA103: 5.6 | BB103: 7.4 | BC103: 7.6 | BD103: 6.2 | BE103: 4.7 | BF103: 6.4
A104: 209 | B104: 6118500 | C104: South Fork Musselshell River above Martinsdale, Montana | D104: 1942–79 | E104: 1.389 | F104: 4.291 | G104: 153 | H104: 96 | I104: 38 | J104: 91 | K104: 23 | L104: 18 | M104: 10 | N104: 18 | O104: 25 | P104: 18 | Q104: 12 | R104: 20 | S104: 45 | T104: 22 | U104: 12 | V104: 35 | W104: 169 | X104: 84 | Y104: 39 | Z104: 112 | AA104: 515 | AB104: 269 | AC104: 134 | AD104: 334 | AE104: 556 | AF104: 308 | AG104: 118 | AH104: 365 | AI104: 121 | AJ104: 58 | AK104: 22 | AL104: 80 | AM104: 39 | AN104: 19 | AO104: 9.8 | AP104: 25 | AQ104: 33 | AR104: 19 | AS104: 8.9 | AT104: 23 | AU104: 40 | AV104: 28 | AW104: 16 | AX104: 31 | AY104: 35 | AZ104: 26 | BA104: 18 | BB104: 28 | BC104: 29 | BD104: 21 | BE104: 10 | BF104: 22
A105: 212 | B105: 6120500 | C105: Musselshell River at Harlowton, Montana | D105: 1909–32, 1934–55 | E105: 0 | F105: 0 | G105: 170 | H105: 79 | I105: 26 | J105: 137 | K105: 74 | L105: 44 | M105: 26 | N105: 50 | O105: 73 | P105: 50 | Q105: 24 | R105: 54 | S105: 151 | T105: 72 | U105: 36 | V105: 128 | W105: 327 | X105: 161 | Y105: 70 | Z105: 218 | AA105: 746 | AB105: 352 | AC105: 102 | AD105: 459 | AE105: 876 | AF105: 395 | AG105: 101 | AH105: 535 | AI105: 221 | AJ105: 87 | AK105: 25 | AL105: 145 | AM105: 90 | AN105: 35 | AO105: 4.5 | AP105: 54 | AQ105: 84 | AR105: 42 | AS105: 3.6 | AT105: 53 | AU105: 116 | AV105: 65 | AW105: 21 | AX105: 72 | AY105: 117 | AZ105: 74 | BA105: 38 | BB105: 79 | BC105: 93 | BD105: 53 | BE105: 28 | BF105: 64
A106: 217 | B106: 6121000 | C106: American Fork near Harlowton, Montana | D106: 1908, 1911, 1913, 1924–32 | F106: 0 | W106: 6.6 | X106: 4.1 | Y106: 2 | Z106: 5.9 | AA106: 88 | AB106: 18 | AC106: 5.5 | AD106: 46 | AE106: 166 | AF106: 44 | AG106: 11 | AH106: 93 | AI106: 11 | AJ106: 1.9 | AK106: 0 | AL106: 8.8 | AM106: 2.5 | AN106: 0 | AO106: 0 | AP106: 1.6 | AQ106: 3.6 | AR106: 0.36 | AS106: 0 | AT106: 1.7 | AU106: 5.9 | AV106: 3.6 | AW106: 1.4 | AX106: 4.1
A107: 218 | B107: 6121500 | C107: Lebo Creek near Harlowton, Montana | D107: 1909–11, 1913, 1924–31 | F107: 1.431 | W107: 22 | X107: 16 | Y107: 8.6 | Z107: 16 | AA107: 26 | AB107: 15 | AC107: 4.8 | AD107: 18 | AE107: 28 | AF107: 8.1 | AG107: 2.3 | AH107: 16 | AI107: 11 | AJ107: 4.9 | AK107: 2.1 | AL107: 7.6 | AM107: 14 | AN107: 7.1 | AO107: 2.8 | AP107: 8.4 | AQ107: 19 | AR107: 13 | AS107: 3.8 | AT107: 12 | AU107: 20 | AV107: 16 | AW107: 9.5 | AX107: 15
A108: 219 | B108: 6122000 | C108: American Fork below Lebo Creek, near Harlowton, Montana | D108: 1946–67 | E108: 0.256 | F108: 1.468 | G108: 43 | H108: 27 | I108: 11 | J108: 31 | K108: 17 | L108: 13 | M108: 7.8 | N108: 13 | O108: 21 | P108: 15 | Q108: 9.2 | R108: 17 | S108: 27 | T108: 18 | U108: 10 | V108: 23 | W108: 32 | X108: 20 | Y108: 13 | Z108: 23 | AA108: 112 | AB108: 42 | AC108: 13 | AD108: 70 | AE108: 204 | AF108: 75 | AG108: 25 | AH108: 130 | AI108: 39 | AJ108: 19 | AK108: 7.5 | AL108: 30 | AM108: 16 | AN108: 8.1 | AO108: 3.9 | AP108: 10 | AQ108: 16 | AR108: 8.5 | AS108: 3.9 | AT108: 12 | AU108: 20 | AV108: 11 | AW108: 4.7 | AX108: 13 | AY108: 20 | AZ108: 14 | BA108: 8.3 | BB108: 15 | BC108: 19 | BD108: 13 | BE108: 8.8 | BF108: 15
A109: 423 | B109: 6191000 | C109: Gardner River near Mammoth, Yellowstone National Park, Wyoming | D109: 1939–72, 1984–2009 | E109: 71.064 | F109: 104.46 | G109: 249 | H109: 127 | I109: 78 | J109: 213 | K109: 106 | L109: 96 | M109: 84 | N109: 96 | O109: 100 | P109: 92 | Q109: 84 | R109: 93 | S109: 102 | T109: 93 | U109: 84 | V109: 94 | W109: 171 | X109: 114 | Y109: 93 | Z109: 141 | AA109: 735 | AB109: 447 | AC109: 256 | AD109: 511 | AE109: 976 | AF109: 642 | AG109: 395 | AH109: 695 | AI109: 394 | AJ109: 251 | AK109: 172 | AL109: 296 | AM109: 191 | AN109: 152 | AO109: 124 | AP109: 159 | AQ109: 159 | AR109: 132 | AS109: 113 | AT109: 135 | AU109: 144 | AV109: 123 | AW109: 107 | AX109: 126 | AY109: 127 | AZ109: 110 | BA109: 96 | BB109: 111 | BC109: 114 | BD109: 101 | BE109: 88 | BF109: 101
A110: 424 | B110: 6191500 | C110: Yellowstone River at Corwin Springs, Montana | D110: 1911–32, 1934–2009 | E110: 500.926 | F110: 1104.489 | G110: 4670 | H110: 1410 | I110: 768 | J110: 3140 | K110: 1010 | L110: 800 | M110: 646 | N110: 822 | O110: 1000 | P110: 807 | Q110: 646 | R110: 823 | S110: 1050 | T110: 885 | U110: 728 | V110: 893 | W110: 1890 | X110: 1270 | Y110: 967 | Z110: 1570 | AA110: 9270 | AB110: 5390 | AC110: 2760 | AD110: 6250 | AE110: 15000 | AF110: 10700 | AG110: 7370 | AH110: 11500 | AI110: 9210 | AJ110: 6020 | AK110: 3840 | AL110: 6690 | AM110: 4080 | AN110: 2920 | AO110: 2100 | AP110: 3120 | AQ110: 2380 | AR110: 1870 | AS110: 1460 | AT110: 1920 | AU110: 1820 | AV110: 1440 | AW110: 1160 | AX110: 1500 | AY110: 1400 | AZ110: 1160 | BA110: 928 | BB110: 1180 | BC110: 1130 | BD110: 933 | BE110: 755 | BF110: 941
A111: 426 | B111: 6193000 | C111: Shields River near Wilsall, Montana | D111: 1935–57 | E111: 4.918 | F111: 7.81 | G111: 79 | H111: 40 | I111: 17 | J111: 63 | K111: 15 | L111: 11 | M111: 7.5 | N111: 11 | O111: 15 | P111: 10 | Q111: 7.7 | R111: 11 | S111: 14 | T111: 11 | U111: 7.9 | V111: 12 | W111: 94 | X111: 31 | Y111: 13 | Z111: 61 | AA111: 320 | AB111: 175 | AC111: 94 | AD111: 221 | AE111: 360 | AF111: 197 | AG111: 105 | AH111: 242 | AI111: 98 | AJ111: 42 | AK111: 26 | AL111: 63 | AM111: 27 | AN111: 18 | AO111: 13 | AP111: 21 | AQ111: 21 | AR111: 14 | AS111: 9.2 | AT111: 16 | AU111: 23 | AV111: 17 | AW111: 12 | AX111: 19 | AY111: 21 | AZ111: 15 | BA111: 11 | BB111: 16 | BC111: 17 | BD111: 13 | BE111: 9.5 | BF111: 14
A112: 427 | B112: 6193500 | C112: Shields River at Clyde Park, Montana | D112: 1921–23, 1929–32, 1934–67 | E112: 7.591 | F112: 10.777 | G112: 230 | H112: 89 | I112: 37 | J112: 164 | K112: 57 | L112: 42 | M112: 33 | N112: 46 | O112: 69 | P112: 45 | Q112: 26 | R112: 57 | S112: 121 | T112: 79 | U112: 37 | V112: 103 | W112: 374 | X112: 185 | Y112: 102 | Z112: 252 | AA112: 684 | AB112: 410 | AC112: 218 | AD112: 485 | AE112: 779 | AF112: 440 | AG112: 183 | AH112: 507 | AI112: 213 | AJ112: 94 | AK112: 37 | AL112: 133 | AM112: 67 | AN112: 37 | AO112: 15 | AP112: 47 | AQ112: 78 | AR112: 44 | AS112: 20 | AT112: 54 | AU112: 91 | AV112: 61 | AW112: 40 | AX112: 70 | AY112: 84 | AZ112: 64 | BA112: 46 | BB112: 66 | BC112: 68 | BD112: 48 | BE112: 34 | BF112: 53
A113: 428 | B113: 6194000 | C113: Brackett Creek near Clyde Park, Montana | D113: 1921–23, 1934–35, 1938–57 | E113: 1.996 | F113: 4.526 | G113: 43 | H113: 16 | I113: 6.7 | J113: 30 | K113: 9.3 | L113: 6.1 | M113: 4.3 | N113: 7.1 | O113: 9 | P113: 6.2 | Q113: 4 | R113: 7.2 | S113: 12 | T113: 8.1 | U113: 4.1 | V113: 11 | W113: 68 | X113: 31 | Y113: 14 | Z113: 46 | AA113: 146 | AB113: 87 | AC113: 53 | AD113: 102 | AE113: 112 | AF113: 65 | AG113: 35 | AH113: 77 | AI113: 41 | AJ113: 24 | AK113: 12 | AL113: 28 | AM113: 16 | AN113: 9.2 | AO113: 5.6 | AP113: 11 | AQ113: 13 | AR113: 9.6 | AS113: 6.2 | AT113: 9.8 | AU113: 13 | AV113: 9.8 | AW113: 7.4 | AX113: 11 | AY113: 12 | AZ113: 8.8 | BA113: 6.2 | BB113: 9.8 | BC113: 11 | BD113: 6.7 | BE113: 5 | BF113: 8.4
A114: 430 | B114: 6197000 | C114: Big Timber Creek near Big Timber, Montana | D114: 1912–16, 1918–23 | F114: 12.481 | W114: 66 | X114: 43 | Y114: 25 | Z114: 48 | AA114: 234 | AB114: 116 | AC114: 67 | AD114: 145 | AE114: 407 | AF114: 278 | AG114: 176 | AH114: 310 | AI114: 258 | AJ114: 149 | AK114: 76 | AL114: 176 | AM114: 77 | AN114: 47 | AO114: 29 | AP114: 56 | AQ114: 44 | AR114: 32 | AS114: 21 | AT114: 35 | AU114: 43 | AV114: 29 | AW114: 17 | AX114: 31 | AY114: 33 | AZ114: 26 | BA114: 19 | BB114: 25
A115: 431 | B115: 6197500 | C115: Boulder River near Contact, Montana | D115: 1910–15, 1951–69, 1971–74, 1982–83 | E115: 39.901 | F115: 84.618 | G115: 484 | H115: 153 | I115: 72 | J115: 375 | K115: 70 | L115: 62 | M115: 53 | N115: 63 | O115: 64 | P115: 57 | Q115: 51 | R115: 58 | S115: 61 | T115: 55 | U115: 49 | V115: 55 | W115: 116 | X115: 77 | Y115: 50 | Z115: 101 | AA115: 1040 | AB115: 518 | AC115: 198 | AD115: 679 | AE115: 2670 | AF115: 1800 | AG115: 1130 | AH115: 1930 | AI115: 1420 | AJ115: 825 | AK115: 489 | AL115: 994 | AM115: 380 | AN115: 235 | AO115: 168 | AP115: 277 | AQ115: 190 | AR115: 145 | AS115: 117 | AT115: 158 | AU115: 175 | AV115: 127 | AW115: 90 | AX115: 133 | AY115: 114 | AZ115: 91 | BA115: 73 | BB115: 94 | BC115: 87 | BD115: 70 | BE115: 60 | BF115: 73
A116: 432 | B116: 6200000 | C116: Boulder River at Big Timber, Montana | D116: 1947–53, 1955–2009 | E116: 38.485 | F116: 60.268 | G116: 608 | H116: 227 | I116: 97 | J116: 554 | K116: 163 | L116: 130 | M116: 98 | N116: 134 | O116: 150 | P116: 124 | Q116: 99 | R116: 126 | S116: 144 | T116: 123 | U116: 105 | V116: 127 | W116: 258 | X116: 172 | Y116: 121 | Z116: 212 | AA116: 1810 | AB116: 874 | AC116: 375 | AD116: 1150 | AE116: 3740 | AF116: 2480 | AG116: 1540 | AH116: 2710 | AI116: 1870 | AJ116: 947 | AK116: 383 | AL116: 1240 | AM116: 364 | AN116: 177 | AO116: 91 | AP116: 235 | AQ116: 269 | AR116: 155 | AS116: 77 | AT116: 182 | AU116: 282 | AV116: 203 | AW116: 141 | AX116: 214 | AY116: 232 | AZ116: 185 | BA116: 147 | BB116: 189 | BC116: 188 | BD116: 154 | BE116: 112 | BF116: 152
A117: 433 | B117: 6200500 | C117: Sweet Grass Creek above Melville, Montana | D117: 1919–21, 1937–69 | E117: 4.576 | F117: 21.913 | G117: 121 | H117: 41 | I117: 17 | J117: 86 | K117: 18 | L117: 13 | M117: 9.4 | N117: 14 | O117: 14 | P117: 12 | Q117: 8.2 | R117: 12 | S117: 13 | T117: 10 | U117: 7.4 | V117: 11 | W117: 23 | X117: 17 | Y117: 9.8 | Z117: 17 | AA117: 301 | AB117: 131 | AC117: 36 | AD117: 178 | AE117: 523 | AF117: 343 | AG117: 217 | AH117: 385 | AI117: 284 | AJ117: 176 | AK117: 109 | AL117: 204 | AM117: 98 | AN117: 65 | AO117: 48 | AP117: 74 | AQ117: 55 | AR117: 41 | AS117: 29 | AT117: 44 | AU117: 54 | AV117: 33 | AW117: 24 | AX117: 41 | AY117: 39 | AZ117: 28 | BA117: 19 | BB117: 29 | BC117: 25 | BD117: 18 | BE117: 12 | BF117: 18
A118: 434 | B118: 6201000 | C118: Sweet Grass Creek below Melville, Montana | D118: 1908–10, 1913, 1916, 1918, 1921–24, 1937–42, 1946–52 | F118: 14.756 | G118: 117 | H118: 48 | I118: 21 | J118: 89 | K118: 36 | L118: 27 | M118: 20 | N118: 28 | O118: 30 | P118: 21 | Q118: 17 | R118: 24 | S118: 39 | T118: 25 | U118: 15 | V118: 30 | W118: 53 | X118: 35 | Y118: 23 | Z118: 44 | AA118: 280 | AB118: 122 | AC118: 45 | AD118: 174 | AE118: 502 | AF118: 315 | AG118: 168 | AH118: 361 | AI118: 267 | AJ118: 130 | AK118: 59 | AL118: 170 | AM118: 78 | AN118: 48 | AO118: 22 | AP118: 57 | AQ118: 66 | AR118: 40 | AS118: 23 | AT118: 47 | AU118: 88 | AV118: 64 | AW118: 35 | AX118: 66 | AY118: 70 | AZ118: 55 | BA118: 30 | BB118: 52 | BC118: 55 | BD118: 42 | BE118: 27 | BF118: 41
A119: 440 | B119: 6202510 | C119: Stillwater River above Nye Creek, near Nye, Montana | D119: 1980–91 | E119: 30.71 | F119: 81.003 | G119: 471 | H119: 154 | I119: 72 | J119: 373 | K119: 68 | L119: 54 | M119: 44 | N119: 56 | O119: 61 | P119: 52 | Q119: 43 | R119: 52 | S119: 58 | T119: 49 | U119: 42 | V119: 51 | W119: 185 | X119: 90 | Y119: 51 | Z119: 138 | AA119: 1210 | AB119: 628 | AC119: 205 | AD119: 781 | AE119: 2650 | AF119: 1660 | AG119: 950 | AH119: 1810 | AI119: 1410 | AJ119: 666 | AK119: 406 | AL119: 912 | AM119: 364 | AN119: 283 | AO119: 199 | AP119: 294 | AQ119: 204 | AR119: 160 | AS119: 119 | AT119: 169 | AU119: 149 | AV119: 121 | AW119: 84 | AX119: 127 | AY119: 106 | AZ119: 81 | BA119: 62 | BB119: 88 | BC119: 78 | BD119: 63 | BE119: 47 | BF119: 63
A120: 442 | B120: 6204500 | C120: Rosebud Creek near Absarokee, Montana | D120: 1935–69 | E120: 74.739 | F120: 170.749 | G120: 582 | H120: 242 | I120: 116 | J120: 405 | K120: 180 | L120: 146 | M120: 118 | N120: 149 | O120: 170 | P120: 143 | Q120: 116 | R120: 149 | S120: 207 | T120: 151 | U120: 116 | V120: 165 | W120: 271 | X120: 192 | Y120: 131 | Z120: 212 | AA120: 722 | AB120: 427 | AC120: 256 | AD120: 526 | AE120: 1630 | AF120: 1050 | AG120: 709 | AH120: 1200 | AI120: 1410 | AJ120: 961 | AK120: 648 | AL120: 1060 | AM120: 611 | AN120: 431 | AO120: 292 | AP120: 464 | AQ120: 391 | AR120: 296 | AS120: 220 | AT120: 310 | AU120: 292 | AV120: 240 | AW120: 190 | AX120: 246 | AY120: 233 | AZ120: 202 | BA120: 167 | BB120: 200 | BC120: 198 | BD120: 166 | BE120: 133 | BF120: 166
A121: 443 | B121: 6205000 | C121: Stillwater River near Absarokee, Montana | D121: 1911–13, 1935–98, 2000–9 | E121: 139.702 | F121: 330.458 | G121: 1280 | H121: 448 | I121: 212 | J121: 932 | K121: 333 | L121: 275 | M121: 216 | N121: 280 | O121: 312 | P121: 263 | Q121: 213 | R121: 268 | S121: 346 | T121: 255 | U121: 199 | V121: 283 | W121: 520 | X121: 353 | Y121: 257 | Z121: 408 | AA121: 2290 | AB121: 1180 | AC121: 640 | AD121: 1510 | AE121: 4720 | AF121: 3150 | AG121: 2040 | AH121: 3440 | AI121: 3180 | AJ121: 2060 | AK121: 1230 | AL121: 2310 | AM121: 1190 | AN121: 785 | AO121: 539 | AP121: 879 | AQ121: 769 | AR121: 567 | AS121: 401 | AT121: 601 | AU121: 623 | AV121: 497 | AW121: 391 | AX121: 514 | AY121: 475 | AZ121: 407 | BA121: 334 | BB121: 404 | BC121: 378 | BD121: 318 | BE121: 249 | BF121: 317
A122: 445 | B122: 6207500 | C122: Clarks Fork Yellowstone River near Belfry, Montana | D122: 1922–23, 1926–32, 1934–2009 | E122: 71.979 | F122: 110.354 | G122: 1260 | H122: 362 | I122: 163 | J122: 928 | K122: 282 | L122: 235 | M122: 195 | N122: 241 | O122: 263 | P122: 231 | Q122: 196 | R122: 233 | S122: 256 | T122: 221 | U122: 187 | V122: 232 | W122: 544 | X122: 300 | Y122: 215 | Z122: 424 | AA122: 3250 | AB122: 1620 | AC122: 671 | AD122: 2070 | AE122: 5650 | AF122: 3670 | AG122: 2360 | AH122: 4080 | AI122: 3230 | AJ122: 1850 | AK122: 952 | AL122: 2180 | AM122: 878 | AN122: 497 | AO122: 275 | AP122: 598 | AQ122: 433 | AR122: 257 | AS122: 153 | AT122: 303 | AU122: 380 | AV122: 245 | AW122: 150 | AX122: 271 | AY122: 369 | AZ122: 285 | BA122: 210 | BB122: 293 | BC122: 321 | BD122: 264 | BE122: 212 | BF122: 267
A123: 447 | B123: 6207800 | C123: Bluewater Creek near Bridger, Montana | D123: 1960–70 | F123: 23.342 | G123: 30 | H123: 28 | I123: 26 | J123: 28 | K123: 31 | L123: 30 | M123: 27 | N123: 29 | O123: 31 | P123: 29 | Q123: 27 | R123: 29 | S123: 31 | T123: 29 | U123: 28 | V123: 29 | W123: 31 | X123: 29 | Y123: 28 | Z123: 29 | AA123: 30 | AB123: 28 | AC123: 27 | AD123: 28 | AE123: 29 | AF123: 27 | AG123: 25 | AH123: 28 | AI123: 29 | AJ123: 25 | AK123: 24 | AL123: 26 | AM123: 28 | AN123: 26 | AO123: 25 | AP123: 26 | AQ123: 30 | AR123: 27 | AS123: 26 | AT123: 28 | AU123: 30 | AV123: 28 | AW123: 27 | AX123: 28 | AY123: 31 | AZ123: 29 | BA123: 27 | BB123: 29 | BC123: 31 | BD123: 29 | BE123: 27 | BF123: 29
A124: 450 | B124: 6209500 | C124: Rock Creek near Red Lodge, Montana | D124: 1932, 1934–82, 1985–86, 2000–9 | E124: 19.865 | F124: 57.824 | G124: 273 | H124: 84 | I124: 41 | J124: 168 | K124: 39 | L124: 34 | M124: 28 | N124: 33 | O124: 34 | P124: 31 | Q124: 25 | R124: 30 | S124: 33 | T124: 28 | U124: 24 | V124: 29 | W124: 44 | X124: 35 | Y124: 27 | Z124: 39 | AA124: 332 | AB124: 147 | AC124: 62 | AD124: 217 | AE124: 797 | AF124: 513 | AG124: 330 | AH124: 577 | AI124: 625 | AJ124: 435 | AK124: 309 | AL124: 482 | AM124: 311 | AN124: 237 | AO124: 183 | AP124: 253 | AQ124: 176 | AR124: 135 | AS124: 102 | AT124: 140 | AU124: 98 | AV124: 75 | AW124: 62 | AX124: 80 | AY124: 64 | AZ124: 53 | BA124: 44 | BB124: 54 | BC124: 47 | BD124: 40 | BE124: 33 | BF124: 41
A125: 451 | B125: 6210000 | C125: West Fork Rock Creek below Basin Creek, near Red Lodge, Montana | D125: 1938–56 | F125: 27.545 | AA125: 172 | AB125: 88 | AC125: 46 | AD125: 120 | AE125: 377 | AF125: 255 | AG125: 163 | AH125: 277 | AI125: 325 | AJ125: 220 | AK125: 164 | AL125: 246 | AM125: 148 | AN125: 108 | AO125: 82 | AP125: 118 | AQ125: 79 | AR125: 63 | AS125: 48 | AT125: 64 | AU125: 46 | AV125: 37 | AW125: 30 | AX125: 40
A126: 453 | B126: 6211000 | C126: Red Lodge Creek above Cooney Reservoir, near Boyd, Montana | D126: 1937–42, 1944–48, 1950–2008 | F126: 12.093 | W126: 114 | X126: 59 | Y126: 33 | Z126: 74 | AA126: 223 | AB126: 113 | AC126: 45 | AD126: 153 | AE126: 278 | AF126: 158 | AG126: 70 | AH126: 185 | AI126: 129 | AJ126: 71 | AK126: 34 | AL126: 88 | AM126: 55 | AN126: 32 | AO126: 19 | AP126: 39 | AQ126: 66 | AR126: 41 | AS126: 22 | AT126: 46 | AU126: 60 | AV126: 44 | AW126: 29 | AX126: 47 | AY126: 44 | AZ126: 32 | BA126: 23 | BB126: 33
A127: 454 | B127: 6211500 | C127: Willow Creek near Boyd, Montana | D127: 1937–2004, 2006–8 | F127: 15.526 | W127: 47 | X127: 26 | Y127: 15 | Z127: 33 | AA127: 70 | AB127: 33 | AC127: 13 | AD127: 47 | AE127: 77 | AF127: 48 | AG127: 20 | AH127: 55 | AI127: 71 | AJ127: 55 | AK127: 36 | AL127: 55 | AM127: 52 | AN127: 38 | AO127: 25 | AP127: 39 | AQ127: 47 | AR127: 34 | AS127: 24 | AT127: 36 | AU127: 37 | AV127: 29 | AW127: 23 | AX127: 30 | AY127: 27 | AZ127: 22 | BA127: 17 | BB127: 22
A128: 460 | B128: 6216000 | C128: Pryor Creek at Pryor, Montana | D128: 1922–23, 1967–2009 | E128: 6.306 | F128: 8.401 | G128: 55 | H128: 35 | I128: 16 | J128: 30 | K128: 34 | L128: 26 | M128: 20 | N128: 28 | O128: 34 | P128: 27 | Q128: 21 | R128: 29 | S128: 37 | T128: 27 | U128: 22 | V128: 30 | W128: 39 | X128: 27 | Y128: 22 | Z128: 31 | AA128: 68 | AB128: 46 | AC128: 23 | AD128: 51 | AE128: 53 | AF128: 29 | AG128: 15 | AH128: 39 | AI128: 30 | AJ128: 18 | AK128: 10 | AL128: 22 | AM128: 28 | AN128: 18 | AO128: 10 | AP128: 19 | AQ128: 32 | AR128: 23 | AS128: 15 | AT128: 25 | AU128: 38 | AV128: 29 | AW128: 21 | AX128: 30 | AY128: 36 | AZ128: 28 | BA128: 21 | BB128: 30 | BC128: 35 | BD128: 27 | BE128: 20 | BF128: 29
A129: 464 | B129: 6216900 | C129: Pryor Creek near Huntley, Montana | D129: 1979–2000 | E129: 0.857 | F129: 2.843 | G129: 78 | H129: 46 | I129: 19 | J129: 63 | K129: 63 | L129: 44 | M129: 30 | N129: 51 | O129: 77 | P129: 52 | Q129: 32 | R129: 66 | S129: 128 | T129: 67 | U129: 35 | V129: 103 | W129: 112 | X129: 66 | Y129: 44 | Z129: 86 | AA129: 169 | AB129: 70 | AC129: 34 | AD129: 126 | AE129: 107 | AF129: 57 | AG129: 27 | AH129: 74 | AI129: 49 | AJ129: 17 | AK129: 5.7 | AL129: 31 | AM129: 37 | AN129: 17 | AO129: 5.5 | AP129: 22 | AQ129: 45 | AR129: 30 | AS129: 18 | AT129: 32 | AU129: 62 | AV129: 46 | AW129: 33 | AX129: 50 | AY129: 62 | AZ129: 48 | BA129: 34 | BB129: 50 | BC129: 64 | BD129: 46 | BE129: 34 | BF129: 49
A130: 471 | B130: 6287500 | C130: Soap Creek near St. Xavier, Montana | D130: 1913, 1939–53, 1968–72 | E130: 5.719 | F130: 11.71 | G130: 41 | H130: 27 | I130: 11 | J130: 31 | K130: 27 | L130: 19 | M130: 13 | N130: 22 | O130: 39 | P130: 21 | Q130: 13 | R130: 31 | S130: 61 | T130: 33 | U130: 18 | V130: 45 | W130: 53 | X130: 36 | Y130: 21 | Z130: 41 | AA130: 56 | AB130: 33 | AC130: 18 | AD130: 48 | AE130: 56 | AF130: 32 | AG130: 18 | AH130: 46 | AI130: 34 | AJ130: 24 | AK130: 12 | AL130: 25 | AM130: 26 | AN130: 19 | AO130: 12 | AP130: 19 | AQ130: 26 | AR130: 20 | AS130: 13 | AT130: 21 | AU130: 28 | AV130: 23 | AW130: 17 | AX130: 24 | AY130: 27 | AZ130: 24 | BA130: 16 | BB130: 22 | BC130: 24 | BD130: 19 | BE130: 14 | BF130: 19
A131: 472 | B131: 6288000 | C131: Rotten Grass Creek near St. Xavier, Montana | D131: 1913–17, 1919, 1968–72 | F131: 3.159 | AA131: 69 | AB131: 38 | AC131: 16 | AD131: 54 | AE131: 67 | AF131: 29 | AG131: 11 | AH131: 50 | AI131: 27 | AJ131: 17 | AK131: 6.7 | AL131: 22 | AM131: 14 | AN131: 7.9 | AO131: 2.8 | AP131: 8.8 | AQ131: 12 | AR131: 9.3 | AS131: 4.6 | AT131: 9.1 | AU131: 14 | AV131: 9.7 | AW131: 6.5 | AX131: 11
A132: 473 | B132: 6288200 | C132: Beauvais Creek near St. Xavier, Montana | D132: 1967–77 | F132: 4.259 | G132: 28 | H132: 18 | I132: 7.4 | J132: 24 | K132: 13 | L132: 7.1 | M132: 3.1 | N132: 9.8 | O132: 18 | P132: 9.5 | Q132: 4.2 | R132: 16 | S132: 30 | T132: 15 | U132: 8.2 | V132: 23 | W132: 60 | X132: 27 | Y132: 12 | Z132: 47 | AA132: 140 | AB132: 34 | AC132: 18 | AD132: 72 | AE132: 64 | AF132: 27 | AG132: 14 | AH132: 45 | AI132: 23 | AJ132: 13 | AK132: 6.8 | AL132: 18 | AM132: 13 | AN132: 8.5 | AO132: 4.3 | AP132: 9.8 | AQ132: 12 | AR132: 7.1 | AS132: 4.5 | AT132: 8.7 | AU132: 27 | AV132: 18 | AW132: 8.9 | AX132: 15 | AY132: 26 | AZ132: 17 | BA132: 8.2 | BB132: 12 | BC132: 8.5 | BD132: 6.1 | BE132: 3.6 | BF132: 6.4
A133: 475 | B133: 6289000 | C133: Little Bighorn River at State line, near Wyola, Montana | D133: 1939–2009 | E133: 35.319 | F133: 69.232 | G133: 177 | H133: 82 | I133: 43 | J133: 148 | K133: 73 | L133: 62 | M133: 52 | N133: 62 | O133: 69 | P133: 61 | Q133: 53 | R133: 61 | S133: 69 | T133: 60 | U133: 54 | V133: 61 | W133: 94 | X133: 73 | Y133: 60 | Z133: 84 | AA133: 489 | AB133: 272 | AC133: 138 | AD133: 327 | AE133: 752 | AF133: 436 | AG133: 262 | AH133: 509 | AI133: 277 | AJ133: 190 | AK133: 129 | AL133: 215 | AM133: 148 | AN133: 117 | AO133: 92 | AP133: 121 | AQ133: 115 | AR133: 95 | AS133: 79 | AT133: 97 | AU133: 99 | AV133: 83 | AW133: 71 | AX133: 85 | AY133: 87 | AZ133: 73 | BA133: 62 | BB133: 74 | BC133: 79 | BD133: 67 | BE133: 56 | BF133: 67
A134: 477 | B134: 6290000 | C134: Pass Creek near Wyola, Montana | D134: 1935–56, 1983–2009 | E134: 0 | F134: 2.015 | G134: 71 | H134: 44 | I134: 18 | J134: 35 | K134: 23 | L134: 15 | M134: 9.9 | N134: 17 | O134: 33 | P134: 18 | Q134: 9.4 | R134: 23 | S134: 53 | T134: 29 | U134: 15 | V134: 38 | W134: 71 | X134: 40 | Y134: 23 | Z134: 50 | AA134: 134 | AB134: 73 | AC134: 40 | AD134: 97 | AE134: 136 | AF134: 66 | AG134: 27 | AH134: 87 | AI134: 42 | AJ134: 20 | AK134: 7.5 | AL134: 26 | AM134: 20 | AN134: 8.5 | AO134: 3 | AP134: 12 | AQ134: 19 | AR134: 10 | AS134: 4.8 | AT134: 12 | AU134: 22 | AV134: 17 | AW134: 10 | AX134: 17 | AY134: 23 | AZ134: 17 | BA134: 13 | BB134: 18 | BC134: 21 | BD134: 15 | BE134: 11 | BF134: 16
A135: 479 | B135: 6290500 | C135: Little Bighorn River below Pass Creek, near Wyola, Montana | D135: 1939–58, 1960–75, 1977–2004 | E135: 37.792 | F135: 57.816 | G135: 232 | H135: 149 | I135: 67 | J135: 202 | K135: 124 | L135: 101 | M135: 79 | N135: 104 | O135: 137 | P135: 102 | Q135: 77 | R135: 114 | S135: 161 | T135: 116 | U135: 92 | V135: 139 | W135: 230 | X135: 157 | Y135: 110 | Z135: 181 | AA135: 658 | AB135: 393 | AC135: 200 | AD135: 458 | AE135: 946 | AF135: 517 | AG135: 281 | AH135: 626 | AI135: 320 | AJ135: 188 | AK135: 106 | AL135: 228 | AM135: 149 | AN135: 107 | AO135: 67 | AP135: 111 | AQ135: 139 | AR135: 103 | AS135: 71 | AT135: 107 | AU135: 144 | AV135: 122 | AW135: 97 | AX135: 121 | AY135: 136 | AZ135: 118 | BA135: 100 | BB135: 118 | BC135: 125 | BD135: 104 | BE135: 84 | BF135: 106
A136: 480 | B136: 6291000 | C136: Owl Creek near Lodge Grass, Montana | D136: 1939–45, 1980–92 | E136: 0.111 | F136: 0.207 | G136: 15 | H136: 9.4 | I136: 3.6 | J136: 9.9 | K136: 7.9 | L136: 5.3 | M136: 3.1 | N136: 6 | O136: 11 | P136: 6.7 | Q136: 3.2 | R136: 14 | S136: 34 | T136: 12 | U136: 5 | V136: 24 | W136: 23 | X136: 12 | Y136: 5.8 | Z136: 17 | AA136: 22 | AB136: 12 | AC136: 5.1 | AD136: 20 | AE136: 22 | AF136: 14 | AG136: 5.7 | AH136: 16 | AI136: 6.9 | AJ136: 3.4 | AK136: 1.1 | AL136: 4.7 | AM136: 3.8 | AN136: 1.1 | AO136: 0.19 | AP136: 2.1 | AQ136: 3.7 | AR136: 1.6 | AS136: 0.26 | AT136: 2.1 | AU136: 5.2 | AV136: 3.3 | AW136: 1.4 | AX136: 3.7 | AY136: 6.5 | AZ136: 4 | BA136: 2.1 | BB136: 4.5 | BC136: 8 | BD136: 5.5 | BE136: 3.3 | BF136: 6.3
A137: 481 | B137: 6291500 | C137: Lodge Grass Creek above Willow Creek diversion, near Wyola, Montana | D137: 1939–74, 1983–2009 | E137: 5.703 | F137: 13.056 | G137: 57 | H137: 25 | I137: 12 | J137: 47 | K137: 20 | L137: 16 | M137: 11 | N137: 16 | O137: 21 | P137: 16 | Q137: 11 | R137: 17 | S137: 25 | T137: 18 | U137: 13 | V137: 20 | W137: 42 | X137: 25 | Y137: 11 | Z137: 31 | AA137: 178 | AB137: 96 | AC137: 48 | AD137: 118 | AE137: 295 | AF137: 161 | AG137: 88 | AH137: 193 | AI137: 85 | AJ137: 53 | AK137: 32 | AL137: 62 | AM137: 38 | AN137: 25 | AO137: 17 | AP137: 28 | AQ137: 29 | AR137: 21 | AS137: 14 | AT137: 22 | AU137: 26 | AV137: 20 | AW137: 15 | AX137: 21 | AY137: 23 | AZ137: 18 | BA137: 14 | BB137: 19 | BC137: 20 | BD137: 16 | BE137: 12 | BF137: 16
A138: 484 | B138: 6294000 | C138: Little Bighorn River near Hardin, Montana | D138: 1953–2009 | E138: 11.393 | F138: 29.201 | G138: 517 | H138: 323 | I138: 129 | J138: 272 | K138: 170 | L138: 124 | M138: 84 | N138: 136 | O138: 222 | P138: 145 | Q138: 98 | R138: 192 | S138: 364 | T138: 207 | U138: 134 | V138: 299 | W138: 392 | X138: 240 | Y138: 154 | Z138: 302 | AA138: 942 | AB138: 461 | AC138: 190 | AD138: 596 | AE138: 1280 | AF138: 654 | AG138: 295 | AH138: 812 | AI138: 372 | AJ138: 171 | AK138: 72 | AL138: 253 | AM138: 168 | AN138: 105 | AO138: 50 | AP138: 115 | AQ138: 181 | AR138: 118 | AS138: 57 | AT138: 124 | AU138: 194 | AV138: 150 | AW138: 105 | AX138: 151 | AY138: 184 | AZ138: 147 | BA138: 109 | BB138: 149 | BC138: 167 | BD138: 125 | BE138: 94 | BF138: 132
A139: Southwest hydrologic region
A140: 15 | B140: 6006000 | C140: Red Rock Creek above Lakes, near Lakeview, Montana | D140: 1997–98, 2000–8 | F140: 17.32 | W140: 35 | X140: 23 | Y140: 17 | Z140: 27 | AA140: 88 | AB140: 46 | AC140: 31 | AD140: 60 | AE140: 131 | AF140: 90 | AG140: 44 | AH140: 95 | AI140: 78 | AJ140: 45 | AK140: 28 | AL140: 55 | AM140: 47 | AN140: 32 | AO140: 21 | AP140: 34 | AQ140: 38 | AR140: 26 | AS140: 19 | AT140: 28 | AU140: 30 | AV140: 23 | AW140: 17 | AX140: 24
A141: 16 | B141: 6011000 | C141: Red Rock River at Kennedy Ranch, near Lakeview, Montana | D141: 1936–66 | F141: 14.7 | W141: 569 | X141: 266 | Y141: 66 | Z141: 329 | AA141: 535 | AB141: 335 | AC141: 208 | AD141: 380 | AE141: 337 | AF141: 228 | AG141: 145 | AH141: 243 | AI141: 151 | AJ141: 82 | AK141: 41 | AL141: 101 | AM141: 66 | AN141: 41 | AO141: 21 | AP141: 45 | AQ141: 62 | AR141: 40 | AS141: 23 | AT141: 43 | AU141: 86 | AV141: 61 | AW141: 40 | AX141: 64 | AY141: 88 | AZ141: 60 | BA141: 39 | BB141: 59
A142: 20 | B142: 6013500 | C142: Big Sheep Creek below Muddy Creek, near Dell, Montana | D142: 1946–53, 1961–79 | E142: 30.301 | F142: 40.259 | G142: 81 | H142: 54 | I142: 41 | J142: 65 | K142: 49 | L142: 42 | M142: 37 | N142: 43 | O142: 47 | P142: 40 | Q142: 36 | R142: 42 | S142: 53 | T142: 43 | U142: 36 | V142: 49 | W142: 115 | X142: 70 | Y142: 49 | Z142: 89 | AA142: 117 | AB142: 74 | AC142: 45 | AD142: 86 | AE142: 146 | AF142: 92 | AG142: 49 | AH142: 102 | AI142: 95 | AJ142: 65 | AK142: 45 | AL142: 71 | AM142: 84 | AN142: 66 | AO142: 52 | AP142: 67 | AQ142: 67 | AR142: 53 | AS142: 42 | AT142: 55 | AU142: 74 | AV142: 63 | AW142: 49 | AX142: 62 | AY142: 66 | AZ142: 57 | BA142: 46 | BB142: 57 | BC142: 55 | BD142: 48 | BE142: 40 | BF142: 48
A143: 25 | B143: 6015500 | C143: Grasshopper Creek near Dillon, Montana | D143: 1921–33, 1946–53, 1955–58, 1960–61 | E143: 5.166 | F143: 4.376 | G143: 72 | H143: 37 | I143: 16 | J143: 55 | K143: 33 | L143: 24 | M143: 18 | N143: 25 | O143: 34 | P143: 26 | Q143: 18 | R143: 27 | S143: 59 | T143: 34 | U143: 21 | V143: 49 | W143: 95 | X143: 69 | Y143: 47 | Z143: 73 | AA143: 166 | AB143: 87 | AC143: 51 | AD143: 113 | AE143: 235 | AF143: 105 | AG143: 42 | AH143: 137 | AI143: 61 | AJ143: 29 | AK143: 14 | AL143: 40 | AM143: 40 | AN143: 20 | AO143: 9.1 | AP143: 25 | AQ143: 29 | AR143: 15 | AS143: 8.3 | AT143: 19 | AU143: 47 | AV143: 36 | AW143: 22 | AX143: 35 | AY143: 48 | AZ143: 39 | BA143: 31 | BB143: 39 | BC143: 38 | BD143: 25 | BE143: 20 | BF143: 29
A144: 29 | B144: 6017500 | C144: Blacktail Deer Creek near Dillon, Montana | D144: 1946–53, 1955–66 | E144: 13.518 | F144: 30.168 | G144: 67 | H144: 46 | I144: 30 | J144: 54 | K144: 37 | L144: 30 | M144: 20 | N144: 30 | O144: 43 | P144: 33 | Q144: 20 | R144: 33 | S144: 54 | T144: 41 | U144: 29 | V144: 43 | W144: 67 | X144: 53 | Y144: 44 | Z144: 56 | AA144: 105 | AB144: 72 | AC144: 53 | AD144: 80 | AE144: 168 | AF144: 117 | AG144: 77 | AH144: 128 | AI144: 93 | AJ144: 67 | AK144: 44 | AL144: 70 | AM144: 58 | AN144: 46 | AO144: 34 | AP144: 47 | AQ144: 55 | AR144: 44 | AS144: 35 | AT144: 45 | AU144: 55 | AV144: 44 | AW144: 36 | AX144: 46 | AY144: 51 | AZ144: 42 | BA144: 32 | BB144: 42 | BC144: 40 | BD144: 33 | BE144: 25 | BF144: 33
A145: 33 | B145: 6019500 | C145: Ruby River above reservoir, near Alder, Montana | D145: 1938–2009 | E145: 60.729 | F145: 75.897 | G145: 221 | H145: 113 | I145: 64 | J145: 180 | K145: 114 | L145: 102 | M145: 89 | N145: 103 | O145: 113 | P145: 100 | Q145: 91 | R145: 102 | S145: 123 | T145: 105 | U145: 90 | V145: 110 | W145: 198 | X145: 138 | Y145: 109 | Z145: 163 | AA145: 594 | AB145: 351 | AC145: 218 | AD145: 417 | AE145: 691 | AF145: 405 | AG145: 229 | AH145: 468 | AI145: 259 | AJ145: 161 | AK145: 108 | AL145: 193 | AM145: 147 | AN145: 113 | AO145: 86 | AP145: 120 | AQ145: 141 | AR145: 110 | AS145: 92 | AT145: 115 | AU145: 142 | AV145: 120 | AW145: 103 | AX145: 122 | AY145: 137 | AZ145: 119 | BA145: 106 | BB145: 122 | BC145: 122 | BD145: 108 | BE145: 97 | BF145: 110
A146: 39 | B146: 6024450 | C146: Big Hole River below Big Lake Creek, at Wisdom, Montana | D146: 1988–2008 | F146: 8.679 | W146: 486 | X146: 299 | Y146: 170 | Z146: 369 | AA146: 769 | AB146: 327 | AC146: 111 | AD146: 482 | AE146: 901 | AF146: 323 | AG146: 90 | AH146: 539 | AI146: 321 | AJ146: 94 | AK146: 32 | AL146: 187 | AM146: 75 | AN146: 32 | AO146: 12 | AP146: 56 | AQ146: 55 | AR146: 30 | AS146: 16 | AT146: 38 | AU146: 88 | AV146: 58 | AW146: 39 | AX146: 67
A147: 40 | B147: 6024500 | C147: Trail Creek near Wisdom, Montana | D147: 1948–53, 1967–72 | F147: 14.682 | W147: 135 | X147: 45 | Y147: 20 | Z147: 81 | AA147: 612 | AB147: 438 | AC147: 163 | AD147: 409 | AE147: 545 | AF147: 276 | AG147: 144 | AH147: 340 | AI147: 82 | AJ147: 56 | AK147: 38 | AL147: 62 | AM147: 32 | AN147: 24 | AO147: 19 | AP147: 26 | AQ147: 26 | AR147: 19 | AS147: 15 | AT147: 21 | AU147: 25 | AV147: 21 | AW147: 17 | AX147: 22 | AY147: 24 | AZ147: 19 | BA147: 15 | BB147: 21
A148: 41 | B148: 6024540 | C148: Big Hole River below Mudd Creek, near Wisdom, Montana | D148: 1998–99, 2001–8 | F148: 54.96 | W148: 1120 | X148: 627 | Y148: 345 | Z148: 800 | AA148: 2180 | AB148: 1190 | AC148: 671 | AD148: 1470 | AE148: 2220 | AF148: 1160 | AG148: 559 | AH148: 1410 | AI148: 469 | AJ148: 231 | AK148: 137 | AL148: 333 | AM148: 173 | AN148: 107 | AO148: 60 | AP148: 124 | AQ148: 151 | AR148: 104 | AS148: 73 | AT148: 116 | AU148: 230 | AV148: 162 | AW148: 124 | AX148: 176
A149: 42 | B149: 6024590 | C149: Wise River near Wise River, Montana | D149: 1973–85 | E149: 23.226 | F149: 45.66 | G149: 190 | H149: 78 | I149: 39 | J149: 183 | K149: 49 | L149: 39 | M149: 35 | N149: 42 | O149: 42 | P149: 38 | Q149: 34 | R149: 39 | S149: 43 | T149: 38 | U149: 34 | V149: 39 | W149: 126 | X149: 61 | Y149: 36 | Z149: 88 | AA149: 787 | AB149: 376 | AC149: 174 | AD149: 508 | AE149: 1230 | AF149: 831 | AG149: 461 | AH149: 858 | AI149: 410 | AJ149: 200 | AK149: 106 | AL149: 279 | AM149: 129 | AN149: 88 | AO149: 63 | AP149: 99 | AQ149: 102 | AR149: 73 | AS149: 51 | AT149: 79 | AU149: 86 | AV149: 63 | AW149: 46 | AX149: 68 | AY149: 69 | AZ149: 50 | BA149: 38 | BB149: 54 | BC149: 55 | BD149: 44 | BE149: 36 | BF149: 46
A150: 45 | B150: 6025500 | C150: Big Hole River near Melrose, Montana | D150: 1924–2009 | E150: 125.952 | F150: 168.895 | G150: 1460 | H150: 478 | I150: 220 | J150: 1120 | K150: 415 | L150: 332 | M150: 256 | N150: 339 | O150: 425 | P150: 333 | Q150: 272 | R150: 354 | S150: 555 | T150: 404 | U150: 324 | V150: 478 | W150: 2190 | X150: 1090 | Y150: 589 | Z150: 1470 | AA150: 4700 | AB150: 2650 | AC150: 1540 | AD150: 3240 | AE150: 5820 | AF150: 3460 | AG150: 1630 | AH150: 3860 | AI150: 1850 | AJ150: 975 | AK150: 500 | AL150: 1270 | AM150: 656 | AN150: 384 | AO150: 223 | AP150: 451 | AQ150: 504 | AR150: 308 | AS150: 214 | AT150: 364 | AU150: 635 | AV150: 441 | AW150: 311 | AX150: 484 | AY150: 598 | AZ150: 461 | BA150: 345 | BB150: 487 | BC150: 471 | BD150: 360 | BE150: 283 | BF150: 386
A151: 46 | B151: 6026000 | C151: Birch Creek near Glen, Montana | D151: 1946–53, 1955–76 | E151: 2.354 | F151: 7.632 | G151: 44 | H151: 13 | I151: 5.9 | J151: 29 | K151: 9.9 | L151: 7.8 | M151: 6.2 | N151: 8 | O151: 8.5 | P151: 7.4 | Q151: 5.6 | R151: 7.3 | S151: 9.8 | T151: 7.5 | U151: 5.8 | V151: 8 | W151: 16 | X151: 9.8 | Y151: 7.2 | Z151: 12 | AA151: 82 | AB151: 38 | AC151: 18 | AD151: 53 | AE151: 155 | AF151: 109 | AG151: 73 | AH151: 115 | AI151: 84 | AJ151: 60 | AK151: 42 | AL151: 67 | AM151: 45 | AN151: 24 | AO151: 14 | AP151: 29 | AQ151: 16 | AR151: 12 | AS151: 9.4 | AT151: 13 | AU151: 23 | AV151: 16 | AW151: 12 | AX151: 17 | AY151: 15 | AZ151: 11 | BA151: 7.1 | BB151: 11 | BC151: 11 | BD151: 7.9 | BE151: 5 | BF151: 8
A152: 54 | B152: 6030500 | C152: Boulder River above Rock Creek, near Basin, Montana | D152: 1946–53, 1955–57 | F152: 1.308 | AA152: 73 | AB152: 44 | AC152: 18 | AD152: 50 | AE152: 47 | AF152: 26 | AG152: 14 | AH152: 35 | AI152: 12 | AJ152: 5.5 | AK152: 3.1 | AL152: 7.8 | AM152: 3.3 | AN152: 2.1 | AO152: 1.5 | AP152: 2.5 | AQ152: 2.8 | AR152: 2 | AS152: 1.6 | AT152: 2.2 | AU152: 2.9 | AV152: 2.2 | AW152: 1.7 | AX152: 2.4 | AY152: 2.7 | AZ152: 2.2 | BA152: 1.6 | BB152: 2.2
A153: 56 | B153: 6033000 | C153: Boulder River near Boulder, Montana | D153: 1929–32, 1934–72, 1985–2009 | E153: 6.348 | F153: 8.759 | G153: 149 | H153: 59 | I153: 24 | J153: 116 | K153: 34 | L153: 26 | M153: 18 | N153: 26 | O153: 37 | P153: 29 | Q153: 20 | R153: 30 | S153: 58 | T153: 36 | U153: 27 | V153: 48 | W153: 248 | X153: 114 | Y153: 58 | Z153: 165 | AA153: 678 | AB153: 370 | AC153: 217 | AD153: 459 | AE153: 645 | AF153: 325 | AG153: 146 | AH153: 407 | AI153: 141 | AJ153: 64 | AK153: 24 | AL153: 94 | AM153: 43 | AN153: 22 | AO153: 9 | AP153: 31 | AQ153: 35 | AR153: 21 | AS153: 12 | AT153: 28 | AU153: 51 | AV153: 31 | AW153: 19 | AX153: 36 | AY153: 46 | AZ153: 32 | BA153: 23 | BB153: 35 | BC153: 37 | BD153: 27 | BE153: 20 | BF153: 28
A154: 60 | B154: 6035000 | C154: Willow Creek near Harrison, Montana | D154: 1938–2002, 2004–9 | E154: 2.624 | F154: 2.872 | G154: 54 | H154: 31 | I154: 14 | J154: 41 | K154: 32 | L154: 25 | M154: 18 | N154: 26 | O154: 35 | P154: 26 | Q154: 20 | R154: 29 | S154: 38 | T154: 30 | U154: 24 | V154: 31 | W154: 54 | X154: 39 | Y154: 27 | Z154: 41 | AA154: 92 | AB154: 52 | AC154: 22 | AD154: 62 | AE154: 175 | AF154: 90 | AG154: 33 | AH154: 110 | AI154: 101 | AJ154: 35 | AK154: 9.9 | AL154: 59 | AM154: 18 | AN154: 7.3 | AO154: 3.1 | AP154: 12 | AQ154: 34 | AR154: 11 | AS154: 4.5 | AT154: 19 | AU154: 48 | AV154: 28 | AW154: 8.7 | AX154: 29 | AY154: 45 | AZ154: 36 | BA154: 21 | BB154: 34 | BC154: 39 | BD154: 31 | BE154: 24 | BF154: 32
A155: 62 | B155: 6036500 | C155: Willow Creek near Willow Creek, Montana | D155: 1920–32 | F155: 11.536 | S155: 53 | T155: 41 | U155: 32 | V155: 45 | W155: 69 | X155: 53 | Y155: 34 | Z155: 53 | AA155: 125 | AB155: 86 | AC155: 47 | AD155: 91 | AE155: 204 | AF155: 85 | AG155: 51 | AH155: 118 | AI155: 78 | AJ155: 44 | AK155: 29 | AL155: 57 | AM155: 35 | AN155: 24 | AO155: 14 | AP155: 26 | AQ155: 36 | AR155: 24 | AS155: 12 | AT155: 28 | AU155: 50 | AV155: 35 | AW155: 24 | AX155: 38 | AY155: 60 | AZ155: 39 | BA155: 24 | BB155: 40
A156: 74 | B156: 6040300 | C156: Jack Creek near Ennis, Montana | D156: 1974–86, 1991 | E156: 9.261 | F156: 19.164 | G156: 64 | H156: 24 | I156: 13 | J156: 47 | K156: 17 | L156: 15 | M156: 13 | N156: 15 | O156: 15 | P156: 14 | Q156: 12 | R156: 13 | S156: 15 | T156: 13 | U156: 12 | V156: 14 | W156: 47 | X156: 26 | Y156: 15 | Z156: 33 | AA156: 172 | AB156: 88 | AC156: 54 | AD156: 111 | AE156: 216 | AF156: 154 | AG156: 99 | AH156: 163 | AI156: 105 | AJ156: 68 | AK156: 44 | AL156: 77 | AM156: 50 | AN156: 36 | AO156: 28 | AP156: 39 | AQ156: 35 | AR156: 27 | AS156: 23 | AT156: 29 | AU156: 29 | AV156: 23 | AW156: 20 | AX156: 24 | AY156: 25 | AZ156: 19 | BA156: 16 | BB156: 20 | BC156: 19 | BD156: 17 | BE156: 14 | BF156: 17
A157: 91 | B157: 6055500 | C157: Crow Creek near Radersburg, Montana | D157: 1919–28, 1966–72 | F157: 9.891 | S157: 14 | T157: 10 | U157: 7.4 | V157: 11 | W157: 44 | X157: 22 | Y157: 12 | Z157: 33 | AA157: 245 | AB157: 143 | AC157: 73 | AD157: 167 | AE157: 248 | AF157: 133 | AG157: 75 | AH157: 168 | AI157: 76 | AJ157: 44 | AK157: 25 | AL157: 54 | AM157: 30 | AN157: 20 | AO157: 15 | AP157: 23 | AQ157: 22 | AR157: 17 | AS157: 12 | AT157: 17 | AU157: 22 | AV157: 17 | AW157: 12 | AX157: 17 | AY157: 19 | AZ157: 14 | BA157: 9.9 | BB157: 14 | BC157: 13 | BD157: 9.5 | BE157: 7.7 | BF157: 10
A158: 97 | B158: 6061500 | C158: Prickly Pear Creek near Clancy, Montana | D158: 1910–11, 1913–15, 1923–33, 1946–53, 1955–69, 1979–2002, 2006–9 | E158: 7.752 | F158: 11.751 | G158: 69 | H158: 45 | I158: 20 | J158: 44 | K158: 25 | L158: 19 | M158: 13 | N158: 20 | O158: 28 | P158: 21 | Q158: 12 | R158: 22 | S158: 39 | T158: 26 | U158: 17 | V158: 29 | W158: 68 | X158: 44 | Y158: 30 | Z158: 51 | AA158: 146 | AB158: 96 | AC158: 47 | AD158: 107 | AE158: 179 | AF158: 103 | AG158: 57 | AH158: 124 | AI158: 80 | AJ158: 43 | AK158: 25 | AL158: 55 | AM158: 42 | AN158: 24 | AO158: 15 | AP158: 29 | AQ158: 38 | AR158: 23 | AS158: 16 | AT158: 28 | AU158: 38 | AV158: 26 | AW158: 18 | AX158: 29 | AY158: 34 | AZ158: 25 | BA158: 18 | BB158: 27 | BC158: 27 | BD158: 21 | BE158: 15 | BF158: 22
A159: 101 | B159: 6062500 | C159: Tenmile Creek near Rimini, Montana | D159: 1917, 1921, 1923, 1926–29, 1934–94, 1997–2009 | E159: 0.076 | F159: 0.219 | G159: 59 | H159: 37 | I159: 15 | J159: 16 | K159: 1.9 | L159: 0.99 | M159: 0.47 | N159: 1.3 | O159: 1.4 | P159: 0.9 | Q159: 0.48 | R159: 1.1 | S159: 2.7 | T159: 1.3 | U159: 0.52 | V159: 2.2 | W159: 27 | X159: 9.7 | Y159: 3.3 | Z159: 18 | AA159: 128 | AB159: 63 | AC159: 26 | AD159: 80 | AE159: 116 | AF159: 49 | AG159: 17 | AH159: 70 | AI159: 19 | AJ159: 6.5 | AK159: 2.6 | AL159: 12 | AM159: 3.7 | AN159: 1.2 | AO159: 0.49 | AP159: 2.4 | AQ159: 3 | AR159: 1.2 | AS159: 0.47 | AT159: 2.1 | AU159: 4.2 | AV159: 1.5 | AW159: 0.58 | AX159: 2.8 | AY159: 3.1 | AZ159: 1.1 | BA159: 0.46 | BB159: 2.1 | BC159: 2.1 | BD159: 1 | BE159: 0.47 | BF159: 1.6
A160: 103 | B160: 6063000 | C160: Tenmile Creek near Helena, Montana | D160: 1909–28, 1930–54, 1997–98 | E160: 0.089 | F160: 0.186 | G160: 32 | H160: 19 | I160: 7.1 | J160: 29 | K160: 8.8 | L160: 5.1 | M160: 2.4 | N160: 6 | O160: 7.6 | P160: 4.8 | Q160: 2.5 | R160: 5.7 | S160: 14 | T160: 6.8 | U160: 3.2 | V160: 10 | W160: 55 | X160: 24 | Y160: 9.1 | Z160: 36 | AA160: 175 | AB160: 80 | AC160: 39 | AD160: 115 | AE160: 182 | AF160: 64 | AG160: 19 | AH160: 105 | AI160: 31 | AJ160: 9.3 | AK160: 3.3 | AL160: 19 | AM160: 4.3 | AN160: 1.5 | AO160: 0.33 | AP160: 3.3 | AQ160: 5.8 | AR160: 1.4 | AS160: 0.4 | AT160: 3.4 | AU160: 14 | AV160: 5.6 | AW160: 1.9 | AX160: 8.7 | AY160: 13 | AZ160: 7.2 | BA160: 3.5 | BB160: 8.8 | BC160: 9.9 | BD160: 4.6 | BE160: 2.3 | BF160: 6.2
A161: 106 | B161: 6068500 | C161: Little Prickly Pear Creek near Marysville, Montana | D161: 1914, 1916–25, 1927–32 | S161: 12 | T161: 7.3 | U161: 5.1 | V161: 9.6 | W161: 48 | X161: 20 | Y161: 11 | Z161: 30 | AA161: 127 | AB161: 71 | AC161: 38 | AD161: 87 | AE161: 115 | AF161: 56 | AG161: 30 | AH161: 78 | AI161: 41 | AJ161: 29 | AK161: 17 | AL161: 32 | AM161: 25 | AN161: 19 | AO161: 12 | AP161: 19 | AQ161: 18 | AR161: 15 | AS161: 9.2 | AT161: 14
A162: 107 | B162: 6071000 | C162: Little Prickly Pear Creek near Canyon Creek, Montana | D162: 1909–11, 1913–16, 1918–24 | F162: 0.899 | W162: 119 | X162: 66 | Y162: 40 | Z162: 83 | AA162: 289 | AB162: 167 | AC162: 67 | AD162: 189 | AE162: 221 | AF162: 92 | AG162: 17 | AH162: 111 | AI162: 47 | AJ162: 13 | AK162: 4.3 | AL162: 32 | AM162: 23 | AN162: 6.8 | AO162: 2.1 | AP162: 13 | AQ162: 30 | AR162: 18 | AS162: 7.7 | AT162: 20 | AU162: 34 | AV162: 20 | AW162: 13 | AX162: 22 | AY162: 37 | AZ162: 27 | BA162: 20 | BB162: 28
A163: 109 | B163: 6071300 | C163: Little Prickly Pear Creek at Wolf Creek, Montana | D163: 1962–67, 1992–2009 | E163: 15.048 | F163: 20.274 | G163: 98 | H163: 65 | I163: 31 | J163: 85 | K163: 56 | L163: 43 | M163: 30 | N163: 44 | O163: 60 | P163: 43 | Q163: 26 | R163: 56 | S163: 81 | T163: 58 | U163: 42 | V163: 65 | W163: 181 | X163: 91 | Y163: 65 | Z163: 128 | AA163: 373 | AB163: 161 | AC163: 75 | AD163: 227 | AE163: 281 | AF163: 143 | AG163: 63 | AH163: 194 | AI163: 106 | AJ163: 61 | AK163: 37 | AL163: 75 | AM163: 55 | AN163: 39 | AO163: 24 | AP163: 43 | AQ163: 54 | AR163: 36 | AS163: 26 | AT163: 45 | AU163: 52 | AV163: 42 | AW163: 33 | AX163: 48 | AY163: 62 | AZ163: 49 | BA163: 38 | BB163: 52 | BC163: 59 | BD163: 47 | BE163: 34 | BF163: 48
A165: 2Flood-frequency results not reported because of too many values less than the low-outlier threshold used in the analysis. This is discussed further in McCarthy and others (2015).

Sheet Table 1-2_Lookup (hidden)
A1: Table 1–3. Basin-characteristics data for streamflow-gaging stations used in developing the regional regression equations.
A2: [A, contributing drainage area, in square miles; P, mean annual precipitation, in inches; --, not applicable; SLP50, percent of basin with slope greater than 50 percent]
D3: Gage location | F3: Basin-characteristics data
A4: Map number (fig. 1) | B4: Station identification | C4: Station name | D4: Latitude, decimal degrees1 | E4: Longitude, decimal degrees1 | F4: A | G4: P | H4: SLP50
A5: West hydrologic region
A6: 596 | B6: 12301300 | C6: Tobacco River near Eureka, Montana | D6: 48.89359167 | E6: -115.0878528 | F6: 419 | G6: -- | H6: 12.402
A7: 605 | B7: 12301999 | C7: Wolf Creek near Libby, Montana | D7: 48.23356716 | E7: -115.2848835 | F7: 216 | G7: -- | H7: 5.767
A8: 607 | B8: 12302055 | C8: Fisher River near Libby, Montana | D8: 48.35560278 | E8: -115.31465 | F8: 842 | G8: -- | H8: 11.186
A9: 609 | B9: 12302500 | C9: Granite Creek near Libby, Montana | D9: 48.30180278 | E9: -115.5923667 | F9: 23.7 | G9: -- | H9: 56.672
A10: 611 | B10: 12303100 | C10: Flower Creek near Libby, Montana | D10: 48.34483889 | E10: -115.6065694 | F10: 11.2 | G10: -- | H10: 44.42
A11: 614 | B11: 12303500 | C11: Lake Creek at Troy, Montana | D11: 48.44686111 | E11: -115.8771361 | F11: 204 | G11: -- | H11: 34.611
A12: 615 | B12: 12304040 | C12: Basin Creek near Yaak, Montana | D12: 48.93054722 | E12: -115.4816306 | F12: 27.5 | G12: -- | H12: 6.062
A13: 621 | B13: 12304500 | C13: Yaak River near Troy, Montana | D13: 48.56172222 | E13: -115.9701583 | F13: 792 | G13: -- | H13: 7.395
A14: 624 | B14: 12323240 | C14: Blacktail Creek at Butte, Montana | D14: 45.99466944 | E14: -112.5357139 | F14: 90.9 | G14: -- | H14: 4.834
A15: 627 | B15: 12323500 | C15: German Gulch Creek near Ramsay, Montana | D15: 46.0146 | E15: -112.7932472 | F15: 40.9 | G15: -- | H15: 8.692
A16: 628 | B16: 12323600 | C16: Silver Bow Creek at Opportunity, Montana | D16: 46.10775833 | E16: -112.8052833 | F16: 343 | G16: -- | H16: 4.65
A17: 633 | B17: 12324100 | C17: Racetrack Creek below Granite Creek, near Anaconda, Montana | D17: 46.27894444 | E17: -112.919175 | F17: 41.1 | G17: -- | H17: 22.883
A18: 634 | B18: 12324200 | C18: Clark Fork at Deer Lodge, Montana | D18: 46.39765 | E18: -112.7425389 | F18: 1001 | G18: -- | H18: 7.223
A19: 636 | B19: 12324590 | C19: Little Blackfoot River near Garrison, Montana | D19: 46.51948333 | E19: -112.7931722 | F19: 414 | G19: -- | H19: 2.394
A20: 642 | B20: 12330000 | C20: Boulder Creek at Maxville, Montana | D20: 46.47165278 | E20: -113.2357694 | F20: 70.5 | G20: -- | H20: 15.986
A21: 646 | B21: 12331800 | C21: Clark Fork near Drummond, Montana | D21: 46.71191389 | E21: -113.3307806 | F21: 2516 | G21: -- | H21: 6.026
A22: 648 | B22: 12332000 | C22: Middle Fork Rock Creek near Philipsburg, Montana | D22: 46.18456944 | E22: -113.5015694 | F22: 121 | G22: -- | H22: 13.96
A23: 649 | B23: 12334510 | C23: Rock Creek near Clinton, Montana | D23: 46.72233611 | E23: -113.6830611 | F23: 889 | G23: -- | H23: 21.176
A24: 653 | B24: 12335500 | C24: Nevada Creek above reservoir, near Helmville, Montana | D24: 46.77777778 | E24: -112.7677861 | F24: 119 | G24: -- | H24: 13.934
A25: 654 | B25: 12338300 | C25: North Fork Blackfoot River above Dry Gulch, near Ovando, Montana | D25: 46.97949444 | E25: -113.0921861 | F25: 310 | G25: -- | H25: 25.008
A26: 655 | B26: 12338500 | C26: Blackfoot River near Ovando, Montana | D26: 47.01555833 | E26: -113.2288167 | F26: 1270 | G26: -- | H26: 14.218
A27: 659 | B27: 12338690 | C27: Monture Creek near Ovando, Montana | D27: 47.04529167 | E27: -113.1901639 | F27: 146 | G27: -- | H27: 27.059
A28: 661 | B28: 12339450 | C28: Clearwater River near Clearwater, Montana | D28: 47.01867778 | E28: -113.3877 | F28: 346 | G28: -- | H28: 9.157
A29: 663 | B29: 12340000 | C29: Blackfoot River near Bonner, Montana | D29: 46.89941111 | E29: -113.7563194 | F29: 2287 | G29: -- | H29: 12.838
A30: 669 | B30: 12343400 | C30: East Fork Bitterroot River near Conner, Montana | D30: 45.88301667 | E30: -114.0663139 | F30: 380 | G30: -- | H30: 17.825
A31: 675 | B31: 12346500 | C31: Skalkaho Creek near Hamilton, Montana | D31: 46.16079444 | E31: -113.9487194 | F31: 87.5 | G31: -- | H31: 28.587
A32: 676 | B32: 12347500 | C32: Blodgett Creek near Corvallis, Montana | D32: 46.26942222 | E32: -114.2370556 | F32: 25.9 | G32: -- | H32: 60.2
A33: 678 | B33: 12350000 | C33: Bear Creek near Victor, Montana | D33: 46.38092778 | E33: -114.2204111 | F33: 27.4 | G33: -- | H33: 54.484
A34: 681 | B34: 12350500 | C34: Kootenai Creek near Stevensville, Montana | D34: 46.53683333 | E34: -114.1595639 | F34: 28.9 | G34: -- | H34: 67.146
A35: 682 | B35: 12351000 | C35: Burnt Fork Bitterroot River near Stevensville, Montana | D35: 46.46368056 | E35: -113.9456111 | F35: 73.5 | G35: -- | H35: 21.729
A36: 683 | B36: 12351200 | C36: Bitterroot River near Florence, Montana | D36: 46.63308889 | E36: -114.0509583 | F36: 2342 | G36: -- | H36: 25.203
A37: 685 | B37: 12352000 | C37: Lolo Creek above Sleeman Creek, near Lolo, Montana | D37: 46.74411389 | E37: -114.143425 | F37: 250 | G37: -- | H37: 22.011
A38: 690 | B38: 12353280 | C38: Ninemile Creek near Huson, Montana | D38: 47.06339722 | E38: -114.4137889 | F38: 170 | G38: -- | H38: 14.573
A39: 695 | B39: 12354000 | C39: St. Regis River near St. Regis, Montana | D39: 47.29671111 | E39: -115.122625 | F39: 304 | G39: -- | H39: 30.761
A40: 698 | B40: 12355000 | C40: Flathead River at Flathead, British Columbia | D40: 49.00124167 | E40: -114.4756639 | F40: 429 | G40: -- | H40: 27.118
A41: 718 | B41: 12363920 | C41: Stillwater River at Olney, Montana | D41: 48.53548056 | E41: -114.5716861 | F41: 162 | G41: -- | H41: 13.594
A42: 720 | B42: 12365000 | C42: Stillwater River near Whitefish, Montana | D42: 48.31905278 | E42: -114.3871583 | F42: 558 | G42: -- | H42: 5.423
A43: 722 | B43: 12366000 | C43: Whitefish River near Kalispell, Montana | D43: 48.32018611 | E43: -114.2785944 | F43: 170 | G43: -- | H43: 13.366
A44: 724 | B44: 12367500 | C44: Ashley Creek near Kalispell, Montana | D44: 48.16499722 | E44: -114.4323778 | F44: 201 | G44: -- | H44: 1.869
A45: 725 | B45: 12369200 | C45: Swan River near Condon, Montana | D45: 47.42238333 | E45: -113.6709722 | F45: 69.1 | G45: -- | H45: 18.991
A46: 728 | B46: 12370000 | C46: Swan River near Bigfork, Montana | D46: 48.02423056 | E46: -113.9788194 | F46: 672 | G46: -- | H46: 20.835
A47: 731 | B47: 12371100 | C47: Hell Roaring Creek near Polson, Montana | D47: 47.70295278 | E47: -114.0483861 | F47: 6.4 | G47: -- | H47: 18.93
A48: 733 | B48: 12374250 | C48: Mill Creek above Bassoo Creek, near Niarada, Montana | D48: 47.82982778 | E48: -114.6978333 | F48: 19.6 | G48: -- | H48: 5.26
A49: 738 | B49: 12377150 | C49: Mission Creek above reservoir, near St. Ignatius, Montana | D49: 47.32282222 | E49: -113.9793806 | F49: 12.4 | G49: -- | H49: 67.474
A50: 739 | B50: 12378000 | C50: Mission Creek near St. Ignatius, Montana | D50: 47.32790556 | E50: -114.1230389 | F50: 52 | G50: -- | H50: 40.229
A51: 740 | B51: 12381400 | C51: South Fork Jocko River near Arlee, Montana | D51: 47.19555 | E51: -113.8507361 | F51: 57.6 | G51: -- | H51: 16.812
A52: 741 | B52: 12383500 | C52: Big Knife Creek near Arlee , Montana | D52: 47.14726111 | E52: -113.974475 | F52: 6.86 | G52: -- | H52: 54.46
A53: 742 | B53: 12387450 | C53: Valley Creek near Arlee, Montana | D53: 47.17029722 | E53: -114.2307944 | F53: 16 | G53: -- | H53: 16.387
A54: 743 | B54: 12388200 | C54: Jocko River at Dixon, Montana | D54: 47.31211389 | E54: -114.2973778 | F54: 383 | G54: -- | H54: 16.022
A55: 744 | B55: 12388400 | C55: Revais Creek below West Fork, near Dixon, Montana | D55: 47.26630278 | E55: -114.4068444 | F55: 23.3 | G55: -- | H55: 8.567
A56: 748 | B56: 12389500 | C56: Thompson River near Thompson Falls, Montana | D56: 47.59185833 | E56: -115.2295361 | F56: 638 | G56: -- | H56: 16
A57: 749 | B57: 12390700 | C57: Prospect Creek at Thompson Falls, Montana | D57: 47.58606111 | E57: -115.3551 | F57: 182 | G57: -- | H57: 39.091
A58: 755 | B58: 12391550 | C58: Bull River near Noxon, Montana | D58: 48.04735556 | E58: -115.8350028 | F58: 141 | G58: -- | H58: 44.715
A59: Northwest hydrologic region
A60: 2 | B60: 5011000 | C60: Belly River near Mountain View, Alberta | D60: 49.09996389 | E60: -113.6985778 | F60: 123 | G60: 59.071 | H60: 34.622
A61: 3 | B61: 5011500 | C61: Waterton River near international boundary | D61: 48.95495 | E61: -113.8998611 | F61: 61.8 | G61: 69.358 | H61: 44.585
A62: 4 | B62: 5012500 | C62: Boundary Creek at international boundary | D62: 48.99583611 | E62: -113.9076806 | F62: 20.4 | G62: 68.282 | H62: 43.951
A63: 6 | B63: 5013700 | C63: St. Mary River above Swiftcurrent Creek, near Babb, Montana | D63: 48.85088056 | E63: -113.416175 | F63: 174 | G63: 54.132 | H63: 33.698
A64: 9 | B64: 5014500 | C64: Swiftcurrent Creek at Many Glacier, Montana | D64: 48.79883333 | E64: -113.6567306 | F64: 31.2 | G64: 83.156 | H64: 53.417
A65: 10 | B65: 5015000 | C65: Canyon Creek near Many Glacier, Montana | D65: 48.79604722 | E65: -113.6241889 | F65: 7.74 | G65: 73.914 | H65: 65.94
A66: 14 | B66: 5020500 | C66: St. Mary River at international boundary | D66: 49.01140833 | E66: -113.2995472 | F66: 462 | G66: 47.821 | H66: 22.575
A67: 112 | B67: 6073000 | C67: Dearborn River near Clemons, Montana | D67: 47.29404722 | E67: -112.4487889 | F67: 115 | G67: 30.766 | H67: 28.262
A68: 129 | B68: 6078500 | C68: North Fork Sun River near Augusta, Montana | D68: 47.64082778 | E68: -112.8602139 | F68: 259 | G68: 39.277 | H68: 22.129
A69: 131 | B69: 6080000 | C69: Sun River near Augusta, Montana | D69: 47.620875 | E69: -112.7070028 | F69: 609 | G69: 36.613 | H69: 26.75
A70: 133 | B70: 6081500 | C70: Willow Creek near Augusta, Montana | D70: 47.54550556 | E70: -112.4736833 | F70: 95.1 | G70: 20.742 | H70: 5.651
A71: 134 | B71: 6084500 | C71: Elk Creek at Augusta, Montana | D71: 47.4854 | E71: -112.3874861 | F71: 165 | G71: 21.933 | H71: 13.08
A72: 149 | B72: 6092000 | C72: Two Medicine River near Browning, Montana | D72: 48.47171667 | E72: -112.8037806 | F72: 320 | G72: 36.824 | H72: 11.498
A73: 150 | B73: 6092500 | C73: Badger Creek near Browning, Montana | D73: 48.34621944 | E73: -112.8408639 | F73: 126 | G73: 38.471 | H73: 25.615
A74: 158 | B74: 6098500 | C74: Cut Bank Creek near Browning, Montana | D74: 48.61685833 | E74: -113.0361083 | F74: 121 | G74: 37.269 | H74: 14.528
A75: 178 | B75: 6102500 | C75: Teton River below South Fork, near Choteau, Montana | D75: 47.88308333 | E75: -112.6119833 | F75: 110 | G75: 36.764 | H75: 45.442
A76: 268 | B76: 6132200 | C76: South Fork Milk River near Babb, Montana | D76: 48.75348333 | E76: -113.1674306 | F76: 69.1 | G76: 34.208 | H76: 1.29
A77: 272 | B77: 6133500 | C77: North Fork Milk River above St. Mary Canal, near Browning, Montana | D77: 48.97078333 | E77: -113.0559694 | F77: 60.8 | G77: 22.962 | H77: 0.057
A78: 651 | B78: 12335000 | C78: Blackfoot River near Helmville, Montana | D78: 46.93871944 | E78: -112.9407361 | F78: 482 | G78: 27.237 | H78: 15.184
A79: 700 | B79: 12355500 | C79: North Fork Flathead River near Columbia Falls, Montana | D79: 48.49579722 | E79: -114.1267639 | F79: 1556 | G79: 43.92 | H79: 27.784
A80: 704 | B80: 12357000 | C80: Middle Fork Flathead River at Essex, Montana | D80: 48.27509167 | E80: -113.6050889 | F80: 509 | G80: 49.219 | H80: 35.565
A81: 708 | B81: 12358500 | C81: Middle Fork Flathead River near West Glacier, Montana | D81: 48.49551667 | E81: -114.0102083 | F81: 1125 | G81: 49.924 | H81: 40.258
A82: 711 | B82: 12359800 | C82: South Fork Flathead River above Twin Creek, near Hungry Horse, Montana | D82: 47.97909722 | E82: -113.5606833 | F82: 1159 | G82: 49.135 | H82: 34.841
A83: 712 | B83: 12360000 | C83: Twin Creek near Hungry Horse, Montana | D83: 47.98479167 | E83: -113.5613278 | F83: 47.2 | G83: 47.62 | H83: 42.408
A84: 713 | B84: 12361000 | C84: Sullivan Creek near Hungry Horse, Montana | D84: 48.02953889 | E84: -113.704125 | F84: 71.1 | G84: 57.68 | H84: 39.151
A85: 714 | B85: 12361500 | C85: Graves Creek near Hungry Horse, Montana | D85: 48.12785556 | E85: -113.8120722 | F85: 27.9 | G85: 65.553 | H85: 42.243
A86: Upper Yellowstone-Central Mountain hydrologic region
A87: 77 | B87: 6043000 | C87: Taylor Creek near Grayling, Montana | D87: 45.07089722 | E87: -111.2051694 | F87: 98 | G87: 33.607 | H87: --
A88: 80 | B88: 6043500 | C88: Gallatin River near Gallatin Gateway, Montana | D88: 45.4973 | E88: -111.2707083 | F88: 819 | G88: 34.657 | H88: --
A89: 84 | B89: 6048000 | C89: East Gallatin River at Bozeman, Montana | D89: 45.70053611 | E89: -111.0292667 | F89: 151 | G89: 26.616 | H89: --
A90: 85 | B90: 6048500 | C90: Bridger Creek near Bozeman, Montana | D90: 45.705175 | E90: -110.9620556 | F90: 62.3 | G90: 32.927 | H90: --
A91: 87 | B91: 6050000 | C91: Hyalite Creek at Hyalite Ranger Station, near Bozeman, Montana | D91: 45.56146667 | E91: -111.071125 | F91: 48.5 | G91: 33.843 | H91: --
A92: 88 | B92: 6052500 | C92: Gallatin River at Logan, Montana | D92: 45.88535556 | E92: -111.4382861 | F92: 1789 | G92: 27.819 | H92: --
A93: 122 | B93: 6077000 | C93: Sheep Creek near White Sulphur Springs, Montana | D93: 46.76816389 | E93: -110.8099778 | F93: 43.1 | G93: 27.927 | H93: --
A94: 125 | B94: 6077500 | C94: Smith River near Eden, Montana | D94: 47.19005278 | E94: -111.3871944 | F94: 1588 | G94: 19.613 | H94: --
A95: 143 | B95: 6090500 | C95: Belt Creek near Monarch, Montana | D95: 47.20859444 | E95: -110.9317472 | F95: 355 | G95: 24.953 | H95: --
A96: 190 | B96: 6109800 | C96: South Fork Judith River near Utica, Montana | D96: 46.75343333 | E96: -110.3231583 | F96: 49.9 | G96: 26.42 | H96: --
A97: 192 | B97: 6110000 | C97: Judith River near Utica, Montana | D97: 46.89241111 | E97: -110.2314528 | F97: 312 | G97: 25.036 | H97: --
A98: 193 | B98: 6111000 | C98: Ross Fork Creek near Hobson, Montana | D98: 46.99273611 | E98: -109.795075 | F98: 340 | G98: 16.812 | H98: --
A99: 197 | B99: 6114500 | C99: Wolf Creek near Stanford, Montana | D99: 47.11900833 | E99: -110.2872028 | F99: 116.08 | G99: 22.606 | H99: --
A100: 205 | B100: 6115500 | C100: North Fork Musselshell River near Delpine, Montana | D100: 46.60978611 | E100: -110.5766222 | F100: 37.3 | G100: 23.224 | H100: --
A101: 209 | B101: 6118500 | C101: South Fork Musselshell River above Martinsdale, Montana | D101: 46.45324167 | E101: -110.3822889 | F101: 268 | G101: 24.091 | H101: --
A102: 212 | B102: 6120500 | C102: Musselshell River at Harlowton, Montana | D102: 46.4288 | E102: -109.8411944 | F102: 1108 | G102: 20.612 | H102: --
A103: 217 | B103: 6121000 | C103: American Fork near Harlowton, Montana | D103: 46.37395278 | E103: -109.7920917 | F103: 79.1 | G103: 21.36 | H103: --
A104: 218 | B104: 6121500 | C104: Lebo Creek near Harlowton, Montana | D104: 46.38041944 | E104: -109.7992944 | F104: 54.6 | G104: 16.454 | H104: --
A105: 219 | B105: 6122000 | C105: American Fork below Lebo Creek, near Harlowton, Montana | D105: 46.39619722 | E105: -109.7421444 | F105: 171 | G105: 20.802 | H105: --
A106: 423 | B106: 6191000 | C106: Gardner River near Mammoth, Yellowstone National Park, Wyoming | D106: 44.99234444 | E106: -110.690975 | F106: 198 | G106: 32.328 | H106: --
A107: 424 | B107: 6191500 | C107: Yellowstone River at Corwin Springs, Montana | D107: 45.11211944 | E107: -110.7936667 | F107: 2616 | G107: 31.33 | H107: --
A108: 426 | B108: 6193000 | C108: Shields River near Wilsall, Montana | D108: 46.15260556 | E108: -110.5868194 | F108: 90.9 | G108: 30.835 | H108: --
A109: 427 | B109: 6193500 | C109: Shields River at Clyde Park, Montana | D109: 45.88573333 | E109: -110.6179583 | F109: 539 | G109: 22.997 | H109: --
A110: 428 | B110: 6194000 | C110: Brackett Creek near Clyde Park, Montana | D110: 45.86661944 | E110: -110.6702306 | F110: 58.1 | G110: 29.831 | H110: --
A111: 430 | B111: 6197000 | C111: Big Timber Creek near Big Timber, Montana | D111: 45.95431111 | E111: -110.0294556 | F111: 75.3 | G111: 26.764 | H111: --
A112: 431 | B112: 6197500 | C112: Boulder River near Contact, Montana | D112: 45.55453333 | E112: -110.2005417 | F112: 225 | G112: 35.338 | H112: --
A113: 432 | B113: 6200000 | C113: Boulder River at Big Timber, Montana | D113: 45.83379444 | E113: -109.9387056 | F113: 525 | G113: 30.524 | H113: --
A114: 433 | B114: 6200500 | C114: Sweet Grass Creek above Melville, Montana | D114: 46.15538056 | E114: -110.08705 | F114: 60.4 | G114: 35.975 | H114: --
A115: 434 | B115: 6201000 | C115: Sweet Grass Creek below Melville, Montana | D115: 46.06143333 | E115: -109.8452417 | F115: 147 | G115: 25.823 | H115: --
A116: 440 | B116: 6202510 | C116: Stillwater River above Nye Creek, near Nye, Montana | D116: 45.39430833 | E116: -109.8695167 | F116: 192 | G116: 38.847 | H116: --
A117: 442 | B117: 6204500 | C117: Rosebud Creek near Absarokee, Montana | D117: 45.48659167 | E117: -109.4561306 | F117: 396 | G117: 31.599 | H117: --
A118: 443 | B118: 6205000 | C118: Stillwater River near Absarokee, Montana | D118: 45.55143611 | E118: -109.3880306 | F118: 976 | G118: 30.165 | H118: --
A119: 445 | B119: 6207500 | C119: Clarks Fork Yellowstone River near Belfry, Montana | D119: 45.00991111 | E119: -109.0653667 | F119: 1152 | G119: 27.913 | H119: --
A120: 447 | B120: 6207800 | C120: Bluewater Creek near Bridger, Montana | D120: 45.33137222 | E120: -108.801475 | F120: 28.1 | G120: 21.014 | H120: --
A121: 450 | B121: 6209500 | C121: Rock Creek near Red Lodge, Montana | D121: 45.08614722 | E121: -109.3291889 | F121: 105 | G121: 33.574 | H121: --
A122: 451 | B122: 6210000 | C122: West Fork Rock Creek below Basin Creek, near Red Lodge, Montana | D122: 45.15453611 | E122: -109.3674333 | F122: 51.1 | G122: 32.933 | H122: --
A123: 453 | B123: 6211000 | C123: Red Lodge Creek above Cooney Reservoir, near Boyd, Montana | D123: 45.43785 | E123: -109.2533111 | F123: 142 | G123: 23.78 | H123: --
A124: 454 | B124: 6211500 | C124: Willow Creek near Boyd, Montana | D124: 45.42214722 | E124: -109.2305306 | F124: 49.2 | G124: 20.878 | H124: --
A125: 460 | B125: 6216000 | C125: Pryor Creek at Pryor, Montana | D125: 45.43467778 | E125: -108.5336528 | F125: 118 | G125: 20.271 | H125: --
A126: 464 | B126: 6216900 | C126: Pryor Creek near Huntley, Montana | D126: 45.81969444 | E126: -108.2903333 | F126: 574 | G126: 17.827 | H126: --
A127: 471 | B127: 6287500 | C127: Soap Creek near St. Xavier, Montana | D127: 45.32690833 | E127: -107.7698278 | F127: 94.4 | G127: 19.937 | H127: --
A128: 472 | B128: 6288000 | C128: Rotten Grass Creek near St. Xavier, Montana | D128: 45.41216667 | E128: -107.6831028 | F128: 146 | G128: 18.914 | H128: --
A129: 473 | B129: 6288200 | C129: Beauvais Creek near St. Xavier, Montana | D129: 45.47703889 | E129: -108.0079639 | F129: 123 | G129: 19.017 | H129: --
A130: 475 | B130: 6289000 | C130: Little Bighorn River at State line, near Wyola, Montana | D130: 45.00711111 | E130: -107.6154083 | F130: 182 | G130: 26.694 | H130: --
A131: 477 | B131: 6290000 | C131: Pass Creek near Wyola, Montana | D131: 45.05626389 | E131: -107.3559 | F131: 113 | G131: 20.068 | H131: --
A132: 479 | B132: 6290500 | C132: Little Bighorn River below Pass Creek, near Wyola, Montana | D132: 45.17713333 | E132: -107.39455 | F132: 426 | G132: 22.354 | H132: --
A133: 480 | B133: 6291000 | C133: Owl Creek near Lodge Grass, Montana | D133: 45.26796667 | E133: -107.3013833 | F133: 163 | G133: 18.738 | H133: --
A134: 481 | B134: 6291500 | C134: Lodge Grass Creek above Willow Creek diversion, near Wyola, Montana | D134: 45.12648056 | E134: -107.5998917 | F134: 83.9 | G134: 23.187 | H134: --
A135: 484 | B135: 6294000 | C135: Little Bighorn River near Hardin, Montana | D135: 45.73568611 | E135: -107.5574694 | F135: 1294 | G135: 19.598 | H135: --
A136: Southwest hydrologic region
A137: 15 | B137: 6006000 | C137: Red Rock Creek above Lakes, near Lakeview, Montana | D137: 44.61703056 | E137: -111.6567472 | F137: 37.3 | G137: 37.018 | H137: 10.268
A138: 16 | B138: 6011000 | C138: Red Rock River at Kennedy Ranch, near Lakeview, Montana | D138: 44.64793056 | E138: -112.0564056 | F138: 321 | G138: 27.319 | H138: 4.4
A139: 20 | B139: 6013500 | C139: Big Sheep Creek below Muddy Creek, near Dell, Montana | D139: 44.65511111 | E139: -112.778475 | F139: 279 | G139: 19.766 | H139: 10.601
A140: 25 | B140: 6015500 | C140: Grasshopper Creek near Dillon, Montana | D140: 45.11014167 | E140: -112.8008194 | F140: 348 | G140: 16.738 | H140: 3.956
A141: 29 | B141: 6017500 | C141: Blacktail Deer Creek near Dillon, Montana | D141: 45.04606389 | E141: -112.5496556 | F141: 316 | G141: 20.411 | H141: 6.382
A142: 33 | B142: 6019500 | C142: Ruby River above reservoir, near Alder, Montana | D142: 45.19231944 | E142: -112.1428167 | F142: 534 | G142: 21.619 | H142: 6.135
A143: 39 | B143: 6024450 | C143: Big Hole River below Big Lake Creek, at Wisdom, Montana | D143: 45.61796667 | E143: -113.4569417 | F143: 586 | G143: 23.272 | H143: 5.007
A144: 40 | B144: 6024500 | C144: Trail Creek near Wisdom, Montana | D144: 45.65641944 | E144: -113.7167028 | F144: 72.6 | G144: 36.443 | H144: 0.962
A145: 41 | B145: 6024540 | C145: Big Hole River below Mudd Creek, near Wisdom, Montana | D145: 45.80754167 | E145: -113.3132694 | F145: 1275 | G145: 23.653 | H145: 3.818
A146: 42 | B146: 6024590 | C146: Wise River near Wise River, Montana | D146: 45.70455556 | E146: -113.0316111 | F146: 221 | G146: 27.881 | H146: 14.769
A147: 45 | B147: 6025500 | C147: Big Hole River near Melrose, Montana | D147: 45.52658056 | E147: -112.701725 | F147: 2472 | G147: 23.553 | H147: 6.984
A148: 46 | B148: 6026000 | C148: Birch Creek near Glen, Montana | D148: 45.37949167 | E148: -112.7975444 | F148: 35.7 | G148: 24.382 | H148: 18.842
A149: 54 | B149: 6030500 | C149: Boulder River above Rock Creek, near Basin, Montana | D149: 46.25426944 | E149: -112.5009472 | F149: 24.4 | G149: 24.254 | H149: 0.995
A150: 56 | B150: 6033000 | C150: Boulder River near Boulder, Montana | D150: 46.21103056 | E150: -112.09165 | F150: 381 | G150: 22.003 | H150: 5.318
A151: 60 | B151: 6035000 | C151: Willow Creek near Harrison, Montana | D151: 45.72305833 | E151: -111.741025 | F151: 85.9 | G151: 27.941 | H151: 16.714
A152: 62 | B152: 6036500 | C152: Willow Creek near Willow Creek, Montana | D152: 45.75035 | E152: -111.6582083 | F152: 167 | G152: 22.306 | H152: 9.074
A153: 74 | B153: 6040300 | C153: Jack Creek near Ennis, Montana | D153: 45.35626667 | E153: -111.5816222 | F153: 51.3 | G153: 30.565 | H153: 22.553
A154: 91 | B154: 6055500 | C154: Crow Creek near Radersburg, Montana | D154: 46.26228889 | E154: -111.6871194 | F154: 77.9 | G154: 25.632 | H154: 6.555
A155: 97 | B155: 6061500 | C155: Prickly Pear Creek near Clancy, Montana | D155: 46.51909722 | E155: -111.9467861 | F155: 192 | G155: 19.059 | H155: 4.905
A156: 101 | B156: 6062500 | C156: Tenmile Creek near Rimini, Montana | D156: 46.52389722 | E156: -112.2566472 | F156: 33 | G156: 24.778 | H156: 7.538
A157: 103 | B157: 6063000 | C157: Tenmile Creek near Helena, Montana | D157: 46.604925 | E157: -112.0893611 | F157: 98.7 | G157: 20.861 | H157: 5.635
A158: 106 | B158: 6068500 | C158: Little Prickly Pear Creek near Marysville, Montana | D158: 46.78771111 | E158: -112.4067222 | F158: 44.6 | G158: 23.792 | H158: 19.781
A159: 107 | B159: 6071000 | C159: Little Prickly Pear Creek near Canyon Creek, Montana | D159: 46.81890833 | E159: -112.2505056 | F159: 182 | G159: 20.944 | H159: 12.387
A160: 109 | B160: 6071300 | C160: Little Prickly Pear Creek at Wolf Creek, Montana | D160: 47.00543611 | E160: -112.0703111 | F160: 391 | G160: 18.468 | H160: 13.943

Sheet Table 1-3_Lookup (hidden)
A1: Table 1-4. Regression equations for estimating streamflow characteristics at ungaged sites in Western Montana.
A2: [Q, streamflow, in cubic feet per second, for indicated streamflow characteristic (definitions provided in table 1-XX); A, contributing drainage area, in square miles; SLP50, percent of basin with slope greater than 50 percent; P, mean annual precipitation, in inches; GLS, generalized least squares; OLS, ordinary least squares; n, number of gaging stations used in developing regression equations for indicated hydrologic region; MEV, model error variance; --, not determined for method of regression used; AVP, average variance of prediction;SEM, average standard error of model; SEP, average standard error of prediction; Pseudo-R2, pseudo coefficient of determination; RMSE, root mean square error of model; R2, coefficient of detemination]
A3: Regression equation for indicated streamflow characteristic | B3: Method of regression | C3: Number of gaging stations (n)1 | D3: MEV, in log units | E3: AVP, in log units | F3: SEM, in percent | G3: SEP, in percent | H3: Pseudo-R2, in percent | I3: RMSE, in percent | J3: R2, in percent | K3: Coefficient for drainage area adjustment2 | U3: =sign | V3: A | W3: P | X3: SLP50 | AB3: Region | AC3: Flow | AD3: V1 | AE3: V2 | AF3: Contant exp | AG3: V1 exp | AH3: V2 exp
A4: West hydrologic region
A5: QAL7Q10=10-1.678A0.964(SLP50 + 1)0.676 | B5: GLS | C5: 43 | D5: 0.067 | E5: 0.073 | F5: 65.43 | G5: 68.54 | H5: 84.85 | I5: -- | J5: -- | K5: 0.8226439483 | Q5: 1 | U5: =FIND("=",A5) -> 8 | V5: =FIND(V$3,$A5,U5) -> 17 | W5: =IF(X5<>"X","X",FIND(W$3,$A5)) -> X | X5: =IF(ISERROR(FIND(X$3,$A5)),"X",FIND(X$3,$A5)) -> 24 | Z5: =IF(W5="X",FIND("(",A5),W5) -> 23 | AA5: =IF(W5="X",FIND(")",A5),W5) -> 33 | AB5: West | AC5: QAL7Q10 | AD5: A | AE5: =IF(W5="X","SLP50","P") -> SLP50 | AF5: =MID(A5,U5+3,V5-U5-3) -> -1.678 | AG5: =MID(A5,V5+1,Z5-V5-1) -> 0.964 | AH5: =MID(A5,AA5+1,LEN(A5)-AA5) -> 0.676
A6: QS214Q5=10-1.402A0.913(SLP50 + 1)0.711 | B6: GLS | C6: 46 | D6: 0.072 | E6: 0.078 | F6: 68.43 | G6: 71.44 | H6: 82.92 | I6: -- | J6: -- | K6: 0.7747305585 | Q6: 2 | U6: =FIND("=",A6) -> 8 | V6: =FIND(V$3,$A6,U6) -> 17 | W6: =IF(X6<>"X","X",FIND(W$3,$A6)) -> X | X6: =IF(ISERROR(FIND(X$3,$A6)),"X",FIND(X$3,$A6)) -> 24 | Z6: =IF(W6="X",FIND("(",A6),W6) -> 23 | AA6: =IF(W6="X",FIND(")",A6),W6) -> 33 | AB6: West | AC6: QS214Q5 | AD6: A | AE6: =IF(W6="X","SLP50","P") -> SLP50 | AF6: =MID(A6,U6+3,V6-U6-3) -> -1.402 | AG6: =MID(A6,V6+1,Z6-V6-1) -> 0.913 | AH6: =MID(A6,AA6+1,LEN(A6)-AA6) -> 0.711
A7: QA0.2=10-0.913A0.956(SLP50 + 1)0.882 | B7: OLS | C7: 50 | D7: -- | E7: -- | F7: -- | G7: -- | H7: -- | I7: 53.19670147 | J7: 88.51 | K7: 0.7862882775 | Q7: 3 | U7: 6 | V7: 15 | W7: X | X7: 22 | Z7: 21 | AA7: 31 | AB7: West | AC7: QA0.2 | AD7: A | AE7: SLP50 | AF7: -0.913 | AG7: 0.956 | AH7: 0.882
A8: QA0.5=10-1.075A0.937(SLP50 + 1)0.716 | B8: OLS | C8: 50 | D8: -- | E8: -- | F8: -- | G8: -- | H8: -- | I8: 41.52193636 | J8: 92.11 | K8: 0.7993953577 | Q8: 4 | U8: 6 | V8: 15 | W8: X | X8: 22 | Z8: 21 | AA8: 31 | AB8: West | AC8: QA0.5 | AD8: A | AE8: SLP50 | AF8: -1.075 | AG8: 0.937 | AH8: 0.716
A9: QA0.8=10-1.405A0.942(SLP50 + 1)0.732 | B9: OLS | C9: 50 | D9: -- | E9: -- | F9: -- | G9: -- | H9: -- | I9: 45.85881321 | J9: 90.77 | K9: 0.8005419502 | Q9: 5 | U9: 6 | V9: 15 | W9: X | X9: 22 | Z9: 21 | AA9: 31 | AB9: West | AC9: QA0.8 | AD9: A | AE9: SLP50 | AF9: -1.405 | AG9: 0.942 | AH9: 0.732
A10: QAMEAN=10-0.973A0.95(SLP50 + 1)0.827 | B10: OLS | C10: 50 | D10: -- | E10: -- | F10: -- | G10: -- | H10: -- | I10: 45.1556275 | J10: 91.13 | K10: 0.7899839135 | Q10: 6 | U10: 7 | V10: 16 | W10: X | X10: 22 | Z10: 21 | AA10: 31 | AB10: West | AC10: QAMEAN | AD10: A | AE10: SLP50 | AF10: -0.973 | AG10: 0.95 | AH10: 0.827
A11: QJAN0.2=10-1.355A1.005(SLP50 + 1)0.763 | B11: OLS | C11: 51 | D11: -- | E11: -- | F11: -- | G11: -- | H11: -- | I11: 47.92785743 | J11: 91.05 | K11: 0.858981395 | Q11: 7 | U11: 8 | V11: 17 | W11: X | X11: 24 | Z11: 23 | AA11: 33 | AB11: West | AC11: QJAN0.2 | AD11: A | AE11: SLP50 | AF11: -1.355 | AG11: 1.005 | AH11: 0.763
A12: QJAN0.5=10-1.539A1.00(SLP50 + 1)0.792 | B12: OLS | C12: 51 | D12: -- | E12: -- | F12: -- | G12: -- | H12: -- | I12: 49.94236163 | J12: 90.29 | K12: 0.8488307929 | Q12: 8 | U12: 8 | V12: 17 | W12: X | X12: 23 | Z12: 22 | AA12: 32 | AB12: West | AC12: QJAN0.5 | AD12: A | AE12: SLP50 | AF12: -1.539 | AG12: 1.00 | AH12: 0.792
A13: QJAN0.8=10-1.832A1.011(SLP50 + 1)0.88 | B13: OLS | C13: 51 | D13: -- | E13: -- | F13: -- | G13: -- | H13: -- | I13: 64.72773303 | J13: 85.88 | K13: 0.8426842611 | Q13: 9 | U13: 8 | V13: 17 | W13: X | X13: 24 | Z13: 23 | AA13: 33 | AB13: West | AC13: QJAN0.8 | AD13: A | AE13: SLP50 | AF13: -1.832 | AG13: 1.011 | AH13: 0.88
A14: QJANMEAN=10-1.384A0.996(SLP50 + 1)0.725 | B14: OLS | C14: 51 | D14: -- | E14: -- | F14: -- | G14: -- | H14: -- | I14: 47.92785743 | J14: 90.86 | K14: 0.8568329779 | Q14: 10 | U14: 9 | V14: 18 | W14: X | X14: 25 | Z14: 24 | AA14: 34 | AB14: West | AC14: QJANMEAN | AD14: A | AE14: SLP50 | AF14: -1.384 | AG14: 0.996 | AH14: 0.725
A15: QFEB0.2=10-1.221A1.007(SLP50 + 1)0.662 | B15: OLS | C15: 52 | D15: -- | E15: -- | F15: -- | G15: -- | H15: -- | I15: 47.24461183 | J15: 91.1 | K15: 0.8761907287 | Q15: 11 | U15: 8 | V15: 17 | W15: X | X15: 24 | Z15: 23 | AA15: 33 | AB15: West | AC15: QFEB0.2 | AD15: A | AE15: SLP50 | AF15: -1.221 | AG15: 1.007 | AH15: 0.662
A16: QFEB0.5=10-1.513A1.019(SLP50 + 1)0.74 | B16: OLS | C16: 52 | D16: -- | E16: -- | F16: -- | G16: -- | H16: -- | I16: 50.60295891 | J16: 90.18 | K16: 0.872688073 | Q16: 12 | U16: 8 | V16: 17 | W16: X | X16: 24 | Z16: 23 | AA16: 33 | AB16: West | AC16: QFEB0.5 | AD16: A | AE16: SLP50 | AF16: -1.513 | AG16: 1.019 | AH16: 0.74
A17: QFEB0.8=10-1.938A1.037(SLP50 + 1)0.914 | B17: OLS | C17: 52 | D17: -- | E17: -- | F17: -- | G17: -- | H17: -- | I17: 77.65288554 | J17: 82.29 | K17: 0.8564154593 | Q17: 13 | U17: 8 | V17: 17 | W17: X | X17: 24 | Z17: 23 | AA17: 33 | AB17: West | AC17: QFEB0.8 | AD17: A | AE17: SLP50 | AF17: -1.938 | AG17: 1.037 | AH17: 0.914
A18: QFEBMEAN=10-1.356A1.015(SLP50 + 1)0.683 | B18: OLS | C18: 52 | D18: -- | E18: -- | F18: -- | G18: -- | H18: -- | I18: 50.60295891 | J18: 90.23 | K18: 0.8800334077 | Q18: 14 | U18: 9 | V18: 18 | W18: X | X18: 25 | Z18: 24 | AA18: 34 | AB18: West | AC18: QFEBMEAN | AD18: A | AE18: SLP50 | AF18: -1.356 | AG18: 1.015 | AH18: 0.683
A19: QMAR0.2=10-0.944A1.014(SLP50 + 1)0.52 | B19: OLS | C19: 52 | D19: -- | E19: -- | F19: -- | G19: -- | H19: -- | I19: 58.79577944 | J19: 87.72 | K19: 0.9119957522 | Q19: 15 | U19: 8 | V19: 17 | W19: X | X19: 24 | Z19: 23 | AA19: 33 | AB19: West | AC19: QMAR0.2 | AD19: A | AE19: SLP50 | AF19: -0.944 | AG19: 1.014 | AH19: 0.52
A20: QMAR0.5=10-1.235A1.019(SLP50 + 1)0.604 | B20: OLS | C20: 52 | D20: -- | E20: -- | F20: -- | G20: -- | H20: -- | I20: 47.92785743 | J20: 91.08 | K20: 0.9002434674 | Q20: 16 | U20: 8 | V20: 17 | W20: X | X20: 24 | Z20: 23 | AA20: 33 | AB20: West | AC20: QMAR0.5 | AD20: A | AE20: SLP50 | AF20: -1.235 | AG20: 1.019 | AH20: 0.604
A21: QMAR0.8=10-1.57A1.032(SLP50 + 1)0.716 | B21: OLS | C21: 52 | D21: -- | E21: -- | F21: -- | G21: -- | H21: -- | I21: 50.60295891 | J21: 90.54 | K21: 0.8905228519 | Q21: 17 | U21: 8 | V21: 16 | W21: X | X21: 23 | Z21: 22 | AA21: 32 | AB21: West | AC21: QMAR0.8 | AD21: A | AE21: SLP50 | AF21: -1.57 | AG21: 1.032 | AH21: 0.716
A22: QMARMEAN=10-1.045A1.014(SLP50 + 1)0.529 | B22: OLS | C22: 52 | D22: -- | E22: -- | F22: -- | G22: -- | H22: -- | I22: 52.55516543 | J22: 89.62 | K22: 0.9097120145 | Q22: 18 | U22: 9 | V22: 18 | W22: X | X22: 25 | Z22: 24 | AA22: 34 | AB22: West | AC22: QMARMEAN | AD22: A | AE22: SLP50 | AF22: -1.045 | AG22: 1.014 | AH22: 0.529
A23: QAPR0.2=10-0.524A0.997(SLP50 + 1)0.574 | B23: OLS | C23: 53 | D23: -- | E23: -- | F23: -- | G23: -- | H23: -- | I23: 79.2904806 | J23: 81.13 | K23: 0.888714729 | Q23: 19 | U23: 8 | V23: 17 | W23: X | X23: 24 | Z23: 23 | AA23: 33 | AB23: West | AC23: QAPR0.2 | AD23: A | AE23: SLP50 | AF23: -0.524 | AG23: 0.997 | AH23: 0.574
A24: QAPR0.5=10-0.954A1.027(SLP50 + 1)0.649 | B24: OLS | C24: 53 | D24: -- | E24: -- | F24: -- | G24: -- | H24: -- | I24: 71.00600867 | J24: 84.33 | K24: 0.9039730867 | Q24: 20 | U24: 8 | V24: 17 | W24: X | X24: 24 | Z24: 23 | AA24: 33 | AB24: West | AC24: QAPR0.5 | AD24: A | AE24: SLP50 | AF24: -0.954 | AG24: 1.027 | AH24: 0.649
A25: QAPR0.8=10-1.164A1.021(SLP50 + 1)0.633 | B25: OLS | C25: 53 | D25: -- | E25: -- | F25: -- | G25: -- | H25: -- | I25: 60.00332882 | J25: 87.6 | K25: 0.9018991444 | Q25: 21 | U25: 8 | V25: 17 | W25: X | X25: 24 | Z25: 23 | AA25: 33 | AB25: West | AC25: QAPR0.8 | AD25: A | AE25: SLP50 | AF25: -1.164 | AG25: 1.021 | AH25: 0.633
A26: QAPRMEAN=10-0.714A0.998(SLP50 + 1)0.601 | B26: OLS | C26: 53 | D26: -- | E26: -- | F26: -- | G26: -- | H26: -- | I26: 72.12631112 | J26: 83.28 | K26: 0.8848974282 | Q26: 22 | U26: 9 | V26: 18 | W26: X | X26: 25 | Z26: 24 | AA26: 34 | AB26: West | AC26: QAPRMEAN | AD26: A | AE26: SLP50 | AF26: -0.714 | AG26: 0.998 | AH26: 0.601
A27: QMAY0.2=10-0.387A0.961(SLP50 + 1)0.819 | B27: OLS | C27: 53 | D27: -- | E27: -- | F27: -- | G27: -- | H27: -- | I27: 65.88585915 | J27: 84.32 | K27: 0.8063526251 | Q27: 23 | U27: 8 | V27: 17 | W27: X | X27: 24 | Z27: 23 | AA27: 33 | AB27: West | AC27: QMAY0.2 | AD27: A | AE27: SLP50 | AF27: -0.387 | AG27: 0.961 | AH27: 0.819
A28: QMAY0.5=10-0.769A0.995(SLP50 + 1)0.886 | B28: OLS | C28: 53 | D28: -- | E28: -- | F28: -- | G28: -- | H28: -- | I28: 70.44368608 | J28: 83.72 | K28: 0.8279098383 | Q28: 24 | U28: 8 | V28: 17 | W28: X | X28: 24 | Z28: 23 | AA28: 33 | AB28: West | AC28: QMAY0.5 | AD28: A | AE28: SLP50 | AF28: -0.769 | AG28: 0.995 | AH28: 0.886
A29: QMAY0.8=10-1.049A1.011(SLP50 + 1)0.899 | B29: OLS | C29: 53 | D29: -- | E29: -- | F29: -- | G29: -- | H29: -- | I29: 77.10515659 | J29: 82.18 | K29: 0.8409075177 | Q29: 25 | U29: 8 | V29: 17 | W29: X | X29: 24 | Z29: 23 | AA29: 33 | AB29: West | AC29: QMAY0.8 | AD29: A | AE29: SLP50 | AF29: -1.049 | AG29: 1.011 | AH29: 0.899
A30: QMAYMEAN=10-0.567A0.971(SLP50 + 1)0.823 | B30: OLS | C30: 53 | D30: -- | E30: -- | F30: -- | G30: -- | H30: -- | I30: 66.46189571 | J30: 84.38 | K30: 0.815720646 | Q30: 26 | U30: 9 | V30: 18 | W30: X | X30: 25 | Z30: 24 | AA30: 34 | AB30: West | AC30: QMAYMEAN | AD30: A | AE30: SLP50 | AF30: -0.567 | AG30: 0.971 | AH30: 0.823
A31: QJUN0.2=10-0.559A0.955(SLP50 + 1)0.967 | B31: OLS | C31: 53 | D31: -- | E31: -- | F31: -- | G31: -- | H31: -- | I31: 54.46705622 | J31: 88.21 | K31: 0.7722803076 | Q31: 27 | U31: 8 | V31: 17 | W31: X | X31: 24 | Z31: 23 | AA31: 33 | AB31: West | AC31: QJUN0.2 | AD31: A | AE31: SLP50 | AF31: -0.559 | AG31: 0.955 | AH31: 0.967
A32: QJUN0.5=10-0.987A0.975(SLP50 + 1)1.107 | B32: OLS | C32: 53 | D32: -- | E32: -- | F32: -- | G32: -- | H32: -- | I32: 60.00332882 | J32: 87 | K32: 0.7656091852 | Q32: 28 | U32: 8 | V32: 17 | W32: X | X32: 24 | Z32: 23 | AA32: 33 | AB32: West | AC32: QJUN0.5 | AD32: A | AE32: SLP50 | AF32: -0.987 | AG32: 0.975 | AH32: 1.107
A33: QJUN0.8=10-1.27A0.958(SLP50 + 1)1.167 | B33: OLS | C33: 53 | D33: -- | E33: -- | F33: -- | G33: -- | H33: -- | I33: 65.88585915 | J33: 84.99 | K33: 0.737753345 | Q33: 29 | U33: 8 | V33: 16 | W33: X | X33: 23 | Z33: 22 | AA33: 32 | AB33: West | AC33: QJUN0.8 | AD33: A | AE33: SLP50 | AF33: -1.27 | AG33: 0.958 | AH33: 1.167
A34: QJUNMEAN=10-0.776A0.956(SLP50 + 1)1.017 | B34: OLS | C34: 53 | D34: -- | E34: -- | F34: -- | G34: -- | H34: -- | I34: 55.09620303 | J34: 88.12 | K34: 0.7637553966 | Q34: 30 | U34: 9 | V34: 18 | W34: X | X34: 25 | Z34: 24 | AA34: 34 | AB34: West | AC34: QJUNMEAN | AD34: A | AE34: SLP50 | AF34: -0.776 | AG34: 0.956 | AH34: 1.017
A35: QJUL0.2=10-0.986A0.923(SLP50 + 1)1.021 | B35: OLS | C35: 53 | D35: -- | E35: -- | F35: -- | G35: -- | H35: -- | I35: 58.79577944 | J35: 86.18 | K35: 0.7304093 | Q35: 31 | U35: 8 | V35: 17 | W35: X | X35: 24 | Z35: 23 | AA35: 33 | AB35: West | AC35: QJUL0.2 | AD35: A | AE35: SLP50 | AF35: -0.986 | AG35: 0.923 | AH35: 1.021
A36: QJUL0.5=10-1.154A0.897(SLP50 + 1)1.019 | B36: OLS | C36: 53 | D36: -- | E36: -- | F36: -- | G36: -- | H36: -- | I36: 60.60280384 | J36: 84.85 | K36: 0.7046366345 | Q36: 32 | U36: 8 | V36: 17 | W36: X | X36: 24 | Z36: 23 | AA36: 33 | AB36: West | AC36: QJUL0.5 | AD36: A | AE36: SLP50 | AF36: -1.154 | AG36: 0.897 | AH36: 1.019
A37: QJUL0.8=10-1.312A0.878(SLP50 + 1)1.006 | B37: OLS | C37: 53 | D37: -- | E37: -- | F37: -- | G37: -- | H37: -- | I37: 63.56105695 | J37: 83.12 | K37: 0.6881582136 | Q37: 33 | U37: 8 | V37: 17 | W37: X | X37: 24 | Z37: 23 | AA37: 33 | AB37: West | AC37: QJUL0.8 | AD37: A | AE37: SLP50 | AF37: -1.312 | AG37: 0.878 | AH37: 1.006
A38: QJULMEAN=10-1.077A0.908(SLP50 + 1)1.009 | B38: OLS | C38: 53 | D38: -- | E38: -- | F38: -- | G38: -- | H38: -- | I38: 55.7215345 | J38: 86.73 | K38: 0.7170139953 | Q38: 34 | U38: 9 | V38: 18 | W38: X | X38: 25 | Z38: 24 | AA38: 34 | AB38: West | AC38: QJULMEAN | AD38: A | AE38: SLP50 | AF38: -1.077 | AG38: 0.908 | AH38: 1.009
A39: QAUG0.2=10-1.025A0.886(SLP50 + 1)0.807 | B39: OLS | C39: 53 | D39: -- | E39: -- | F39: -- | G39: -- | H39: -- | I39: 58.18749196 | J39: 84.97 | K39: 0.7336972251 | Q39: 35 | U39: 8 | V39: 17 | W39: X | X39: 24 | Z39: 23 | AA39: 33 | AB39: West | AC39: QAUG0.2 | AD39: A | AE39: SLP50 | AF39: -1.025 | AG39: 0.886 | AH39: 0.807
A40: QAUG0.5=10-1.224A0.88(SLP50 + 1)0.857 | B40: OLS | C40: 53 | D40: -- | E40: -- | F40: -- | G40: -- | H40: -- | I40: 62.38521636 | J40: 83.18 | K40: 0.7180470344 | Q40: 36 | U40: 8 | V40: 17 | W40: X | X40: 23 | Z40: 22 | AA40: 32 | AB40: West | AC40: QAUG0.5 | AD40: A | AE40: SLP50 | AF40: -1.224 | AG40: 0.88 | AH40: 0.857
A41: QAUG0.8=10-1.563A0.891(SLP50 + 1)0.971 | B41: OLS | C41: 53 | D41: -- | E41: -- | F41: -- | G41: -- | H41: -- | I41: 76.55643634 | J41: 78.76 | K41: 0.7072197036 | Q41: 37 | U41: 8 | V41: 17 | W41: X | X41: 24 | Z41: 23 | AA41: 33 | AB41: West | AC41: QAUG0.8 | AD41: A | AE41: SLP50 | AF41: -1.563 | AG41: 0.891 | AH41: 0.971
A42: QAUGMEAN=10-1.16A0.881(SLP50 + 1)0.831 | B42: OLS | C42: 53 | D42: -- | E42: -- | F42: -- | G42: -- | H42: -- | I42: 60.00332882 | J42: 84.28 | K42: 0.7242012357 | Q42: 38 | U42: 9 | V42: 17 | W42: X | X42: 24 | Z42: 23 | AA42: 33 | AB42: West | AC42: QAUGMEAN | AD42: A | AE42: SLP50 | AF42: -1.16 | AG42: 0.881 | AH42: 0.831
A43: QSEP0.2=10-1.174A0.923(SLP50 + 1)0.776 | B43: OLS | C43: 53 | D43: -- | E43: -- | F43: -- | G43: -- | H43: -- | I43: 51.90915654 | J43: 88.11 | K43: 0.7760151952 | Q43: 39 | U43: 8 | V43: 17 | W43: X | X43: 24 | Z43: 23 | AA43: 33 | AB43: West | AC43: QSEP0.2 | AD43: A | AE43: SLP50 | AF43: -1.174 | AG43: 0.923 | AH43: 0.776
A44: QSEP0.5=10-1.358A0.93(SLP50 + 1)0.8 | B44: OLS | C44: 53 | D44: -- | E44: -- | F44: -- | G44: -- | H44: -- | I44: 61.79365388 | J44: 84.89 | K44: 0.7793125817 | Q44: 40 | U44: 8 | V44: 17 | W44: X | X44: 23 | Z44: 22 | AA44: 32 | AB44: West | AC44: QSEP0.5 | AD44: A | AE44: SLP50 | AF44: -1.358 | AG44: 0.93 | AH44: 0.8
A45: QSEP0.8=10-1.708A0.95(SLP50 + 1)0.921 | B45: OLS | C45: 53 | D45: -- | E45: -- | F45: -- | G45: -- | H45: -- | I45: 90.58256599 | J45: 76.17 | K45: 0.7756319944 | Q45: 41 | U45: 8 | V45: 17 | W45: X | X45: 23 | Z45: 22 | AA45: 32 | AB45: West | AC45: QSEP0.8 | AD45: A | AE45: SLP50 | AF45: -1.708 | AG45: 0.95 | AH45: 0.921
A46: QSEPMEAN=10-1.319A0.923(SLP50 + 1)0.813 | B46: OLS | C46: 53 | D46: -- | E46: -- | F46: -- | G46: -- | H46: -- | I46: 55.09620303 | J46: 87.13 | K46: 0.7690278683 | Q46: 42 | U46: 9 | V46: 18 | W46: X | X46: 25 | Z46: 24 | AA46: 34 | AB46: West | AC46: QSEPMEAN | AD46: A | AE46: SLP50 | AF46: -1.319 | AG46: 0.923 | AH46: 0.813
A47: QOCT0.2=10-1.232A0.92(SLP50 + 1)0.843 | B47: OLS | C47: 52 | D47: -- | E47: -- | F47: -- | G47: -- | H47: -- | I47: 46.55503227 | J47: 90.17 | K47: 0.7595411595 | Q47: 43 | U47: 8 | V47: 17 | W47: X | X47: 23 | Z47: 22 | AA47: 32 | AB47: West | AC47: QOCT0.2 | AD47: A | AE47: SLP50 | AF47: -1.232 | AG47: 0.92 | AH47: 0.843
A48: QOCT0.5=10-1.403A0.947(SLP50 + 1)0.824 | B48: OLS | C48: 52 | D48: -- | E48: -- | F48: -- | G48: -- | H48: -- | I48: 48.605055 | J48: 89.97 | K48: 0.7900280646 | Q48: 44 | U48: 8 | V48: 17 | W48: X | X48: 24 | Z48: 23 | AA48: 33 | AB48: West | AC48: QOCT0.5 | AD48: A | AE48: SLP50 | AF48: -1.403 | AG48: 0.947 | AH48: 0.824
A49: QOCT0.8=10-1.678A0.979(SLP50 + 1)0.872 | B49: OLS | C49: 52 | D49: -- | E49: -- | F49: -- | G49: -- | H49: -- | I49: 73.24114723 | J49: 82.54 | K49: 0.8130744594 | Q49: 45 | U49: 8 | V49: 17 | W49: X | X49: 24 | Z49: 23 | AA49: 33 | AB49: West | AC49: QOCT0.8 | AD49: A | AE49: SLP50 | AF49: -1.678 | AG49: 0.979 | AH49: 0.872
A50: QOCTMEAN=10-1.389A0.943(SLP50 + 1)0.857 | B50: OLS | C50: 52 | D50: -- | E50: -- | F50: -- | G50: -- | H50: -- | I50: 45.85881321 | J50: 90.92 | K50: 0.779181225 | Q50: 46 | U50: 9 | V50: 18 | W50: X | X50: 25 | Z50: 24 | AA50: 34 | AB50: West | AC50: QOCTMEAN | AD50: A | AE50: SLP50 | AF50: -1.389 | AG50: 0.943 | AH50: 0.857
A51: QNOV0.2=10-1.314A0.965(SLP50 + 1)0.857 | B51: OLS | C51: 52 | D51: -- | E51: -- | F51: -- | G51: -- | H51: -- | I51: 48.605055 | J51: 89.88 | K51: 0.7956160257 | Q51: 47 | U51: 8 | V51: 17 | W51: X | X51: 24 | Z51: 23 | AA51: 33 | AB51: West | AC51: QNOV0.2 | AD51: A | AE51: SLP50 | AF51: -1.314 | AG51: 0.965 | AH51: 0.857
A52: QNOV0.5=10-1.438A0.972(SLP50 + 1)0.818 | B52: OLS | C52: 52 | D52: -- | E52: -- | F52: -- | G52: -- | H52: -- | I52: 45.85881321 | J52: 90.96 | K52: 0.8103659679 | Q52: 48 | U52: 8 | V52: 17 | W52: X | X52: 24 | Z52: 23 | AA52: 33 | AB52: West | AC52: QNOV0.5 | AD52: A | AE52: SLP50 | AF52: -1.438 | AG52: 0.972 | AH52: 0.818
A53: QNOV0.8=10-1.622A0.983(SLP50 + 1)0.824 | B53: OLS | C53: 52 | D53: -- | E53: -- | F53: -- | G53: -- | H53: -- | I53: 60.60280384 | J53: 86.25 | K53: 0.820198303 | Q53: 49 | U53: 8 | V53: 17 | W53: X | X53: 24 | Z53: 23 | AA53: 33 | AB53: West | AC53: QNOV0.8 | AD53: A | AE53: SLP50 | AF53: -1.622 | AG53: 0.983 | AH53: 0.824
A54: QNOVMEAN=10-1.37A0.962(SLP50 + 1)0.83 | B54: OLS | C54: 52 | D54: -- | E54: -- | F54: -- | G54: -- | H54: -- | I54: 49.27647253 | J54: 89.73 | K54: 0.7978557274 | Q54: 50 | U54: 9 | V54: 17 | W54: X | X54: 24 | Z54: 23 | AA54: 33 | AB54: West | AC54: QNOVMEAN | AD54: A | AE54: SLP50 | AF54: -1.37 | AG54: 0.962 | AH54: 0.83
A55: QDEC0.2=10-1.342A0.972(SLP50 + 1)0.837 | B55: OLS | C55: 52 | D55: -- | E55: -- | F55: -- | G55: -- | H55: -- | I55: 50.60295891 | J55: 89.34 | K55: 0.8071375563 | Q55: 51 | U55: 8 | V55: 17 | W55: X | X55: 24 | Z55: 23 | AA55: 33 | AB55: West | AC55: QDEC0.2 | AD55: A | AE55: SLP50 | AF55: -1.342 | AG55: 0.972 | AH55: 0.837
A56: QDEC0.5=10-1.523A0.976(SLP50 + 1)0.841 | B56: OLS | C56: 52 | D56: -- | E56: -- | F56: -- | G56: -- | H56: -- | I56: 50.60295891 | J56: 89.54 | K56: 0.8098075337 | Q56: 52 | U56: 8 | V56: 17 | W56: X | X56: 24 | Z56: 23 | AA56: 33 | AB56: West | AC56: QDEC0.5 | AD56: A | AE56: SLP50 | AF56: -1.523 | AG56: 0.976 | AH56: 0.841
A57: QDEC0.8=10-1.805A1.001(SLP50 + 1)0.894 | B57: OLS | C57: 52 | D57: -- | E57: -- | F57: -- | G57: -- | H57: -- | I57: 71.00600867 | J57: 83.34 | K57: 0.8243114912 | Q57: 53 | U57: 8 | V57: 17 | W57: X | X57: 24 | Z57: 23 | AA57: 33 | AB57: West | AC57: QDEC0.8 | AD57: A | AE57: SLP50 | AF57: -1.805 | AG57: 1.001 | AH57: 0.894
A58: QDECMEAN=10-1.41A0.971(SLP50 + 1)0.816 | B58: OLS | C58: 52 | D58: -- | E58: -- | F58: -- | G58: -- | H58: -- | I58: 53.19670147 | J58: 88.47 | K58: 0.8104159082 | Q58: 54 | U58: 9 | V58: 17 | W58: X | X58: 24 | Z58: 23 | AA58: 33 | AB58: West | AC58: QDECMEAN | AD58: A | AE58: SLP50 | AF58: -1.41 | AG58: 0.971 | AH58: 0.816
A59: Northwest hydrologic region
A60: QAL7Q10=10-3.28A1.046(SLP50 + 1)1.587 | B60: GLS | C60: 14 | D60: 0.072 | E60: 0.09 | F60: 67.92 | G60: 78.12 | H60: 85.57 | I60: -- | J60: -- | K60: 1.08407477 | Q60: 1 | U60: =FIND("=",A60) -> 8 | V60: 16 | W60: X | X60: 23 | Z60: 22 | AA60: 32 | AB60: Northwest | AC60: QAL7Q10 | AD60: A | AE60: =IF(W60="X","SLP50","P") -> SLP50 | AF60: -3.28 | AG60: 1.046 | AH60: =MID(A60,AA60+1,LEN(A60)-AA60) -> 1.587
A61: QS214Q5=10-4.375A1.088P2.212 | B61: GLS | C61: 24 | D61: 0.104 | E61: 0.118 | F61: 85.6 | G61: 93.18 | H61: 78.99 | I61: -- | J61: -- | K61: 0.9209554731 | Q61: 2 | U61: =FIND("=",A61) -> 8 | V61: 17 | W61: 23 | X61: X | Z61: 23 | AA61: 23 | AB61: Northwest | AC61: QS214Q5 | AD61: A | AE61: P | AF61: -4.375 | AG61: 1.088 | AH61: 2.212
A62: QA0.2=10-2.844A1.017P1.984 | B62: OLS | C62: 18 | D62: -- | E62: -- | F62: -- | G62: -- | H62: -- | I62: 30.71160929 | J62: 95.32 | K62: 0.8179146378 | Q62: 3 | U62: 6 | V62: 15 | W62: 21 | X62: X | Z62: 21 | AA62: 21 | AB62: Northwest | AC62: QA0.2 | AD62: A | AE62: P | AF62: -2.844 | AG62: 1.017 | AH62: 1.984
A63: QA0.5=10-2.421A1.056P1.451 | B63: OLS | C63: 18 | D63: -- | E63: -- | F63: -- | G63: -- | H63: -- | I63: 50.60295891 | J63: 89.25 | K63: 0.9109885733 | Q63: 4 | U63: 6 | V63: 15 | W63: 21 | X63: X | Z63: 21 | AA63: 21 | AB63: Northwest | AC63: QA0.5 | AD63: A | AE63: P | AF63: -2.421 | AG63: 1.056 | AH63: 1.451
A64: QA0.8=10-2.839A1.074P1.466 | B64: OLS | C64: 18 | D64: -- | E64: -- | F64: -- | G64: -- | H64: -- | I64: 47.24461183 | J64: 90.79 | K64: 0.9267888706 | Q64: 5 | U64: 6 | V64: 15 | W64: 21 | X64: X | Z64: 21 | AA64: 21 | AB64: Northwest | AC64: QA0.8 | AD64: A | AE64: P | AF64: -2.839 | AG64: 1.074 | AH64: 1.466
A65: QAMEAN=10-2.763A0.993P1.845 | B65: OLS | C65: 18 | D65: -- | E65: -- | F65: -- | G65: -- | H65: -- | I65: 17.97865523 | J65: 98.13 | K65: 0.808225509 | Q65: 6 | U65: 7 | V65: 16 | W65: 22 | X65: X | Z65: 22 | AA65: 22 | AB65: Northwest | AC65: QAMEAN | AD65: A | AE65: P | AF65: -2.763 | AG65: 0.993 | AH65: 1.845
A66: QJAN0.2=10-2.565A0.97P1.446 | B66: OLS | C66: 18 | D66: -- | E66: -- | F66: -- | G66: -- | H66: -- | I66: 30.71160929 | J66: 94.6 | K66: 0.8256041158 | Q66: 7 | U66: 8 | V66: 17 | W66: 22 | X66: X | Z66: 22 | AA66: 22 | AB66: Northwest | AC66: QJAN0.2 | AD66: A | AE66: P | AF66: -2.565 | AG66: 0.97 | AH66: 1.446
A67: QJAN0.5=10-2.689A0.992P1.383 | B67: OLS | C67: 18 | D67: -- | E67: -- | F67: -- | G67: -- | H67: -- | I67: 33.44631685 | J67: 94.04 | K67: 0.8534071744 | Q67: 8 | U67: 8 | V67: 17 | W67: 23 | X67: X | Z67: 23 | AA67: 23 | AB67: Northwest | AC67: QJAN0.5 | AD67: A | AE67: P | AF67: -2.689 | AG67: 0.992 | AH67: 1.383
A68: QJAN0.8=10-2.705A0.981P1.304 | B68: OLS | C68: 18 | D68: -- | E68: -- | F68: -- | G68: -- | H68: -- | I68: 39.23091308 | J68: 91.99 | K68: 0.8500037993 | Q68: 9 | U68: 8 | V68: 17 | W68: 23 | X68: X | Z68: 23 | AA68: 23 | AB68: Northwest | AC68: QJAN0.8 | AD68: A | AE68: P | AF68: -2.705 | AG68: 0.981 | AH68: 1.304
A69: QJANMEAN=10-2.681A0.986P1.428 | B69: OLS | C69: 18 | D69: -- | E69: -- | F69: -- | G69: -- | H69: -- | I69: 29.75459606 | J69: 95.23 | K69: 0.8427310434 | Q69: 10 | U69: 9 | V69: 18 | W69: 24 | X69: X | Z69: 24 | AA69: 24 | AB69: Northwest | AC69: QJANMEAN | AD69: A | AE69: P | AF69: -2.681 | AG69: 0.986 | AH69: 1.428
A70: QFEB0.2=10-2.005A0.968P1.106 | B70: OLS | C70: 19 | D70: -- | E70: -- | F70: -- | G70: -- | H70: -- | I70: 28.77107967 | J70: 95.14 | K70: 0.8532823172 | Q70: 11 | U70: 8 | V70: =FIND(V$3,$A70,U70) -> 17 | W70: =IF(X70<>"X","X",FIND(W$3,$A70)) -> 23 | X70: =IF(ISERROR(FIND(X$3,$A70)),"X",FIND(X$3,$A70)) -> X | Z70: =IF(W70="X",FIND("(",A70),W70) -> 23 | AA70: =IF(W70="X",FIND(")",A70),W70) -> 23 | AB70: Northwest | AC70: QFEB0.2 | AD70: A | AE70: P | AF70: =MID(A70,U70+3,V70-U70-3) -> -2.005 | AG70: =MID(A70,V70+1,Z70-V70-1) -> 0.968 | AH70: 1.106
A71: QFEB0.5=10-1.982A0.97P0.99 | B71: OLS | C71: 19 | D71: -- | E71: -- | F71: -- | G71: -- | H71: -- | I71: 30.71160929 | J71: 94.56 | K71: 0.8671823058 | Q71: 12 | U71: 8 | V71: 17 | W71: 22 | X71: X | Z71: 22 | AA71: 22 | AB71: Northwest | AC71: QFEB0.5 | AD71: A | AE71: P | AF71: -1.982 | AG71: 0.97 | AH71: 0.99
A72: QFEB0.8=10-2.318A0.994P1.053 | B72: OLS | C72: 19 | D72: -- | E72: -- | F72: -- | G72: -- | H72: -- | I72: 36.01280787 | J72: 93.14 | K72: 0.8850731125 | Q72: 13 | U72: 8 | V72: 17 | W72: 23 | X72: X | Z72: 23 | AA72: 23 | AB72: Northwest | AC72: QFEB0.8 | AD72: A | AE72: P | AF72: -2.318 | AG72: 0.994 | AH72: 1.053
A73: QFEBMEAN=10-2.1A0.968P1.111 | B73: OLS | C73: 19 | D73: -- | E73: -- | F73: -- | G73: -- | H73: -- | I73: 29.75459606 | J73: 94.76 | K73: 0.8532355058 | Q73: 14 | U73: 9 | V73: 16 | W73: 22 | X73: X | Z73: 22 | AA73: 22 | AB73: Northwest | AC73: QFEBMEAN | AD73: A | AE73: P | AF73: -2.1 | AG73: 0.968 | AH73: 1.111
A74: QMAR0.2=10-1.784A0.993P0.974 | B74: OLS | C74: 21 | D74: -- | E74: -- | F74: -- | G74: -- | H74: -- | I74: 34.31855781 | J74: 93.85 | K74: 0.9218028716 | Q74: 15 | U74: 8 | V74: 17 | W74: 23 | X74: X | Z74: 23 | AA74: 23 | AB74: Northwest | AC74: QMAR0.2 | AD74: A | AE74: P | AF74: -1.784 | AG74: 0.993 | AH74: 0.974
A75: QMAR0.5=10-1.944A0.981P0.975 | B75: OLS | C75: 21 | D75: -- | E75: -- | F75: -- | G75: -- | H75: -- | I75: 32.55551209 | J75: 94.31 | K75: 0.9098362258 | Q75: 16 | U75: 8 | V75: 17 | W75: 23 | X75: X | Z75: 23 | AA75: 23 | AB75: Northwest | AC75: QMAR0.5 | AD75: A | AE75: P | AF75: -1.944 | AG75: 0.981 | AH75: 0.975
A76: QMAR0.8=10-2.579A1.038P1.162 | B76: OLS | C76: 21 | D76: -- | E76: -- | F76: -- | G76: -- | H76: -- | I76: 43.00062737 | J76: 91.76 | K76: 0.9531104746 | Q76: 17 | U76: 8 | V76: 17 | W76: 23 | X76: X | Z76: 23 | AA76: 23 | AB76: Northwest | AC76: QMAR0.8 | AD76: A | AE76: P | AF76: -2.579 | AG76: 1.038 | AH76: 1.162
A77: QMARMEAN=10-1.863A0.991P0.966 | B77: OLS | C77: 21 | D77: -- | E77: -- | F77: -- | G77: -- | H77: -- | I77: 34.31855781 | J77: 93.9 | K77: 0.9201612584 | Q77: 18 | U77: 9 | V77: 18 | W77: 24 | X77: X | Z77: 24 | AA77: 24 | AB77: Northwest | AC77: QMARMEAN | AD77: A | AE77: P | AF77: -1.863 | AG77: 0.991 | AH77: 0.966
A78: QAPR0.2=10-2.777A1.077P1.798 | B78: OLS | C78: 25 | D78: -- | E78: -- | F78: -- | G78: -- | H78: -- | I78: 43.00062737 | J78: 91.74 | K78: 0.9591601218 | Q78: 19 | U78: 8 | V78: 17 | W78: =IF(X78<>"X","X",FIND(W$3,$A78,U78)) -> 23 | X78: X | Z78: 23 | AA78: 23 | AB78: Northwest | AC78: QAPR0.2 | AD78: A | AE78: P | AF78: -2.777 | AG78: 1.077 | AH78: 1.798
A79: QAPR0.5=10-2.699A1.073P1.564 | B79: OLS | C79: 25 | D79: -- | E79: -- | F79: -- | G79: -- | H79: -- | I79: 44.44512425 | J79: 90.9 | K79: 0.9709420008 | Q79: 20 | U79: 8 | V79: 17 | W79: =IF(X79<>"X","X",FIND(W$3,$A79,U79)) -> 23 | X79: X | Z79: 23 | AA79: 23 | AB79: Northwest | AC79: QAPR0.5 | AD79: A | AE79: P | AF79: -2.699 | AG79: 1.073 | AH79: 1.564
A80: QAPR0.8=10-2.752A1.079P1.406 | B80: OLS | C80: 25 | D80: -- | E80: -- | F80: -- | G80: -- | H80: -- | I80: 39.23091308 | J80: 92.61 | K80: 0.9868389171 | Q80: 21 | U80: 8 | V80: 17 | W80: 23 | X80: X | Z80: 23 | AA80: 23 | AB80: Northwest | AC80: QAPR0.8 | AD80: A | AE80: P | AF80: -2.752 | AG80: 1.079 | AH80: 1.406
A81: QAPRMEAN=10-2.817A1.064P1.74 | B81: OLS | C81: 25 | D81: -- | E81: -- | F81: -- | G81: -- | H81: -- | I81: 39.23091308 | J81: 92.73 | K81: 0.9504117799 | Q81: 22 | U81: 9 | V81: 18 | W81: 24 | X81: X | Z81: 24 | AA81: 24 | AB81: Northwest | AC81: QAPRMEAN | AD81: A | AE81: P | AF81: -2.817 | AG81: 1.064 | AH81: 1.74
A82: QMAY0.2=10-3.18A1.122P2.288 | B82: OLS | C82: 26 | D82: -- | E82: -- | F82: -- | G82: -- | H82: -- | I82: 40.76855479 | J82: 93.78 | K82: 0.9174911119 | Q82: 23 | U82: 8 | V82: 16 | W82: 22 | X82: X | Z82: 22 | AA82: 22 | AB82: Northwest | AC82: QMAY0.2 | AD82: A | AE82: P | AF82: -3.18 | AG82: 1.122 | AH82: 2.288
A83: QMAY0.5=10-3.646A1.146P2.408 | B83: OLS | C83: 26 | D83: -- | E83: -- | F83: -- | G83: -- | H83: -- | I83: 41.52193636 | J83: 93.8 | K83: 0.9309901555 | Q83: 24 | U83: 8 | V83: 17 | W83: 23 | X83: X | Z83: 23 | AA83: 23 | AB83: Northwest | AC83: QMAY0.5 | AD83: A | AE83: P | AF83: -3.646 | AG83: 1.146 | AH83: 2.408
A84: QMAY0.8=10-4.498A1.208P2.68 | B84: OLS | C84: 26 | D84: -- | E84: -- | F84: -- | G84: -- | H84: -- | I84: 45.85881321 | J84: 93.6 | K84: 0.9678030087 | Q84: 25 | U84: 8 | V84: 17 | W84: 23 | X84: X | Z84: 23 | AA84: 23 | AB84: Northwest | AC84: QMAY0.8 | AD84: A | AE84: P | AF84: -4.498 | AG84: 1.208 | AH84: 2.68
A85: QMAYMEAN=10-3.263A1.129P2.234 | B85: OLS | C85: 26 | D85: -- | E85: -- | F85: -- | G85: -- | H85: -- | I85: 40.00508407 | J85: 93.97 | K85: 0.9286406587 | Q85: 26 | U85: 9 | V85: 18 | W85: 24 | X85: X | Z85: 24 | AA85: 24 | AB85: Northwest | AC85: QMAYMEAN | AD85: A | AE85: P | AF85: -3.263 | AG85: 1.129 | AH85: 2.234
A86: QJUN0.2=10-2.985A1.13P2.204 | B86: OLS | C86: 26 | D86: -- | E86: -- | F86: -- | G86: -- | H86: -- | I86: 37.64772937 | J86: 94.56 | K86: 0.9327222707 | Q86: 27 | U86: 8 | V86: 17 | W86: 22 | X86: X | Z86: 22 | AA86: 22 | AB86: Northwest | AC86: QJUN0.2 | AD86: A | AE86: P | AF86: -2.985 | AG86: 1.13 | AH86: 2.204
A87: QJUN0.5=10-3.648A1.134P2.475 | B87: OLS | C87: 26 | D87: -- | E87: -- | F87: -- | G87: -- | H87: -- | I87: 33.44631685 | J87: 95.71 | K87: 0.9124017466 | Q87: 28 | U87: 8 | V87: 17 | W87: 23 | X87: X | Z87: 23 | AA87: 23 | AB87: Northwest | AC87: QJUN0.5 | AD87: A | AE87: P | AF87: -3.648 | AG87: 1.134 | AH87: 2.475
A88: QJUN0.8=10-4.72A1.163P2.939 | B88: OLS | C88: 26 | D88: -- | E88: -- | F88: -- | G88: -- | H88: -- | I88: 36.83717282 | J88: 95.6 | K88: 0.8997373206 | Q88: 29 | U88: 8 | V88: 16 | W88: 22 | X88: X | Z88: 22 | AA88: 22 | AB88: Northwest | AC88: QJUN0.8 | AD88: A | AE88: P | AF88: -4.72 | AG88: 1.163 | AH88: 2.939
A89: QJUNMEAN=10-3.208A1.127P2.253 | B89: OLS | C89: 26 | D89: -- | E89: -- | F89: -- | G89: -- | H89: -- | I89: 39.23091308 | J89: 94.24 | K89: 0.9253856322 | Q89: 30 | U89: 9 | V89: 18 | W89: 24 | X89: X | Z89: 24 | AA89: 24 | AB89: Northwest | AC89: QJUNMEAN | AD89: A | AE89: P | AF89: -3.208 | AG89: 1.127 | AH89: 2.253
A90: QJUL0.2=10-3.531A1.084P2.348 | B90: OLS | C90: 26 | D90: -- | E90: -- | F90: -- | G90: -- | H90: -- | I90: 36.01280787 | J90: 94.8 | K90: 0.8742880883 | Q90: 31 | U90: 8 | V90: 17 | W90: 23 | X90: X | Z90: 23 | AA90: 23 | AB90: Northwest | AC90: QJUL0.2 | AD90: A | AE90: P | AF90: -3.531 | AG90: 1.084 | AH90: 2.348
A91: QJUL0.5=10-4.133A1.102P2.535 | B91: OLS | C91: 26 | D91: -- | E91: -- | F91: -- | G91: -- | H91: -- | I91: 39.23091308 | J91: 94.19 | K91: 0.8750388592 | Q91: 32 | U91: 8 | V91: 17 | W91: 23 | X91: X | Z91: 23 | AA91: 23 | AB91: Northwest | AC91: QJUL0.5 | AD91: A | AE91: P | AF91: -4.133 | AG91: 1.102 | AH91: 2.535
A92: QJUL0.8=10-5.12A1.146P2.926 | B92: OLS | C92: 26 | D92: -- | E92: -- | F92: -- | G92: -- | H92: -- | I92: 52.55516543 | J92: 91.59 | K92: 0.8846125503 | Q92: 33 | U92: 8 | V92: 16 | W92: 22 | X92: X | Z92: 22 | AA92: 22 | AB92: Northwest | AC92: QJUL0.8 | AD92: A | AE92: P | AF92: -5.12 | AG92: 1.146 | AH92: 2.926
A93: QJULMEAN=10-3.761A1.091P2.387 | B93: OLS | C93: 26 | D93: -- | E93: -- | F93: -- | G93: -- | H93: -- | I93: 36.83717282 | J93: 94.53 | K93: 0.877991482 | Q93: 34 | U93: 9 | V93: 18 | W93: 24 | X93: X | Z93: 24 | AA93: 24 | AB93: Northwest | AC93: QJULMEAN | AD93: A | AE93: P | AF93: -3.761 | AG93: 1.091 | AH93: 2.387
A94: QAUG0.2=10-3.034A1.023P1.855 | B94: OLS | C94: 26 | D94: -- | E94: -- | F94: -- | G94: -- | H94: -- | I94: 47.92785743 | J94: 90.06 | K94: 0.8572910316 | Q94: 35 | U94: 8 | V94: 17 | W94: 23 | X94: X | Z94: 23 | AA94: 23 | AB94: Northwest | AC94: QAUG0.2 | AD94: A | AE94: P | AF94: -3.034 | AG94: 1.023 | AH94: 1.855
A95: QAUG0.5=10-3.76A1.056P2.148 | B95: OLS | C95: 26 | D95: -- | E95: -- | F95: -- | G95: -- | H95: -- | I95: 55.09620303 | J95: 88.45 | K95: 0.8633982109 | Q95: 36 | U95: 8 | V95: 16 | W95: 22 | X95: X | Z95: 22 | AA95: 22 | AB95: Northwest | AC95: QAUG0.5 | AD95: A | AE95: P | AF95: -3.76 | AG95: 1.056 | AH95: 2.148
A96: QAUG0.8=10-5.133A1.13P2.759 | B96: OLS | C96: 26 | D96: -- | E96: -- | F96: -- | G96: -- | H96: -- | I96: 75.45587271 | J96: 84.83 | K96: 0.8828063651 | Q96: 37 | U96: 8 | V96: 17 | W96: 22 | X96: X | Z96: 22 | AA96: 22 | AB96: Northwest | AC96: QAUG0.8 | AD96: A | AE96: P | AF96: -5.133 | AG96: 1.13 | AH96: 2.759
A97: QAUGMEAN=10-3.435A1.038P2.004 | B97: OLS | C97: 26 | D97: -- | E97: -- | F97: -- | G97: -- | H97: -- | I97: 51.25848717 | J97: 89.31 | K97: 0.8583977408 | Q97: 38 | U97: 9 | V97: 18 | W97: 24 | X97: X | Z97: 24 | AA97: 24 | AB97: Northwest | AC97: QAUGMEAN | AD97: A | AE97: P | AF97: -3.435 | AG97: 1.038 | AH97: 2.004
A98: QSEP0.2=10-2.812A0.978P1.704 | B98: OLS | C98: 26 | D98: -- | E98: -- | F98: -- | G98: -- | H98: -- | I98: 47.24461183 | J98: 89.36 | K98: 0.8255402081 | Q98: 39 | U98: 8 | V98: 17 | W98: 23 | X98: X | Z98: 23 | AA98: 23 | AB98: Northwest | AC98: QSEP0.2 | AD98: A | AE98: P | AF98: -2.812 | AG98: 0.978 | AH98: 1.704
A99: QSEP0.5=10-3.38A1.038P1.851 | B99: OLS | C99: 26 | D99: -- | E99: -- | F99: -- | G99: -- | H99: -- | I99: 52.55516543 | J99: 88.65 | K99: 0.8727599023 | Q99: 40 | U99: 8 | V99: 16 | W99: 22 | X99: X | Z99: 22 | AA99: 22 | AB99: Northwest | AC99: QSEP0.5 | AD99: A | AE99: P | AF99: -3.38 | AG99: 1.038 | AH99: 1.851
A100: QSEP0.8=10-4.544A1.125P2.331 | B100: OLS | C100: 26 | D100: -- | E100: -- | F100: -- | G100: -- | H100: -- | I100: 68.17870145 | J100: 85.95 | K100: 0.9166993289 | Q100: 41 | U100: 8 | V100: 17 | W100: 23 | X100: X | Z100: 23 | AA100: 23 | AB100: Northwest | AC100: QSEP0.8 | AD100: A | AE100: P | AF100: -4.544 | AG100: 1.125 | AH100: 2.331
A101: QSEPMEAN=10-3.307A1.014P1.886 | B101: OLS | C101: 26 | D101: -- | E101: -- | F101: -- | G101: -- | H101: -- | I101: 45.1556275 | J101: 90.85 | K101: 0.8454946587 | Q101: 42 | U101: 9 | V101: 18 | W101: 24 | X101: X | Z101: 24 | AA101: 24 | AB101: Northwest | AC101: QSEPMEAN | AD101: A | AE101: P | AF101: -3.307 | AG101: 1.014 | AH101: 1.886
A102: QOCT0.2=10-3.027A0.932P1.947 | B102: OLS | C102: 26 | D102: -- | E102: -- | F102: -- | G102: -- | H102: -- | I102: 36.01280787 | J102: 92.93 | K102: 0.7576625924 | Q102: 43 | U102: 8 | V102: 17 | W102: 23 | X102: X | Z102: 23 | AA102: 23 | AB102: Northwest | AC102: QOCT0.2 | AD102: A | AE102: P | AF102: -3.027 | AG102: 0.932 | AH102: 1.947
A103: QOCT0.5=10-2.918A0.966P1.698 | B103: OLS | C103: 26 | D103: -- | E103: -- | F103: -- | G103: -- | H103: -- | I103: 38.445373 | J103: 92.4 | K103: 0.81379831 | Q103: 44 | U103: 8 | V103: 17 | W103: 23 | X103: X | Z103: 23 | AA103: 23 | AB103: Northwest | AC103: QOCT0.5 | AD103: A | AE103: P | AF103: -2.918 | AG103: 0.966 | AH103: 1.698
A104: QOCT0.8=10-3.16A1.037P1.618 | B104: OLS | C104: 26 | D104: -- | E104: -- | F104: -- | G104: -- | H104: -- | I104: 51.25848717 | J104: 88.76 | K104: 0.8922158568 | Q104: 45 | U104: 8 | V104: 16 | W104: 22 | X104: X | Z104: 22 | AA104: 22 | AB104: Northwest | AC104: QOCT0.8 | AD104: A | AE104: P | AF104: -3.16 | AG104: 1.037 | AH104: 1.618
A105: QOCTMEAN=10-3.187A0.945P1.947 | B105: OLS | C105: 26 | D105: -- | E105: -- | F105: -- | G105: -- | H105: -- | I105: 33.44631685 | J105: 93.85 | K105: 0.7704340241 | Q105: 46 | U105: 9 | V105: 18 | W105: 24 | X105: X | Z105: 24 | AA105: 24 | AB105: Northwest | AC105: QOCTMEAN | AD105: A | AE105: P | AF105: -3.187 | AG105: 0.945 | AH105: 1.947
A106: QNOV0.2=10-3.331A0.975P2.051 | B106: OLS | C106: 21 | D106: -- | E106: -- | F106: -- | G106: -- | H106: -- | I106: 27.75821396 | J106: 95.41 | K106: 0.7717604681 | Q106: 47 | U106: 8 | V106: 17 | W106: 23 | X106: X | Z106: 23 | AA106: 23 | AB106: Northwest | AC106: QNOV0.2 | AD106: A | AE106: P | AF106: -3.331 | AG106: 0.975 | AH106: 2.051
A107: QNOV0.5=10-3.052A0.95P1.797 | B107: OLS | C107: 21 | D107: -- | E107: -- | F107: -- | G107: -- | H107: -- | I107: 29.75459606 | J107: 94.46 | K107: 0.7714860628 | Q107: 48 | U107: 8 | V107: 17 | W107: 22 | X107: X | Z107: 22 | AA107: 22 | AB107: Northwest | AC107: QNOV0.5 | AD107: A | AE107: P | AF107: -3.052 | AG107: 0.95 | AH107: 1.797
A108: QNOV0.8=10-2.642A0.957P1.4 | B108: OLS | C108: 21 | D108: -- | E108: -- | F108: -- | G108: -- | H108: -- | I108: 37.64772937 | J108: 91.48 | K108: 0.8178547615 | Q108: 49 | U108: 8 | V108: 17 | W108: 23 | X108: X | Z108: 23 | AA108: 23 | AB108: Northwest | AC108: QNOV0.8 | AD108: A | AE108: P | AF108: -2.642 | AG108: 0.957 | AH108: 1.4
A109: QNOVMEAN=10-3.265A0.975P1.933 | B109: OLS | C109: 21 | D109: -- | E109: -- | F109: -- | G109: -- | H109: -- | I109: 25.63029424 | J109: 95.89 | K109: 0.7836663408 | Q109: 50 | U109: 9 | V109: 18 | W109: 24 | X109: X | Z109: 24 | AA109: 24 | AB109: Northwest | AC109: QNOVMEAN | AD109: A | AE109: P | AF109: -3.265 | AG109: 0.975 | AH109: 1.933
A110: QDEC0.2=10-2.888A0.971P1.7 | B110: OLS | C110: 19 | D110: -- | E110: -- | F110: -- | G110: -- | H110: -- | I110: 31.64454972 | J110: 94.17 | K110: 0.7943206318 | Q110: 51 | U110: 8 | V110: 17 | W110: 23 | X110: X | Z110: 23 | AA110: 23 | AB110: Northwest | AC110: QDEC0.2 | AD110: A | AE110: P | AF110: -2.888 | AG110: 0.971 | AH110: 1.7
A111: QDEC0.5=10-2.851A0.965P1.573 | B111: OLS | C111: 19 | D111: -- | E111: -- | F111: -- | G111: -- | H111: -- | I111: 34.31855781 | J111: 93.34 | K111: 0.8016577539 | Q111: 52 | U111: 8 | V111: 17 | W111: 23 | X111: X | Z111: 23 | AA111: 23 | AB111: Northwest | AC111: QDEC0.5 | AD111: A | AE111: P | AF111: -2.851 | AG111: 0.965 | AH111: 1.573
A112: QDEC0.8=10-2.898A0.983P1.452 | B112: OLS | C112: 19 | D112: -- | E112: -- | F112: -- | G112: -- | H112: -- | I112: 40.00508407 | J112: 91.54 | K112: 0.8319181544 | Q112: 53 | U112: 8 | V112: 17 | W112: 23 | X112: X | Z112: 23 | AA112: 23 | AB112: Northwest | AC112: QDEC0.8 | AD112: A | AE112: P | AF112: -2.898 | AG112: 0.983 | AH112: 1.452
A113: QDECMEAN=10-2.93A0.964P1.667 | B113: OLS | C113: 19 | D113: -- | E113: -- | F113: -- | G113: -- | H113: -- | I113: 31.64454972 | J113: 94.16 | K113: 0.7914324532 | Q113: 54 | U113: 9 | V113: 17 | W113: 23 | X113: X | Z113: 23 | AA113: 23 | AB113: Northwest | AC113: QDECMEAN | AD113: A | AE113: P | AF113: -2.93 | AG113: 0.964 | AH113: 1.667
A114: Upper Yellowstone-Central Mountain hydrologic region
A115: QAL7Q10=10-9.113A1.017P5.411 | B115: GLS | C115: 35 | D115: 0.265 | E115: 0.291 | F115: 175.6 | G115: 191.8 | H115: 61.86 | I115: -- | J115: -- | K115: 0.6611649231 | Q115: 1 | U115: =FIND("=",A115) -> 8 | V115: =FIND(V$3,$A115,U115) -> 17 | W115: =IF(X115<>"X","X",FIND(W$3,$A115,U115)) -> 23 | X115: X | Z115: =IF(W115="X",FIND("(",A115),W115) -> 23 | AA115: =IF(W115="X",FIND(")",A115),W115) -> 23 | AB115: Upper Yellowstone-Central Mountain | AC115: QAL7Q10 | AD115: A | AE115: =IF(W115="X","SLP50","P") -> P | AF115: =MID(A115,U115+3,V115-U115-3) -> -9.113 | AG115: =MID(A115,V115+1,Z115-V115-1) -> 1.017 | AH115: 5.411
A116: QS214Q5=10-6.949A0.807P4.523 | B116: GLS | C116: 49 | D116: 0.182 | E116: 0.195 | F116: 127.56 | G116: 134.81 | H116: 64.53 | I116: -- | J116: -- | K116: 0.6361845021 | Q116: 2 | U116: 8 | V116: 17 | W116: 23 | X116: X | Z116: 23 | AA116: 23 | AB116: Upper Yellowstone-Central Mountain | AC116: QS214Q5 | AD116: A | AE116: P | AF116: -6.949 | AG116: 0.807 | AH116: 4.523
A117: QA0.2=10-4.537A0.947P3.184 | B117: OLS | C117: 40 | D117: -- | E117: -- | F117: -- | G117: -- | H117: -- | I117: 44.44512425 | J117: 90.55 | K117: 0.8960276414 | Q117: 3 | U117: 6 | V117: 15 | W117: 21 | X117: X | Z117: 21 | AA117: 21 | AB117: Upper Yellowstone-Central Mountain | AC117: QA0.2 | AD117: A | AE117: P | AF117: -4.537 | AG117: 0.947 | AH117: 3.184
A118: QA0.5=10-3.441A0.902P2.253 | B118: OLS | C118: 40 | D118: -- | E118: -- | F118: -- | G118: -- | H118: -- | I118: 50.60295891 | J118: 85.87 | K118: 0.8658804297 | Q118: 4 | U118: 6 | V118: 15 | W118: 21 | X118: X | Z118: 21 | AA118: 21 | AB118: Upper Yellowstone-Central Mountain | AC118: QA0.5 | AD118: A | AE118: P | AF118: -3.441 | AG118: 0.902 | AH118: 2.253
A119: QA0.8=10-4.34A0.879P2.684 | B119: OLS | C119: 40 | D119: -- | E119: -- | F119: -- | G119: -- | H119: -- | I119: 68.17870145 | J119: 78.74 | K119: 0.836101165 | Q119: 5 | U119: 6 | V119: 14 | W119: 20 | X119: X | Z119: 20 | AA119: 20 | AB119: Upper Yellowstone-Central Mountain | AC119: QA0.8 | AD119: A | AE119: P | AF119: -4.34 | AG119: 0.879 | AH119: 2.684
A120: QAMEAN=10-5.116A0.947P3.492 | B120: OLS | C120: 40 | D120: -- | E120: -- | F120: -- | G120: -- | H120: -- | I120: 47.24461183 | J120: 90.14 | K120: 0.8906068424 | Q120: 6 | U120: 7 | V120: 16 | W120: 22 | X120: X | Z120: 22 | AA120: 22 | AB120: Upper Yellowstone-Central Mountain | AC120: QAMEAN | AD120: A | AE120: P | AF120: -5.116 | AG120: 0.947 | AH120: 3.492
A121: QJAN0.2=10-3.596A0.923P2.169 | B121: OLS | C121: 40 | D121: -- | E121: -- | F121: -- | G121: -- | H121: -- | I121: 94.83669486 | J121: 68.96 | K121: 0.8878682343 | Q121: 7 | U121: 8 | V121: 17 | W121: 23 | X121: X | Z121: 23 | AA121: 23 | AB121: Upper Yellowstone-Central Mountain | AC121: QJAN0.2 | AD121: A | AE121: P | AF121: -3.596 | AG121: 0.923 | AH121: 2.169
A122: QJAN0.5=10-4.163A0.919P2.488 | B122: OLS | C122: 40 | D122: -- | E122: -- | F122: -- | G122: -- | H122: -- | I122: 108.6342506 | J122: 65.42 | K122: 0.8792000266 | Q122: 8 | U122: 8 | V122: 17 | W122: 23 | X122: X | Z122: 23 | AA122: 23 | AB122: Upper Yellowstone-Central Mountain | AC122: QJAN0.5 | AD122: A | AE122: P | AF122: -4.163 | AG122: 0.919 | AH122: 2.488
A123: QJAN0.8=10-4.905A0.918P2.914 | B123: OLS | C123: 40 | D123: -- | E123: -- | F123: -- | G123: -- | H123: -- | I123: 126.9172235 | J123: 62.17 | K123: 0.871243721 | Q123: 9 | U123: 8 | V123: 17 | W123: 23 | X123: X | Z123: 23 | AA123: 23 | AB123: Upper Yellowstone-Central Mountain | AC123: QJAN0.8 | AD123: A | AE123: P | AF123: -4.905 | AG123: 0.918 | AH123: 2.914
A124: QJANMEAN=10-3.879A0.92P2.304 | B124: OLS | C124: 40 | D124: -- | E124: -- | F124: -- | G124: -- | H124: -- | I124: 103.322823 | J124: 66.45 | K124: 0.8832526431 | Q124: 10 | U124: 9 | V124: 18 | W124: 23 | X124: X | Z124: 23 | AA124: 23 | AB124: Upper Yellowstone-Central Mountain | AC124: QJANMEAN | AD124: A | AE124: P | AF124: -3.879 | AG124: 0.92 | AH124: =MID(A124,AA124+1,LEN(A124)-AA124) -> 2.304
A125: QFEB0.2=10-2.684A0.933P1.518 | B125: OLS | C125: 40 | D125: -- | E125: -- | F125: -- | G125: -- | H125: -- | I125: 94.83669486 | J125: 67.69 | K125: 0.9084721395 | Q125: 11 | U125: 8 | V125: 17 | W125: 23 | X125: X | Z125: 23 | AA125: 23 | AB125: Upper Yellowstone-Central Mountain | AC125: QFEB0.2 | AD125: A | AE125: P | AF125: -2.684 | AG125: 0.933 | AH125: 1.518
A126: QFEB0.5=10-3.566A0.932P2.055 | B126: OLS | C126: 40 | D126: -- | E126: -- | F126: -- | G126: -- | H126: -- | I126: 105.9766123 | J126: 65.43 | K126: 0.8991173606 | Q126: 12 | U126: 8 | V126: 17 | W126: 23 | X126: X | Z126: 23 | AA126: 23 | AB126: Upper Yellowstone-Central Mountain | AC126: QFEB0.5 | AD126: A | AE126: P | AF126: -3.566 | AG126: 0.932 | AH126: 2.055
A127: QFEB0.8=10-4.591A0.928P2.679 | B127: OLS | C127: 40 | D127: -- | E127: -- | F127: -- | G127: -- | H127: -- | I127: 130.1993673 | J127: 60.9 | K127: 0.8844827843 | Q127: 13 | U127: 8 | V127: 17 | W127: 23 | X127: X | Z127: 23 | AA127: 23 | AB127: Upper Yellowstone-Central Mountain | AC127: QFEB0.8 | AD127: A | AE127: P | AF127: -4.591 | AG127: 0.928 | AH127: 2.679
A128: QFEBMEAN=10-2.794A0.923P1.56 | B128: OLS | C128: 40 | D128: -- | E128: -- | F128: -- | G128: -- | H128: -- | I128: 100.1410465 | J128: 65.67 | K128: 0.8976552346 | Q128: 14 | U128: 9 | V128: 18 | W128: 24 | X128: X | Z128: 24 | AA128: 24 | AB128: Upper Yellowstone-Central Mountain | AC128: QFEBMEAN | AD128: A | AE128: P | AF128: -2.794 | AG128: 0.923 | AH128: 1.56
A129: QMAR0.2=10-1.196A0.972P0.469 | B129: OLS | C129: 41 | D129: -- | E129: -- | F129: -- | G129: -- | H129: -- | I129: 90.04961588 | J129: 69.81 | K129: 0.9654937888 | Q129: 15 | U129: 8 | V129: 17 | W129: 23 | X129: X | Z129: 23 | AA129: 23 | AB129: Upper Yellowstone-Central Mountain | AC129: QMAR0.2 | AD129: A | AE129: P | AF129: -1.196 | AG129: 0.972 | AH129: 0.469
A130: QMAR0.5=10-2.432A0.977P1.217 | B130: OLS | C130: 41 | D130: -- | E130: -- | F130: -- | G130: -- | H130: -- | I130: 100.1410465 | J130: 67.11 | K130: 0.9591349503 | Q130: 16 | U130: 8 | V130: 17 | W130: 23 | X130: X | Z130: 23 | AA130: 23 | AB130: Upper Yellowstone-Central Mountain | AC130: QMAR0.5 | AD130: A | AE130: P | AF130: -2.432 | AG130: 0.977 | AH130: 1.217
A131: QMAR0.8=10-3.589A0.99P1.892 | B131: OLS | C131: 41 | D131: -- | E131: -- | F131: -- | G131: -- | H131: -- | I131: 128.5557186 | J131: 61.12 | K131: 0.9621281606 | Q131: 17 | U131: 8 | V131: 17 | W131: 22 | X131: X | Z131: 22 | AA131: 22 | AB131: Upper Yellowstone-Central Mountain | AC131: QMAR0.8 | AD131: A | AE131: P | AF131: -3.589 | AG131: 0.99 | AH131: 1.892
A132: QMARMEAN=10-1.508A0.974P0.629 | B132: OLS | C132: 41 | D132: -- | E132: -- | F132: -- | G132: -- | H132: -- | I132: 96.42889012 | J132: 67.69 | K132: 0.9643444107 | Q132: 18 | U132: 9 | V132: 18 | W132: 24 | X132: X | Z132: 24 | AA132: 24 | AB132: Upper Yellowstone-Central Mountain | AC132: QMARMEAN | AD132: A | AE132: P | AF132: -1.508 | AG132: 0.974 | AH132: 0.629
A133: QAPR0.2=10-2.256A0.887P1.573 | B133: OLS | C133: 46 | D133: -- | E133: -- | F133: -- | G133: -- | H133: -- | I133: 74.90395204 | J133: 73.91 | K133: 0.8910936158 | Q133: 19 | U133: 8 | V133: 17 | W133: 23 | X133: X | Z133: 23 | AA133: 23 | AB133: Upper Yellowstone-Central Mountain | AC133: QAPR0.2 | AD133: A | AE133: P | AF133: -2.256 | AG133: 0.887 | AH133: 1.573
A134: QAPR0.5=10-2.601A0.894P1.636 | B134: OLS | C134: 46 | D134: -- | E134: -- | F134: -- | G134: -- | H134: -- | I134: 80.920397 | J134: 71.95 | K134: 0.8989932112 | Q134: 20 | U134: 8 | V134: 17 | W134: 23 | X134: =IF(ISERROR(FIND(X$3,$A134)),"X",FIND(X$3,$A134)) -> X | Z134: 23 | AA134: 23 | AB134: Upper Yellowstone-Central Mountain | AC134: QAPR0.5 | AD134: A | AE134: P | AF134: -2.601 | AG134: 0.894 | AH134: 1.636
A135: QAPR0.8=10-3.257A0.934P1.875 | B135: OLS | C135: 46 | D135: -- | E135: -- | F135: -- | G135: -- | H135: -- | I135: 100.1410465 | J135: 67.41 | K135: 0.9391342706 | Q135: 21 | U135: 8 | V135: 17 | W135: 23 | X135: X | Z135: 23 | AA135: 23 | AB135: Upper Yellowstone-Central Mountain | AC135: QAPR0.8 | AD135: A | AE135: P | AF135: -3.257 | AG135: 0.934 | AH135: 1.875
A136: QAPRMEAN=10-2.475A0.896P1.629 | B136: OLS | C136: 46 | D136: -- | E136: -- | F136: -- | G136: -- | H136: -- | I136: 72.68438891 | J136: 75.28 | K136: 0.9001523929 | Q136: 22 | U136: 9 | V136: 18 | W136: 24 | X136: X | Z136: 24 | AA136: 24 | AB136: Upper Yellowstone-Central Mountain | AC136: QAPRMEAN | AD136: A | AE136: P | AF136: -2.475 | AG136: 0.896 | AH136: 1.629
A137: QMAY0.2=10-4.698A0.958P3.544 | B137: OLS | C137: 49 | D137: -- | E137: -- | F137: -- | G137: -- | H137: -- | I137: 67.03600531 | J137: 83.58 | K137: 0.9414268899 | Q137: 23 | U137: 8 | V137: 17 | W137: 23 | X137: X | Z137: 23 | AA137: 23 | AB137: Upper Yellowstone-Central Mountain | AC137: QMAY0.2 | AD137: A | AE137: P | AF137: -4.698 | AG137: 0.958 | AH137: 3.544
A138: QMAY0.5=10-5.107A0.954P3.644 | B138: OLS | C138: 49 | D138: -- | E138: -- | F138: -- | G138: -- | H138: -- | I138: 64.72773303 | J138: 84.62 | K138: 0.9371196532 | Q138: 24 | U138: 8 | V138: 17 | W138: 23 | X138: X | Z138: 23 | AA138: 23 | AB138: Upper Yellowstone-Central Mountain | AC138: QMAY0.5 | AD138: A | AE138: P | AF138: -5.107 | AG138: 0.954 | AH138: 3.644
A139: QMAY0.8=10-5.544A0.939P3.743 | B139: OLS | C139: 49 | D139: -- | E139: -- | F139: -- | G139: -- | H139: -- | I139: 80.920397 | J139: 79.27 | K139: 0.9218721596 | Q139: 25 | U139: 8 | V139: 17 | W139: 23 | X139: X | Z139: 23 | AA139: 23 | AB139: Upper Yellowstone-Central Mountain | AC139: QMAY0.8 | AD139: A | AE139: P | AF139: -5.544 | AG139: 0.939 | AH139: 3.743
A140: QMAYMEAN=10-4.764A0.941P3.499 | B140: OLS | C140: 49 | D140: -- | E140: -- | F140: -- | G140: -- | H140: -- | I140: 63.56105695 | J140: 84.53 | K140: 0.9245952651 | Q140: 26 | U140: 9 | V140: 18 | W140: 24 | X140: X | Z140: 24 | AA140: 24 | AB140: Upper Yellowstone-Central Mountain | AC140: QMAYMEAN | AD140: A | AE140: P | AF140: -4.764 | AG140: 0.941 | AH140: 3.499
A141: QJUN0.2=10-5.968A1.027P4.419 | B141: OLS | C141: 49 | D141: -- | E141: -- | F141: -- | G141: -- | H141: -- | I141: 65.88585915 | J141: 87.17 | K141: 1.006201098 | Q141: 27 | U141: 8 | V141: 17 | W141: 23 | X141: X | Z141: 23 | AA141: 23 | AB141: Upper Yellowstone-Central Mountain | AC141: QJUN0.2 | AD141: A | AE141: P | AF141: -5.968 | AG141: 1.027 | AH141: 4.419
A142: QJUN0.5=10-6.964A1.032P4.948 | B142: OLS | C142: 49 | D142: -- | E142: -- | F142: -- | G142: -- | H142: -- | I142: 62.38521636 | J142: 89.25 | K142: 1.00908227 | Q142: 28 | U142: 8 | V142: 17 | W142: 23 | X142: X | Z142: 23 | AA142: 23 | AB142: Upper Yellowstone-Central Mountain | AC142: QJUN0.5 | AD142: A | AE142: P | AF142: -6.964 | AG142: 1.032 | AH142: 4.948
A143: QJUN0.8=10-8.28A1.026P5.688 | B143: OLS | C143: 49 | D143: -- | E143: -- | F143: -- | G143: -- | H143: -- | I143: 73.7966314 | J143: 87.81 | K143: 0.999653249 | Q143: 29 | U143: 8 | V143: 16 | W143: 22 | X143: X | Z143: 22 | AA143: 22 | AB143: Upper Yellowstone-Central Mountain | AC143: QJUN0.8 | AD143: A | AE143: P | AF143: -8.28 | AG143: 1.026 | AH143: 5.688
A144: QJUNMEAN=10-6.2A1.006P4.511 | B144: OLS | C144: 49 | D144: -- | E144: -- | F144: -- | G144: -- | H144: -- | I144: 58.79577944 | J144: 89.23 | K144: 0.9850241749 | Q144: 30 | U144: 9 | V144: 16 | W144: 22 | X144: X | Z144: 22 | AA144: 22 | AB144: Upper Yellowstone-Central Mountain | AC144: QJUNMEAN | AD144: A | AE144: P | AF144: -6.2 | AG144: 1.006 | AH144: 4.511
A145: QJUL0.2=10-7.302A0.978P5.168 | B145: OLS | C145: 49 | D145: -- | E145: -- | F145: -- | G145: -- | H145: -- | I145: 84.69836266 | J145: 83.25 | K145: 0.95412329 | Q145: 31 | U145: 8 | V145: 17 | W145: 23 | X145: X | Z145: 23 | AA145: 23 | AB145: Upper Yellowstone-Central Mountain | AC145: QJUL0.2 | AD145: A | AE145: P | AF145: -7.302 | AG145: 0.978 | AH145: 5.168
A146: QJUL0.5=10-7.862A0.923P5.472 | B146: OLS | C146: 49 | D146: -- | E146: -- | F146: -- | G146: -- | H146: -- | I146: 102.7923853 | J146: 79.09 | K146: 0.8977494064 | Q146: 32 | U146: 8 | V146: 17 | W146: 23 | X146: X | Z146: 23 | AA146: 23 | AB146: Upper Yellowstone-Central Mountain | AC146: QJUL0.5 | AD146: A | AE146: P | AF146: -7.862 | AG146: 0.923 | AH146: 5.472
A147: QJUL0.8=10-9.264A0.881P6.324 | B147: OLS | C147: 49 | D147: -- | E147: -- | F147: -- | G147: -- | H147: -- | I147: 160.3017766 | J147: 71.33 | K147: 0.851846802 | Q147: 33 | U147: 8 | V147: 17 | W147: 23 | X147: X | Z147: 23 | AA147: 23 | AB147: Upper Yellowstone-Central Mountain | AC147: QJUL0.8 | AD147: A | AE147: P | AF147: -9.264 | AG147: 0.881 | AH147: 6.324
A148: QJULMEAN=10-7.403A0.952P5.176 | B148: OLS | C148: 49 | D148: -- | E148: -- | F148: -- | G148: -- | H148: -- | I148: 87.91430653 | J148: 82.12 | K148: 0.9274650043 | Q148: 34 | U148: 9 | V148: 18 | W148: 24 | X148: X | Z148: 24 | AA148: 24 | AB148: Upper Yellowstone-Central Mountain | AC148: QJULMEAN | AD148: A | AE148: P | AF148: -7.403 | AG148: 0.952 | AH148: 5.176
A149: QAUG0.2=10-6.273A0.871P4.352 | B149: OLS | C149: 49 | D149: -- | E149: -- | F149: -- | G149: -- | H149: -- | I149: 103.322823 | J149: 73.56 | K149: 0.8507936265 | Q149: 35 | U149: 8 | V149: 17 | W149: 23 | X149: X | Z149: 23 | AA149: 23 | AB149: Upper Yellowstone-Central Mountain | AC149: QAUG0.2 | AD149: A | AE149: P | AF149: -6.273 | AG149: 0.871 | AH149: 4.352
A150: QAUG0.5=10-7.497A0.862P5.073 | B150: OLS | C150: 49 | D150: -- | E150: -- | F150: -- | G150: -- | H150: -- | I150: 165.6542079 | J150: 64.17 | K150: 0.8383430772 | Q150: 36 | U150: 8 | V150: 17 | W150: 23 | X150: X | Z150: 23 | AA150: 23 | AB150: Upper Yellowstone-Central Mountain | AC150: QAUG0.5 | AD150: A | AE150: P | AF150: -7.497 | AG150: 0.862 | AH150: 5.073
A151: QAUG0.8=10-9.032A0.776P6.129 | B151: OLS | C151: 49 | D151: -- | E151: -- | F151: -- | G151: -- | H151: -- | I151: 207.6728869 | J151: 62.67 | K151: 0.747722123 | Q151: 37 | U151: 8 | V151: 17 | W151: 23 | X151: X | Z151: 23 | AA151: 23 | AB151: Upper Yellowstone-Central Mountain | AC151: QAUG0.8 | AD151: A | AE151: P | AF151: -9.032 | AG151: 0.776 | AH151: 6.129
A152: QAUGMEAN=10-6.788A0.854P4.644 | B152: OLS | C152: 49 | D152: -- | E152: -- | F152: -- | G152: -- | H152: -- | I152: 110.7641607 | J152: 72.65 | K152: 0.8320334044 | Q152: 38 | U152: 9 | V152: 18 | W152: 24 | X152: X | Z152: 24 | AA152: 24 | AB152: Upper Yellowstone-Central Mountain | AC152: QAUGMEAN | AD152: A | AE152: P | AF152: -6.788 | AG152: 0.854 | AH152: 4.644
A153: QSEP0.2=10-5.342A0.861P3.637 | B153: OLS | C153: 49 | D153: -- | E153: -- | F153: -- | G153: -- | H153: -- | I153: 111.8306377 | J153: 67.69 | K153: 0.8442510993 | Q153: 39 | U153: 8 | V153: 17 | W153: 23 | X153: X | Z153: 23 | AA153: 23 | AB153: Upper Yellowstone-Central Mountain | AC153: QSEP0.2 | AD153: A | AE153: P | AF153: -5.342 | AG153: 0.861 | AH153: 3.637
A154: QSEP0.5=10-6.445A0.838P4.323 | B154: OLS | C154: 49 | D154: -- | E154: -- | F154: -- | G154: -- | H154: -- | I154: 172.3075397 | J154: 58.4 | K154: 0.7952032442 | Q154: 40 | U154: 8 | V154: 17 | W154: 23 | X154: X | Z154: 23 | AA154: 23 | AB154: Upper Yellowstone-Central Mountain | AC154: QSEP0.5 | AD154: A | AE154: P | AF154: -6.445 | AG154: 0.838 | AH154: 4.323
A155: QSEP0.8=10-7.739A0.791P5.16 | B155: OLS | C155: 49 | D155: -- | E155: -- | F155: -- | G155: -- | H155: -- | I155: 214.5247525 | J155: 56.63 | K155: 0.7667341474 | Q155: 41 | U155: 8 | V155: 17 | W155: 23 | X155: X | Z155: 23 | AA155: 23 | AB155: Upper Yellowstone-Central Mountain | AC155: QSEP0.8 | AD155: A | AE155: P | AF155: -7.739 | AG155: 0.791 | AH155: 5.16
A156: QSEPMEAN=10-5.849A0.851P3.924 | B156: OLS | C156: 49 | D156: -- | E156: -- | F156: -- | G156: -- | H156: -- | I156: 123.6548068 | J156: 65.88 | K156: 0.8327397597 | Q156: 42 | U156: 9 | V156: 18 | W156: 24 | X156: X | Z156: 24 | AA156: 24 | AB156: Upper Yellowstone-Central Mountain | AC156: QSEPMEAN | AD156: A | AE156: P | AF156: -5.849 | AG156: 0.851 | AH156: 3.924
A157: QOCT0.2=10-4.311A0.886P2.867 | B157: OLS | C157: 49 | D157: -- | E157: -- | F157: -- | G157: -- | H157: -- | I157: 93.24308056 | J157: 70.44 | K157: 0.8723993454 | Q157: 43 | U157: 8 | V157: 17 | W157: 23 | X157: X | Z157: 23 | AA157: 23 | AB157: Upper Yellowstone-Central Mountain | AC157: QOCT0.2 | AD157: A | AE157: P | AF157: -4.311 | AG157: 0.886 | AH157: 2.867
A158: QOCT0.5=10-4.715A0.867P3.086 | B158: OLS | C158: 49 | D158: -- | E158: -- | F158: -- | G158: -- | H158: -- | I158: 113.9670787 | J158: 64.63 | K158: 0.8522327817 | Q158: 44 | U158: 8 | V158: 17 | W158: 23 | X158: X | Z158: 23 | AA158: 23 | AB158: Upper Yellowstone-Central Mountain | AC158: QOCT0.5 | AD158: A | AE158: P | AF158: -4.715 | AG158: 0.867 | AH158: 3.086
A159: QOCT0.8=10-5.806A0.841P3.772 | B159: OLS | C159: 49 | D159: -- | E159: -- | F159: -- | G159: -- | H159: -- | I159: 165.055534 | J159: 56.47 | K159: 0.8230295349 | Q159: 45 | U159: 8 | V159: 17 | W159: 23 | X159: X | Z159: 23 | AA159: 23 | AB159: Upper Yellowstone-Central Mountain | AC159: QOCT0.8 | AD159: A | AE159: P | AF159: -5.806 | AG159: 0.841 | AH159: 3.772
A160: QOCTMEAN=10-4.711A0.875P3.09 | B160: OLS | C160: 49 | D160: -- | E160: -- | F160: -- | G160: -- | H160: -- | I160: 104.3839788 | J160: 67.61 | K160: 0.8608290711 | Q160: 46 | U160: 9 | V160: 18 | W160: 24 | X160: X | Z160: 24 | AA160: 24 | AB160: Upper Yellowstone-Central Mountain | AC160: QOCTMEAN | AD160: A | AE160: P | AF160: -4.711 | AG160: 0.875 | AH160: 3.09
A161: QNOV0.2=10-3.932A0.918P2.504 | B161: OLS | C161: 45 | D161: -- | E161: -- | F161: -- | G161: -- | H161: -- | I161: 85.77232402 | J161: 72.1 | K161: 0.8864244853 | Q161: 47 | U161: 8 | V161: 17 | W161: 23 | X161: X | Z161: 23 | AA161: 23 | AB161: Upper Yellowstone-Central Mountain | AC161: QNOV0.2 | AD161: A | AE161: P | AF161: -3.932 | AG161: 0.918 | AH161: 2.504
A162: QNOV0.5=10-4.288A0.912P2.684 | B162: OLS | C162: 45 | D162: -- | E162: -- | F162: -- | G162: -- | H162: -- | I162: 98.55040515 | J162: 68.19 | K162: 0.8789812118 | Q162: 48 | U162: 8 | V162: 17 | W162: 23 | X162: X | Z162: 23 | AA162: 23 | AB162: Upper Yellowstone-Central Mountain | AC162: QNOV0.5 | AD162: A | AE162: P | AF162: -4.288 | AG162: 0.912 | AH162: 2.684
A163: QNOV0.8=10-4.992A0.913P3.079 | B163: OLS | C163: 45 | D163: -- | E163: -- | F163: -- | G163: -- | H163: -- | I163: 120.4102853 | J163: 63.43 | K163: 0.8742392173 | Q163: 49 | U163: 8 | V163: 17 | W163: 23 | X163: X | Z163: 23 | AA163: 23 | AB163: Upper Yellowstone-Central Mountain | AC163: QNOV0.8 | AD163: A | AE163: P | AF163: -4.992 | AG163: 0.913 | AH163: 3.079
A164: QNOVMEAN=10-4.312A0.924P2.69 | B164: OLS | C164: 45 | D164: -- | E164: -- | F164: -- | G164: -- | H164: -- | I164: 93.24308056 | J164: 70.23 | K164: 0.890010346 | Q164: 50 | U164: 9 | V164: 18 | W164: 24 | X164: X | Z164: 24 | AA164: 24 | AB164: Upper Yellowstone-Central Mountain | AC164: QNOVMEAN | AD164: A | AE164: P | AF164: -4.312 | AG164: 0.924 | AH164: 2.69
A165: QDEC0.2=10-4.202A0.954P2.567 | B165: OLS | C165: 41 | D165: -- | E165: -- | F165: -- | G165: -- | H165: -- | I165: 88.44870318 | J165: 73.04 | K165: 0.916632605 | Q165: 51 | U165: 8 | V165: 17 | W165: 23 | X165: X | Z165: 23 | AA165: 23 | AB165: Upper Yellowstone-Central Mountain | AC165: QDEC0.2 | AD165: A | AE165: P | AF165: -4.202 | AG165: 0.954 | AH165: 2.567
A166: QDEC0.5=10-4.601A0.957P2.759 | B166: OLS | C166: 41 | D166: -- | E166: -- | F166: -- | G166: -- | H166: -- | I166: 103.322823 | J166: 69.03 | K166: 0.9165217963 | Q166: 52 | U166: 8 | V166: 17 | W166: 23 | X166: X | Z166: 23 | AA166: 23 | AB166: Upper Yellowstone-Central Mountain | AC166: QDEC0.5 | AD166: A | AE166: P | AF166: -4.601 | AG166: 0.957 | AH166: 2.759
A167: QDEC0.8=10-5.075A0.946P3.015 | B167: OLS | C167: 41 | D167: -- | E167: -- | F167: -- | G167: -- | H167: -- | I167: 119.3324239 | J167: 65.12 | K167: 0.9016731385 | Q167: 53 | U167: 8 | V167: 17 | W167: 23 | X167: X | Z167: 23 | AA167: 23 | AB167: Upper Yellowstone-Central Mountain | AC167: QDEC0.8 | AD167: A | AE167: P | AF167: -5.075 | AG167: 0.946 | AH167: 3.015
A168: QDECMEAN=10-4.394A0.956P2.632 | B168: OLS | C168: 41 | D168: -- | E168: -- | F168: -- | G168: -- | H168: -- | I168: 94.83669486 | J168: 71.13 | K168: 0.9172242617 | Q168: 54 | U168: 9 | V168: 18 | W168: 24 | X168: X | Z168: 24 | AA168: 24 | AB168: Upper Yellowstone-Central Mountain | AC168: QDECMEAN | AD168: A | AE168: P | AF168: -4.394 | AG168: 0.956 | AH168: 2.632
A169: Southwest hydrologic region
A170: QAL7Q10=10-5.309A1.725(SLP50 + 1)2.152 | B170: GLS | C170: 14 | D170: 0.216 | E170: 0.264 | F170: 146.44 | G170: 174.5 | H170: 73.14 | I170: -- | J170: -- | K170: 1.334155622 | Q170: 1 | U170: =FIND("=",A170) -> 8 | V170: =FIND(V$3,$A170,U170) -> 17 | W170: =IF(X170<>"X","X",FIND(W$3,$A170,U170)) -> X | X170: =IF(ISERROR(FIND(X$3,$A170)),"X",FIND(X$3,$A170)) -> 24 | Z170: =IF(W170="X",FIND("(",A170),W170) -> 23 | AA170: =IF(W170="X",FIND(")",A170),W170) -> 33 | AB170: Southwest | AC170: QAL7Q10 | AD170: A | AE170: =IF(W170="X","SLP50","P") -> SLP50 | AF170: =MID(A170,U170+3,V170-U170-3) -> -5.309 | AG170: =MID(A170,V170+1,Z170-V170-1) -> 1.725 | AH170: =MID(A170,AA170+1,LEN(A170)-AA170) -> 2.152
A171: QS214Q5=10-6.998A1.135P3.934 | B171: GLS | C171: 23 | D171: 0.293 | E171: 0.332 | F171: 193.06 | G171: 219.61 | H171: 46.76 | I171: -- | J171: -- | K171: 0.8406933758 | Q171: 2 | U171: 8 | V171: 17 | W171: 23 | X171: X | Z171: 23 | AA171: 23 | AB171: Southwest | AC171: QS214Q5 | AD171: A | AE171: P | AF171: -6.998 | AG171: 1.135 | AH171: 3.934
A172: QA0.2=10-3.693A0.827P2.804 | B172: OLS | C172: 14 | D172: -- | E172: -- | F172: -- | G172: -- | H172: -- | I172: 39.23091308 | J172: 86.48 | K172: 0.6475809197 | Q172: 3 | U172: 6 | V172: 15 | W172: 21 | X172: X | Z172: 21 | AA172: 21 | AB172: Southwest | AC172: QA0.2 | AD172: A | AE172: P | AF172: -3.693 | AG172: 0.827 | AH172: 2.804
A173: QA0.5=10-2.413A0.753P1.759 | B173: OLS | C173: 14 | D173: -- | E173: -- | F173: -- | G173: -- | H173: -- | I173: 36.83717282 | J173: 85.97 | K173: 0.64064273 | Q173: 4 | U173: 6 | V173: 15 | W173: 21 | X173: X | Z173: 21 | AA173: 21 | AB173: Southwest | AC173: QA0.5 | AD173: A | AE173: P | AF173: -2.413 | AG173: 0.753 | AH173: 1.759
A174: QA0.8=10-2.924A0.794P1.835 | B174: OLS | C174: 14 | D174: -- | E174: -- | F174: -- | G174: -- | H174: -- | I174: 40.76855479 | J174: 84.68 | K174: 0.6769225183 | Q174: 5 | U174: 6 | V174: 15 | W174: 21 | X174: X | Z174: 21 | AA174: 21 | AB174: Southwest | AC174: QA0.8 | AD174: A | AE174: P | AF174: -2.924 | AG174: 0.794 | AH174: 1.835
A175: QAMEAN=10-4.335A0.962P2.946 | B175: OLS | C175: 14 | D175: -- | E175: -- | F175: -- | G175: -- | H175: -- | I175: 25.63029424 | J175: 94.98 | K175: 0.774320927 | Q175: 6 | U175: 7 | V175: 16 | W175: 22 | X175: X | Z175: 22 | AA175: 22 | AB175: Southwest | AC175: QAMEAN | AD175: A | AE175: P | AF175: -4.335 | AG175: 0.962 | AH175: 2.946
A176: QJAN0.2=10-2.126A1.149(SLP50 + 1)0.975 | B176: OLS | C176: 14 | D176: -- | E176: -- | F176: -- | G176: -- | H176: -- | I176: 36.01280787 | J176: 93.4 | K176: 0.9550318692 | Q176: 7 | U176: 8 | V176: 17 | W176: X | X176: 24 | Z176: 23 | AA176: 33 | AB176: Southwest | AC176: QJAN0.2 | AD176: A | AE176: SLP50 | AF176: -2.126 | AG176: 1.149 | AH176: 0.975
A177: QJAN0.5=10-2.645A1.239(SLP50 + 1)1.168 | B177: OLS | C177: 14 | D177: -- | E177: -- | F177: -- | G177: -- | H177: -- | I177: 45.85881321 | J177: 91.19 | K177: 1.006662667 | Q177: 8 | U177: 8 | V177: 17 | W177: X | X177: 24 | Z177: 23 | AA177: 33 | AB177: Southwest | AC177: QJAN0.5 | AD177: A | AE177: SLP50 | AF177: -2.645 | AG177: 1.239 | AH177: 1.168
A178: QJAN0.8=10-3.331A1.351(SLP50 + 1)1.451 | B178: OLS | C178: 14 | D178: -- | E178: -- | F178: -- | G178: -- | H178: -- | I178: 60.60280384 | J178: 88.22 | K178: 1.06316466 | Q178: 9 | U178: 8 | V178: 17 | W178: X | X178: 24 | Z178: 23 | AA178: 33 | AB178: Southwest | AC178: QJAN0.8 | AD178: A | AE178: SLP50 | AF178: -3.331 | AG178: 1.351 | AH178: 1.451
A179: QJANMEAN=10-2.442A1.193(SLP50 + 1)1.093 | B179: OLS | C179: 14 | D179: -- | E179: -- | F179: -- | G179: -- | H179: -- | I179: 41.52193636 | J179: 92.11 | K179: 0.9758114628 | Q179: 10 | U179: 9 | V179: 18 | W179: X | X179: 25 | Z179: 24 | AA179: 34 | AB179: Southwest | AC179: QJANMEAN | AD179: A | AE179: SLP50 | AF179: -2.442 | AG179: 1.193 | AH179: 1.093
A180: QFEB0.2=10-2.276A1.214(SLP50 + 1)0.964 | B180: OLS | C180: 14 | D180: -- | E180: -- | F180: -- | G180: -- | H180: -- | I180: 42.26578893 | J180: 92.11 | K180: 1.021921553 | Q180: 11 | U180: 8 | V180: 17 | W180: X | X180: 24 | Z180: 23 | AA180: 33 | AB180: Southwest | AC180: QFEB0.2 | AD180: A | AE180: SLP50 | AF180: -2.276 | AG180: 1.214 | AH180: 0.964
A181: QFEB0.5=10-2.631A1.256(SLP50 + 1)1.116 | B181: OLS | C181: 14 | D181: -- | E181: -- | F181: -- | G181: -- | H181: -- | I181: 49.27647253 | J181: 90.51 | K181: 1.033803914 | Q181: 12 | U181: 8 | V181: 17 | W181: X | X181: 24 | Z181: 23 | AA181: 33 | AB181: Southwest | AC181: QFEB0.5 | AD181: A | AE181: SLP50 | AF181: -2.631 | AG181: 1.256 | AH181: 1.116
A182: QFEB0.8=10-3.286A1.355(SLP50 + 1)1.395 | B182: OLS | C182: 14 | D182: -- | E182: -- | F182: -- | G182: -- | H182: -- | I182: 61.79365388 | J182: 88.04 | K182: 1.077793208 | Q182: 13 | U182: 8 | V182: 17 | W182: X | X182: 24 | Z182: 23 | AA182: 33 | AB182: Southwest | AC182: QFEB0.8 | AD182: A | AE182: SLP50 | AF182: -3.286 | AG182: 1.355 | AH182: 1.395
A183: QFEBMEAN=10-2.555A1.248(SLP50 + 1)1.086 | B183: OLS | C183: 14 | D183: -- | E183: -- | F183: -- | G183: -- | H183: -- | I183: 42.26578893 | J183: 92.59 | K183: 1.032356342 | Q183: 14 | U183: 9 | V183: 18 | W183: X | X183: 25 | Z183: 24 | AA183: 34 | AB183: Southwest | AC183: QFEBMEAN | AD183: A | AE183: SLP50 | AF183: -2.555 | AG183: 1.248 | AH183: 1.086
A184: QMAR0.2=10-1.493A1.11(SLP50 + 1)0.555 | B184: OLS | C184: 17 | D184: -- | E184: -- | F184: -- | G184: -- | H184: -- | I184: 31.64454972 | J184: 94.23 | K184: 0.9939985707 | Q184: 15 | U184: 8 | V184: 17 | W184: X | X184: 23 | Z184: 22 | AA184: 32 | AB184: Southwest | AC184: QMAR0.2 | AD184: A | AE184: SLP50 | AF184: -1.493 | AG184: 1.11 | AH184: 0.555
A185: QMAR0.5=10-2.138A1.206(SLP50 + 1)0.83 | B185: OLS | C185: 17 | D185: -- | E185: -- | F185: -- | G185: -- | H185: -- | I185: 40.76855479 | J185: 91.81 | K185: 1.032443533 | Q185: 16 | U185: 8 | V185: 17 | W185: X | X185: 24 | Z185: 23 | AA185: 33 | AB185: Southwest | AC185: QMAR0.5 | AD185: A | AE185: SLP50 | AF185: -2.138 | AG185: 1.206 | AH185: 0.83
A186: QMAR0.8=10-2.909A1.336(SLP50 + 1)1.162 | B186: OLS | C186: 17 | D186: -- | E186: -- | F186: -- | G186: -- | H186: -- | I186: 56.34319494 | J186: 88.31 | K186: 1.092915313 | Q186: 17 | U186: 8 | V186: 17 | W186: X | X186: 24 | Z186: 23 | AA186: 33 | AB186: Southwest | AC186: QMAR0.8 | AD186: A | AE186: SLP50 | AF186: -2.909 | AG186: 1.336 | AH186: 1.162
A187: QMARMEAN=10-1.739A1.143(SLP50 + 1)0.646 | B187: OLS | C187: 17 | D187: -- | E187: -- | F187: -- | G187: -- | H187: -- | I187: 30.71160929 | J187: 94.56 | K187: 1.00808442 | Q187: 18 | U187: 9 | V187: 18 | W187: X | X187: 25 | Z187: 24 | AA187: 34 | AB187: Southwest | AC187: QMARMEAN | AD187: A | AE187: SLP50 | AF187: -1.739 | AG187: 1.143 | AH187: 0.646
A188: QAPR0.2=10-3.434A1.096P2.189 | B188: OLS | C188: 23 | D188: -- | E188: -- | F188: -- | G188: -- | H188: -- | I188: 39.23091308 | J188: 90.93 | K188: 0.9241803335 | Q188: 19 | U188: 8 | V188: 17 | W188: 23 | X188: X | Z188: 23 | AA188: 23 | AB188: Southwest | AC188: QAPR0.2 | AD188: A | AE188: P | AF188: -3.434 | AG188: 1.096 | AH188: 2.189
A189: QAPR0.5=10-3.267A1.115P1.847 | B189: OLS | C189: 23 | D189: -- | E189: -- | F189: -- | G189: -- | H189: -- | I189: 26.7126305 | J189: 95.66 | K189: 0.9705435438 | Q189: 20 | U189: 8 | V189: 17 | W189: 23 | X189: X | Z189: 23 | AA189: 23 | AB189: Southwest | AC189: QAPR0.5 | AD189: A | AE189: P | AF189: -3.267 | AG189: 1.115 | AH189: 1.847
A190: QAPR0.8=10-2.935A1.105P1.447 | B190: OLS | C190: 23 | D190: -- | E190: -- | F190: -- | G190: -- | H190: -- | I190: 29.75459606 | J190: 94.84 | K190: 0.9919122041 | Q190: 21 | U190: 8 | V190: 17 | W190: 23 | X190: X | Z190: 23 | AA190: 23 | AB190: Southwest | AC190: QAPR0.8 | AD190: A | AE190: P | AF190: -2.935 | AG190: 1.105 | AH190: 1.447
A191: QAPRMEAN=10-3.343A1.093P2.022 | B191: OLS | C191: 23 | D191: -- | E191: -- | F191: -- | G191: -- | H191: -- | I191: 30.71160929 | J191: 94.09 | K191: 0.9341001921 | Q191: 22 | U191: 9 | V191: 18 | W191: 24 | X191: X | Z191: 24 | AA191: 24 | AB191: Southwest | AC191: QAPRMEAN | AD191: A | AE191: P | AF191: -3.343 | AG191: 1.093 | AH191: 2.022
A192: QMAY0.2=10-3.111A0.886P2.593 | B192: OLS | C192: 24 | D192: -- | E192: -- | F192: -- | G192: -- | H192: -- | I192: 57.57604579 | J192: 77.87 | K192: 0.7032661905 | Q192: 23 | U192: 8 | V192: 17 | W192: 23 | X192: X | Z192: 23 | AA192: 23 | AB192: Southwest | AC192: QMAY0.2 | AD192: A | AE192: P | AF192: -3.111 | AG192: 0.886 | AH192: 2.593
A193: QMAY0.5=10-3.494A0.894P2.672 | B193: OLS | C193: 24 | D193: -- | E193: -- | F193: -- | G193: -- | H193: -- | I193: 53.83394228 | J193: 80.12 | K193: 0.705460114 | Q193: 24 | U193: 8 | V193: 17 | W193: 23 | X193: X | Z193: 23 | AA193: 23 | AB193: Southwest | AC193: QMAY0.5 | AD193: A | AE193: P | AF193: -3.494 | AG193: 0.894 | AH193: 2.672
A194: QMAY0.8=10-3.888A0.936P2.679 | B194: OLS | C194: 24 | D194: -- | E194: -- | F194: -- | G194: -- | H194: -- | I194: 47.92785743 | J194: 84.39 | K194: 0.7473348209 | Q194: 25 | U194: 8 | V194: 17 | W194: 23 | X194: X | Z194: 23 | AA194: 23 | AB194: Southwest | AC194: QMAY0.8 | AD194: A | AE194: P | AF194: -3.888 | AG194: 0.936 | AH194: 2.679
A195: QMAYMEAN=10-3.245A0.892P2.558 | B195: OLS | C195: 24 | D195: -- | E195: -- | F195: -- | G195: -- | H195: -- | I195: 53.83394228 | J195: 80.05 | K195: 0.7115042376 | Q195: 26 | U195: 9 | V195: 18 | W195: 24 | X195: X | Z195: 24 | AA195: 24 | AB195: Southwest | AC195: QMAYMEAN | AD195: A | AE195: P | AF195: -3.245 | AG195: 0.892 | AH195: 2.558
A196: QJUN0.2=10-3.233A0.898P2.7 | B196: OLS | C196: 24 | D196: -- | E196: -- | F196: -- | G196: -- | H196: -- | I196: 47.24461183 | J196: 83.72 | K196: 0.7072234987 | Q196: 27 | U196: 8 | V196: 17 | W196: 23 | X196: X | Z196: 23 | AA196: 23 | AB196: Southwest | AC196: QJUN0.2 | AD196: A | AE196: P | AF196: -3.233 | AG196: 0.898 | AH196: 2.7
A197: QJUN0.5=10-4.127A0.917P3.119 | B197: OLS | C197: 24 | D197: -- | E197: -- | F197: -- | G197: -- | H197: -- | I197: 47.24461183 | J197: 84.59 | K197: 0.6974819304 | Q197: 28 | U197: 8 | V197: 17 | W197: 23 | X197: X | Z197: 23 | AA197: 23 | AB197: Southwest | AC197: QJUN0.5 | AD197: A | AE197: P | AF197: -4.127 | AG197: 0.917 | AH197: 3.119
A198: QJUN0.8=10-4.929A0.916P3.467 | B198: OLS | C198: 24 | D198: -- | E198: -- | F198: -- | G198: -- | H198: -- | I198: 65.88585915 | J198: 75.61 | K198: 0.6716718977 | Q198: 29 | U198: 8 | V198: 17 | W198: 23 | X198: X | Z198: 23 | AA198: 23 | AB198: Southwest | AC198: QJUN0.8 | AD198: A | AE198: P | AF198: -4.929 | AG198: 0.916 | AH198: 3.467
A199: QJUNMEAN=10-3.56A0.89P2.819 | B199: OLS | C199: 24 | D199: -- | E199: -- | F199: -- | G199: -- | H199: -- | I199: 45.85881321 | J199: 84.28 | K199: 0.6910290354 | Q199: 30 | U199: 9 | V199: 17 | W199: 22 | X199: X | Z199: 22 | AA199: 22 | AB199: Southwest | AC199: QJUNMEAN | AD199: A | AE199: P | AF199: -3.56 | AG199: 0.89 | AH199: 2.819
A200: QJUL0.2=10-3.807A0.897P2.772 | B200: OLS | C200: 24 | D200: -- | E200: -- | F200: -- | G200: -- | H200: -- | I200: 46.55503227 | J200: 84.26 | K200: 0.7020736285 | Q200: 31 | U200: 8 | V200: 17 | W200: 23 | X200: X | Z200: 23 | AA200: 23 | AB200: Southwest | AC200: QJUL0.2 | AD200: A | AE200: P | AF200: -3.807 | AG200: 0.897 | AH200: 2.772
... 25 more rows

Sheet Flood Q Regression Tool
B1: Flood Q Regression Tool. Use to estimate flood discharge in Washington State at ungaged sites based on regional regression equations and user-determined basin characteristics. | AA1: REGION 1 Calcs | AN1: REGION 2 Calcs | BA1: REGION 3 Calcs | BM1: REGION 4 Calcs | BY1: List Box | CC1: Valid ranges
B2: DA = Drainage Area, in square miles; P = Average Basin Annual Precipitation, in inches (from PRISM data set, years 1981-2010); CAN = Percent canopy cover (NLCD 2001); AEP = Annual Exceedance Probability; Qu = Flood Discharge, in cubic feet per second at ungaged site for the indicated AEP; PIL, PIU= Predition Intervals (L=Lower and U=Upper) | AA2: XT= | AB2: 1 | AN2: XT= | AO2: 1 | BA2: XT= | BB2: 1 | BM2: XT= | BN2: 1 | BZ2: Regression Region 1 | CC2: 0.25 | CD2: 3304 | CE2: 9.82 | CF2: 52.45 | CG2: 0 | CH2: 77.4
AB3: =LOG10($Q$9) -> 1.301029996 | AE3: REGION 1 | AO3: =LOG10($Q$9) -> 1.301029996 | AR3: REGION 2 | BB3: =LOG10($Q$9) -> 1.301029996 | BE3: REGION 3 | BN3: =LOG10($Q$9) -> 1.301029996 | BQ3: REGION 4 | BY3: 1 | BZ3: Regression Region 2 | CC3: 0.42 | CD3: 1820 | CE3: 8.86 | CF3: 84.2 | CG3: 0 | CH3: 81.8
AB4: =$Q$11 -> 10 | AH4: (XTΛ-1X)-1 | AO4: =$Q$11 -> 10 | AU4: (XTΛ-1X)-1 | BB4: =LOG10($Q$11) -> 1 | BH4: (XTΛ-1X)-1 | BN4: =$Q$11 -> 10 | BT4: (XTΛ-1X)-1 | BZ4: Regression Region 3 | CC4: 0.08 | CD4: 2605 | CE4: 33.29 | CF4: 168
B5: Instructions for using the Flood Q Tool to estimate Flood Discharges at Ungaged Sites using the regional regression equations | M5: User determined basin characteristics for ungaged site | AB5: =$Q$13 -> 20 | AE5: AEP | AF5: σ2δ | AG5: t(α/2, n-p) | AI5: Intercept | AJ5: DA | AK5: MAP | AL5: CAN | AO5: =$Q$13 -> 20 | AR5: AEP | AS5: σ2δ | AT5: t(α/2, n-p) | AV5: Intercept | AW5: DA | AX5: MAP | AY5: CAN | BE5: AEP | BF5: σ2δ | BG5: t(α/2, n-p) | BI5: Intercept | BJ5: DA | BK5: MAP | BQ5: AEP | BR5: σ2δ | BS5: t(α/2, n-p) | BU5: Intercept | BV5: DA | BW5: MAP | BZ5: Regression Region 4 | CC5: 0.18 | CD5: 2230 | CE5: 11.94 | CF5: 186.6
AA6: AEP=0.5 | AC6: =MMULT(MMULT(TRANSPOSE(AB2:AB5),AI6:AL9),AB2:AB5) -> 0.01130523028 | AE6: 0.5 | AF6: 0.113 | AG6: 1.6622 | AH6: Intercept | AI6: 0.019164022 | AJ6: -0.0023091143 | AK6: -0.00065479902 | AL6: 0.0001923244 | AN6: AEP=0.5 | AP6: =MMULT(MMULT(TRANSPOSE(AO2:AO5),AV6:AY9),AO2:AO5) -> 0.006763424629 | AR6: 0.5 | AS6: 0.082 | AT6: 1.663 | AU6: Intercept | AV6: 0.016351936 | AW6: -0.0024383899 | AX6: -0.00012665308 | AY6: -0.00011532899 | BA6: AEP=0.5 | BC6: =MMULT(MMULT(TRANSPOSE(BB$2:BB$4),BI6:BK8),BB$2:BB$4) -> 0.009913168093 | BE6: 0.5 | BF6: 0.031 | BG6: 1.6559 | BH6: Intercept | BI6: 0.03976 | BJ6: 9.135e-05 | BK6: -0.02031 | BM6: AEP=0.5 | BO6: =MMULT(MMULT(TRANSPOSE(BN$2:BN$4),BU6:BW8),BN$2:BN$4) -> 0.0005699348312 | BQ6: 0.5 | BR6: 0.045 | BS6: 1.6561 | BT6: Intercept | BU6: 0.004633 | BV6: -0.0005756 | BW6: -0.0003314 | CJ6: 0.018162872 | CK6: -0.0026915895 | CL6: -0.0013791035 | CM6: -0.0012607548
C7: Steps | D7: Instructions | N7: Selected Region: | P7: =INDEX(BZ2:BZ5,BY3) -> Regression Region 1 | S7: Range of values that are valid for the regression | AB7: Si = | AC7: =SQRT(AF6 + AC6) -> 0.3525694687 | AH7: DA | AI7: -0.0023091143 | AJ7: 0.0016150022 | AK7: 7.9102264e-06 | AL7: -1.5452192e-05 | AO7: Si = | AP7: =SQRT(AS6 + AP6) -> 0.2979319127 | AU7: DA | AV7: -0.0024383899 | AW7: 0.0015462302 | AX7: 1.062816e-06 | AY7: 5.2388638e-07 | BB7: Si = | BC7: =SQRT(BF6 + BC6) -> 0.2022700376 | BH7: DA | BI7: 9.135e-05 | BJ7: 0.0004064 | BK7: -0.0003276 | BN7: Si = | BO7: =SQRT(BR6 + BO6) -> 0.2134711569 | BT7: DA | BU7: -0.0005756 | BV7: 0.0004384 | BW7: 1.945e-06 | BY7: Region 1 | CB7: Q = aAb10cP/10dCAN | CG7: Range | CJ7: -0.0026915895 | CK7: 0.0015892354 | CL7: 2.6963556e-05 | CM7: 1.9480044e-05
C8: 1 | D8: Select the Regression Region below from the List Box | AB8: T = | AC8: =POWER(10,(AG6*AC7)) -> 3.85514725 | AH8: MAP | AI8: -0.00065479902 | AJ8: 7.9102264e-06 | AK8: 4.0330544e-05 | AL8: -1.6590843e-05 | AO8: T = | AP8: =POWER(10,(AT6*AP7)) -> 3.129397785 | AU8: MAP | AV8: -0.00012665308 | AW8: 1.062816e-06 | AX8: 5.5352866e-06 | AY8: -1.6684268e-06 | BB8: T = | BC8: =POWER(10,(BG6*BC7)) -> 2.162414551 | BH8: MAP | BI8: -0.02031 | BJ8: -0.0003276 | BK8: 0.0107 | BN8: T = | BO8: =POWER(10,(BS6*BO7)) -> 2.25698973 | BT8: MAP | BU8: -0.0003314 | BV8: 1.945e-06 | BW8: 3.27e-05 | BY8: AEP | BZ8: rounded | CB8: a | CC8: b | CD8: c | CE8: d | CG8: 0.25 - 3304 | CJ8: -0.0013791035 | CK8: 2.6963556e-05 | CL8: 0.00055899624 | CM8: -0.00015887111
C9: 2 | D9: Determine the drainage area, DA and the Annual Precipitation, P for the ungage drainage basin. If you pick Regression Region 1 or 2, determine the percent canopy cover, CAN. | M9: Drainage Area, DA | P9: = | Q9: 20 | R9: square miles | S9: =IF(BY3=1,CG8,IF(BY3=2,CG18,IF(BY3=3,CG28,IF(BY3=4,CG38)))) -> 0.25 - 3304 | AH9: CAN | AI9: 0.0001923244 | AJ9: -1.5452192e-05 | AK9: -1.6590843e-05 | AL9: 1.0051477e-05 | AU9: CAN | AV9: -0.00011532899 | AW9: 5.2388638e-07 | AX9: -1.6684268e-06 | AY9: 3.3604961e-06 | BY9: 0.5 | BZ9: =IF(CA9<100,ROUND(CA9,1),IF(CA9<1000,ROUND(CA9,0),IF(CA9<10000,ROUND(CA9,-1),IF(CA9<100000,ROUND(CA9,-2),IF(CA9>100000,ROUND(CA9,-3),""))))) -> 52.3 | CA9: =CB9*(POWER($Q$9,CC9))*(POWER(10,(CD9*$Q$11)))/(POWER(10,(CE9*$Q$13))) -> 52.27290386 | CB9: 3.846 | CC9: 0.745 | CD9: 0.032 | CE9: 0.0078 | CG9: 9.82 - 52.45 | CJ9: -0.0012607548 | CK9: 1.9480044e-05 | CL9: -0.00015887111 | CM9: 0.00034076665
AA10: AEP=0.2 | AC10: =MMULT(MMULT(TRANSPOSE(AB$2:AB$5),AI10:AL13),AB$2:AB$5) -> 0.008560297038 | AE10: 0.2 | AF10: 0.072 | AG10: 1.6622 | AH10: Intercept | AI10: 0.01523258 | AJ10: -0.0019370547 | AK10: -0.00046810744 | AL10: 0.00012497027 | AN10: AEP=0.2 | AP10: =MMULT(MMULT(TRANSPOSE(AO$2:AO$5),AV10:AY13),AO$2:AO$5) -> 0.006369403426 | AR10: 0.2 | AS10: 0.068 | AT10: 1.663 | AU10: Intercept | AV10: 0.01541056 | AW10: -0.0023101859 | AX10: -0.0001148421 | AY10: -0.00010719225 | BA10: AEP=0.2 | BC10: =MMULT(MMULT(TRANSPOSE(BB$2:BB$4),BI10:BK12),BB$2:BB$4) -> 0.01102617857 | BE10: 0.2 | BF10: 0.033 | BG10: 1.6559 | BH10: Intercept | BI10: 0.04405 | BJ10: 7.119e-05 | BK10: -0.02241 | BM10: AEP=0.2 | BO10: =MMULT(MMULT(TRANSPOSE(BN$2:BN$4),BU10:BW12),BN$2:BN$4) -> 0.0006009550072 | BQ10: 0.2 | BR10: 0.042 | BS10: 1.6561 | BT10: Intercept | BU10: 0.004694 | BV10: -0.0005551 | BW10: -0.0003316 | BY10: 0.2 | BZ10: =IF(CA10<100,ROUND(CA10,1),IF(CA10<1000,ROUND(CA10,0),IF(CA10<10000,ROUND(CA10,-1),IF(CA10<100000,ROUND(CA10,-2),IF(CA10>100000,ROUND(CA10,-3),""))))) -> 124 | CA10: =CB10*(POWER($Q$9,CC10))*(POWER(10,(CD10*$Q$11)))/(POWER(10,(CE10*$Q$13))) -> 124.3469269 | CB10: 12.106 | CC10: 0.713 | CD10: 0.028 | CE10: 0.0098 | CG10: 0.0 - 77.4
M11: Annual Precipitation, P | P11: = | Q11: 10 | R11: inches | S11: =IF(BY3=1,CG9,IF(BY3=2,CG19,IF(BY3=3,CG29,IF(BY3=4,CG39)))) -> 9.82 - 52.45 | AB11: Si = | AC11: =SQRT(AF10 + AC10) -> 0.2838314589 | AH11: DA | AI11: -0.0019370547 | AJ11: 0.0011528013 | AK11: 8.380938e-06 | AL11: -8.7630099e-06 | AO11: Si = | AP11: =SQRT(AS10 + AP10) -> 0.2727075419 | AU11: DA | AV11: -0.0023101859 | AW11: 0.0013865811 | AX11: 2.1568122e-06 | AY11: 7.5997966e-07 | BB11: Si = | BC11: =SQRT(BF10 + BC10) -> 0.2098241611 | BH11: DA | BI11: 7.119e-05 | BJ11: 0.0004346 | BK11: -0.00034 | BN11: Si = | BO11: =SQRT(BR10 + BO10) -> 0.2063999879 | BT11: DA | BU11: -0.0005551 | BV11: 0.000421 | BW11: 1.681e-06 | BY11: 0.1 | BZ11: =IF(CA11<100,ROUND(CA11,1),IF(CA11<1000,ROUND(CA11,0),IF(CA11<10000,ROUND(CA11,-1),IF(CA11<100000,ROUND(CA11,-2),IF(CA11>100000,ROUND(CA11,-3),""))))) -> 197 | CA11: =$CB11*(POWER($Q$9,$CC11))*(POWER(10,($CD11*$Q$11)))/(POWER(10,($CE11*$Q$13))) -> 196.8860364 | CB11: 22.08 | CC11: 0.695 | CD11: 0.026 | CE11: 0.0107
C12: 3 | D12: Enter these basin characteristic values in the green-shade cells. If the cell changes to red, than the value is outside the range of valid values for this regression. Valid value range listed to the right of the green cells. | AB12: T = | AC12: =POWER(10,(AG10*AC11)) -> 2.963361614 | AH12: MAP | AI12: -0.00046810744 | AJ12: 8.380938e-06 | AK12: 2.8210214e-05 | AL12: -1.1574344e-05 | AO12: T = | AP12: =POWER(10,(AT10*AP11)) -> 2.841270893 | AU12: MAP | AV12: -0.0001148421 | AW12: 2.1568122e-06 | AX12: 4.8094591e-06 | AY12: -1.4492182e-06 | BB12: T = | BC12: =POWER(10,(BG10*BC11)) -> 2.225603668 | BH12: MAP | BI12: -0.02241 | BJ12: -0.00034 | BK12: 0.01176 | BN12: T = | BO12: =POWER(10,(BS10*BO11)) -> 2.196944167 | BT12: MAP | BU12: -0.0003316 | BV12: 1.681e-06 | BW12: 3.227e-05 | BY12: 0.04 | BZ12: 322 | CA12: 322.0311019 | CB12: 42.17 | CC12: 0.674 | CD12: 0.024 | CE12: 0.0117
M13: Percent Canopy, CAN | P13: = | Q13: 20 | R13: % | S13: =IF(BY3=1,CG10,IF(BY3=2,CG20,"value not used in regression")) -> 0.0 - 77.4 | AH13: CAN | AI13: 0.00012497027 | AJ13: -8.7630099e-06 | AK13: -1.1574344e-05 | AL13: 7.0668542e-06 | AU13: CAN | AV13: -0.00010719225 | AW13: 7.5997966e-07 | AX13: -1.4492182e-06 | AY13: 3.0266263e-06 | BY13: 0.02 | BZ13: 444 | CA13: 443.5866374 | CB13: 63.826 | CC13: 0.661 | CD13: 0.023 | CE13: 0.0124
AA14: AEP=0.1 | AC14: =MMULT(MMULT(TRANSPOSE(AB$2:AB$5),AI14:AL17),AB$2:AB$5) -> 0.008816272648 | AE14: 0.1 | AF14: 0.07 | AG14: 1.6622 | AH14: Intercept | AI14: 0.015791971 | AJ14: -0.0020214733 | AK14: -0.0004793082 | AL14: 0.00012646694 | AN14: AEP=0.1 | AP14: =MMULT(MMULT(TRANSPOSE(AO$2:AO$5),AV14:AY17),AO$2:AO$5) -> 0.007090543148 | AR14: 0.1 | AS14: 0.073 | AT14: 1.663 | AU14: Intercept | AV14: 0.01713618 | AW14: -0.0025562481 | AX14: -0.00012648399 | AY14: -0.00011984722 | BA14: AEP=0.1 | BC14: =MMULT(MMULT(TRANSPOSE(BB$2:BB$4),BI14:BK16),BB$2:BB$4) -> 0.01221329829 | BE14: 0.1 | BF14: 0.034 | BG14: 1.6559 | BH14: Intercept | BI14: 0.04871 | BJ14: 7.815e-05 | BK14: -0.02475 | BM14: AEP=0.1 | BO14: =MMULT(MMULT(TRANSPOSE(BN$2:BN$4),BU14:BW16),BN$2:BN$4) -> 0.0006491204449 | BQ14: 0.1 | BR14: 0.041 | BS14: 1.6561 | BT14: Intercept | BU14: 0.004976 | BV14: -0.0005679 | BW14: -0.0003492 | BY14: 0.01 | BZ14: 589 | CA14: 589.344622 | CB14: 92.47 | CC14: 0.649 | CD14: 0.022 | CE14: 0.013
C15: 4 | D15: Rows 23-30 will have the results. Estimated flood discharge, Qu, will be found in column O and the 90% prediction limits for these flood discharges will be found in columns R and T. | AB15: Si = | AC15: =SQRT(AF14 + AC14) -> 0.2807423599 | AH15: DA | AI15: -0.0020214733 | AJ15: 0.0011669537 | AK15: 9.3706662e-06 | AL15: -8.5581334e-06 | AO15: Si = | AP15: =SQRT(AS14 + AP14) -> 0.2830027264 | AU15: DA | AV15: -0.0025562481 | AW15: 0.0015328161 | AX15: 2.7589292e-06 | AY15: 3.6609291e-07 | BB15: Si = | BC15: =SQRT(BF14 + BC14) -> 0.214972785 | BH15: DA | BI15: 7.815e-05 | BJ15: 0.0004697 | BK15: -0.0003709 | BN15: Si = | BO15: =SQRT(BR14 + BO14) -> 0.2040811614 | BT15: DA | BU15: -0.0005679 | BV15: 0.0004296 | BW15: 1.524e-06 | BY15: 0.005 | BZ15: 756 | CA15: 756.4104197 | CB15: 129.42 | CC15: 0.637 | CD15: 0.021 | CE15: 0.0136
AB16: T = | AC16: =POWER(10,(AG14*AC15)) -> 2.928531843 | AH16: MAP | AI16: -0.0004793082 | AJ16: 9.3706662e-06 | AK16: 2.8879587e-05 | AL16: -1.1906702e-05 | AO16: T = | AP16: =POWER(10,(AT14*AP15)) -> 2.955517492 | AU16: MAP | AV16: -0.00012648399 | AW16: 2.7589292e-06 | AX16: 5.2784385e-06 | AY16: -1.6135142e-06 | BB16: T = | BC16: =POWER(10,(BG14*BC15)) -> 2.269726011 | BH16: MAP | BI16: -0.02475 | BJ16: -0.0003709 | BK16: 0.01297 | BN16: T = | BO16: =POWER(10,(BS14*BO15)) -> 2.177603528 | BT16: MAP | BU16: -0.0003492 | BV16: 1.524e-06 | BW16: 3.368e-05 | BY16: 0.002 | BZ16: 1030 | CA16: 1027.660915 | CB16: 193.2 | CC16: 0.624 | CD16: 0.02 | CE16: 0.0143
N17: Selected Region: | P17: =INDEX(BZ2:BZ5,BY3) -> Regression Region 1 | AH17: CAN | AI17: 0.00012646694 | AJ17: -8.5581334e-06 | AK17: -1.1906702e-05 | AL17: 7.2819301e-06 | AU17: CAN | AV17: -0.00011984722 | AW17: 3.6609291e-07 | AX17: -1.6135142e-06 | AY17: 3.4039947e-06
M18: ="Estimate of indicated flood discharge for "&INDEX(BZ2:BZ5,BY3) &" " &CHAR(10) &" using regional regression equations" -> Estimate of indicated flood discharge for Regression Region 1 using regional regression equations | AA18: AEP=0.04 | AC18: =MMULT(MMULT(TRANSPOSE(AB$2:AB$5),AI18:AL21),AB$2:AB$5) -> 0.01046146677 | AE18: 0.04 | AF18: 0.081 | AG18: 1.6622 | AH18: Intercept | AI18: 0.018674053 | AJ18: -0.0023865849 | AK18: -0.00057336246 | AL18: 0.00015357324 | AN18: AEP=0.04 | AP18: =MMULT(MMULT(TRANSPOSE(AO$2:AO$5),AV18:AY21),AO$2:AO$5) -> 0.008565930094 | AR18: 0.04 | AS18: 0.088 | AT18: 1.663 | AU18: Intercept | AV18: 0.020677083 | AW18: -0.0030757235 | AX18: -0.00015233755 | AY18: -0.00014575708 | BA18: AEP=0.04 | BC18: =MMULT(MMULT(TRANSPOSE(BB$2:BB$4),BI18:BK20),BB$2:BB$4) -> 0.01413992372 | BE18: 0.04 | BF18: 0.038 | BG18: 1.6559 | BH18: Intercept | BI18: 0.05639 | BJ18: 0.0001106 | BK18: -0.02867 | BM18: AEP=0.04 | BO18: =MMULT(MMULT(TRANSPOSE(BN$2:BN$4),BU18:BW20),BN$2:BN$4) -> 0.0007293271641 | BQ18: 0.04 | BR18: 0.043 | BS18: 1.6561 | BT18: Intercept | BU18: 0.005531 | BV18: -0.0006098 | BW18: -0.0003864 | BY18: Region 2 | CB18: Q =aAb10cP/10dCAN | CG18: 0.42 - 1820
AB19: Si = | AC19: =SQRT(AF18 + AC18) -> 0.3024259691 | AH19: DA | AI19: -0.0023865849 | AJ19: 0.0013790186 | AK19: 1.1691159e-05 | AL19: -1.0558821e-05 | AO19: Si = | AP19: =SQRT(AS18 + AP18) -> 0.3107505915 | AU19: DA | AV19: -0.0030757235 | AW19: 0.0018769037 | AX19: 3.440448e-06 | AY19: -5.5064938e-07 | BB19: Si = | BC19: =SQRT(BF18 + BC18) -> 0.228341682 | BH19: DA | BI19: 0.0001106 | BJ19: 0.0005327 | BK19: -0.0004341 | BN19: Si = | BO19: =SQRT(BR18 + BO18) -> 0.2091155833 | BT19: DA | BU19: -0.0006098 | BV19: 0.0004616 | BW19: 1.296e-06 | BY19: 0.5 | BZ19: =IF(CA19<100,ROUND(CA19,1),IF(CA19<1000,ROUND(CA19,0),IF(CA19<10000,ROUND(CA19,-1),IF(CA19<100000,ROUND(CA19,-2),IF(CA19>100000,ROUND(CA19,-3),""))))) -> 32.6 | CA19: =$CB19*(POWER($Q$9,$CC19))*(POWER(10,($CD19*$Q$11)))/(POWER(10,($CE19*$Q$13))) -> 32.64909543 | CB19: 1.445 | CC19: 0.877 | CD19: 0.0253 | CE19: 0.002 | CG19: 8.86 - 84.20
R20: Prediction Intervals, 90% confidence level | AB20: T = | AC20: =POWER(10,(AG18*AC19)) -> 3.181943368 | AH20: MAP | AI20: -0.00057336246 | AJ20: 1.1691159e-05 | AK20: 3.4677961e-05 | AL20: -1.4379117e-05 | AO20: T = | AP20: =POWER(10,(AT18*AP19)) -> 3.286837503 | AU20: MAP | AV20: -0.00015233755 | AW20: 3.440448e-06 | AX20: 6.4587144e-06 | AY20: -2.0265268e-06 | BB20: T = | BC20: =POWER(10,(BG18*BC19)) -> 2.388421606 | BH20: MAP | BI20: -0.02867 | BJ20: -0.0004341 | BK20: 0.01503 | BN20: T = | BO20: =POWER(10,(BS18*BO19)) -> 2.219812627 | BT20: MAP | BU20: -0.0003864 | BV20: 1.296e-06 | BW20: 3.698e-05 | BY20: 0.2 | BZ20: 93.7 | CA20: =$CB20*(POWER($Q$9,$CC20))*(POWER(10,($CD20*$Q$11)))/(POWER(10,($CE20*$Q$13))) -> 93.73699955 | CB20: 5.768 | CC20: 0.86 | CD20: 0.0214 | CE20: 0.0061 | CG20: 0.0 - 81.8
AH21: CAN | AI21: 0.00015357324 | AJ21: -1.0558821e-05 | AK21: -1.4379117e-05 | AL21: 8.79167e-06 | AU21: CAN | AV21: -0.00014575708 | AW21: -5.5064938e-07 | AX21: -2.0265268e-06 | AY21: 4.23994e-06 | BY21: 0.1 | BZ21: 164 | CA21: 164.0488068 | CB21: 12.106 | CC21: 0.847 | CD21: 0.0194 | CE21: 0.0082
M22: AEP | O22: *Qu, ft3/s | R22: PIL, in ft3/s | T22: PIU, in ft3/s | AA22: AEP=0.02 | AC22: =MMULT(MMULT(TRANSPOSE(AB$2:AB$5),AI22:AL25),AB$2:AB$5) -> 0.01209216972 | AE22: 0.02 | AF22: 0.093 | AG22: 1.6622 | AH22: Intercept | AI22: 0.021489199 | AJ22: -0.0027392688 | AK22: -0.00066794603 | AL22: 0.00018161996 | AN22: AEP=0.02 | AP22: =MMULT(MMULT(TRANSPOSE(AO$2:AO$5),AV22:AY25),AO$2:AO$5) -> 0.009824365168 | AR22: 0.02 | AS22: 0.102 | AT22: 1.663 | AU22: Intercept | AV22: 0.023696788 | AW22: -0.0035226115 | AX22: -0.00017469986 | AY22: -0.00016777786 | BA22: AEP=0.02 | BC22: =MMULT(MMULT(TRANSPOSE(BB$2:BB$4),BI22:BK24),BB$2:BB$4) -> 0.01588044157 | BE22: 0.02 | BF22: 0.041 | BG22: 1.6559 | BH22: Intercept | BI22: 0.0633 | BJ22: 0.0001363 | BK22: -0.03219 | BM22: AEP=0.02 | BO22: =MMULT(MMULT(TRANSPOSE(BN$2:BN$4),BU22:BW24),BN$2:BN$4) -> 0.00079707525 | BQ22: 0.02 | BR22: 0.045 | BS22: 1.6561 | BT22: Intercept | BU22: 0.005998 | BV22: -0.0006482 | BW22: -0.000418 | BY22: 0.04 | BZ22: 296 | CA22: 295.6364398 | CB22: 26.485 | CC22: 0.833 | CD22: 0.0174 | CE22: 0.0105
M23: 0.5 | N23: = | O23: =IF($BY$3=1,BZ9,IF($BY$3=2,BZ19,IF($BY$3=3,BZ29,IF($BY$3=4,BZ39,"error")))) -> 52.3 | R23: =IF($BY$3=1,O23/AC8,IF($BY$3=2,O23/AP8,IF($BY$3=3,O23/BC8,IF($BY$3=4,O23/BO8,"error")))) -> 13.56627817 | T23: =IF($BY$3=1,O23*AC8,IF($BY$3=2,O23*AP8,IF($BY$3=3,O23*BC8,IF($BY$3=4,O23*BO8,"error")))) -> 201.6242012 | AB23: Si = | AC23: =SQRT(AF22 + AC22) -> 0.3241792247 | AH23: DA | AI23: -0.0027392688 | AJ23: 0.0015956812 | AK23: 1.387315e-05 | AL23: -1.2797498e-05 | AO23: Si = | AP23: =SQRT(AS22 + AP22) -> 0.3344015029 | AU23: DA | AV23: -0.0035226115 | AW23: 0.0021799603 | AX23: 3.9471254e-06 | AY23: -1.4054492e-06 | BB23: Si = | BC23: =SQRT(BF22 + BC22) -> 0.2384962087 | BH23: DA | BI23: 0.0001363 | BJ23: 0.0005914 | BK23: -0.0004901 | BN23: Si = | BO23: =SQRT(BR22 + BO22) -> 0.2140025123 | BT23: DA | BU23: -0.0006482 | BV23: 0.0004915 | BW23: 1.106e-06 | BY23: 0.02 | BZ23: 433 | CA23: 433.2584038 | CB23: 43.853 | CC23: 0.823 | CD23: 0.0162 | CE23: 0.0119
M24: 0.2 | N24: = | O24: =IF($BY$3=1,BZ10,IF($BY$3=2,BZ20,IF($BY$3=3,BZ30,IF($BY$3=4,BZ40,"error")))) -> 124 | R24: =IF($BY$3=1,O24/AC12,IF($BY$3=2,O24/AP12,IF($BY$3=3,O24/BC12,IF($BY$3=4,O24/BO12,"error")))) -> 41.84437006 | T24: =IF($BY$3=1,O24*AC12,IF($BY$3=2,O24*AP12,IF($BY$3=3,O24*BC12,IF($BY$3=4,O24*BO12,"error")))) -> 367.4568401 | AB24: T = | AC24: =POWER(10,(AG22*AC23)) -> 3.458204784 | AH24: MAP | AI24: -0.00066794603 | AJ24: 1.387315e-05 | AK24: 4.0493512e-05 | AL24: -1.6840004e-05 | AO24: T = | AP24: =POWER(10,(AT22*AP23)) -> 3.598402165 | AU24: MAP | AV24: -0.00017469986 | AW24: 3.9471254e-06 | AX24: 7.508495e-06 | AY24: -2.3971e-06 | BB24: T = | BC24: =POWER(10,(BG22*BC23)) -> 2.482709305 | BH24: MAP | BI24: -0.03219 | BJ24: -0.0004901 | BK24: 0.01688 | BN24: T = | BO24: =POWER(10,(BS22*BO23)) -> 2.261567532 | BT24: MAP | BU24: -0.000418 | BV24: 1.106e-06 | BW24: 3.985e-05 | BY24: 0.01 | BZ24: 605 | CA24: 605.3959902 | CB24: 68.549 | CC24: 0.814 | CD24: 0.0151 | CE24: 0.0132
M25: 0.1 | N25: = | O25: 197 | R25: =IF($BY$3=1,O25/AC16,IF($BY$3=2,O25/AP16,IF($BY$3=3,O25/BC16,IF($BY$3=4,O25/BO16,"error")))) -> 67.26920196 | T25: =IF($BY$3=1,O25*AC16,IF($BY$3=2,O25*AP16,IF($BY$3=3,O25*BC16,IF($BY$3=4,O25*BO16,"error")))) -> 576.9207731 | AH25: CAN | AI25: 0.00018161996 | AJ25: -1.2797498e-05 | AK25: -1.6840004e-05 | AL25: 1.0288796e-05 | AU25: CAN | AV25: -0.00016777786 | AW25: -1.4054492e-06 | AX25: -2.3971e-06 | AY25: 4.9679682e-06 | BY25: 0.005 | BZ25: 822 | CA25: 821.5410476 | CB25: 103.514 | CC25: 0.806 | CD25: 0.0141 | CE25: 0.0145
M26: 0.04 | N26: = | O26: 322 | R26: =IF($BY$3=1,O26/AC20,IF($BY$3=2,O26/AP20,IF($BY$3=3,O26/BC20,IF($BY$3=4,O26/BO20,"error")))) -> 101.1960185 | T26: =IF($BY$3=1,O26*AC20,IF($BY$3=2,O26*AP20,IF($BY$3=3,O26*BC20,IF($BY$3=4,O26*BO20,"error")))) -> 1024.585764 | AA26: AEP=0.01 | AC26: =MMULT(MMULT(TRANSPOSE(AB$2:AB$5),AI26:AL29),AB$2:AB$5) -> 0.01396839132 | AE26: 0.01 | AF26: 0.108 | AG26: 1.6622 | AH26: Intercept | AI26: 0.024689019 | AJ26: -0.0031364398 | AK26: -0.00077821827 | AL26: 0.00021513582 | AN26: AEP=0.01 | AP26: =MMULT(MMULT(TRANSPOSE(AO$2:AO$5),AV26:AY29),AO$2:AO$5) -> 0.01107451822 | AR26: 0.01 | AS26: 0.116 | AT26: 1.663 | AU26: Intercept | AV26: 0.026692724 | AW26: -0.0039644286 | AX26: -0.00019677533 | AY26: -0.00018965478 | BA26: AEP=0.01 | BC26: =MMULT(MMULT(TRANSPOSE(BB$2:BB$4),BI26:BK28),BB$2:BB$4) -> 0.01711068965 | BE26: 0.01 | BF26: 0.043 | BG26: 1.6559 | BH26: Intercept | BI26: 0.06826 | BJ26: 0.0001469 | BK26: -0.03471 | BM26: AEP=0.01 | BO26: =MMULT(MMULT(TRANSPOSE(BN$2:BN$4),BU26:BW28),BN$2:BN$4) -> 0.0008625804893 | BQ26: 0.01 | BR26: 0.047 | BS26: 1.6561 | BT26: Intercept | BU26: 0.006467 | BV26: -0.0006873 | BW26: -0.0004498 | BY26: 0.002 | BZ26: 1200 | CA26: 1195.690951 | CB26: 169.824 | CC26: 0.796 | CD26: 0.013 | CE26: 0.0159
D27: Regression Regions in Washington State | M27: 0.02 | N27: = | O27: 444 | R27: =IF($BY$3=1,O27/AC24,IF($BY$3=2,O27/AP24,IF($BY$3=3,O27/BC24,IF($BY$3=4,O27/BO24,"error")))) -> 128.3903145 | T27: =IF($BY$3=1,O27*AC24,IF($BY$3=2,O27*AP24,IF($BY$3=3,O27*BC24,IF($BY$3=4,O27*BO24,"error")))) -> 1535.442924 | AB27: Si = | AC27: =SQRT(AF26 + AC26) -> 0.3492397333 | AH27: DA | AI27: -0.0031364398 | AJ27: 0.0018490998 | AK27: 1.634219e-05 | AL27: -1.5602854e-05 | AO27: Si = | AP27: =SQRT(AS26 + AP26) -> 0.3564751299 | AU27: DA | AV27: -0.0039644286 | AW27: 0.0024789637 | AX27: 4.4959958e-06 | AY27: -2.2814013e-06 | BB27: Si = | BC27: =SQRT(BF26 + BC26) -> 0.2451748145 | BH27: DA | BI27: 0.0001469 | BJ27: 0.0006309 | BK27: -0.0005263 | BN27: Si = | BO27: =SQRT(BR26 + BO26) -> 0.2187751825 | BT27: DA | BU27: -0.0006873 | BV27: 0.0005221 | BW27: 8.927e-07
M28: 0.01 | N28: = | O28: 589 | R28: =IF($BY$3=1,O28/AC28,IF($BY$3=2,O28/AP28,IF($BY$3=3,O28/BC28,IF($BY$3=4,O28/BO28,"error")))) -> 154.7422866 | T28: =IF($BY$3=1,O28*AC28,IF($BY$3=2,O28*AP28,IF($BY$3=3,O28*BC28,IF($BY$3=4,O28*BO28,"error")))) -> 2241.927579 | AB28: T = | AC28: =POWER(10,(AG26*AC27)) -> 3.806328657 | AH28: MAP | AI28: -0.00077821827 | AJ28: 1.634219e-05 | AK28: 4.7270154e-05 | AL28: -1.9699242e-05 | AO28: T = | AP28: =POWER(10,(AT26*AP27)) -> 3.915778712 | AU28: MAP | AV28: -0.00019677533 | AW28: 4.4959958e-06 | AX28: 8.5429526e-06 | AY28: -2.7642321e-06 | BB28: T = | BC28: =POWER(10,(BG26*BC27)) -> 2.546742145 | BH28: MAP | BI28: -0.03471 | BJ28: -0.0005263 | BK28: 0.01819 | BN28: T = | BO28: =POWER(10,(BS26*BO27)) -> 2.30310416 | BT28: MAP | BU28: -0.0004498 | BV28: 8.927e-07 | BW28: 4.273e-05 | BY28: Region 3 | CB28: Q=aAbPc | CG28: 0.08 - 2605
M29: 0.005 | N29: = | O29: 756 | R29: =IF($BY$3=1,O29/AC32,IF($BY$3=2,O29/AP32,IF($BY$3=3,O29/BC32,IF($BY$3=4,O29/BO32,"error")))) -> 178.6218121 | T29: =IF($BY$3=1,O29*AC32,IF($BY$3=2,O29*AP32,IF($BY$3=3,O29*BC32,IF($BY$3=4,O29*BO32,"error")))) -> 3199.698812 | AH29: CAN | AI29: 0.00021513582 | AJ29: -1.5602854e-05 | AK29: -1.9699242e-05 | AL29: 1.202254e-05 | AU29: CAN | AV29: -0.00018965478 | AW29: -2.2814013e-06 | AX29: -2.7642321e-06 | AY29: 5.6905477e-06 | BY29: 0.5 | BZ29: =IF(CA29<100,ROUND(CA29,1),IF(CA29<1000,ROUND(CA29,0),IF(CA29<10000,ROUND(CA29,-1),IF(CA29<100000,ROUND(CA29,-2),IF(CA29>100000,ROUND(CA29,-3),""))))) -> 24.4 | CA29: =$CB29*(POWER($Q$9,$CC29))*(POWER($Q$11,$CD29)) -> 24.43280318 | CB29: 0.0294 | CC29: 0.899 | CD29: 1.75 | CG29: 33.29 - 168.0
M30: 0.002 | N30: = | O30: 1030 | R30: =IF($BY$3=1,O30/AC36,IF($BY$3=2,O30/AP36,IF($BY$3=3,O30/BC36,IF($BY$3=4,O30/BO36,"error")))) -> 211.544815 | T30: =IF($BY$3=1,O30*AC36,IF($BY$3=2,O30*AP36,IF($BY$3=3,O30*BC36,IF($BY$3=4,O30*BO36,"error")))) -> 5015.013012 | AA30: AEP=0.005 | AC30: =MMULT(MMULT(TRANSPOSE(AB$2:AB$5),AI30:AL33),AB$2:AB$5) -> 0.0161008339 | AE30: 0.005 | AF30: 0.126 | AG30: 1.6622 | AH30: Intercept | AI30: 0.028277602 | AJ30: -0.0035769763 | AK30: -0.00090535365 | AL30: 0.00025475906 | AN30: AEP=0.005 | AP30: =MMULT(MMULT(TRANSPOSE(AO$2:AO$5),AV30:AY33),AO$2:AO$5) -> 0.01245661632 | AR30: 0.005 | AS30: 0.132 | AT30: 1.663 | AU30: Intercept | AV30: 0.030005974 | AW30: -0.0044648284 | AX30: -0.000221869 | AY30: -0.00021349998 | BA30: AEP=0.005 | BC30: =MMULT(MMULT(TRANSPOSE(BB$2:BB$4),BI30:BK32),BB$2:BB$4) -> 0.01890047601 | BE30: 0.005 | BF30: 0.047 | BG30: 1.6559 | BH30: Intercept | BI30: 0.0753 | BJ30: 0.0001649 | BK30: -0.03828 | BM30: AEP=0.005 | BO30: =MMULT(MMULT(TRANSPOSE(BN$2:BN$4),BU30:BW32),BN$2:BN$4) -> 0.0009284803867 | BQ30: 0.005 | BR30: 0.049 | BS30: 1.6561 | BT30: Intercept | BU30: 0.006935 | BV30: -0.0007268 | BW30: -0.0004816 | BY30: 0.2 | BZ30: 41.3 | CA30: 41.349503 | CB30: 0.0565 | CC30: 0.895 | CD30: 1.7 | CG30: not applicable
AB31: Si = | AC31: =SQRT(AF30 + AC30) -> 0.3769626426 | AH31: DA | AI31: -0.0035769763 | AJ31: 0.0021417022 | AK31: 1.9085978e-05 | AL31: -1.9051648e-05 | AO31: Si = | AP31: =SQRT(AS30 + AP30) -> 0.3800744879 | AU31: DA | AV31: -0.0044648284 | AW31: 0.0028318059 | AX31: 4.9580464e-06 | AY31: -3.4494535e-06 | BB31: Si = | BC31: =SQRT(BF30 + BC30) -> 0.2567108802 | BH31: DA | BI31: 0.0001649 | BJ31: 0.0006911 | BK31: -0.0005797 | BN31: Si = | BO31: =SQRT(BR30 + BO30) -> 0.2234468178 | BT31: DA | BU31: -0.0007268 | BV31: 0.0005534 | BW31: 6.506e-07 | BY31: 0.1 | BZ31: 54.2 | CA31: 54.23034266 | CB31: 0.0794 | CC31: 0.895 | CD31: 1.67
O32: *rounded to 3 significant figures | AB32: T = | AC32: =POWER(10,(AG30*AC31)) -> 4.232405835 | AH32: MAP | AI32: -0.00090535365 | AJ32: 1.9085978e-05 | AK32: 5.5088342e-05 | AL32: -2.2991111e-05 | AO32: T = | AP32: =POWER(10,(AT30*AP31)) -> 4.286115533 | AU32: MAP | AV32: -0.000221869 | AW32: 4.9580464e-06 | AX32: 9.7762831e-06 | AY32: -3.2099441e-06 | BB32: T = | BC32: =POWER(10,(BG30*BC31)) -> 2.661261472 | BH32: MAP | BI32: -0.03828 | BJ32: -0.0005797 | BK32: 0.02007 | BN32: T = | BO32: =POWER(10,(BS30*BO31)) -> 2.344500205 | BT32: MAP | BU32: -0.0004816 | BV32: 6.506e-07 | BW32: 4.563e-05 | BY32: 0.04 | BZ32: 72.5 | CA32: 72.51380869 | CB32: 0.115 | CC32: 0.896 | CD32: 1.634
AH33: CAN | AI33: 0.00025475906 | AJ33: -1.9051648e-05 | AK33: -2.2991111e-05 | AL33: 1.4011718e-05 | AU33: CAN | AV33: -0.00021349998 | AW33: -3.4494535e-06 | AX33: -3.2099441e-06 | AY33: 6.5232151e-06 | BY33: 0.02 | BZ33: 87.2 | CA33: 87.17195016 | CB33: 0.146 | CC33: 0.897 | CD33: 1.609
AA34: AEP=0.002 | AC34: =MMULT(MMULT(TRANSPOSE(AB$2:AB$5),AI34:AL37),AB$2:AB$5) -> 0.01903954053 | AE34: 0.002 | AF34: 0.152 | AG34: 1.6622 | AH34: Intercept | AI34: 0.033186415 | AJ34: -0.0041765841 | AK34: -0.0010818002 | AL34: 0.00031055143 | AN34: AEP=0.002 | AP34: =MMULT(MMULT(TRANSPOSE(AO$2:AO$5),AV34:AY37),AO$2:AO$5) -> 0.01431581145 | AR34: 0.002 | AS34: 0.155 | AT34: 1.663 | AU34: Intercept | AV34: 0.03445906 | AW34: -0.0051433694 | AX34: -0.00025590253 | AY34: -0.00024533784 | BA34: AEP=0.002 | BC34: =MMULT(MMULT(TRANSPOSE(BB$2:BB$4),BI34:BK36),BB$2:BB$4) -> 0.02143507453 | BE34: 0.002 | BF34: 0.052 | BG34: 1.6559 | BH34: Intercept | BI34: 0.08546 | BJ34: 0.0001904 | BK34: -0.04345 | BM34: AEP=0.002 | BO34: =MMULT(MMULT(TRANSPOSE(BN$2:BN$4),BU34:BW36),BN$2:BN$4) -> 0.001028309589 | BQ34: 0.002 | BR34: 0.053 | BS34: 1.6561 | BT34: Intercept | BU34: 0.007663 | BV34: -0.0007937 | BW34: -0.0005319 | BY34: 0.01 | BZ34: 104 | CA34: 103.6087237 | CB34: 0.182 | CC34: 0.898 | CD34: 1.587
AB35: Si = | AC35: =SQRT(AF34 + AC34) -> 0.4135692693 | AH35: DA | AI35: -0.0041765841 | AJ35: 0.0025474691 | AK35: 2.2916745e-05 | AL35: -2.40417e-05 | AO35: Si = | AP35: =SQRT(AS34 + AP34) -> 0.4114800256 | AU35: DA | AV35: -0.0051433694 | AW35: 0.0033184265 | AX35: 5.5492914e-06 | AY35: -5.195138e-06 | BB35: Si = | BC35: =SQRT(BF34 + BC34) -> 0.2709890672 | BH35: DA | BI35: 0.0001904 | BJ35: 0.0007792 | BK35: -0.0006569 | BN35: Si = | BO35: =SQRT(BR34 + BO34) -> 0.2324399053 | BT35: DA | BU35: -0.0007937 | BV35: 0.0006073 | BW35: 2.921e-07 | BY35: 0.005 | BZ35: 121 | CA35: 120.5086551 | CB35: 0.221 | CC35: 0.899 | CD35: 1.567
AB36: T = | AC36: =POWER(10,(AG34*AC35)) -> 4.868944672 | AH36: MAP | AI36: -0.0010818002 | AJ36: 2.2916745e-05 | AK36: 6.5939854e-05 | AL36: -2.7560758e-05 | AO36: T = | AP36: =POWER(10,(AT34*AP35)) -> 4.833828996 | AU36: MAP | AV36: -0.00025590253 | AW36: 5.5492914e-06 | AX36: 1.1481721e-05 | AY36: -3.8338296e-06 | BB36: T = | BC36: =POWER(10,(BG34*BC35)) -> 2.810158373 | BH36: MAP | BI36: -0.04345 | BJ36: -0.0006569 | BK36: 0.02277 | BN36: T = | BO36: =POWER(10,(BS34*BO35)) -> 2.426295693 | BT36: MAP | BU36: -0.0005319 | BV36: 2.921e-07 | BW36: 5.033e-05 | BY36: 0.002 | BZ36: 145 | CA36: 145.0886087 | CB36: 0.281 | CC36: 0.9 | CD36: 1.542
AH37: CAN | AI37: 0.00031055143 | AJ37: -2.40417e-05 | AK37: -2.7560758e-05 | AL37: 1.6769791e-05 | AU37: CAN | AV37: -0.00024533784 | AW37: -5.195138e-06 | AX37: -3.8338296e-06 | AY37: 7.6649136e-06
BY38: Region 4 | CB38: Q=aAb10cP | CG38: 0.18 - 2230
BY39: 0.5 | BZ39: =IF(CA39<100,ROUND(CA39,1),IF(CA39<1000,ROUND(CA39,0),IF(CA39<10000,ROUND(CA39,-1),IF(CA39<100000,ROUND(CA39,-2),IF(CA39>100000,ROUND(CA39,-3),""))))) -> 278 | CA39: =$CB39*(POWER($Q$9,$CC39))*(POWER(10,($Q$11*$CD39))) -> 278.120832 | CB39: 15.346 | CC39: 0.911 | CD39: 0.0073 | CG39: 11.94 - 186.6
BY40: 0.2 | BZ40: 527 | CA40: 527.0332199 | CB40: 29.785 | CC40: 0.913 | CD40: 0.006 | CG40: not applicable
BY41: 0.1 | BZ41: 739 | CA41: 738.6622871 | CB41: 42.073 | CC41: 0.915 | CD41: 0.0054
BY42: 0.04 | BZ42: 1050 | CA42: 1047.955487 | CB42: 60.117 | CC42: 0.918 | CD42: 0.0047
BY43: 0.02 | BZ43: 1310 | CA43: 1306.00826 | CB43: 75.162 | CC43: 0.92 | CD43: 0.0043
BY44: 0.01 | BZ44: 1580 | CA44: 1582.147925 | CB44: 91.411 | CC44: 0.921 | CD44: 0.004
BY45: 0.005 | BZ45: 1880 | CA45: 1878.670642 | CB45: 108.893 | CC45: 0.923 | CD45: 0.0036
BY46: 0.002 | BZ46: =IF(CA46<100,ROUND(CA46,1),IF(CA46<1000,ROUND(CA46,0),IF(CA46<10000,ROUND(CA46,-1),IF(CA46<100000,ROUND(CA46,-2),IF(CA46>100000,ROUND(CA46,-3),""))))) -> 2320 | CA46: 2321.411713 | CB46: 134.276 | CC46: 0.926 | CD46: 0.0033

Sheet Flood Q Ratio Tool
A1: Flood Q Ratio Tool. Estimates of flood discharge for an ungaged sites in Washington State using the Drainage-Area Ratio Method | I1: Station Index= | J1: 71 | R1: Map ID | S1: Streamflow Gaging Station Name and Number | T1: Number of peaks in record | U1: Station Number | V1: State | W1: Flood Region | X1: DA (mi2) | Y1: Flood Discharges for Indicated Annual Exceedance Probability | AH1: Region | AI1: AEP | AJ1: Region + AEP | AK1: DA exponant | AV1: Valid Ranges | AX1: Valid ranges
A2: Au, contributing drainage area of ungaged site; Ag, contributing drainage area of the streamflow gaging site; Q(u)g, gage-based estimate of flood discharge in cubic feet per second at ungaged site; Q(u)wtd, weighted estimate of flood discharge in cubic feet per second for the ungaged site and indicated streamflow characteristic; Q(u)reg, regression estimate of flood discharge in cubic feet per second for ungaged site; Q(g)wtd, weighted estimate of flood discharge for streamgaging station] | Y2: 0.5 | Z2: 0.2 | AA2: 0.1 | AB2: 0.04 | AC2: 0.02 | AD2: 0.01 | AE2: 0.005 | AF2: 0.002 | AH2: 1 | AI2: 0.5 | AJ2: =AH2+AI2 -> 1.5 | AK2: 0.728 | AN2: Region 1 | AQ2: Q = aAb10cP/10dCAN | AV2: in Text | AX2: 0.25 | AY2: 3304 | AZ2: 9.82 | BA2: 52.45 | BB2: 0 | BC2: 77.4
R3: 1 | S3: 12009500 BEAR BRANCH NEAR NASELLE, WA | T3: 16 | U3: 12009500 | V3: WA | W3: 4 | X3: 11.71 | Y3: 1120 | Z3: 1640 | AA3: 2000 | AB3: 2470 | AC3: 2830 | AD3: 3200 | AE3: 3570 | AF3: 4090 | AH3: 1 | AI3: 0.2 | AJ3: =AH3+AI3 -> 1.2 | AK3: 0.692 | AN3: AEP | AQ3: a | AR3: b | AS3: c | AT3: d | AV3: 0.25 - 3304 | AX3: 0.42 | AY3: 1332 | AZ3: 8.86 | BA3: 84.2 | BB3: 0 | BC3: 81.8
R4: 2 | S4: 12010000 NASELLE RIVER NEAR NASELLE, WA | T4: 85 | U4: 12010000 | V4: WA | W4: 4 | X4: 54.8964702 | Y4: 5960 | Z4: 7960 | AA4: 9190 | AB4: 10680 | AC4: 11700 | AD4: 12700 | AE4: 13700 | AF4: 15000 | AH4: 1 | AI4: 0.1 | AJ4: 1.1 | AK4: 0.672 | AN4: 0.5 | AO4: =AQ4*(POWER($F$12,AR4))*(POWER(10,(AS4*$I$37)))/(POWER(10,(AT4*$I$40))) -> 832.9672888 | AQ4: 3.846 | AR4: 0.745 | AS4: 0.032 | AT4: 0.0078 | AV4: 9.82 - 52.45 | AX4: 0.08 | AY4: 2605 | AZ4: 33.29 | BA4: 168
A5: Instructions for estimating streamflow characteristics at an ungaged site using the Drainage-Area Ratio Method | D5: Estimates of streamflow characteristics based on Drainage-Area Ratio method | R5: 3 | S5: 12010500 SALMON CREEK NEAR NASELLE, WA | T5: 12 | U5: 12010500 | V5: WA | W5: 4 | X5: 16.65 | Y5: 1730 | Z5: 2090 | AA5: 2320 | AB5: 2600 | AC5: 2810 | AD5: 3000 | AE5: 3200 | AF5: 3460 | AH5: 1 | AI5: 0.04 | AJ5: 1.04 | AK5: 0.65 | AN5: 0.2 | AO5: 1579.589846 | AQ5: 12.106 | AR5: 0.713 | AS5: 0.028 | AT5: 0.0098 | AV5: 0.0 - 77.4 | AX5: 0.18 | AY5: 2230 | AZ5: 11.94 | BA5: 186.6
R6: 4 | S6: 12010600 LANE CREEK NEAR NASELLE, WA | T6: 21 | U6: 12010600 | V6: WA | W6: 4 | X6: 2.17 | Y6: 176 | Z6: 204 | AA6: 220 | AB6: 237 | AC6: 248 | AD6: 258 | AE6: 268 | AF6: 280 | AH6: 1 | AI6: 0.02 | AJ6: 1.02 | AK6: 0.634 | AN6: 0.1 | AO6: 2224.106316 | AQ6: 22.08 | AR6: 0.695 | AS6: 0.026 | AT6: 0.0107
A7: Steps | B7: Instructions | D7: Contributing drainage areas of the streamflow-gaging station (Ag) and ungaged site (Au), located on the same stream | H7: Range of drainage areas for which drainage area adjustment is valid | R7: 5 | S7: 12010700 SOUTH FORK NASELLE RIVER NEAR NASELLE, WA | T7: 15 | U7: 12010700 | V7: WA | W7: 4 | X7: 17.95 | Y7: 2260 | Z7: 3130 | AA7: 3690 | AB7: 4400 | AC7: 4920 | AD7: 5440 | AE7: 5950 | AF7: 6640 | AH7: 1 | AI7: 0.01 | AJ7: 1.01 | AK7: 0.62 | AN7: 0.04 | AO7: 3251.234948 | AQ7: 42.17 | AR7: 0.674 | AS7: 0.024 | AT7: 0.0117
R8: 6 | S8: 12010800 SOUTH NEMAH RIVER NEAR NASELLE, WA | T8: 17 | U8: 12010800 | V8: WA | W8: 4 | X8: 2.04 | Y8: 238 | Z8: 291 | AA8: 323 | AB8: 360 | AC8: 387 | AD8: 412 | AE8: 436 | AF8: 467 | AH8: 1 | AI8: 0.005 | AJ8: 1.005 | AK8: 0.608 | AN8: 0.02 | AO8: 4273.55612 | AQ8: 63.826 | AR8: 0.661 | AS8: 0.023 | AT8: 0.0124
A9: 1 | B9: Select a streamflow-gaging station from the list box below which is on the same stream as the ungaged site. | R9: 7 | S9: 12011000 NORTH NEMAH RIVER NEAR SOUTH BEND, WA | T9: 20 | U9: 12011000 | V9: WA | W9: 4 | X9: 18.03 | Y9: 1400 | Z9: 1640 | AA9: 1780 | AB9: 1930 | AC9: 2040 | AD9: 2140 | AE9: 2230 | AF9: 2350 | AH9: 1 | AI9: 0.002 | AJ9: 1.002 | AK9: 0.592 | AN9: 0.01 | AO9: 5393.050848 | AQ9: 92.47 | AR9: 0.649 | AS9: 0.022 | AT9: 0.013
D10: Drainage area of selected index site, Ag | E10: = | F10: =INDEX(X3:X526,$J$1) -> 15.39 | G10: square miles | H10: =" -- " -> -- | R10: 8 | S10: 12011100 NORTH NEMAH RIVER TRIBUTARY NEAR SOUTH BEND, WA | T10: 18 | U10: 12011100 | V10: WA | W10: 4 | X10: 0.43 | Y10: 49 | Z10: 65.1 | AA10: 75.1 | AB10: 87.2 | AC10: 95.8 | AD10: 104 | AE10: 112 | AF10: 123 | AH10: 2 | AI10: 0.5 | AJ10: 2.5 | AK10: 0.877 | AN10: 0.005 | AO10: 6574.714922 | AQ10: 129.42 | AR10: 0.637 | AS10: 0.021 | AT10: 0.0136
A11: 2 | B11: Determine contributing drainage area for ungaged site (Au, in square miles) and enter value in the green cell (F12), where 0.5Ag ≤ Au ≤ 1.5Ag. If the drainage area is outside the appropriate range, the cell will turn red. An initial estimate of the flood discharges will be computed in column G, rows 23 to 30. | R11: 9 | S11: 12011200 WILLIAMS CREEK NEAR SOUTH BEND, WA | T11: 16 | U11: 12011200 | V11: WA | W11: 4 | X11: 9.43 | Y11: 737 | Z11: 1190 | AA11: 1530 | AB11: 2000 | AC11: 2380 | AD11: 2770 | AE11: 3180 | AF11: 3770 | AH11: 2 | AI11: 0.2 | AJ11: 2.2 | AK11: 0.855 | AN11: 0.002 | AO11: 8523.729977 | AQ11: 193.2 | AR11: 0.624 | AS11: 0.02 | AT11: 0.0143
D12: Drainage area of ungaged location, Au | E12: = | F12: 16.4 | G12: square miles | H12: =ROUND((F10*0.5),1) & " - " & ROUND((F10*1.5),1) -> 7.7 - 23.1 | R12: 10 | S12: 12011500 WILLAPA RIVER AT LEBAM, WA | T12: 27 | U12: 12011500 | V12: WA | W12: 4 | X12: 41.75 | Y12: 2960 | Z12: 4180 | AA12: 5040 | AB12: 6190 | AC12: 7090 | AD12: 8040 | AE12: 9020 | AF12: 10400 | AH12: 2 | AI12: 0.1 | AJ12: 2.1 | AK12: 0.841
R13: 11 | S13: 12012000 FORK CREEK NEAR LEBAM, WA | T13: 27 | U13: 12012000 | V13: WA | W13: 4 | X13: 20.32 | Y13: 2410 | Z13: 3330 | AA13: 3970 | AB13: 4830 | AC13: 5500 | AD13: 6190 | AE13: 6920 | AF13: 7930 | AH13: 2 | AI13: 0.04 | AJ13: 2.04 | AK13: 0.823 | AN13: Region 2 | AQ13: Q =aAb10cP/10dCAN | AV13: 0.42 - 1322
A14: 3 | B14: The estimates will be improved by computing weighted estimates using the regional regression estimates. To do this, enter the Mean Annual Precipitation in the green box (column I, row x). If the site is in regression region 1 or 2, enter the percent canopy coverage for the ungaged basin in the green box (column I, row x). If either of these values are outside the acceptible range, the cell will turn red. | R14: 12 | S14: 12012200 GREEN CREEK NEAR LEBAM, WA | T14: 21 | U14: 12012200 | V14: WA | W14: 4 | X14: 1.79 | Y14: 134 | Z14: 191 | AA14: 231 | AB14: 285 | AC14: 326 | AD14: 369 | AE14: 413 | AF14: 476 | AH14: 2 | AI14: 0.02 | AJ14: 2.02 | AK14: 0.812 | AN14: 0.5 | AO14: =AQ14*(POWER($F$12,AR14))*(POWER(10,(AS14*$I$37)))/(POWER(10,(AT14*$I$40))) -> 228.9053282 | AQ14: 1.445 | AR14: 0.877 | AS14: 0.0253 | AT14: 0.002 | AV14: 8.86 - 84.20
G15: Station Number | H15: Number of Years of Record | R15: 13 | S15: 12013500 WILLAPA RIVER NEAR WILLAPA, WA | T15: 63 | U15: 12013500 | V15: WA | W15: 4 | X15: 130.3803329 | Y15: 8810 | Z15: 10900 | AA15: 12200 | AB15: 13600 | AC15: 14700 | AD15: 15600 | AE15: 16500 | AF15: 17700 | AH15: 2 | AI15: 0.01 | AJ15: 2.01 | AK15: 0.801 | AN15: 0.2 | AO15: 577.7912505 | AQ15: 5.768 | AR15: 0.86 | AS15: 0.0214 | AT15: 0.0061 | AV15: 0.0 - 81.8
D16: Selected Streamflow-gaging Station: | G16: =INDEX(U3:U526,$J$1) -> 12047500 | H16: =INDEX(T3:T526,J1) -> 17 | R16: 14 | S16: 12014500 SOUTH FORK WILLAPA RIVER NEAR RAYMOND, WA | T16: 26 | U16: 12014500 | V16: WA | W16: 4 | X16: 27.67 | Y16: 1650 | Z16: 2310 | AA16: 2750 | AB16: 3330 | AC16: 3770 | AD16: 4210 | AE16: 4670 | AF16: 5280 | AH16: 2 | AI16: 0.005 | AJ16: 2.005 | AK16: 0.792 | AN16: 0.1 | AO16: 947.269183 | AQ16: 12.106 | AR16: 0.847 | AS16: 0.0194 | AT16: 0.0082
R17: 15 | S17: 12015100 CLEARWATER CREEK NEAR RAYMOND, WA | T17: 15 | U17: 12015100 | V17: WA | W17: 4 | X17: 3.99 | Y17: 268 | Z17: 401 | AA17: 493 | AB17: 613 | AC17: 705 | AD17: 798 | AE17: 893 | AF17: 1020 | AH17: 2 | AI17: 0.002 | AJ17: 2.002 | AK17: 0.78 | AN17: 0.04 | AO17: 1613.707817 | AQ17: 26.485 | AR17: 0.833 | AS17: 0.0174 | AT17: 0.0105
D18: Regression Region: | E18: =INDEX(W3:W526,J1) -> 3 | R18: 16 | S18: 12015500 NORTH RIVER NEAR BROOKLYN, WA | T18: 12 | U18: 12015500 | V18: WA | W18: 4 | X18: 29.71 | Y18: 1670 | Z18: 2220 | AA18: 2560 | AB18: 2960 | AC18: 3250 | AD18: 3540 | AE18: 3810 | AF18: 4170 | AH18: 3 | AI18: 0.5 | AJ18: 3.5 | AK18: 0.899 | AN18: 0.02 | AO18: 2289.158141 | AQ18: 43.853 | AR18: 0.823 | AS18: 0.0162 | AT18: 0.0119
A19: 4 | B19: The final answer, the weighted estimates of flood discharge (Q(u)wtd), will be listed in column G, rows 37-44. | D19: Initial estimate of Flood Discharges at ungaged site, Qu (eq. 10) | R19: 17 | S19: 12016700 JOE CREEK NEAR COSMOPOLIS, WA | T19: 22 | U19: 12016700 | V19: WA | W19: 4 | X19: 2 | Y19: 153 | Z19: 209 | AA19: 245 | AB19: 291 | AC19: 325 | AD19: 358 | AE19: 392 | AF19: 438 | AH19: 3 | AI19: 0.2 | AJ19: 3.2 | AK19: 0.895 | AN19: 0.01 | AO19: 3106.805147 | AQ19: 68.549 | AR19: 0.814 | AS19: 0.0151 | AT19: 0.0132
R20: 18 | S20: 12017000 NORTH RIVER NEAR RAYMOND, WA | T20: 58 | U20: 12017000 | V20: WA | W20: 4 | X20: 219.72 | Y20: 8800 | Z20: 12300 | AA20: 14800 | AB20: 18300 | AC20: 21000 | AD20: 23900 | AE20: 26900 | AF20: 31300 | AH20: 3 | AI20: 0.1 | AJ20: 3.1 | AK20: 0.895 | AN20: 0.005 | AO20: =AQ20*(POWER($F12,AR20))*(POWER(10,(AS20*$I$37)))/(POWER(10,(AT20*$I$40))) -> 4127.17831 | AQ20: 103.514 | AR20: 0.806 | AS20: 0.0141 | AT20: 0.0145
R21: 19 | S21: 12019600 WATER MILL CREEK NEAR PE ELL, WA | T21: 21 | U21: 12019600 | V21: WA | W21: 4 | X21: 1.94 | Y21: 89.5 | Z21: 119 | AA21: 138 | AB21: 160 | AC21: 177 | AD21: 192 | AE21: 208 | AF21: 229 | AH21: 3 | AI21: 0.04 | AJ21: 3.04 | AK21: 0.896 | AN21: 0.002 | AO21: =AQ21*(POWER($F12,AR21))*(POWER(10,(AS21*$I$37)))/(POWER(10,(AT21*$I$40))) -> 5861.311046 | AQ21: 169.824 | AR21: 0.796 | AS21: 0.013 | AT21: 0.0159
D22: AEP | F22: Q(g)wtd | G22: Q(u)g, ft3/s | R22: 20 | S22: 12020000 CHEHALIS RIVER NEAR DOTY, WA | T22: 75 | U22: 12020000 | V22: WA | W22: 4 | X22: 113.5996933 | Y22: 10100 | Z22: 15500 | AA22: 19700 | AB22: 25800 | AC22: 31000 | AD22: 36600 | AE22: 42800 | AF22: 51900 | AH22: 3 | AI22: 0.02 | AJ22: 3.02 | AK22: 0.897
D23: 0.5 | E23: = | F23: =INDEX(Y$3:Y$526,$J$1) -> 395 | G23: =(($F$12/$F$10)^(VLOOKUP(($E$18+$D23),AJ2:AK33,2,FALSE)))*$F23 -> 418.2290504 | R23: 21 | S23: 12020500 ELK CREEK NEAR DOTY, WA | T23: 33 | U23: 12020500 | V23: WA | W23: 4 | X23: 46.75 | Y23: 1720 | Z23: 2420 | AA23: 2910 | AB23: 3550 | AC23: 4050 | AD23: 4560 | AE23: 5090 | AF23: 5830 | AH23: 3 | AI23: 0.01 | AJ23: 3.01 | AK23: 0.898 | AN23: Region 3 | AQ23: Q=aAbPc | AV23: 0.08 - 2605
D24: 0.2 | E24: = | F24: =INDEX(Z$3:Z$526,$J$1) -> 765 | G24: 809.7819915 | R24: 22 | S24: 12020800 SOUTH FORK CHEHALIS RIVER NEAR WILDWOOD, WA | T24: 16 | U24: 12020800 | V24: WA | W24: 4 | X24: 26.95 | Y24: 3180 | Z24: 5110 | AA24: 6560 | AB24: 8570 | AC24: 10200 | AD24: 11900 | AE24: 13600 | AF24: 16100 | AH24: 3 | AI24: 0.005 | AJ24: 3.005 | AK24: 0.899 | AN24: 0.5 | AO24: =AQ24*(POWER($F$12,AR24))*(POWER($I$37,AS24)) -> 283.0890341 | AQ24: 0.0294 | AR24: 0.899 | AS24: 1.75 | AV24: 33.29 - 168.0
D25: 0.1 | E25: = | F25: =INDEX(AA$3:AA$526,$J$1) -> 1040 | G25: 1100.880093 | R25: 23 | S25: 12020900 SOUTH FORK CHEHALIS RIVER NEAR BOISTFORT, WA | T25: 15 | U25: 12020900 | V25: WA | W25: 4 | X25: 45.24 | Y25: 2800 | Z25: 4070 | AA25: 4950 | AB25: 6110 | AC25: 7000 | AD25: 7920 | AE25: 8860 | AF25: 10200 | AH25: 3 | AI25: 0.002 | AJ25: 3.002 | AK25: 0.9 | AN25: 0.2 | AO25: =AQ25*(POWER($F$12,AR25))*(POWER($I$37,AS25)) -> 444.7873954 | AQ25: 0.0565 | AR25: 0.895 | AS25: 1.7 | AV25: not applicable
D26: 0.04 | E26: = | F26: =INDEX(AB$3:AB$526,$J$1) -> 1390 | G26: 1471.462114 | R26: 24 | S26: 12021000 SOUTH FORK CHEHALIS RIVER AT BOISTFORT, WA | T26: 21 | U26: 12021000 | V26: WA | W26: 4 | X26: 48.13 | Y26: 3210 | Z26: 4020 | AA26: 4520 | AB26: 5140 | AC26: 5590 | AD26: 6030 | AE26: 6470 | AF26: 7050 | AH26: 4 | AI26: 0.5 | AJ26: 4.5 | AK26: 0.911 | AN26: 0.1 | AO26: =AQ26*(POWER($F$12,AR26))*(POWER($I$37,AS26)) -> 557.6441312 | AQ26: 0.0794 | AR26: 0.895 | AS26: 1.67
D27: 0.02 | E27: = | F27: =INDEX(AC$3:AC$526,$J$1) -> 1640 | G27: 1736.22393 | R27: 25 | S27: 12024000 SOUTH FORK NEWAUKUM RIVER NEAR ONALASKA, WA | T27: 41 | U27: 12024000 | V27: WA | W27: 4 | X27: 42.20196552 | Y27: 2510 | Z27: 3740 | AA27: 4590 | AB27: 5680 | AC27: 6510 | AD27: 7340 | AE27: 8190 | AF27: 9350 | AH27: 4 | AI27: 0.2 | AJ27: 4.2 | AK27: 0.913 | AN27: 0.04 | AO27: =AQ27*(POWER($F$12,AR27))*(POWER($I$37,AS27)) -> 706.2662436 | AQ27: 0.115 | AR27: 0.896 | AS27: 1.634
D28: 0.01 | E28: = | F28: =INDEX(AD$3:AD$526,$J$1) -> 1880 | G28: 1990.431996 | R28: 26 | S28: 12024400 NF NEWAUKUM RIVER ABV BEAR CREEK NR FOREST, WA | T28: 16 | U28: 12024400 | V28: WA | W28: 4 | X28: 29.69 | Y28: 1610 | Z28: 2810 | AA28: 3700 | AB28: 4920 | AC28: 5870 | AD28: 6840 | AE28: 7820 | AF28: 9210 | AH28: 4 | AI28: 0.1 | AJ28: 4.1 | AK28: 0.915 | AN28: 0.02 | AO28: =AQ28*(POWER($F$12,AR28))*(POWER($I$37,AS28)) -> 817.5835602 | AQ28: 0.146 | AR28: 0.897 | AS28: 1.609
D29: 0.005 | E29: = | F29: =INDEX(AE$3:AE$526,$J$1) -> 2120 | G29: 2244.672372 | R29: 27 | S29: 12025000 NEWAUKUM RIVER NEAR CHEHALIS, WA | T29: 74 | U29: 12025000 | V29: WA | W29: 4 | X29: 156.3333186 | Y29: 6240 | Z29: 8610 | AA29: 10100 | AB29: 11900 | AC29: 13100 | AD29: 14400 | AE29: 15600 | AF29: 17100 | AH29: 4 | AI29: 0.04 | AJ29: 4.04 | AK29: 0.918 | AN29: 0.01 | AO29: =AQ29*(POWER($F$12,AR29))*(POWER($I37,AS29)) -> 939.974575 | AQ29: 0.182 | AR29: 0.898 | AS29: 1.587
D30: 0.002 | E30: = | F30: =INDEX(AF$3:AF$526,$J$1) -> 2440 | G30: 2583.655063 | R30: 28 | S30: 12025300 SALZER CREEK NEAR CENTRALIA, WA | T30: 11 | U30: 12025300 | V30: WA | W30: 4 | X30: 12.64 | Y30: 312 | Z30: 317 | AA30: 319 | AB30: 322 | AC30: 324 | AD30: 326 | AE30: 327 | AF30: 329 | AH30: 4 | AI30: 0.02 | AJ30: 4.02 | AK30: 0.92 | AN30: 0.005 | AO30: =AQ30*(POWER($F$12,AR30))*(POWER($I$37,AS30)) -> 1060.735025 | AQ30: 0.221 | AR30: 0.899 | AS30: 1.567
I31: 2(|Ag-Au|)/Ag= | J31: =2*(ABS($F$10-$F$12)/F10) -> 0.1312540611 | R31: 29 | S31: 12025700 SKOOKUMCHUCK RIVER NEAR VAIL, WA | T31: 47 | U31: 12025700 | V31: WA | W31: 4 | X31: 39.88524969 | Y31: 2810 | Z31: 4430 | AA31: 5560 | AB31: 7020 | AC31: 8110 | AD31: 9220 | AE31: 10300 | AF31: 11800 | AH31: 4 | AI31: 0.01 | AJ31: 4.01 | AK31: 0.921 | AN31: 0.002 | AO31: =AQ31*(POWER($F$12,AR31))*(POWER($I$37,AS31)) -> 1229.786273 | AQ31: 0.281 | AR31: 0.9 | AS31: 1.542
D32: Regression Region: | E32: =INDEX(W3:W526,J1) -> 3 | R32: 30 | S32: 12026000 SKOOKUMCHUCK RIVER NEAR CENTRALIA, WA | T32: 34 | U32: 12026000 | V32: WA | W32: 4 | X32: 61.24 | Y32: 3580 | Z32: 4690 | AA32: 5380 | AB32: 6210 | AC32: 6800 | AD32: 7380 | AE32: 7950 | AF32: 8700 | AH32: 4 | AI32: 0.005 | AJ32: 4.005 | AK32: 0.923
D33: Weighted estimate of Flood Discharge at ungaged site, using regression estimate, Q(u)wtd (eq. 11) | H33: Basin Characteristics for Regional Regression Estimate, Q(u)reg | R33: 31 | S33: 12026150 SKOOKUMCHUCK RIVER BLW BLDY RUN CR NR CENTRALIA, WA | T33: 75 | U33: 12026150 | V33: WA | W33: 4 | X33: 65.66 | Y33: 3590 | Z33: 4710 | AA33: 5410 | AB33: 6270 | AC33: 6890 | AD33: 7510 | AE33: 8110 | AF33: 8920 | AH33: 4 | AI33: 0.002 | AJ33: 4.002 | AK33: 0.926 | AN33: Region 4 | AQ33: Q=aAb10cP | AV33: 0.18 - 2230
R34: 32 | S34: 12026300 SKOOKUMCHUCK RIVER TRIBUTARY NEAR BUCODA, WA | T34: 16 | U34: 12026300 | V34: WA | W34: 4 | X34: 0.62 | Y34: 34.7 | Z34: 48.5 | AA34: 57.5 | AB34: 68.7 | AC34: 77 | AD34: 85.4 | AE34: 93.7 | AF34: 105 | AN34: 0.5 | AO34: =AQ34*(POWER($F$12,AR34))*(POWER(10,($I$37*AS34))) -> 417.3380086 | AQ34: 15.346 | AR34: 0.911 | AS34: 0.0073 | AV34: 11.94 - 186.6
J35: Applicable Range | R35: 33 | S35: 12027500 CHEHALIS RIVER NEAR GRAND MOUND, WA | T35: 86 | U35: 12027500 | V35: WA | W35: 4 | X35: 898.2832716 | Y35: 25700 | Z35: 36800 | AA35: 44600 | AB35: 55200 | AC35: 63500 | AD35: 72200 | AE35: 81400 | AF35: 94300 | AN35: 0.2 | AO35: 712.1148423 | AQ35: 29.785 | AR35: 0.913 | AS35: 0.006 | AV35: not applicable
D36: AEP | F36: Q(u)reg | G36: *Q(u)wtd | N36: Q(u)wtd | R36: 34 | S36: 12029700 CHEHALIS RIVER NEAR OAKVILLE, WA | T36: 30 | U36: 12029700 | V36: WA | W36: 4 | X36: 1158.27 | Y36: 29000 | Z36: 36800 | AA36: 41900 | AB36: 48300 | AC36: 53000 | AD36: 57800 | AE36: 62600 | AF36: 69100 | AN36: 0.1 | AO36: 950.7046132 | AQ36: 42.073 | AR36: 0.915 | AS36: 0.0054
D37: 0.5 | E37: = | F37: =IF($E$32=1,AO4,IF($E$32=2,AO14,IF($E$32=3,AO24,IF($E$32=4,AO34,"error")))) -> 283.0890341 | G37: =IF(N37<100,ROUND(N37,1),IF(N37<1000,ROUND(N37,0),IF(N37<10000,ROUND(N37,-1),IF(N37<100000,ROUND(N37,-2),IF(N37>100000,ROUND(N37,-3),""))))) -> 400 | H37: Enter Mean Annual Precipitation of ungaged basin= | I37: 44.9 | J37: =IF(E32=1,AV4,IF(E32=2,AV14,IF(E32=3,AV24,IF(E32=4,AV34)))) -> 33.29 - 168.0 | N37: =($J$31*$F37) + ((1 - $J$31)*$G23) -> 400.4913744 | R37: 35 | S37: 12030000 ROCK CREEK AT CEDARVILLE, WA | T37: 30 | U37: 12030000 | V37: WA | W37: 4 | X37: 24.55746579 | Y37: 1120 | Z37: 1350 | AA37: 1480 | AB37: 1620 | AC37: 1720 | AD37: 1820 | AE37: 1910 | AF37: 2020 | AN37: 0.04 | AO37: 1274.247976 | AQ37: 60.117 | AR37: 0.918 | AS37: 0.0047
D38: 0.2 | E38: = | F38: =IF($E$32=1,AO5,IF($E$32=2,AO15,IF($E$32=3,AO25,IF($E$32=4,AO35,"error")))) -> 444.7873954 | G38: =IF(N38<100,ROUND(N38,1),IF(N38<1000,ROUND(N38,0),IF(N38<10000,ROUND(N38,-1),IF(N38<100000,ROUND(N38,-2),IF(N38>100000,ROUND(N38,-3),""))))) -> 762 | N38: =($J$31*$F38) + ((1 - $J$31)*$G24) -> 761.8749685 | R38: 36 | S38: 12031000 CHEHALIS RIVER AT PORTER, WA | T38: 65 | U38: 12031000 | V38: WA | W38: 4 | X38: 1297.639243 | Y38: 29800 | Z38: 41200 | AA38: 49300 | AB38: 60100 | AC38: 68700 | AD38: 77700 | AE38: 87200 | AF38: 101000 | AN38: 0.02 | AO38: 1537.179797 | AQ38: 75.162 | AR38: 0.92 | AS38: 0.0043
D39: 0.1 | E39: = | F39: =IF($E$32=1,AO6,IF($E$32=2,AO16,IF($E$32=3,AO26,IF($E$32=4,AO36,"error")))) -> 557.6441312 | G39: 1030 | N39: =($J$31*$F39) + ((1 - $J$31)*$G25) -> 1029.578167 | R39: 37 | S39: 12032500 CLOQUALLUM CREEK AT ELMA, WA | T39: 36 | U39: 12032500 | V39: WA | W39: 4 | X39: 66.35078307 | Y39: 3180 | Z39: 4210 | AA39: 4850 | AB39: 5630 | AC39: 6200 | AD39: 6750 | AE39: 7290 | AF39: 8000 | AN39: 0.01 | AO39: 1817.480015 | AQ39: 91.411 | AR39: 0.921 | AS39: 0.004
D40: 0.04 | E40: = | F40: 706.2662436 | G40: 1370 | H40: If ungaged location is in regression region 1 or 2, enter percent canopy coverage= | I40: 0.8 | J40: =IF(E32=1,AV5,IF(E32=2,AV15,IF(E32=3,AV25,IF(E32=4,AV35)))) -> not applicable | N40: =($J$31*$F40) + ((1 - $J$31)*$G26) -> 1371.027049 | R40: 38 | S40: 12034200 EAST FORK SATSOP RIVER NEAR ELMA, WA | T40: 16 | U40: 12034200 | V40: WA | W40: 4 | X40: 63.36 | Y40: 3010 | Z40: 3940 | AA40: 4510 | AB40: 5200 | AC40: 5680 | AD40: 6150 | AE40: 6600 | AF40: 7200 | AN40: 0.005 | AO40: 2089.011518 | AQ40: 108.893 | AR40: 0.923 | AS40: 0.0036
D41: 0.02 | E41: = | F41: 817.5835602 | G41: 1620 | N41: =($J$31*$F41) + ((1 - $J$31)*$G27) -> 1615.648651 | R41: 39 | S41: 12034700 WEST FORK SATSOP RIVER TRIBUTARY NEAR MATLOCK, WA | T41: 20 | U41: 12034700 | V41: WA | W41: 4 | X41: 0.31 | Y41: 54.1 | Z41: 64.4 | AA41: 70.4 | AB41: 77.4 | AC41: 82.2 | AD41: 86.7 | AE41: 91.1 | AF41: 96.7 | AN41: 0.002 | AO41: 2518.336724 | AQ41: 134.276 | AR41: 0.926 | AS41: 0.0033
D42: 0.01 | E42: = | F42: 939.974575 | G42: 1850 | N42: =($J$31*$F42) + ((1 - $J$31)*$G28) -> 1852.555193 | R42: 40 | S42: 12035000 SATSOP RIVER NEAR SATSOP, WA | T42: 83 | U42: 12035000 | V42: WA | W42: 4 | X42: 297.2582356 | Y42: 25900 | Z42: 35400 | AA42: 41200 | AB42: 48100 | AC42: 53000 | AD42: 57700 | AE42: 62200 | AF42: 68000
D43: 0.005 | E43: = | F43: 1060.735025 | G43: =IF(N43<100,ROUND(N43,1),IF(N43<1000,ROUND(N43,0),IF(N43<10000,ROUND(N43,-1),IF(N43<100000,ROUND(N43,-2),IF(N43>100000,ROUND(N43,-3),""))))) -> 2090 | N43: 2089.275787 | R43: 41 | S43: 12035450 BIG CREEK NEAR GRISDALE, WA | T43: 25 | U43: 12035450 | V43: WA | W43: 4 | X43: 9.53547309 | Y43: 2320 | Z43: 3030 | AA43: 3470 | AB43: 4000 | AC43: 4370 | AD43: 4730 | AE43: 5070 | AF43: 5520
D44: 0.002 | E44: = | F44: 1229.786273 | G44: 2410 | N44: 2405.954286 | R44: 42 | S44: 12035500 WYNOOCHEE RIVER AT OXBOW NEAR ABERDEEN, WA | T44: 27 | U44: 12035500 | V44: WA | W44: 4 | X44: 70.62 | Y44: 9880 | Z44: 12800 | AA44: 14500 | AB44: 16600 | AC44: 18200 | AD44: 19600 | AE44: 21000 | AF44: 22900
R45: 43 | S45: 12036000 WYNOOCHEE RIVER ABV SAVE CREEK NEAR ABERDEEN, WA | T45: 62 | U45: 12036000 | V45: WA | W45: 4 | X45: 73.64 | Y45: 12500 | Z45: 17200 | AA45: 20400 | AB45: 24400 | AC45: 27400 | AD45: 30400 | AE45: 33300 | AF45: 37400
G46: *rounded to 3 significant figures | R46: 44 | S46: 12036400 SCHAFER CREEK NEAR GRISDALE, WA | T46: 11 | U46: 12036400 | V46: WA | W46: 4 | X46: 12.35 | Y46: 1780 | Z46: 2570 | AA46: 3120 | AB46: 3820 | AC46: 4360 | AD46: 4900 | AE46: 5450 | AF46: 6210
R47: 45 | S47: 12036650 ANDERSON CREEK NEAR MONTESANO, WA | T47: 13 | U47: 12036650 | V47: WA | W47: 4 | X47: 2.79 | Y47: 255 | Z47: 361 | AA47: 432 | AB47: 521 | AC47: 588 | AD47: 654 | AE47: 721 | AF47: 811
R48: 46 | S48: 12037400 WYNOOCHEE RIVER ABV BLACK CREEK NR MONTESANO, WA | T48: 58 | U48: 12037400 | V48: WA | W48: 4 | X48: 154.3 | Y48: 16500 | Z48: 21800 | AA48: 25200 | AB48: 29100 | AC48: 31900 | AD48: 34700 | AE48: 37300 | AF48: 40800
R49: 47 | S49: 12038750 GIBSON CREEK NEAR QUINAULT, WA | T49: 11 | U49: 12038750 | V49: WA | W49: 4 | X49: 1.18 | Y49: 275 | Z49: 353 | AA49: 404 | AB49: 467 | AC49: 514 | AD49: 561 | AE49: 608 | AF49: 671
R50: 48 | S50: 12039005 HUMPTULIPS RIVER BELOW HWY 101 NR HUMPTULIPS, WA* | T50: 51 | U50: 12039005 | V50: WA | W50: 4 | X50: 132.7880911 | Y50: 20200 | Z50: 27200 | AA50: 31600 | AB50: 37100 | AC50: 41000 | AD50: 44900 | AE50: 48800 | AF50: 53800
R51: 49 | S51: 12039050 BIG CREEK NEAR HOQUIAM, WA | T51: 22 | U51: 12039050 | V51: WA | W51: 4 | X51: 0.32 | Y51: 60.5 | Z51: 88.3 | AA51: 107 | AB51: 131 | AC51: 149 | AD51: 167 | AE51: 185 | AF51: 209
R52: 50 | S52: 12039100 BIG CREEK TRIBUTARY NEAR HOQUIAM, WA | T52: 20 | U52: 12039100 | V52: WA | W52: 4 | X52: 0.18 | Y52: 16.2 | Z52: 21.1 | AA52: 24.1 | AB52: 27.5 | AC52: 29.9 | AD52: 32.2 | AE52: 34.3 | AF52: 37.1
R53: 51 | S53: 12039300 NORTH FORK QUINAULT RIVER NEAR AMANDA PARK, WA | T53: 22 | U53: 12039300 | V53: WA | W53: 4 | X53: 73.78 | Y53: 16200 | Z53: 22800 | AA53: 27100 | AB53: 32400 | AC53: 36300 | AD53: 40100 | AE53: 43900 | AF53: 48900
R54: 52 | S54: 12039400 HIGLEY CREEK NEAR AMANDA PARK, WA | T54: 20 | U54: 12039400 | V54: WA | W54: 4 | X54: 0.79 | Y54: 178 | Z54: 259 | AA54: 314 | AB54: 385 | AC54: 438 | AD54: 492 | AE54: 547 | AF54: 622
R55: 53 | S55: 12039500 QUINAULT RIVER AT QUINAULT LAKE, WA | T55: 101 | U55: 12039500 | V55: WA | W55: 4 | X55: 265.7015876 | Y55: 23600 | Z55: 32800 | AA55: 38700 | AB55: 45800 | AC55: 50900 | AD55: 55800 | AE55: 60700 | AF55: 67000
R56: 54 | S56: 12040000 CLEARWATER RIVER NEAR CLEARWATER, WA | T56: 31 | U56: 12040000 | V56: WA | W56: 4 | X56: 140.96 | Y56: 19900 | Z56: 26300 | AA56: 30500 | AB56: 35800 | AC56: 39800 | AD56: 43700 | AE56: 47600 | AF56: 52900
R57: 55 | S57: 12040500 QUEETS RIVER NEAR CLEARWATER, WA | T57: 84 | U57: 12040500 | V57: WA | W57: 4 | X57: 445.3420257 | Y57: 67300 | Z57: 88100 | AA57: 101000 | AB57: 118000 | AC57: 130000 | AD57: 141000 | AE57: 153000 | AF57: 168000
R58: 56 | S58: 12041000 HOH RIVER NEAR FORKS, WA | T58: 38 | U58: 12041000 | V58: WA | W58: 4 | X58: 207.51 | Y58: 19000 | Z58: 26000 | AA58: 30800 | AB58: 36800 | AC58: 41400 | AD58: 46000 | AE58: 50600 | AF58: 56900
R59: 57 | S59: 12041200 HOH RIVER AT US HIGHWAY 101 NEAR FORKS, WA | T59: 54 | U59: 12041200 | V59: WA | W59: 4 | X59: 253.2031059 | Y59: 32700 | Z59: 44800 | AA59: 52300 | AB59: 61300 | AC59: 67600 | AD59: 73600 | AE59: 79400 | AF59: 86900
R60: 58 | S60: 12041500 SOLEDUCK RIVER NEAR FAIRHOLM, WA | T60: 63 | U60: 12041500 | V60: WA | W60: 4 | X60: 84.14366103 | Y60: 9500 | Z60: 13500 | AA60: 16200 | AB60: 19600 | AC60: 22100 | AD60: 24600 | AE60: 27200 | AF60: 30600
R61: 59 | S61: 12041600 SOLEDUCK RIVER TRIBUTARY NEAR FAIRHOLM, WA | T61: 20 | U61: 12041600 | V61: WA | W61: 4 | X61: 0.43 | Y61: 26 | Z61: 38.6 | AA61: 47.3 | AB61: 58.7 | AC61: 67.6 | AD61: 76.6 | AE61: 85.9 | AF61: 98.7
R62: 60 | S62: 12042700 MAY CREEK NEAR FORKS, WA | T62: 19 | U62: 12042700 | V62: WA | W62: 4 | X62: 2.07 | Y62: 484 | Z62: 623 | AA62: 705 | AB62: 799 | AC62: 864 | AD62: 924 | AE62: 981 | AF62: 1050
R63: 61 | S63: 12042900 GRADER CREEK NEAR FORKS, WA | T63: 39 | U63: 12042900 | V63: WA | W63: 4 | X63: 1.73 | Y63: 323 | Z63: 420 | AA63: 480 | AB63: 551 | AC63: 602 | AD63: 651 | AE63: 698 | AF63: 759
R64: 62 | S64: 12043000 CALAWAH RIVER NEAR FORKS, WA | T64: 117 | U64: 12043000 | V64: WA | W64: 4 | X64: 130.1871285 | Y64: 20300 | Z64: 28000 | AA64: 33000 | AB64: 39200 | AC64: 43700 | AD64: 48100 | AE64: 52500 | AF64: 58200
R65: 63 | S65: 12043100 DICKEY RIVER NEAR LA PUSH, WA | T65: 18 | U65: 12043100 | V65: WA | W65: 4 | X65: 84.27 | Y65: 8280 | Z65: 11200 | AA65: 13100 | AB65: 15600 | AC65: 17500 | AD65: 19400 | AE65: 21400 | AF65: 24100
R66: 64 | S66: 12043163 TSOO-YESS RIVER BELOW MILLER CREEK NEAR OZETTE, WA | T66: 15 | U66: 12043163 | V66: WA | W66: 4 | X66: 31.78 | Y66: 3520 | Z66: 4700 | AA66: 5440 | AB66: 6340 | AC66: 6970 | AD66: 7590 | AE66: 8200 | AF66: 9000
R67: 65 | S67: 12043300 HOKO RIVER NEAR SEKIU, WA | T67: 52 | U67: 12043300 | V67: WA | W67: 4 | X67: 52.20029529 | Y67: 7420 | Z67: 10600 | AA67: 12700 | AB67: 15500 | AC67: 17600 | AD67: 19600 | AE67: 21700 | AF67: 24500
R68: 66 | S68: 12043430 EAST TWIN RIVER NEAR PYSHT, WA | T68: 16 | U68: 12043430 | V68: WA | W68: 4 | X68: 13.88 | Y68: 981 | Z68: 1120 | AA68: 1190 | AB68: 1280 | AC68: 1330 | AD68: 1390 | AE68: 1440 | AF68: 1500
R69: 67 | S69: 12044000 LYRE RIVER AT PIEDMONT, WA | T69: 10 | U69: 12044000 | V69: WA | W69: 3 | X69: 49.16 | Y69: 802 | Z69: 1150 | AA69: 1400 | AB69: 1740 | AC69: 2000 | AD69: 2290 | AE69: 2580 | AF69: 2970
R70: 68 | S70: 12044900 ELWHA RIVER ABV LAKE MILLS NR PORT ANGELES, WA | T70: 13 | U70: 12044900 | V70: WA | W70: 3 | X70: 198.23 | Y70: 13000 | Z70: 18300 | AA70: 21700 | AB70: 25900 | AC70: 29000 | AD70: 32100 | AE70: 35200 | AF70: 39300
R71: 69 | S71: 12045500 ELWHA RIVER AT MCDONALD BR NEAR PORT ANGELES | T71: 100 | U71: 12045500 | V71: WA | W71: 3 | X71: 268.4888435 | Y71: 14100 | Z71: 21100 | AA71: 25900 | AB71: 32100 | AC71: 36800 | AD71: 41500 | AE71: 46200 | AF71: 52500
R72: 72 | S72: 12047300 MORSE CREEK NEAR PORT ANGELES, WA | T72: 13 | U72: 12047300 | V72: WA | W72: 3 | X72: 46.66 | Y72: 1300 | Z72: 2180 | AA72: 2840 | AB72: 3730 | AC72: 4410 | AD72: 5120 | AE72: 5840 | AF72: 6840
R73: 73 | S73: 12047500 SIEBERT CREEK NEAR PORT ANGELES, WA | T73: 17 | U73: 12047500 | V73: WA | W73: 3 | X73: 15.39 | Y73: 395 | Z73: 765 | AA73: 1040 | AB73: 1390 | AC73: 1640 | AD73: 1880 | AE73: 2120 | AF73: 2440
R74: 74 | S74: 12047700 GOLD CREEK NEAR BLYN, WA | T74: 11 | U74: 12047700 | V74: WA | W74: 3 | X74: 2.42 | Y74: 64.9 | Z74: 103 | AA74: 131 | AB74: 167 | AC74: 194 | AD74: 222 | AE74: 251 | AF74: 290
R75: 75 | S75: 12048000 DUNGENESS RIVER NEAR SEQUIM, WA | T75: 84 | U75: 12048000 | V75: WA | W75: 3 | X75: 156.3729324 | Y75: 3120 | Z75: 4680 | AA75: 5710 | AB75: 7000 | AC75: 7960 | AD75: 8920 | AE75: 9880 | AF75: 11200
R76: 76 | S76: 12049400 DEAN CREEK AT BLYN, WA | T76: 22 | U76: 12049400 | V76: WA | W76: 3 | X76: 2.98 | Y76: 28.1 | Z76: 46.9 | AA76: 61.3 | AB76: 81.4 | AC76: 97.4 | AD76: 115 | AE76: 133 | AF76: 158
R77: 77 | S77: 12050500 SNOW CREEK NEAR MAYNARD, WA | T77: 27 | U77: 12050500 | V77: WA | W77: 3 | X77: 11.29550994 | Y77: 211 | Z77: 363 | AA77: 476 | AB77: 628 | AC77: 745 | AD77: 865 | AE77: 987 | AF77: 1150
R78: 78 | S78: 12052210 BIG QUILCENE RIVER BLW DIVERSION NR QUILCENE, WA | T78: 21 | U78: 12052210 | V78: WA | W78: 3 | X78: 49.38 | Y78: 2010 | Z78: 3130 | AA78: 3930 | AB78: 4970 | AC78: 5770 | AD78: 6580 | AE78: 7400 | AF78: 8540
R79: 79 | S79: 12052400 PENNY CREEK NEAR QUILCENE, WA | T79: 20 | U79: 12052400 | V79: WA | W79: 3 | X79: 6.75 | Y79: 210 | Z79: 352 | AA79: 455 | AB79: 589 | AC79: 691 | AD79: 794 | AE79: 899 | AF79: 1040
R80: 80 | S80: 12053000 DOSEWALLIPS RIVER NEAR BRINNON, WA | T80: 38 | U80: 12053000 | V80: WA | W80: 3 | X80: 93.35 | Y80: 4330 | Z80: 6550 | AA80: 8100 | AB80: 10100 | AC80: 11600 | AD80: 13200 | AE80: 14800 | AF80: 16900
R81: 81 | S81: 12053400 DOSEWALLIPS RIVER TRIBUTARY NEAR BRINNON, WA | T81: 20 | U81: 12053400 | V81: WA | W81: 3 | X81: 0.64 | Y81: 37.1 | Z81: 49.7 | AA81: 57.8 | AB81: 67.9 | AC81: 75.3 | AD81: 82.8 | AE81: 90.4 | AF81: 100
R82: 82 | S82: 12054000 DUCKABUSH RIVER NEAR BRINNON, WA | T82: 76 | U82: 12054000 | V82: WA | W82: 3 | X82: 66.26 | Y82: 4890 | Z82: 6740 | AA82: 7900 | AB82: 9280 | AC82: 10300 | AD82: 11200 | AE82: 12100 | AF82: 13400
R83: 83 | S83: 12054500 HAMMA HAMMA RIVER NEAR ELDON, WA | T83: 28 | U83: 12054500 | V83: WA | W83: 3 | X83: 51.38 | Y83: 3490 | Z83: 4800 | AA83: 5650 | AB83: 6710 | AC83: 7500 | AD83: 8290 | AE83: 9080 | AF83: 10100
R84: 84 | S84: 12054600 JEFFERSON CREEK NEAR ELDON, WA | T84: 22 | U84: 12054600 | V84: WA | W84: 3 | X84: 21.76 | Y84: 2370 | Z84: 2740 | AA84: 2960 | AB84: 3210 | AC84: 3390 | AD84: 3560 | AE84: 3730 | AF84: 3940
R85: 85 | S85: 12056300 ANNAS BAY TRIBUTARY NO. 2 NEAR POTLATCH, WA | T85: 21 | U85: 12056300 | V85: WA | W85: 3 | X85: 0.85 | Y85: 53.2 | Z85: 98.1 | AA85: 134 | AB85: 183 | AC85: 221 | AD85: 260 | AE85: 299 | AF85: 353
R86: 86 | S86: 12056500 NF SKOKOMISH R BL STAIRCASE RPDS NR HOODSPORT | T86: 90 | U86: 12056500 | V86: WA | W86: 3 | X86: 56.74569615 | Y86: 6950 | Z86: 10600 | AA86: 13200 | AB86: 16600 | AC86: 19200 | AD86: 21900 | AE86: 24600 | AF86: 28400
R87: 88 | S87: 12058000 DEER MEADOW CREEK NEAR HOODSPORT, WA | T87: 27 | U87: 12058000 | V87: WA | W87: 3 | X87: 0.53 | Y87: 108 | Z87: 178 | AA87: 226 | AB87: 285 | AC87: 327 | AD87: 365 | AE87: 402 | AF87: 450
R88: 89 | S88: 12059800 SOUTH FORK SKOKOMISH RIVER NEAR HOODSPORT, WA | T88: 15 | U88: 12059800 | V88: WA | W88: 3 | X88: 26.17 | Y88: 3810 | Z88: 4750 | AA88: 5320 | AB88: 5980 | AC88: 6450 | AD88: 6910 | AE88: 7360 | AF88: 7930
R89: 90 | S89: 12060000 SOUTH FORK SKOKOMISH RIVER NEAR POTLATCH, WA | T89: 27 | U89: 12060000 | V89: WA | W89: 3 | X89: 63.65 | Y89: 8490 | Z89: 12500 | AA89: 15200 | AB89: 18700 | AC89: 21300 | AD89: 23800 | AE89: 26400 | AF89: 29800
R90: 91 | S90: 12060500 SOUTH FORK SKOKOMISH RIVER NEAR UNION, WA | T90: 71 | U90: 12060500 | V90: WA | W90: 3 | X90: 76.55274198 | Y90: 12000 | Z90: 15800 | AA90: 18200 | AB90: 21000 | AC90: 23100 | AD90: 25000 | AE90: 27000 | AF90: 29500
R91: 92 | S91: 12061200 FIR CREEK TRIBUTARY NEAR POTLATCH, WA | T91: 20 | U91: 12061200 | V91: WA | W91: 3 | X91: 0.79 | Y91: 136 | Z91: 187 | AA91: 220 | AB91: 261 | AC91: 292 | AD91: 321 | AE91: 351 | AF91: 392
R92: 93 | S92: 12063000 UNION RIVER NEAR BREMERTON, WA | T92: 14 | U92: 12063000 | V92: WA | W92: 3 | X92: 3.42 | Y92: 276 | Z92: 384 | AA92: 450 | AB92: 529 | AC92: 586 | AD92: 641 | AE92: 695 | AF92: 768
R93: 94 | S93: 12063500 UNION RIVER NEAR BELFAIR, WA | T93: 12 | U93: 12063500 | V93: WA | W93: 3 | X93: 18.14 | Y93: 897 | Z93: 1170 | AA93: 1340 | AB93: 1550 | AC93: 1710 | AD93: 1870 | AE93: 2020 | AF93: 2240
R94: 95 | S94: 12065500 GOLD CREEK NEAR BREMERTON, WA | T94: 33 | U94: 12065500 | V94: WA | W94: 3 | X94: 1.54667799 | Y94: 128 | Z94: 172 | AA94: 199 | AB94: 233 | AC94: 257 | AD94: 280 | AE94: 303 | AF94: 333
R95: 96 | S95: 12066000 TAHUYA RIVER NEAR BREMERTON, WA | T95: 11 | U95: 12066000 | V95: WA | W95: 3 | X95: 6.06 | Y95: 323 | Z95: 436 | AA95: 505 | AB95: 589 | AC95: 649 | AD95: 709 | AE95: 768 | AF95: 845
R96: 97 | S96: 12067500 TAHUYA RIVER NEAR BELFAIR, WA | T96: 10 | U96: 12067500 | V96: WA | W96: 3 | X96: 16 | Y96: 702 | Z96: 904 | AA96: 1030 | AB96: 1190 | AC96: 1310 | AD96: 1430 | AE96: 1550 | AF96: 1700
R97: 98 | S97: 12068500 DEWATTO RIVER NEAR DEWATTO, WA | T97: 32 | U97: 12068500 | V97: WA | W97: 3 | X97: 18.64561842 | Y97: 1030 | Z97: 1410 | AA97: 1660 | AB97: 1980 | AC97: 2210 | AD97: 2440 | AE97: 2680 | AF97: 3000
R98: 99 | S98: 12069550 BIG BEEF CREEK NEAR SEABECK, WA | T98: 29 | U98: 12069550 | V98: WA | W98: 3 | X98: 12.86373231 | Y98: 658 | Z98: 1010 | AA98: 1260 | AB98: 1590 | AC98: 1840 | AD98: 2090 | AE98: 2350 | AF98: 2700
R99: 100 | S99: 12070000 DOGFISH CREEK NEAR POULSBO, WA | T99: 28 | U99: 12070000 | V99: WA | W99: 3 | X99: 5.19532299 | Y99: 134 | Z99: 195 | AA99: 237 | AB99: 293 | AC99: 336 | AD99: 380 | AE99: 426 | AF99: 489
R100: 101 | S100: 12072000 CHICO CREEK NEAR BREMERTON, WA | T100: 21 | U100: 12072000 | V100: WA | W100: 3 | X100: 15.5 | Y100: 478 | Z100: 702 | AA100: 864 | AB100: 1080 | AC100: 1260 | AD100: 1440 | AE100: 1620 | AF100: 1890
R101: 103 | S101: 12073500 HUGE CREEK NEAR WAUNA, WA | T101: 58 | U101: 12073500 | V101: WA | W101: 3 | X101: 6.05119086 | Y101: 142 | Z101: 261 | AA101: 357 | AB101: 493 | AC101: 603 | AD101: 718 | AE101: 838 | AF101: 1000
R102: 104 | S102: 12076500 GOLDSBOROUGH CREEK NEAR SHELTON, WA | T102: 28 | U102: 12076500 | V102: WA | W102: 3 | X102: 45.17856486 | Y102: 828 | Z102: 1140 | AA102: 1360 | AB102: 1640 | AC102: 1850 | AD102: 2080 | AE102: 2320 | AF102: 2640
R103: 105 | S103: 12076800 GOLDSBOROUGH CREEK ABOVE 7TH STREET AT SHELTON, WA | T103: 10 | U103: 12076800 | V103: WA | W103: 3 | X103: 60.41 | Y103: 1600 | Z103: 2430 | AA103: 3080 | AB103: 3970 | AC103: 4690 | AD103: 5480 | AE103: 6290 | AF103: 7430
R104: 106 | S104: 12078400 KENNEDY CREEK NEAR KAMILCHE, WA | T104: 33 | U104: 12078400 | V104: WA | W104: 3 | X104: 17.15 | Y104: 727 | Z104: 1070 | AA104: 1310 | AB104: 1620 | AC104: 1850 | AD104: 2090 | AE104: 2330 | AF104: 2650
R105: 107 | S105: 12078600 SCHNEIDER CREEK TRIBUTARY NEAR SHELTON, WA | T105: 20 | U105: 12078600 | V105: WA | W105: 3 | X105: 1.2 | Y105: 55.3 | Z105: 77.9 | AA105: 92.8 | AB105: 112 | AC105: 126 | AD105: 140 | AE105: 155 | AF105: 175
R106: 108 | S106: 12079000 DESCHUTES RIVER NEAR RAINIER, WA | T106: 59 | U106: 12079000 | V106: WA | W106: 3 | X106: 86.5 | Y106: 3870 | Z106: 5320 | AA106: 6250 | AB106: 7390 | AC106: 8220 | AD106: 9020 | AE106: 9830 | AF106: 10900
R107: 110 | S107: 12080010 DESCHUTES RIVER AT E ST BRIDGE AT TUMWATER, WA | T107: 24 | U107: 12080010 | V107: WA | W107: 3 | X107: 155.1122387 | Y107: 4230 | Z107: 5980 | AA107: 7060 | AB107: 8410 | AC107: 9400 | AD107: 10400 | AE107: 11300 | AF107: 12600
R108: 112 | S108: 12081300 EATON CREEK NEAR YELM, WA | T108: 29 | U108: 12081300 | V108: WA | W108: 3 | X108: 2.12 | Y108: 30.4 | Z108: 41.1 | AA108: 48.1 | AB108: 56.8 | AC108: 63.4 | AD108: 70.1 | AE108: 76.9 | AF108: 86.1
R109: 113 | S109: 12082500 NISQUALLY RIVER NEAR NATIONAL, WA | T109: 72 | U109: 12082500 | V109: WA | W109: 3 | X109: 135.1343436 | Y109: 6430 | Z109: 10000 | AA109: 12600 | AB109: 16000 | AC109: 18600 | AD109: 21400 | AE109: 24100 | AF109: 28000
R110: 114 | S110: 12083000 MINERAL CREEK NEAR MINERAL, WA | T110: 72 | U110: 12083000 | V110: WA | W110: 3 | X110: 76.75150626 | Y110: 4680 | Z110: 6720 | AA110: 8000 | AB110: 9500 | AC110: 10600 | AD110: 11600 | AE110: 12500 | AF110: 13800
R111: 115 | S111: 12084000 NISQUALLY RIVER NEAR ALDER, WA | T111: 13 | U111: 12084000 | V111: WA | W111: 3 | X111: 251.22 | Y111: 10000 | Z111: 14500 | AA111: 17600 | AB111: 21700 | AC111: 24900 | AD111: 28300 | AE111: 31800 | AF111: 36500
R112: 116 | S112: 12084500 LITTLE NISQUALLY RIVER NEAR ALDER, WA | T112: 23 | U112: 12084500 | V112: WA | W112: 3 | X112: 27.79 | Y112: 1870 | Z112: 2340 | AA112: 2620 | AB112: 2960 | AC112: 3200 | AD112: 3430 | AE112: 3660 | AF112: 3960
R113: 117 | S113: 12087000 MASHEL RIVER NEAR LA GRANDE, WA | T113: 39 | U113: 12087000 | V113: WA | W113: 3 | X113: 82.49238855 | Y113: 3070 | Z113: 4450 | AA113: 5360 | AB113: 6500 | AC113: 7350 | AD113: 8200 | AE113: 9050 | AF113: 10200
R114: 118 | S114: 12088000 OHOP CREEK NEAR EATONVILLE, WA | T114: 59 | U114: 12088000 | V114: WA | W114: 3 | X114: 34.34278805 | Y114: 660 | Z114: 1020 | AA114: 1280 | AB114: 1660 | AC114: 1970 | AD114: 2300 | AE114: 2650 | AF114: 3160
R115: 119 | S115: 12090200 MUCK CREEK AT ROY, WA | T115: 40 | U115: 12090200 | V115: WA | W115: 3 | X115: 87.26 | Y115: 465 | Z115: 702 | AA115: 882 | AB115: 1140 | AC115: 1340 | AD115: 1580 | AE115: 1820 | AF115: 2180
R116: 125 | S116: 12091700 JUDD CREEK NEAR BURTON, WA | T116: 11 | U116: 12091700 | V116: WA | W116: 3 | X116: 4.21 | Y116: 91.7 | Z116: 123 | AA116: 144 | AB116: 172 | AC116: 193 | AD116: 216 | AE116: 238 | AF116: 270
R117: 126 | S117: 12092000 PUYALLUP RIVER NEAR ELECTRON, WA | T117: 77 | U117: 12092000 | V117: WA | W117: 3 | X117: 93.00430854 | Y117: 4390 | Z117: 6810 | AA117: 8570 | AB117: 11000 | AC117: 12900 | AD117: 14800 | AE117: 16900 | AF117: 19700
R118: 127 | S118: 12093000 KAPOWSIN CREEK NEAR KAPOWSIN, WA | T118: 34 | U118: 12093000 | V118: WA | W118: 3 | X118: 24.74 | Y118: 345 | Z118: 502 | AA118: 609 | AB118: 749 | AC118: 856 | AD118: 969 | AE118: 1080 | AF118: 1240
R119: 128 | S119: 12093500 PUYALLUP RIVER NEAR ORTING, WA | T119: 83 | U119: 12093500 | V119: WA | W119: 3 | X119: 169.1456224 | Y119: 6780 | Z119: 10100 | AA119: 12300 | AB119: 15200 | AC119: 17300 | AD119: 19400 | AE119: 21600 | AF119: 24400
R120: 129 | S120: 12093900 CARBON RIVER AT FAIRFAX, WA | T120: 13 | U120: 12093900 | V120: WA | W120: 3 | X120: 76.5 | Y120: 4340 | Z120: 7030 | AA120: 8900 | AB120: 11300 | AC120: 13000 | AD120: 14800 | AE120: 16500 | AF120: 18900
R121: 130 | S121: 12094000 CARBON RIVER NEAR FAIRFAX, WA | T121: 73 | U121: 12094000 | V121: WA | W121: 3 | X121: 79.23710223 | Y121: 4460 | Z121: 6990 | AA121: 8790 | AB121: 11100 | AC121: 12900 | AD121: 14800 | AE121: 16600 | AF121: 19100
R122: 131 | S122: 12095000 SOUTH PRAIRIE CREEK AT SOUTH PRAIRIE, WA | T122: 57 | U122: 12095000 | V122: WA | W122: 3 | X122: 79.47304794 | Y122: 2890 | Z122: 4430 | AA122: 5520 | AB122: 6930 | AC122: 8010 | AD122: 9100 | AE122: 10200 | AF122: 11700
R123: 133 | S123: 12096800 DRY CREEK NEAR GREENWATER, WA | T123: 19 | U123: 12096800 | V123: WA | W123: 3 | X123: 1.01 | Y123: 21.9 | Z123: 35.6 | AA123: 46.3 | AB123: 61.6 | AC123: 74 | AD123: 87.9 | AE123: 102 | AF123: 122
R124: 134 | S124: 12096950 JIM CREEK NEAR GREENWATER, WA | T124: 11 | U124: 12096950 | V124: WA | W124: 3 | X124: 4.42 | Y124: 168 | Z124: 226 | AA124: 265 | AB124: 315 | AC124: 353 | AD124: 394 | AE124: 434 | AF124: 490
R125: 135 | S125: 12097000 WHITE RIVER AT GREENWATER, WA | T125: 48 | U125: 12097000 | V125: WA | W125: 3 | X125: 215.2116767 | Y125: 4870 | Z125: 7930 | AA125: 10400 | AB125: 13900 | AC125: 16900 | AD125: 20200 | AE125: 23600 | AF125: 28600
R126: 136 | S126: 12097500 GREENWATER RIVER AT GREENWATER, WA | T126: 72 | U126: 12097500 | V126: WA | W126: 3 | X126: 73.43262927 | Y126: 1460 | Z126: 2620 | AA126: 3630 | AB126: 5180 | AC126: 6510 | AD126: 7980 | AE126: 9590 | AF126: 11900
R127: 137 | S127: 12097700 CYCLONE CREEK NEAR ENUMCLAW, WA | T127: 23 | U127: 12097700 | V127: WA | W127: 3 | X127: 2.46 | Y127: 170 | Z127: 312 | AA127: 423 | AB127: 574 | AC127: 690 | AD127: 804 | AE127: 920 | AF127: 1080
R128: 138 | S128: 12097850 WHITE RIVER BELOW CLEARWATER RIVER NR BUCKLEY, WA | T128: 22 | U128: 12097850 | V128: WA | W128: 3 | X128: 374.6609381 | Y128: 12700 | Z128: 18200 | AA128: 22000 | AB128: 26800 | AC128: 30400 | AD128: 34200 | AE128: 37900 | AF128: 43100
R129: 139 | S129: 12099600 BOISE CREEK AT BUCKLEY, WA | T129: 37 | U129: 12099600 | V129: WA | W129: 3 | X129: 16.09538931 | Y129: 449 | Z129: 701 | AA129: 889 | AB129: 1150 | AC129: 1350 | AD129: 1570 | AE129: 1800 | AF129: 2120
R130: 140 | S130: 12100000 WHITE RIVER AT BUCKLEY, WA | T130: 44 | U130: 12100000 | V130: WA | W130: 3 | X130: 426.84 | Y130: 11400 | Z130: 16400 | AA130: 19700 | AB130: 23900 | AC130: 27100 | AD130: 30400 | AE130: 33700 | AF130: 38200
R131: 147 | S131: 12103400 GREEN RIVER BELOW INTAKE CREEK NEAR LESTER, WA | T131: 11 | U131: 12103400 | V131: WA | W131: 3 | X131: 34.78 | Y131: 1230 | Z131: 2110 | AA131: 2790 | AB131: 3700 | AC131: 4410 | AD131: 5140 | AE131: 5890 | AF131: 6920
R132: 148 | S132: 12103500 SNOW CREEK NEAR LESTER, WA | T132: 20 | U132: 12103500 | V132: WA | W132: 3 | X132: 11.47 | Y132: 869 | Z132: 1400 | AA132: 1770 | AB132: 2260 | AC132: 2630 | AD132: 3000 | AE132: 3370 | AF132: 3870
R133: 149 | S133: 12104000 FRIDAY CREEK NEAR LESTER, WA | T133: 32 | U133: 12104000 | V133: WA | W133: 3 | X133: 4.75435818 | Y133: 281 | Z133: 479 | AA133: 642 | AB133: 877 | AC133: 1070 | AD133: 1270 | AE133: 1480 | AF133: 1780
R134: 150 | S134: 12104500 GREEN RIVER NEAR LESTER, WA | T134: 46 | U134: 12104500 | V134: WA | W134: 3 | X134: 96.19635168 | Y134: 4570 | Z134: 8050 | AA134: 10800 | AB134: 14600 | AC134: 17500 | AD134: 20500 | AE134: 23600 | AF134: 27800
R135: 151 | S135: 12104700 GREEN CANYON CREEK NEAR LESTER, WA | T135: 13 | U135: 12104700 | V135: WA | W135: 3 | X135: 3.25 | Y135: 174 | Z135: 259 | AA135: 319 | AB135: 398 | AC135: 458 | AD135: 521 | AE135: 585 | AF135: 672
R136: 152 | S136: 12105000 SMAY CREEK NEAR LESTER, WA | T136: 24 | U136: 12105000 | V136: WA | W136: 3 | X136: 8.59 | Y136: 476 | Z136: 780 | AA136: 1010 | AB136: 1340 | AC136: 1610 | AD136: 1880 | AE136: 2170 | AF136: 2570
R137: 153 | S137: 12105710 NORTH FORK GREEN RIVER NEAR LEMOLO, WA | T137: 31 | U137: 12105710 | V137: WA | W137: 3 | X137: 16.59 | Y137: 1090 | Z137: 1680 | AA137: 2070 | AB137: 2560 | AC137: 2900 | AD137: 3250 | AE137: 3590 | AF137: 4030
R138: 154 | S138: 12106000 BEAR CREEK NEAR EABLE GORGE, WA | T138: 10 | U138: 12106000 | V138: WA | W138: 3 | X138: 4.06 | Y138: 400 | Z138: 612 | AA138: 758 | AB138: 944 | AC138: 1080 | AD138: 1220 | AE138: 1360 | AF138: 1560
R139: 155 | S139: 12106500 GREEN RIVER NEAR PALMER, WA | T139: 33 | U139: 12106500 | V139: WA | W139: 3 | X139: 227.85 | Y139: 11500 | Z139: 16800 | AA139: 20400 | AB139: 24800 | AC139: 28100 | AD139: 31400 | AE139: 34700 | AF139: 39200
R140: 156 | S140: 12107200 DEEP CREEK NEAR CUMBERLAND, WA | T140: 21 | U140: 12107200 | V140: WA | W140: 3 | X140: 2.23 | Y140: 65.5 | Z140: 93.8 | AA140: 113 | AB140: 137 | AC140: 155 | AD140: 174 | AE140: 193 | AF140: 220
R141: 160 | S141: 12113000 GREEN RIVER NEAR AUBURN, WA | T141: 78 | U141: 12113000 | V141: WA | W141: 3 | X141: 411.84 | Y141: 11700 | Z141: 17100 | AA141: 20800 | AB141: 25500 | AC141: 29000 | AD141: 32600 | AE141: 36300 | AF141: 41200
R142: 166 | S142: 12113500 NORTH FORK CEDAR RIVER NEAR LESTER, WA | T142: 19 | U142: 12113500 | V142: WA | W142: 3 | X142: 9.54 | Y142: 826 | Z142: 1370 | AA142: 1780 | AB142: 2330 | AC142: 2760 | AD142: 3190 | AE142: 3640 | AF142: 4250
R143: 167 | S143: 12114000 SOUTH FORK CEDAR RIVER NEAR LESTER, WA | T143: 39 | U143: 12114000 | V143: WA | W143: 3 | X143: 6.57833319 | Y143: 455 | Z143: 744 | AA143: 973 | AB143: 1300 | AC143: 1570 | AD143: 1850 | AE143: 2150 | AF143: 2570
R144: 168 | S144: 12114500 CEDAR RIVER BELOW BEAR CREEK NEAR CEDAR FALLS, WA | T144: 58 | U144: 12114500 | V144: WA | W144: 3 | X144: 25.69723299 | Y144: 1680 | Z144: 2740 | AA144: 3540 | AB144: 4640 | AC144: 5510 | AD144: 6420 | AE144: 7370 | AF144: 8690
R145: 169 | S145: 12115000 CEDAR RIVER NEAR CEDAR FALLS, WA | T145: 68 | U145: 12115000 | V145: WA | W145: 3 | X145: 39.69042363 | Y145: 2770 | Z145: 4340 | AA145: 5430 | AB145: 6840 | AC145: 7890 | AD145: 8950 | AE145: 10000 | AF145: 11400
R146: 170 | S146: 12115300 GREEN POINT CREEK NEAR CEDAR FALLS, WA | T146: 32 | U146: 12115300 | V146: WA | W146: 3 | X146: 0.75 | Y146: 85.6 | Z146: 109 | AA146: 123 | AB146: 139 | AC146: 151 | AD146: 163 | AE146: 174 | AF146: 189
R147: 171 | S147: 12115500 REX RIVER NEAR CEDAR FALLS, WA | T147: 68 | U147: 12115500 | V147: WA | W147: 3 | X147: 13.40477424 | Y147: 1610 | Z147: 2480 | AA147: 3070 | AB147: 3810 | AC147: 4350 | AD147: 4880 | AE147: 5400 | AF147: 6080
R148: 172 | S148: 12115700 BOULDER CREEK NEAR CEDAR FALLS, WA | T148: 31 | U148: 12115700 | V148: WA | W148: 3 | X148: 5.06848914 | Y148: 483 | Z148: 867 | AA148: 1160 | AB148: 1570 | AC148: 1880 | AD148: 2180 | AE148: 2490 | AF148: 2900
R149: 173 | S149: 12115800 RACK CREEK NEAR CEDAR FALLS, WA | T149: 10 | U149: 12115800 | V149: WA | W149: 3 | X149: 2.18 | Y149: 169 | Z149: 290 | AA149: 384 | AB149: 511 | AC149: 609 | AD149: 711 | AE149: 814 | AF149: 955
R150: 174 | S150: 12117000 TAYLOR CREEK NEAR SELLECK, WA | T150: 58 | U150: 12117000 | V150: WA | W150: 3 | X150: 17.31798654 | Y150: 843 | Z150: 1320 | AA150: 1680 | AB150: 2180 | AC150: 2580 | AD150: 3010 | AE150: 3460 | AF150: 4100
R151: 182 | S151: 12120600 ISSAQUAH CREEK NEAR HOBART, WA | T151: 29 | U151: 12120600 | V151: WA | W151: 3 | X151: 18.09102438 | Y151: 618 | Z151: 984 | AA151: 1240 | AB151: 1590 | AC151: 1850 | AD151: 2120 | AE151: 2390 | AF151: 2760
R152: 183 | S152: 12121000 ISSAQUAH CREEK NEAR ISSAQUAH, WA | T152: 19 | U152: 12121000 | V152: WA | W152: 3 | X152: 29.01 | Y152: 682 | Z152: 1050 | AA152: 1330 | AB152: 1720 | AC152: 2040 | AD152: 2390 | AE152: 2760 | AF152: 3280
R153: 185 | S153: 12121700 TIBBETTS CREEK NEAR ISSAQUAH, WA | T153: 11 | U153: 12121700 | V153: WA | W153: 3 | X153: 3.96 | Y153: 146 | Z153: 232 | AA153: 291 | AB153: 366 | AC153: 422 | AD153: 477 | AE153: 534 | AF153: 610
R154: 198 | S154: 12130500 SOUTH FORK SKYKOMISH RIVER NEAR SKYKOMISH, WA | T154: 26 | U154: 12130500 | V154: WA | W154: 3 | X154: 136.01 | Y154: 6520 | Z154: 10000 | AA154: 12600 | AB154: 16100 | AC154: 18800 | AD154: 21600 | AE154: 24500 | AF154: 28600
R155: 199 | S155: 12131000 BECKLER RIVER NEAR SKYKOMISH, WA | T155: 28 | U155: 12131000 | V155: WA | W155: 3 | X155: 96.67 | Y155: 5630 | Z155: 8420 | AA155: 10400 | AB155: 13100 | AC155: 15200 | AD155: 17300 | AE155: 19600 | AF155: 22600
R156: 200 | S156: 12132700 SOUTH FORK SKYKOMISH RIVER TRIBUTARY AT BARING, WA | T156: 20 | U156: 12132700 | V156: WA | W156: 3 | X156: 0.9 | Y156: 107 | Z156: 154 | AA156: 184 | AB156: 222 | AC156: 250 | AD156: 279 | AE156: 306 | AF156: 343
R157: 201 | S157: 12133000 SOUTH FORK SKYKOMISH RIVER NEAR INDEX, WA | T157: 74 | U157: 12133000 | V157: WA | W157: 3 | X157: 357.3698357 | Y157: 23200 | Z157: 35300 | AA157: 43800 | AB157: 55100 | AC157: 63700 | AD157: 72500 | AE157: 81600 | AF157: 93900
R158: 202 | S158: 12133500 TROUBLESOME CREEK NEAR INDEX, WA | T158: 12 | U158: 12133500 | V158: WA | W158: 3 | X158: 12.96 | Y158: 1010 | Z158: 1640 | AA158: 2130 | AB158: 2790 | AC158: 3310 | AD158: 3860 | AE158: 4420 | AF158: 5180
R159: 203 | S159: 12134000 NORTH FORK SKYKOMISH RIVER AT INDEX, WA | T159: 21 | U159: 12134000 | V159: WA | W159: 3 | X159: 145.68 | Y159: 13600 | Z159: 19900 | AA159: 24200 | AB159: 29700 | AC159: 33700 | AD159: 37800 | AE159: 41900 | AF159: 47500
R160: 204 | S160: 12134500 SKYKOMISH RIVER NEAR GOLD BAR, WA | T160: 86 | U160: 12134500 | V160: WA | W160: 3 | X160: 535.1948316 | Y160: 40600 | Z160: 61300 | AA160: 75600 | AB160: 93900 | AC160: 108000 | AD160: 121000 | AE160: 135000 | AF160: 154000
R161: 205 | S161: 12135000 WALLACE RIVER AT GOLD BAR, WA | T161: 44 | U161: 12135000 | V161: WA | W161: 3 | X161: 19.21133214 | Y161: 2010 | Z161: 2670 | AA161: 3110 | AB161: 3650 | AC161: 4060 | AD161: 4470 | AE161: 4890 | AF161: 5460
R162: 206 | S162: 12135500 OLNEY CREEK NEAR GOLD BAR, WA | T162: 21 | U162: 12135500 | V162: WA | W162: 3 | X162: 7.69 | Y162: 988 | Z162: 1570 | AA162: 2020 | AB162: 2630 | AC162: 3120 | AD162: 3610 | AE162: 4130 | AF162: 4830
R163: 207 | S163: 12137290 SOUTH FORK SULTAN RIVER NEAR SULTAN, WA | T163: 24 | U163: 12137290 | V163: WA | W163: 3 | X163: 11.74689945 | Y163: 2620 | Z163: 4350 | AA163: 5590 | AB163: 7200 | AC163: 8390 | AD163: 9500 | AE163: 10600 | AF163: 12100
R164: 208 | S164: 12137500 SULTAN RIVER NEAR STARTUP, WA | T164: 38 | U164: 12137500 | V164: WA | W164: 3 | X164: 74.33262837 | Y164: 15100 | Z164: 22400 | AA164: 27200 | AB164: 32900 | AC164: 37100 | AD164: 40900 | AE164: 44700 | AF164: 49700
R165: 209 | S165: 12141000 WOODS CREEK NEAR MONROE, WA | T165: 32 | U165: 12141000 | V165: WA | W165: 3 | X165: 56.7277425 | Y165: 1300 | Z165: 1810 | AA165: 2140 | AB165: 2550 | AC165: 2860 | AD165: 3180 | AE165: 3500 | AF165: 3930
R166: 210 | S166: 12141100 SKYKOMISH RIVER AT MONROE, WA | T166: 19 | U166: 12141100 | V166: WA | W166: 3 | X166: 767.16 | Y166: 52900 | Z166: 71400 | AA166: 82400 | AB166: 95200 | AC166: 104000 | AD166: 112000 | AE166: 120000 | AF166: 131000
R167: 211 | S167: 12141300 MIDDLE FORK SNOQUALMIE RIVER NEAR TANNER, WA | T167: 54 | U167: 12141300 | V167: WA | W167: 3 | X167: 155.0229338 | Y167: 16300 | Z167: 22800 | AA167: 26800 | AB167: 31400 | AC167: 34600 | AD167: 37600 | AE167: 40500 | AF167: 44200
R168: 212 | S168: 12141500 MIDDLE FORK SNOQUALMIE RIVER NEAR NORTH BEND, WA | T168: 20 | U168: 12141500 | V168: WA | W168: 3 | X168: 168.53 | Y168: 12600 | Z168: 19100 | AA168: 23600 | AB168: 29600 | AC168: 34200 | AD168: 38900 | AE168: 43700 | AF168: 50300
R169: 213 | S169: 12142000 NF SNOQUALMIE RIVER NEAR SNOQUALMIE FALLS, WA | T169: 83 | U169: 12142000 | V169: WA | W169: 3 | X169: 63.95588199 | Y169: 2170 | Z169: 3120 | AA169: 3830 | AB169: 4810 | AC169: 5580 | AD169: 6450 | AE169: 7330 | AF169: 8560
R170: 214 | S170: 12142300 HANCOCK CREEK NEAR SNOQUALMIE, WA | T170: 15 | U170: 12142300 | V170: WA | W170: 3 | X170: 7.4 | Y170: 466 | Z170: 659 | AA170: 796 | AB170: 980 | AC170: 1120 | AD170: 1280 | AE170: 1430 | AF170: 1650
R171: 215 | S171: 12143000 NORTH FORK SNOQUALMIE RIVER NEAR NORTH BEND, WA | T171: 43 | U171: 12143000 | V171: WA | W171: 3 | X171: 95.8 | Y171: 8860 | Z171: 12300 | AA171: 14600 | AB171: 17300 | AC171: 19300 | AD171: 21200 | AE171: 23200 | AF171: 25800
R172: 216 | S172: 12143300 SF SNOQUALMIE RIVER TRIBUTARY NEAR NORTH BEND, WA | T172: 20 | U172: 12143300 | V172: WA | W172: 3 | X172: 0.31 | Y172: 27 | Z172: 33.3 | AA172: 37.3 | AB172: 42 | AC172: 45.4 | AD172: 48.9 | AE172: 52.2 | AF172: 56.7
R173: 217 | S173: 12143310 SF SNOQUALMIE RIVER TRIB NO 9 NEAR NORTH BEND, WA | T173: 11 | U173: 12143310 | V173: WA | W173: 3 | X173: 0.31 | Y173: 18.8 | Z173: 27.6 | AA173: 33.9 | AB173: 42.2 | AC173: 48.6 | AD173: 55.5 | AE173: 62.4 | AF173: 71.9
R174: 218 | S174: 12143400 SF SNOQUALMIE RIVER AB ALICE CREEK NEAR GARCIA, WA | T174: 54 | U174: 12143400 | V174: WA | W174: 3 | X174: 41.65883865 | Y174: 3760 | Z174: 5680 | AA174: 6950 | AB174: 8550 | AC174: 9720 | AD174: 10900 | AE174: 12000 | AF174: 13500
R175: 219 | S175: 12143600 SF SNOQUALMIE RIVER AT EDGEWICK, WA | T175: 33 | U175: 12143600 | V175: WA | W175: 3 | X175: 63.70916409 | Y175: 5840 | Z175: 8830 | AA175: 10900 | AB175: 13400 | AC175: 15300 | AD175: 17100 | AE175: 19000 | AF175: 21500
R176: 220 | S176: 12143700 BOXLEY CREEK NEAR CEDAR FALLS, WA | T176: 69 | U176: 12143700 | V176: WA | W176: 3 | X176: 1.31 | Y176: 78 | Z176: 117 | AA176: 144 | AB176: 179 | AC176: 205 | AD176: 231 | AE176: 258 | AF176: 294
R177: 221 | S177: 12143900 BOXLEY CREEK NEAR EDGEWICK, WA | T177: 33 | U177: 12143900 | V177: WA | W177: 3 | X177: 5.41806408 | Y177: 122 | Z177: 164 | AA177: 194 | AB177: 234 | AC177: 266 | AD177: 301 | AE177: 337 | AF177: 389
R178: 223 | S178: 12144500 SNOQUALMIE RIVER NEAR SNOQUALMIE, WA | T178: 56 | U178: 12144500 | V178: WA | W178: 3 | X178: 377.1680784 | Y178: 29800 | Z178: 43300 | AA178: 52100 | AB178: 63000 | AC178: 71000 | AD178: 78800 | AE178: 86600 | AF178: 96800
R179: 224 | S179: 12145500 RAGING RIVER NEAR FALL CITY, WA | T179: 68 | U179: 12145500 | V179: WA | W179: 3 | X179: 30.49433244 | Y179: 1930 | Z179: 2850 | AA179: 3500 | AB179: 4350 | AC179: 5020 | AD179: 5690 | AE179: 6400 | AF179: 7360
R180: 226 | S180: 12147000 GRIFFIN CREEK NEAR CARNATION, WA | T180: 33 | U180: 12147000 | V180: WA | W180: 3 | X180: 17.19867006 | Y180: 404 | Z180: 584 | AA180: 731 | AB180: 944 | AC180: 1120 | AD180: 1320 | AE180: 1540 | AF180: 1850
R181: 227 | S181: 12147500 NORTH FORK TOLT RIVER NEAR CARNATION, WA | T181: 59 | U181: 12147500 | V181: WA | W181: 3 | X181: 39.72714174 | Y181: 4720 | Z181: 6500 | AA181: 7640 | AB181: 9070 | AC181: 10100 | AD181: 11100 | AE181: 12200 | AF181: 13500
R182: 228 | S182: 12147600 SOUTH FORK TOLT RIVER NEAR INDEX, WA | T182: 51 | U182: 12147600 | V182: WA | W182: 3 | X182: 5.45420304 | Y182: 1160 | Z182: 1670 | AA182: 1990 | AB182: 2370 | AC182: 2640 | AD182: 2900 | AE182: 3160 | AF182: 3480
R183: 229 | S183: 12148000 SOUTH FORK TOLT RIVER NEAR CARNATION, WA | T183: 56 | U183: 12148000 | V183: WA | W183: 3 | X183: 20.01 | Y183: 3300 | Z183: 4580 | AA183: 5420 | AB183: 6480 | AC183: 7260 | AD183: 8050 | AE183: 8840 | AF183: 9910
R184: 230 | S184: 12148100 SOUTH FORK TOLT RIVER TRIBUTARY NEAR CARNATION, WA | T184: 20 | U184: 12148100 | V184: WA | W184: 3 | X184: 2.82 | Y184: 129 | Z184: 186 | AA184: 226 | AB184: 279 | AC184: 320 | AD184: 364 | AE184: 408 | AF184: 470
R185: 231 | S185: 12148500 TOLT RIVER NEAR CARNATION, WA | T185: 79 | U185: 12148500 | V185: WA | W185: 3 | X185: 81.15767946 | Y185: 6460 | Z185: 9580 | AA185: 11700 | AB185: 14500 | AC185: 16500 | AD185: 18600 | AE185: 20700 | AF185: 23600
R186: 232 | S186: 12149000 SNOQUALMIE RIVER NEAR CARNATION, WA | T186: 85 | U186: 12149000 | V186: WA | W186: 3 | X186: 602.8619454 | Y186: 30200 | Z186: 45600 | AA186: 55800 | AB186: 68400 | AC186: 77600 | AD186: 86700 | AE186: 95600 | AF186: 107000
R187: 233 | S187: 12150800 SNOHOMISH RIVER NEAR MONROE, WA | T187: 51 | U187: 12150800 | V187: WA | W187: 3 | X187: 1536.13939 | Y187: 61700 | Z187: 84200 | AA187: 99500 | AB187: 119000 | AC187: 135000 | AD187: 150000 | AE187: 166000 | AF187: 189000
R188: 234 | S188: 12152500 PILCHUCK RIVER NEAR GRANITE FALLS, WA | T188: 37 | U188: 12152500 | V188: WA | W188: 3 | X188: 54.71 | Y188: 5070 | Z188: 6700 | AA188: 7720 | AB188: 8960 | AC188: 9850 | AD188: 10700 | AE188: 11600 | AF188: 12700
R189: 235 | S189: 12153000 LITTLE PILCHUCK C NEAR LAKE STEVENS, WA | T189: 27 | U189: 12153000 | V189: WA | W189: 3 | X189: 16.88523408 | Y189: 268 | Z189: 383 | AA189: 461 | AB189: 562 | AC189: 639 | AD189: 720 | AE189: 802 | AF189: 915
R190: 236 | S190: 12155300 PILCHUCK RIVER NEAR SNOHOMISH, WA | T190: 22 | U190: 12155300 | V190: WA | W190: 3 | X190: 128.7408751 | Y190: 5820 | Z190: 8540 | AA190: 10300 | AB190: 12600 | AC190: 14200 | AD190: 15800 | AE190: 17500 | AF190: 19700
R191: 240 | S191: 12157250 MISSION CREEK NEAR TULALIP, WA | T191: 17 | U191: 12157250 | V191: WA | W191: 3 | X191: 8.03 | Y191: 63.2 | Z191: 89.3 | AA191: 108 | AB191: 133 | AC191: 152 | AD191: 174 | AE191: 196 | AF191: 227
R192: 242 | S192: 12158032 EAST BRANCH TULALIP CREEK NR MOUTH NR TULALIP, WA | T192: 13 | U192: 12158032 | V192: WA | W192: 3 | X192: 2.06 | Y192: 25.2 | Z192: 34.2 | AA192: 40.3 | AB192: 48.3 | AC192: 54.5 | AD192: 61.2 | AE192: 67.8 | AF192: 77
R193: 243 | S193: 12158040 TULALIP CREEK NEAR TULALIP, WA | T193: 17 | U193: 12158040 | V193: WA | W193: 3 | X193: 15.64 | Y193: 92.9 | Z193: 131 | AA193: 158 | AB193: 195 | AC193: 224 | AD193: 256 | AE193: 290 | AF193: 337
R194: 244 | S194: 12161000 SF STILLAGUAMISH RIVER NEAR GRANITE FALLS, WA | T194: 52 | U194: 12161000 | V194: WA | W194: 3 | X194: 117.2903846 | Y194: 16000 | Z194: 21100 | AA194: 24100 | AB194: 27700 | AC194: 30200 | AD194: 32600 | AE194: 34900 | AF194: 37900
R195: 245 | S195: 12162500 SF STILLAGUAMISH RIVER AB JIM CR NR ARLINGTON, WA | T195: 20 | U195: 12162500 | V195: WA | W195: 3 | X195: 197.71 | Y195: 20000 | Z195: 23600 | AA195: 25700 | AB195: 28200 | AC195: 29900 | AD195: 31500 | AE195: 33000 | AF195: 35100
R196: 246 | S196: 12164000 JIM CREEK NEAR ARLINGTON, WA | T196: 31 | U196: 12164000 | V196: WA | W196: 3 | X196: 46.15 | Y196: 2770 | Z196: 3610 | AA196: 4130 | AB196: 4760 | AC196: 5210 | AD196: 5650 | AE196: 6090 | AF196: 6670
R197: 247 | S197: 12165000 SQUIRE CREEK NEAR DARRINGTON, WA | T197: 19 | U197: 12165000 | V197: WA | W197: 3 | X197: 19.83 | Y197: 2920 | Z197: 3980 | AA197: 4670 | AB197: 5510 | AC197: 6130 | AD197: 6750 | AE197: 7360 | AF197: 8180
R198: 248 | S198: 12166500 DEER CREEK AT OSO, WA | T198: 13 | U198: 12166500 | V198: WA | W198: 3 | X198: 65.89 | Y198: 7320 | Z198: 8630 | AA198: 9410 | AB198: 10300 | AC198: 11000 | AD198: 11700 | AE198: 12300 | AF198: 13200
R199: 249 | S199: 12167000 NF STILLAGUAMISH RIVER NEAR ARLINGTON, WA | T199: 86 | U199: 12167000 | V199: WA | W199: 3 | X199: 263.9968403 | Y199: 23900 | Z199: 31500 | AA199: 36200 | AB199: 41500 | AC199: 45300 | AD199: 48800 | AE199: 52200 | AF199: 56600
R200: 250 | S200: 12168500 PILCHUCK CREEK NEAR BRYANT, WA | T200: 31 | U200: 12168500 | V200: WA | W200: 3 | X200: 52.64 | Y200: 4130 | Z200: 5370 | AA200: 6140 | AB200: 7090 | AC200: 7770 | AD200: 8440 | AE200: 9120 | AF200: 10000
... 326 more rows
